Workbook

Sheet Instructions
B1: TEXAS DEPARTMENT OF TRANSPORTATION
B3: HMACP MIXTURE DESIGN
B5: Use this template to perform the mixture design of Hot Mix Asphalt or Warm Mix Asphalt mixtures according to the 2014 Specifications handbook.
B7: If you have questions or comments concerning this template or the mixture design procedures, please call Travis Patton at 512-506-5841 of the Flexible Pavements Branch of the Materials & Pavements Section within the Construction Division.
B11: If you would like to obtain an updated version of this Site Manager template go to
B12: http://www.txdot.gov/inside-txdot/forms-publications/consultants-contractors/forms/site-manager.html
B14: To move from page to page, click on the different worksheet tabs at the bottom of the page.
B15: This template provides notes throughout the worksheets when design requirements are not met.
A17: * | B17: COMBINED GRADATION SHEET: Start at this worksheet. Select the 2014 specification year and the mix type. This information will affect the calculation, labeling, and formatting of the worksheets in this mixture design template.
B21: • | C21: Spec Year: Select the specification year from the dropdown list before selecting the mix type.
B22: • | C22: Mix Type: Select the mix type from the dropdown list that most closely matches your mix. This value will determine what sieve sizes and tolerances are displayed on the worksheets.
B24: • | C24: WMA: Select "Yes" from the dropdown list when the mixture design includes WMA additives. Select "No" if WMA additives are not included in the mixture design, even though a WMA technology may be used during production. WMA information must be entered before entering bin percentages.
B27: • | C27: Course/Lift: From this dropdown list, select the mixture description and its location from the final riding surface. The mixture description must be selected before entering the recycled materials information to establish the maximum allowable amount of recycled materials.
B29: • | C29: Aggregate Bin Fractions: Select the aggregate type, source, and number from the dropdown lists. Refer to the BRSQC for additional aggregate and quarry information. To obtain the latest version of the BRSQC go to:
C32: http://www.txdot.gov/txdot_library/publications/producer_list.htm
C33: If the aggregate is not listed in the BRSQC but approved by the Engineer, select an aggregate source from the dropdown list and enter a description in the aggregate Sample ID cell.
B35: • | C35: Recycled Materials: Select the recycled material type and source from the dropdown lists. When using Recycled Asphalt Shingles (RAS), select the type of RAS used from the dropdown list. The template calculates the recycled binder percent and the recycled to total binder ratio of the mixture.
C38: NOTES: | D38: 1. For each recycled material, enter the bin percentages and the asphalt content (as Measured Recycled Asphalt Binder (%)) by weight of the total mix. The template calculates the recycled aggregate bin percentages by weight of the total aggregate.
D40: 2. For RAP, enter the measured high temperature PG grade (PGH) if available.
B42: • | C42: Binder Substitution: When using binder substitution, select "Yes" from the dropdown list and enter the originally specified and the substitute binders.
A45: * | B45: SUMMARY SHEET: Use this worksheet to determine the optimum asphalt content and mixture properties according to the mixture design procedure.
B47: • | C47: For informational purposes, enter the mixing and molding temperatures used for the mixture design.
B48: NOTE:
C49: Use the adjusted Optimum asphalt content (OAC) for QC/QA
A51: * | B51: MATL PROPERTIES SHEET: Use this worksheet to enter the material properties for each aggregate stockpile, fine aggregate, combined aggregate, and recycled materials.
B53: • | C53: When the material quality requirements are changed according to general notes or when shown on the plans, enter the new requirements in the "Modified Spec. Limit" column.
A57: * | B57: AGGREGATE CLASSIFICATION SHEET: Use this worksheet to verify the amount of Class A material retained on the No. 4 or No. 8 sieve when blending Class A with Class B aggregate.
A60: * | B60: WEIGH UP SHEET: Use this worksheet to calculate the weight of the batches of mix used for molds, rice gravity, and any other required test.
B63: • | C63: WARNING: When using recycled materials and changing the asphalt content in the Combined Gradation sheet, ensure that the Total Bin is 100%.
B65: NOTE:
C66: Less Asphalt by Weight of Recycled Material is decreased due to reduced binder availability (if applicable).
A68: * | B68: BLANK WEIGH UP SHEET: Use this worksheet to prepare blank samples to calculate the ignition oven correction factors in accordance with Tex-236-F.
A71: * | B71: BULK GRAVITY SHEET: Use this worksheet to calculate the aggregate combined bulk specific gravity and the coarse aggregate combined bulk specific gravity if applicable.

Sheet Combined Gradation
A1: TxDOT Manuals > | E1: Tex-207-F | G1: Tex-226-F | I1: Tex-227-F | K1: Tex-235-F | M1: Tex-242-F | O1: Tex-530-F
B2: TEXAS DEPARTMENT OF TRANSPORTATION | R2: UPLC: | S2: 895
R3: DLT: | S3: 12
B5: 2014 HMACP MIXTURE DESIGN : COMBINED GRADATION | R5: SN: | S5: tx2mixde14.xlsm::43921.438727 | AA5: Maximum Allowable, % | AG5: or | AH5: 30
Q6: ="TX2MIXDE14 - File Version: " & TEXT(MID(sn,SEARCH("::",sn,1)+2,20),"mm/dd/yy hh:mm:ss") -> TX2MIXDE14 - File Version: 03/31/20 10:31:46
B7: SAMPLE ID: | J7: SAMPLE DATE: | AA7: Frac RAP: | AB7: =FracRAPCheck -> 35
B8: LOT NUMBER: | J8: LETTING DATE: | AA8: Unfrac RAP: | AB8: =UnfracRAPCheck -> 0
B9: SAMPLE STATUS: | J9: CONTROLLING CSJ: | AA9: RAS: | AB9: =IFERROR(RASCheck,"") -> 5
B10: COUNTY: | J10: SPEC YEAR: | N10: 2014 | AA10: RB Ratio: | AB10: =IFERROR(bindercheck,"") -> 30
B11: SAMPLED BY: | J11: SPEC ITEM: | Y11: =NOT(OR(WMACheck<>"",V13="No",V13="No (WMA during prod.)",ISBLANK(V13))) -> FALSE
B12: SAMPLE LOCATION: | J12: SPECIAL PROVISION: | Y12: =IF(AND(OR($V$13="Yes",$V$13="No (WMA during prod.)"),$V$14>275)," Mixture not <<defined as WMA","") ->  | AA12: Recycled Binder, %
B13: MATERIAL CODE: | J13: MIX TYPE: | N13: SS-3074-BMD-SP-C | R13: WMA Additive in Design?
B14: MATERIAL NAME: | R14: Target Discharge Temp., ºF: | AA14: =S21&":" -> Bin No.8 : | AB14: =S31*Bin8RecAC/100 -> 0.3375
B15: PRODUCER: | R15: WMA TECHNOLOGY: | Y15: Use this value in the QC/QA template>> | AA15: =U21&":" -> Bin No.9 : | AB15: =U31*Bin9RecAC/100 -> 0.09375
B16: AREA ENGINEER: | J16: PROJECT MANAGER: | R16: WMA | S16: RATE: | U16: UNITS: | AA16: =W21&":" -> Bin No.10 : | AB16: =W31*Bin10RecAC/100 -> 0.75
B18: COURSE\LIFT: | E18: Surface | H18: STATION: | M18: DIST. FROM CL: | R18: CONTRACTOR DESIGN # : | AA18: Total | AB18: =IF(version>=10,SUM(AB14:AB16),ROUND(SUM(AB14:AB16),1)) -> 1.18125
E20: =IF(version>4,"AGGREGATE BIN FRACTIONS","BIN FRACTIONS") -> AGGREGATE BIN FRACTIONS | S20: "RECYCLED MATERIALS" | AA20: Ratio of Recycled to Total Binder, %
B21: Aggregate | E21: Bin No.1 | G21: Bin No.2 | I21: Bin No.3 | K21: Bin No.4 | M21: Bin No.5 | O21: Bin No.6 | Q21: Bin No.7 | S21: Bin No.8 | U21: Bin No.9 | W21: Bin No.10
B22: Source: | S22: Fractionated RAP | U22: Fractionated RAP | W22: RAS | Y22: Material Type | AA22: (based on binder percent (%) entered below in this worksheet)
B23: Pit: | Y23: Material Source
B24: Number: | Y24: RAS Type | AA24: Adjusted | AB24: =IF(Binder="","",RecBinder/Binder*100) -> 22.28773585
B25: Producer: | Y25: RAP/RAS Producer | AA25: Measured | AB25: =100*(((S29*Field718)/(100*Binder))+((U29*Field719)/(100*Binder))+((W29*Field720)/(100*Binder))) -> 29.71698113 | AD25: =IF(Bin8Recyc="RAS",S31,0) -> 0 | AE25: =IF(Bin9Recyc="RAS",T31,0) -> 0 | AF25: =IF(Bin10Recyc="RAS",U31,0) -> 5 | AG25: =SUM(AD25:AF25) -> 5
B26: Sample ID: | Y26: Sample ID | Z26: =IFERROR(IF($AB$24>bindercheck,"Recycled Binder exceeds maximum allowable %",""),"") -> 
B27: Recycled Material?: | S27: Recycled Asphalt Binder (%)
O28: Measured PGH of RAP (if available) | S28: 85 | U28: 85
O29: Measured Recycled Asphalt Binder (%) | S29: 3 | U29: 2.5 | W29: 20
B30: Asphalt%: | O30: Adjusted Recycled Asphalt Binder (%) | S30: =IF(OR(AB25>20,$S$28>100,SUM(S31,U31)>20),$S$29*0.75,$S$29) -> 2.25 | U30: =IF(OR(AB25>20,$U$28>100,SUM(S31,U31)>20),$U$29*0.75,$U$29) -> 1.875 | W30: =IF(OR(AB25>20,Field720>3),$W$29*0.75,$W$29) -> 15 | Y30: Combined Gradation
B31: Hydrated Lime?: | S31: 15 | T31: % of Tot. Mix | U31: 5 | V31: % of Tot. Mix | W31: 5 | X31: % of Tot. Mix | Y31: Total Bin | Z31: Lower & Upper Specification Limits | AC31: Restricted Zone | AF31: Individual % Retained | AG31: Cumulative % Retained | AH31: Sieve Size
B32: Individual Bin (%): | F32: Percent | H32: Percent | J32: Percent | L32: Percent | N32: Percent | P32: Percent | R32: Percent | S32: =ROUND(S$31*(100-Bin8RecAC)/(100-Binder-percentfiber),1) -> 15.5 | T32: % of Aggreg | U32: =ROUND(U$31*(100-Bin9RecAC)/(100-Binder-percentfiber),1) -> 5.2 | V32: % of Aggreg | W32: =ROUND(W$31*(100-Bin10RecAC)/(100-Binder-percentfiber),1) -> 4.5 | X32: % of Aggreg | Y32: =SUM(E32,G32,I32,K32,M32,O32,Q32,S32,U32,W32)/100 -> 0.252
E33: 48.1
B34: Sieve Size: | E34: Cum.% Passing | F34: Wtd Cum. % | G34: Cum.% Passing | H34: Wtd Cum. % | I34: Cum.% Passing | J34: Wtd Cum. % | K34: Cum.% Passing | L34: Wtd Cum. % | M34: Cum.% Passing | N34: Wtd Cum. % | O34: Cum.% Passing | P34: Wtd Cum. % | Q34: Cum.% Passing | R34: Wtd Cum. % | S34: Cum.% Passing | T34: Wtd Cum. % | U34: Cum.% Passing | V34: Wtd Cum. % | W34: Cum.% Passing | X34: Wtd Cum. % | Y34: Cum. % Passing | Z34: Lower | AA34: Upper | AB34: Within Spec's | AC34: Lower | AD34: Upper | AE34: Within Spec's
B35: =IF(ISERROR(INDEX(INDIRECT(VLOOKUP(Grade,MIX_RANGE,2,0)),1,2)),"",INDEX(INDIRECT(VLOOKUP(Grade,MIX_RANGE,2,0)),1,2)) -> 1" | D35: =IF(ISERROR(INDEX(INDIRECT(VLOOKUP(Grade,MIX_RANGE,2,0)),1,4)),0,INDEX(INDIRECT(VLOOKUP(Grade,MIX_RANGE,2,0)),1,4)) -> 25 | F35: =IF(E35="","",E35*(Bin1Frac/100)) ->  | H35: =IF(G35="","",G35*(Bin2Frac/100)) ->  | J35: =IF(I35="","",I35*(Bin3Frac/100)) ->  | L35: =IF(K35="","",K35*(Bin4Frac/100)) ->  | N35: =IF(M35="","",M35*(Bin5Frac/100)) ->  | P35: =IF(O35="","",O35*(Bin6Frac/100)) ->  | R35: =IF(Q35="","",Q35*(Bin7Frac/100)) ->  | T35: =IF(S35="","",S35*(Bin8Frac/100)) ->  | V35: =IF(U35="","",U35*(Bin9Frac/100)) ->  | X35: =IF(W35="","",W35*(Bin10Frac/100)) ->  | Y35: =IF(AND(F35="",H35="",J35="",L35="",N35="",P35="",R35="",T35="",V35="",X35=""),"",SUM(F35,H35,J35,L35,N35,P35,R35,T35,V35,X35)) ->  | Z35: =IF(ISERROR(INDEX(INDIRECT(VLOOKUP(Grade,MIX_RANGE,2,0)),1,5)),"",INDEX(INDIRECT(VLOOKUP(Grade,MIX_RANGE,2,0)),1,5)) -> 100 | AA35: =IF(ISERROR(INDEX(INDIRECT(VLOOKUP(Grade,MIX_RANGE,2,0)),1,6)),"",INDEX(INDIRECT(VLOOKUP(Grade,MIX_RANGE,2,0)),1,6)) -> 100 | AB35: =IF(OR(Z35="",AA35=""),"",IF(OR(Y35<Z35,Y35>AA35),"No","Yes")) -> No | AC35: =IF(ISERROR(OR(INDEX(INDIRECT(VLOOKUP(Grade,MIX_RANGE,2,0)),1,8),INDEX(INDIRECT(VLOOKUP(Grade,MIX_RANGE,2,0)),1,9))),"",INDEX(INDIRECT(VLOOKUP(Grade,MIX_RANGE,2,0)),1,8)) ->  | AD35: =IF(ISERROR(INDEX(INDIRECT(VLOOKUP(Grade,MIX_RANGE,2,0)),1,9)),"",INDEX(INDIRECT(VLOOKUP(Grade,MIX_RANGE,2,0)),1,9)) -> 0 | AE35: =IF(OR(AC35="",AD35=""),"",IF(AND(Y35>=AC35,Y35<=AD35),"No","Yes")) ->  | AF35: =IF(AG35="","",AG35) ->  | AG35: =IF(Y35="","",100-Y35) ->  | AH35: =$B35 -> 1"
B36: =IF(ISERROR(INDEX(INDIRECT(VLOOKUP(Grade,MIX_RANGE,2,0)),2,2)),"",INDEX(INDIRECT(VLOOKUP(Grade,MIX_RANGE,2,0)),2,2)) -> 3/4" | D36: =IF(ISERROR(INDEX(INDIRECT(VLOOKUP(Grade,MIX_RANGE,2,0)),2,4)),0,INDEX(INDIRECT(VLOOKUP(Grade,MIX_RANGE,2,0)),2,4)) -> 19 | N36: =IF(M36="","",M36*(Bin5Frac/100)) ->  | R36: =IF(Q36="","",Q36*(Bin7Frac/100)) ->  | T36: =IF(S36="","",S36*(Bin8Frac/100)) ->  | X36: =IF(W36="","",W36*(Bin10Frac/100)) ->  | Z36: =IF(ISERROR(INDEX(INDIRECT(VLOOKUP(Grade,MIX_RANGE,2,0)),2,5)),"",INDEX(INDIRECT(VLOOKUP(Grade,MIX_RANGE,2,0)),2,5)) -> 98 | AA36: =IF(ISERROR(INDEX(INDIRECT(VLOOKUP(Grade,MIX_RANGE,2,0)),2,6)),"",INDEX(INDIRECT(VLOOKUP(Grade,MIX_RANGE,2,0)),2,6)) -> 100 | AB36: No | AC36: =IF(ISERROR(OR(INDEX(INDIRECT(VLOOKUP(Grade,MIX_RANGE,2,0)),2,8),INDEX(INDIRECT(VLOOKUP(Grade,MIX_RANGE,2,0)),2,9))),"",INDEX(INDIRECT(VLOOKUP(Grade,MIX_RANGE,2,0)),2,8)) ->  | AD36: =IF(ISERROR(INDEX(INDIRECT(VLOOKUP(Grade,MIX_RANGE,2,0)),2,9)),"",INDEX(INDIRECT(VLOOKUP(Grade,MIX_RANGE,2,0)),2,9)) -> 0 | AF36: =IF(IF(Y36="","",100-Y36-AG35)="","",IF(Y36="","",100-Y36-AG35)) ->  | AG36: =IF(Y36="","",100-Y36) ->  | AH36: 3/4"
B37: =IF(ISERROR(INDEX(INDIRECT(VLOOKUP(Grade,MIX_RANGE,2,0)),3,2)),"",INDEX(INDIRECT(VLOOKUP(Grade,MIX_RANGE,2,0)),3,2)) -> 1/2" | D37: =IF(ISERROR(INDEX(INDIRECT(VLOOKUP(Grade,MIX_RANGE,2,0)),3,4)),0,INDEX(INDIRECT(VLOOKUP(Grade,MIX_RANGE,2,0)),3,4)) -> 12.5 | R37: =IF(Q37="","",Q37*(Bin7Frac/100)) ->  | Z37: =IF(ISERROR(INDEX(INDIRECT(VLOOKUP(Grade,MIX_RANGE,2,0)),3,5)),"",INDEX(INDIRECT(VLOOKUP(Grade,MIX_RANGE,2,0)),3,5)) -> 90 | AA37: =IF(ISERROR(INDEX(INDIRECT(VLOOKUP(Grade,MIX_RANGE,2,0)),3,6)),"",INDEX(INDIRECT(VLOOKUP(Grade,MIX_RANGE,2,0)),3,6)) -> 100 | AB37: No | AC37: =IF(ISERROR(OR(INDEX(INDIRECT(VLOOKUP(Grade,MIX_RANGE,2,0)),3,8),INDEX(INDIRECT(VLOOKUP(Grade,MIX_RANGE,2,0)),3,9))),"",INDEX(INDIRECT(VLOOKUP(Grade,MIX_RANGE,2,0)),3,8)) ->  | AD37: =IF(ISERROR(INDEX(INDIRECT(VLOOKUP(Grade,MIX_RANGE,2,0)),3,9)),"",INDEX(INDIRECT(VLOOKUP(Grade,MIX_RANGE,2,0)),3,9)) -> 0 | AH37: 1/2"
B38: =IF(ISERROR(INDEX(INDIRECT(VLOOKUP(Grade,MIX_RANGE,2,0)),4,2)),"",INDEX(INDIRECT(VLOOKUP(Grade,MIX_RANGE,2,0)),4,2)) -> 3/8" | D38: =IF(ISERROR(INDEX(INDIRECT(VLOOKUP(Grade,MIX_RANGE,2,0)),4,4)),0,INDEX(INDIRECT(VLOOKUP(Grade,MIX_RANGE,2,0)),4,4)) -> 9.5 | Z38: =IF(ISERROR(INDEX(INDIRECT(VLOOKUP(Grade,MIX_RANGE,2,0)),4,5)),"",INDEX(INDIRECT(VLOOKUP(Grade,MIX_RANGE,2,0)),4,5)) -> 58 | AA38: =IF(ISERROR(INDEX(INDIRECT(VLOOKUP(Grade,MIX_RANGE,2,0)),4,6)),"",INDEX(INDIRECT(VLOOKUP(Grade,MIX_RANGE,2,0)),4,6)) -> 90 | AB38: No | AC38: =IF(ISERROR(OR(INDEX(INDIRECT(VLOOKUP(Grade,MIX_RANGE,2,0)),4,8),INDEX(INDIRECT(VLOOKUP(Grade,MIX_RANGE,2,0)),4,9))),"",INDEX(INDIRECT(VLOOKUP(Grade,MIX_RANGE,2,0)),4,8)) ->  | AD38: =IF(ISERROR(INDEX(INDIRECT(VLOOKUP(Grade,MIX_RANGE,2,0)),4,9)),"",INDEX(INDIRECT(VLOOKUP(Grade,MIX_RANGE,2,0)),4,9)) -> 0 | AH38: 3/8"
B39: =IF(ISERROR(INDEX(INDIRECT(VLOOKUP(Grade,MIX_RANGE,2,0)),5,2)),"",INDEX(INDIRECT(VLOOKUP(Grade,MIX_RANGE,2,0)),5,2)) -> No. 4 | D39: =IF(ISERROR(INDEX(INDIRECT(VLOOKUP(Grade,MIX_RANGE,2,0)),5,4)),0,INDEX(INDIRECT(VLOOKUP(Grade,MIX_RANGE,2,0)),5,4)) -> 4.75 | Z39: =IF(ISERROR(INDEX(INDIRECT(VLOOKUP(Grade,MIX_RANGE,2,0)),5,5)),"",INDEX(INDIRECT(VLOOKUP(Grade,MIX_RANGE,2,0)),5,5)) -> 28 | AA39: =IF(ISERROR(INDEX(INDIRECT(VLOOKUP(Grade,MIX_RANGE,2,0)),5,6)),"",INDEX(INDIRECT(VLOOKUP(Grade,MIX_RANGE,2,0)),5,6)) -> 90 | AB39: No | AC39: =IF(ISERROR(OR(INDEX(INDIRECT(VLOOKUP(Grade,MIX_RANGE,2,0)),5,8),INDEX(INDIRECT(VLOOKUP(Grade,MIX_RANGE,2,0)),5,9))),"",INDEX(INDIRECT(VLOOKUP(Grade,MIX_RANGE,2,0)),5,8)) ->  | AD39: =IF(ISERROR(INDEX(INDIRECT(VLOOKUP(Grade,MIX_RANGE,2,0)),5,9)),"",INDEX(INDIRECT(VLOOKUP(Grade,MIX_RANGE,2,0)),5,9)) -> 0 | AH39: No. 4
B40: =IF(ISERROR(INDEX(INDIRECT(VLOOKUP(Grade,MIX_RANGE,2,0)),6,2)),"",INDEX(INDIRECT(VLOOKUP(Grade,MIX_RANGE,2,0)),6,2)) -> No. 8 | D40: =IF(ISERROR(INDEX(INDIRECT(VLOOKUP(Grade,MIX_RANGE,2,0)),6,4)),0,INDEX(INDIRECT(VLOOKUP(Grade,MIX_RANGE,2,0)),6,4)) -> 2.36 | Z40: =IF(ISERROR(INDEX(INDIRECT(VLOOKUP(Grade,MIX_RANGE,2,0)),6,5)),"",INDEX(INDIRECT(VLOOKUP(Grade,MIX_RANGE,2,0)),6,5)) -> 28 | AA40: =IF(ISERROR(INDEX(INDIRECT(VLOOKUP(Grade,MIX_RANGE,2,0)),6,6)),"",INDEX(INDIRECT(VLOOKUP(Grade,MIX_RANGE,2,0)),6,6)) -> 58 | AB40: No | AC40: =IF(ISERROR(OR(INDEX(INDIRECT(VLOOKUP(Grade,MIX_RANGE,2,0)),6,8),INDEX(INDIRECT(VLOOKUP(Grade,MIX_RANGE,2,0)),6,9))),"",INDEX(INDIRECT(VLOOKUP(Grade,MIX_RANGE,2,0)),6,8)) -> 39.1 | AD40: =IF(ISERROR(INDEX(INDIRECT(VLOOKUP(Grade,MIX_RANGE,2,0)),6,9)),"",INDEX(INDIRECT(VLOOKUP(Grade,MIX_RANGE,2,0)),6,9)) -> 39.1 | AE40: Yes | AH40: No. 8
B41: =IF(ISERROR(INDEX(INDIRECT(VLOOKUP(Grade,MIX_RANGE,2,0)),7,2)),"",INDEX(INDIRECT(VLOOKUP(Grade,MIX_RANGE,2,0)),7,2)) -> No. 16 | D41: =IF(ISERROR(INDEX(INDIRECT(VLOOKUP(Grade,MIX_RANGE,2,0)),7,4)),0,INDEX(INDIRECT(VLOOKUP(Grade,MIX_RANGE,2,0)),7,4)) -> 1.18 | Z41: =IF(ISERROR(INDEX(INDIRECT(VLOOKUP(Grade,MIX_RANGE,2,0)),7,5)),"",INDEX(INDIRECT(VLOOKUP(Grade,MIX_RANGE,2,0)),7,5)) -> 2 | AA41: =IF(ISERROR(INDEX(INDIRECT(VLOOKUP(Grade,MIX_RANGE,2,0)),7,6)),"",INDEX(INDIRECT(VLOOKUP(Grade,MIX_RANGE,2,0)),7,6)) -> 58 | AB41: No | AC41: =IF(ISERROR(OR(INDEX(INDIRECT(VLOOKUP(Grade,MIX_RANGE,2,0)),7,8),INDEX(INDIRECT(VLOOKUP(Grade,MIX_RANGE,2,0)),7,9))),"",INDEX(INDIRECT(VLOOKUP(Grade,MIX_RANGE,2,0)),7,8)) -> 25.6 | AD41: =IF(ISERROR(INDEX(INDIRECT(VLOOKUP(Grade,MIX_RANGE,2,0)),7,9)),"",INDEX(INDIRECT(VLOOKUP(Grade,MIX_RANGE,2,0)),7,9)) -> 31.6 | AE41: Yes | AH41: No. 16
B42: =IF(ISERROR(INDEX(INDIRECT(VLOOKUP(Grade,MIX_RANGE,2,0)),8,2)),"",INDEX(INDIRECT(VLOOKUP(Grade,MIX_RANGE,2,0)),8,2)) -> No. 30 | D42: =IF(ISERROR(INDEX(INDIRECT(VLOOKUP(Grade,MIX_RANGE,2,0)),8,4)),0,INDEX(INDIRECT(VLOOKUP(Grade,MIX_RANGE,2,0)),8,4)) -> 0.6 | Z42: =IF(ISERROR(INDEX(INDIRECT(VLOOKUP(Grade,MIX_RANGE,2,0)),8,5)),"",INDEX(INDIRECT(VLOOKUP(Grade,MIX_RANGE,2,0)),8,5)) -> 2 | AA42: =IF(ISERROR(INDEX(INDIRECT(VLOOKUP(Grade,MIX_RANGE,2,0)),8,6)),"",INDEX(INDIRECT(VLOOKUP(Grade,MIX_RANGE,2,0)),8,6)) -> 58 | AB42: No | AC42: =IF(ISERROR(OR(INDEX(INDIRECT(VLOOKUP(Grade,MIX_RANGE,2,0)),8,8),INDEX(INDIRECT(VLOOKUP(Grade,MIX_RANGE,2,0)),8,9))),"",INDEX(INDIRECT(VLOOKUP(Grade,MIX_RANGE,2,0)),8,8)) -> 19.1 | AD42: =IF(ISERROR(INDEX(INDIRECT(VLOOKUP(Grade,MIX_RANGE,2,0)),8,9)),"",INDEX(INDIRECT(VLOOKUP(Grade,MIX_RANGE,2,0)),8,9)) -> 23.1 | AE42: Yes | AH42: No. 30
B43: =IF(ISERROR(INDEX(INDIRECT(VLOOKUP(Grade,MIX_RANGE,2,0)),9,2)),"",INDEX(INDIRECT(VLOOKUP(Grade,MIX_RANGE,2,0)),9,2)) -> No. 50 | D43: =IF(ISERROR(INDEX(INDIRECT(VLOOKUP(Grade,MIX_RANGE,2,0)),9,4)),0,INDEX(INDIRECT(VLOOKUP(Grade,MIX_RANGE,2,0)),9,4)) -> 0.3 | T43: =IF(S43="","",S43*(Bin8Frac/100)) ->  | Z43: =IF(ISERROR(INDEX(INDIRECT(VLOOKUP(Grade,MIX_RANGE,2,0)),9,5)),"",INDEX(INDIRECT(VLOOKUP(Grade,MIX_RANGE,2,0)),9,5)) -> 2 | AA43: =IF(ISERROR(INDEX(INDIRECT(VLOOKUP(Grade,MIX_RANGE,2,0)),9,6)),"",INDEX(INDIRECT(VLOOKUP(Grade,MIX_RANGE,2,0)),9,6)) -> 58 | AB43: No | AC43: =IF(ISERROR(OR(INDEX(INDIRECT(VLOOKUP(Grade,MIX_RANGE,2,0)),9,8),INDEX(INDIRECT(VLOOKUP(Grade,MIX_RANGE,2,0)),9,9))),"",INDEX(INDIRECT(VLOOKUP(Grade,MIX_RANGE,2,0)),9,8)) -> 15.5 | AD43: =IF(ISERROR(INDEX(INDIRECT(VLOOKUP(Grade,MIX_RANGE,2,0)),9,9)),"",INDEX(INDIRECT(VLOOKUP(Grade,MIX_RANGE,2,0)),9,9)) -> 15.5 | AE43: Yes | AH43: No. 50
B44: =IF(ISERROR(INDEX(INDIRECT(VLOOKUP(Grade,MIX_RANGE,2,0)),10,2)),"",INDEX(INDIRECT(VLOOKUP(Grade,MIX_RANGE,2,0)),10,2)) -> No. 200 | D44: =IF(ISERROR(INDEX(INDIRECT(VLOOKUP(Grade,MIX_RANGE,2,0)),10,4)),0,INDEX(INDIRECT(VLOOKUP(Grade,MIX_RANGE,2,0)),10,4)) -> 0.075 | Z44: =IF(ISERROR(INDEX(INDIRECT(VLOOKUP(Grade,MIX_RANGE,2,0)),10,5)),"",INDEX(INDIRECT(VLOOKUP(Grade,MIX_RANGE,2,0)),10,5)) -> 2 | AA44: =IF(ISERROR(INDEX(INDIRECT(VLOOKUP(Grade,MIX_RANGE,2,0)),10,6)),"",INDEX(INDIRECT(VLOOKUP(Grade,MIX_RANGE,2,0)),10,6)) -> 10 | AB44: No | AC44: =IF(ISERROR(OR(INDEX(INDIRECT(VLOOKUP(Grade,MIX_RANGE,2,0)),10,8),INDEX(INDIRECT(VLOOKUP(Grade,MIX_RANGE,2,0)),10,9))),"",INDEX(INDIRECT(VLOOKUP(Grade,MIX_RANGE,2,0)),10,8)) ->  | AD44: =IF(ISERROR(INDEX(INDIRECT(VLOOKUP(Grade,MIX_RANGE,2,0)),10,9)),"",INDEX(INDIRECT(VLOOKUP(Grade,MIX_RANGE,2,0)),10,9)) -> 0 | AH44: No. 200
B45: (Bold Italic) Not within specifications (Bold Italic) Not within specificaitons- Restricted Zone (Italic) Not cumulative | S45: =IF(LEFT(Grade,2)="SS",IF(Bin8Samp<>"",IF(LEFT(Bin8Samp,7)="RAP 1/2",IF(S51<95,"*",""),IF(LEFT(Bin8Samp,7)="RAP 3/8",IF(S52<95,"*",""),"")),""),IF(Bin8Samp<>"",IF(LEFT(Bin8Samp,8)="Fine 1/2",IF(S51<100,"*",""),IF(LEFT(Bin8Samp,8)="Fine 3/8",IF(S52<100,"*",""),IF(LEFT(Bin8Samp,8)="Coarse 1",IF(S51>0,"*",""),IF(LEFT(Bin8Samp,8)="Coarse 3",IF(S52>0,"*",""),"")))),"")) ->  | U45: =IF(LEFT(Grade,2)="SS",IF(Bin9Samp<>"",IF(LEFT(Bin9Samp,7)="RAP 1/2",IF(U51<95,"*",""),IF(LEFT(Bin9Samp,7)="RAP 3/8",IF(U52<95,"*",""),"")),""),IF(LEFT(Grade,2)="SS",IF(Bin9Samp<>"",IF(LEFT(Bin9Samp,7)="RAP 1/2",IF(U51<95,"*",""),IF(LEFT(Bin9Samp,7)="RAP 3/8",IF(U52<95,"*",""),"")),""),IF(Bin9Samp<>"",IF(LEFT(Bin9Samp,8)="Fine 1/2",IF(U51<100,"*",""),IF(LEFT(Bin9Samp,8)="Fine 3/8",IF(U52<100,"*",""),IF(LEFT(Bin9Samp,8)="Coarse 1",IF(U51>0,"*",""),IF(LEFT(Bin9Samp,8)="Coarse 3",IF(U52>0,"*",""),"")))),""))) ->  | W45: =IF(LEFT(Grade,2)="SS",IF(Bin10Samp<>"",IF(LEFT(Bin10Samp,7)="RAP 1/2",IF(W51<95,"*",""),IF(LEFT(Bin10Samp,7)="RAP 3/8",IF(W52<95,"*",""),"")),""),IF(Bin10Samp<>"",IF(LEFT(Bin10Samp,8)="Fine 1/2",IF(W51<100,"*",""),IF(LEFT(Bin10Samp,8)="Fine 3/8",IF(W52<100,"*",""),IF(LEFT(Bin10Samp,8)="Coarse 1",IF(W51>0,"*",""),IF(LEFT(Bin10Samp,8)="Coarse 3",IF(W52>0,"*",""),"")))),"")) ->  | Y45: =IF(OR(S45<>"",U45<>"",W45<>""),"* Fractionated RAP stockpile fails spec","") ->  | AG45: =IF(version>=13,"",IF(Y45="","",100-Y45)) -> 
B46: Lift Thickness, in: | I46: Binder Substitution? | M46: Binder Originally Specified: | Q46: PG 76-22 | S46: Substitute Binder: | X46: =IF(OR(AC_SUB="",AC_SUB="NA"),"",IF(LEFT(Grade,2)="SS",IF(AC_SUB=SS_Sub,"","<<Error"),"")) ->  | Y46: =MATCH(Q46,GRADES)-1 -> 13 | Z46: =IF(NOT(ISWMA),MATCH(AC_SUB,OFFSET(SUB_HMA,AC_ROW,1,1,COUNTA(OFFSET(SUB_HMA,AC_ROW,1,1,4))),0),MATCH(AC_SUB,OFFSET(SUB_WMA,AC_ROW,1,1,COUNTA(OFFSET(SUB_WMA,AC_ROW,1,1,2))),0)) ->  | AA46: =MATCH(courselift,course,0) -> 1
B48: =IF(OR(BinderSub="Yes",version>7), "Asphalt Source:","Asphalt Source & Grade:") -> Asphalt Source: | F48: Ergon Austin | L48: Binder Percent, (%): | O48: 5.3 | P48: Asphalt Spec. Grav.: | T48: Membrane Target Application Rate, gal/yd2
B50: Antistripping Agent: | L50: Percent, (%): | P50: =IFERROR(IF(VLOOKUP(Grade,MIX_RANGE,11), "Fiber Content, %:",""),"") ->  | T50: =IFERROR(IF(VLOOKUP(Grade,MIX_RANGE,10), "% Crumb Rubber:",""),"") ->  | X50: =IF(ISBLANK(percentrubber),"",IF(percentrubber<15,"Minimum of 15%","")) -> 
P51: =IF(ISBLANK(percentfiber), "", IF(RAS>=3,IF(OR(percentfiber<0.1,percentfiber>0.5),"Outside allowed range of 0.1-0.5%",""),IF(OR(percentfiber<0.2,percentfiber>0.5),"Outside allowable range of 0.2-0.5%",""))) ->  | S51: =IF(version>=13,VLOOKUP("1/2""",$B$35:$S$44,18,0),LOOKUP("1/2""",$B$35:$C$44,S35:S44)) -> 0 | U51: =IF(version>=13,VLOOKUP("1/2""",$B$35:$U$44,20,0),LOOKUP("1/2""",$B$35:$C$44,U35:U44)) -> 0 | W51: =IF(version>=13,VLOOKUP("1/2""",$B$35:$W$44,22,0),LOOKUP("1/2""",$B$35:$C$44,W35:W44)) -> 0
B52: Dry Rodded Unit Weight of Coarse Agg. (pcf) | S52: =IF(version>=13,VLOOKUP("3/8""",$B$35:$S$44,18,0),LOOKUP("3/8",$B$35:$C$44,S35:S44)) -> 0 | U52: =IF(version>=13,VLOOKUP("3/8""",$B$35:$U$44,20,0),LOOKUP("3/8""",$B$35:$C$44,U35:U44)) -> 0 | W52: =IF(version>=13,VLOOKUP("3/8""",$B$35:$W$44,22,0),LOOKUP("3/8""",$B$35:$C$44,W35:W44)) -> 0
B53: Remarks: | E53: =NOW() -> 2020-10-28T23:16:33.930 | N53: Notes: | O53: =IFERROR(IF(RAS>RASCheck,"Exceeds maximum allowable RAS percentage",""),"") -> 
B58: Test Method: | E58: Tested By: | J58: Tested Date:
B59: TX207
B61: TX226
B63: TX227
B65: TX227PII
B67: TX235
B69: TX242
B71: TX530
B77: TX207PI
B79: TX207PVI
J80: 2019-11-13
B81: TX207PVIII
B82: Test Stamp Code: | H82: Omit Test: | J82: Completed Date: | L82: Reviewed By:
B84: Locked By: | D84: TxDOT: | F84: District: | H84: Area:
B86: Authorized By: | H86: Authorized Date:
J87: =IF(OR(AuthorizedDate>43906,AuthorizedDate=""),14,IF(AuthorizedDate>43765,13,IF(AuthorizedDate>43641,12,IF(AuthorizedDate>43184,11,IF(AuthorizedDate>42755,10,IF(AuthorizedDate>42650,9,IF(AuthorizedDate>41316,8,IF(AuthorizedDate>40850,7,IF(AuthorizedDate>40661,6,IF(AuthorizedDate>40333,5,IF(AuthorizedDate>39493,4,IF(AuthorizedDate>39022,3,IF(AuthorizedDate>38579,2,1))))))))))))) -> 14
H89: =AuthorizedDate -> 0
E95: =IFERROR(INDEX(ROCKS,SMALL((IF(LEN(ROCKS),ROW(INDIRECT("1:"&ROWS(ROCKS))))),ROW(A2)),1),"") -> 
E96: =IFERROR(INDEX(ROCKS,SMALL((IF(LEN(ROCKS),ROW(INDIRECT("1:"&ROWS(ROCKS))))),ROW(A3)),1),"") -> 
E97: =IFERROR(INDEX(ROCKS,SMALL((IF(LEN(ROCKS),ROW(INDIRECT("1:"&ROWS(ROCKS))))),ROW(A4)),1),"") -> 

Sheet Matl Properties
B1: TEXAS DEPARTMENT OF TRANSPORTATION
B2: =IF(location="","",location) -> 
B4: HMACP MIXTURE DESIGN : MATERIAL PROPERTIES
B6: SAMPLE ID: | E6: =IF(sampleid="","",sampleid) ->  | H6: SAMPLE DATE: | K6: =IF(sampleddate="","",sampleddate) -> 
B7: LOT NUMBER: | E7: =IF(testnumber="","",testnumber) ->  | H7: LETTING DATE: | K7: =IF(lettingdate="","",lettingdate) -> 
B8: SAMPLE STATUS: | E8: =IF(status="","",status) ->  | H8: CONTROLLING CSJ: | K8: =IF(ccsj="","",ccsj) -> 
B9: COUNTY: | E9: =IF(county="","",county) ->  | H9: SPEC YEAR: | K9: =+IF(specyear="","",specyear) -> 2014
B10: SAMPLED BY: | E10: =IF(sampledby="","",sampledby) ->  | H10: SPEC ITEM: | K10: =IF(specitem="","",specitem) -> 
B11: SAMPLE LOCATION: | E11: =IF(samplelocation="","",samplelocation) ->  | H11: SPECIAL PROVISION: | K11: =IF(specialprovision="","",specialprovision) -> 
B12: MATERIAL CODE: | E12: =IF(material="","",material) ->  | H12: MIX TYPE: | K12: =IF(Grade="","",Grade) -> SS-3074-BMD-SP-C
B13: MATERIAL NAME: | E13: =IF(matl_nm="","",matl_nm) -> 
B14: PRODUCER: | E14: =IF(producer="","",producer) -> 
B15: AREA ENGINEER: | E15: =IF(areaengineer="","",areaengineer) ->  | H15: PROJECT MANAGER: | K15: =IF(projectmanager="","",projectmanager) -> 
B17: COURSE\LIFT: | E17: =IF(courselift="","",courselift) -> Surface | F17: STATION: | H17: =IF(station="","",station) ->  | J17: DIST. FROM CL: | L17: =IF(distfromcl="","",distfromcl) ->  | N17: CONTRACTOR DESIGN # : | R17: =IF(condesignnum="","",condesignnum) -> 
I19: Bin No.1 | L19: Bin No.2 | O19: Bin No.3 | R19: Bin No.4 | U19: Bin No.5 | X19: Bin No.6 | AA19: Bin No.7
E20: Individual Bin (%): | I20: =IF(Bin1Frac="","","Bin No.1 = "&Bin1Frac&" %") ->  | L20: =IF(Bin2Frac="","","Bin No.2 = "&Bin2Frac&" %") ->  | O20: =IF(Bin3Frac="","","Bin No.3 = "&Bin3Frac&" %") ->  | R20: =IF(Bin4Frac="","","Bin No.4 = "&Bin4Frac&" %") ->  | U20: =IF(Bin5Frac="","","Bin No.5 = "&Bin5Frac&" %") ->  | X20: =IF(Bin6Frac="","","Bin No.6 = "&Bin6Frac&" %") ->  | AA20: =IF(Bin7Frac="","","Bin No.7 = "&Bin7Frac&" %") -> 
E21: Aggregate Source: | I21: =IF(Bin1Source="","",Bin1Source) ->  | L21: =IF(Bin2Source="","",Bin2Source) ->  | O21: =IF(Bin3Source="","",Bin3Source) ->  | R21: =IF(Bin4Source="","",Bin4Source) ->  | U21: =IF(Bin5Source="","",Bin5Source) ->  | X21: =IF(Bin6Source="","",Bin6Source) ->  | AA21: =IF(Bin7Source="","",Bin7Source) -> 
E22: Aggregate Number: | I22: =IF(Bin1Aggr="","",Bin1Aggr) ->  | L22: =IF(Bin2Aggr="","",Bin2Aggr) ->  | O22: =IF(Bin3Aggr="","",Bin3Aggr) ->  | R22: =IF(Bin4Aggr="","",Bin4Aggr) ->  | U22: =IF(Bin5Aggr="","",Bin5Aggr) ->  | X22: =IF(Bin6Aggr="","",Bin6Aggr) ->  | AA22: =IF(Bin7Aggr="","",Bin7Aggr) -> 
E23: Sample ID: | I23: =IF(Bin1samp="","",Bin1samp) ->  | L23: =IF(Bin2Samp="","",Bin2Samp) ->  | O23: =IF(Bin3Samp="","",Bin3Samp) ->  | R23: =IF(Bin4Samp="","",Bin4Samp) ->  | U23: =IF(Bin5Samp="","",Bin5Samp) ->  | X23: =IF(Bin6Samp="","",Bin6Samp) ->  | AA23: =IF(Bin7Samp="","",Bin7Samp) -> 
B25: Test Name | D25: SiteManager Test Template | E25: Test Method | F25: Spec. Min or Max | G25: Spec. Limit | H25: Modified Spec. Limit | I25: Result | J25: Sample ID | L25: Result | M25: Sample ID | O25: Result | P25: Sample ID | R25: Result | S25: Sample ID | U25: Result | V25: Sample ID | X25: Result | Y25: Sample ID | AA25: Result | AB25: Sample ID
B26: Stockpile | I26: Bin No.1 | L26: Bin No.2 | O26: Bin No.3 | R26: Bin No.4 | U26: Bin No.5 | X26: Bin No.6 | AA26: Bin No.7
B27: Decantation | D27: Tx217 | E27: Tex-217-F | F27: Max. | G27: 1.5 | AE27: =IF(AND(version>5,$H$27=""),$G$27,IF($H$27="","",$H$27)) -> 1.5
B28: Deleterious Mat'l | D28: Tx217 | E28: Tex-217-F | F28: Max. | G28: =VLOOKUP(N_MIX_TYPE, MIX_RANGE, 28, 0) -> 1 | AE28: =IF(AND(version>5,$H$28=""),$G$28,IF($H$28="","",$H$28)) -> 1
B29: Surface Aggregate Classification | D29: Tx4AgClas | E29: Tex-438-A, Tex-612-J | F29: Min.
B30: Magnesium Sulfate Soundness | D30: Tx411M | E30: Tex-411-A | F30: Max. | G30: =VLOOKUP(N_MIX_TYPE, MIX_RANGE, 29, 0) -> 25 | AE30: =IF(AND(version>5,$H$30=""),$G$30,IF($H$30="","",$H$30)) -> 25
B31: LA Abrasion | D31: Tx410 | E31: Tex-410-A | F31: Max. | G31: =VLOOKUP(N_MIX_TYPE, MIX_RANGE, 30, 0) -> 35 | AE31: =IF(AND(version>5,$H$31=""),$G$31,IF($H$31="","",$H$31)) -> 35
B32: Crushed Faces Count | D32: Tx460 | E32: Tex-460-A | F32: Min. | G32: =VLOOKUP(N_MIX_TYPE, MIX_RANGE, 31, 0) -> 85 | AE32: =IF(AND(version>5,$H$32=""),$G$32,IF($H$32="","",$H$32)) -> 85
B33: Flat & Elongated | D33: Tx280 | E33: Tex-280-F | F33: Max. | G33: 10 | AE33: =IF(AND(version>5,$H$33=""),$G$33,IF($H$33="","",$H$33)) -> 10
B34: Micro-Deval Abrasion | D34: Tx461 | E34: Tex-461-A | F34: =IF(VLOOKUP(N_MIX_TYPE, MIX_RANGE, 31, 0),"Use results to estimate the Mg Sulfate Soundness Loss","Use as an indicator of the need for further investigation") -> Use results to estimate the Mg Sulfate Soundness Loss
B35: Fine Aggregate | I35: Bin No.1 | L35: Bin No.2 | O35: Bin No.3 | R35: Bin No.4 | U35: Bin No.5 | X35: Bin No.6 | AA35: Bin No.7
B36: Bar Linear Shrinkage | D36: Tx107 | E36: Tex-107-E | F36: Max. | G36: 3 | AE36: =IF(AND(version>5,$H$36=""),$G$36,IF($H$36="","",$H$36)) -> 3
B37: Methylene Blue | D37: - | E37: AASHTO T330 | F37: Max. | G37: =IF(LEFT(N_MIX_TYPE,3)="348",10,"") ->  | AE37: =IF(AND(version>5,$H$37=""),$G$37,IF($H$37="","",$H$37)) -> 
B38: Combined Aggregate | I38: Bin No.1 | L38: Bin No.2 | O38: Bin No.3 | R38: Bin No.4 | U38: Bin No.5 | X38: Bin No.6 | AA38: Bin No.7 | BA38: =IF(LEFT(Grade,2)="SS",1,0) -> 1
B39: Sand Equivalent | D39: Tx203 | E39: Tex-203-F | F39: Min. | G39: 45 | AE39: =IF(AND(version>5,$H$39=""),$G$39,IF($H$39="","",$H$39)) -> 45
B40: User Defined Testing | I40: Bin No.1 | L40: Bin No.2 | O40: Bin No.3 | R40: Bin No.4 | U40: Bin No.5 | X40: Bin No.6 | AA40: Bin No.7
B41: Use this area to enter any test methods, speciafications & test result that apply to this material(s) but are not not listed above. | C41: 1
C42: 2
C43: 3
C44: 4
C45: 5
B46: Recycled Materials | I46: Bin No.8 | L46: Bin No.9 | O46: Bin No.10
B47: Deleterious Mat'l | D47: Tx217 | E47: Tex-217-F, Part III | F47: Max. | G47: 0.5 | AE47: =IF(AND(version>5,$H$47=""),$G$47,IF($H$47="","",$H$47)) -> 0.5
B48: Decantation | D48: Tx406 | E48: Tex-406-A, Part I | F48: Max. | G48: 5 | AE48: =IF(AND(version>5,$H$48=""),$G$48,IF($H$48="","",$H$48)) -> 5
B49: Plasticity Index | D49: Tx104-6 | E49: Tex-106-E | F49: Max. | G49: 8 | AE49: =IF(AND(version>5,$H$48=""),$G$48,IF($H$48="","",$H$48)) -> 5
B50: User Defined Testing
B51: Remarks:

Sheet Aggregate Classification
B1: TEXAS DEPARTMENT OF TRANSPORTATION
B2: =IF(location="","",location) -> 
B4: HMACP MIXTURE DESIGN : Aggregate Classification
B6: SAMPLE ID: | E6: =IF(sampleid="","",sampleid) ->  | J6: SAMPLE DATE: | Q6: =IF(sampleddate="","",sampleddate) -> 
B7: LOT NUMBER: | E7: =IF(testnumber="","",testnumber) ->  | J7: LETTING DATE: | Q7: =IF(lettingdate="","",lettingdate) -> 
B8: SAMPLE STATUS: | E8: =IF(status="","",status) ->  | J8: CONTROLLING CSJ: | Q8: =IF(ccsj="","",ccsj) -> 
B9: COUNTY: | E9: =IF(county="","",county) ->  | J9: SPEC YEAR: | Q9: =+IF(specyear="","",specyear) -> 2014
B10: SAMPLED BY: | E10: =IF(sampledby="","",sampledby) ->  | J10: SPEC ITEM: | Q10: =IF(specitem="","",specitem) -> 
B11: SAMPLE LOCATION: | E11: =IF(samplelocation="","",samplelocation) ->  | J11: SPECIAL PROVISION: | Q11: =IF(specialprovision="","",specialprovision) -> 
B12: MATERIAL CODE: | E12: =IF(material="","",material) ->  | J12: MIX TYPE: | Q12: =IF(Grade="","",Grade) -> SS-3074-BMD-SP-C
B13: MATERIAL NAME: | E13: =IF(matl_nm="","",matl_nm) -> 
B14: PRODUCER: | E14: =IF(producer="","",producer) -> 
B15: AREA ENGINEER: | E15: =IF(areaengineer="","",areaengineer) ->  | J15: PROJECT MANAGER: | Q15: =IF(projectmanager="","",projectmanager) -> 
B17: COURSE\LIFT: | E17: =IF(courselift="","",courselift) -> Surface | F17: STATION: | J17: =IF(station="","",station) ->  | N17: DIST. FROM CL: | R17: =IF(distfromcl="","",distfromcl) ->  | V17: CONTRACTOR DESIGN # : | AC17: =IF(condesignnum="","",condesignnum) ->  | BG17: =IF(condesignnum="","",condesignnum) -> 
B18: Aggregate Classification
D19: Bin No.1 | H19: Bin No.2 | L19: Bin No.3 | P19: Bin No.4 | T19: Bin No.5 | X19: Bin No.6 | AB19: Bin No.7 | AF19: Bin No.8 | AJ19: Bin No.9 | AN19: Bin No.10
B20: Individual Bin (%): | D20: =IF(Bin1Frac="","","Bin No.1 = "&Bin1Frac&" %") ->  | H20: =IF(Bin2Frac="","","Bin No.2 = "&Bin2Frac&" %") ->  | L20: =IF(Bin3Frac="","","Bin No.3 = "&Bin3Frac&" %") ->  | P20: =IF(Bin4Frac="","","Bin No.4 = "&Bin4Frac&" %") ->  | T20: =IF(Bin5Frac="","","Bin No.5 = "&Bin5Frac&" %") ->  | X20: =IF(Bin6Frac="","","Bin No.6 = "&Bin6Frac&" %") ->  | AB20: =IF(Bin7Frac="","","Bin No.7 = "&Bin7Frac&" %") ->  | AF20: =IF(Bin8Frac=0,"","Bin No.8 = "&ROUND(Bin8Frac,1)&" %") -> Bin No.8 = 15.5 % | AJ20: =IF(Bin9Frac=0,"","Bin No.9 = "&ROUND(Bin9Frac,1)&" %") -> Bin No.9 = 5.2 % | AN20: =IF(Bin10Frac=0,"","Bin No.10 = "&ROUND(Bin10Frac,1)&" %") -> Bin No.10 = 4.5 %
B21: Aggregate Source: | D21: =IF(Bin1Source="","",Bin1Source) ->  | H21: =IF(Bin2Source="","",Bin2Source) ->  | L21: =IF(Bin3Source="","",Bin3Source) ->  | P21: =IF(Bin4Source="","",Bin4Source) ->  | T21: =IF(Bin5Source="","",Bin5Source) ->  | X21: =IF(Bin6Source="","",Bin6Source) ->  | AB21: =IF(Bin7Source="","",Bin7Source) ->  | AF21: =IF(Bin8Recyc="","",Bin8Recyc) -> Fractionated RAP | AJ21: =IF(Bin9Recyc="","",Bin9Recyc) -> Fractionated RAP | AN21: =IF(Bin10Recyc="","",Bin10Recyc) -> RAS
B22: Aggregate Number: | D22: =IF(Bin1Aggr="","",Bin1Aggr) ->  | H22: =IF(Bin2Aggr="","",Bin2Aggr) ->  | L22: =IF(Bin3Aggr="","",Bin3Aggr) ->  | P22: =IF(Bin4Aggr="","",Bin4Aggr) ->  | T22: =IF(Bin5Aggr="","",Bin5Aggr) ->  | X22: =IF(Bin6Aggr="","",Bin6Aggr) ->  | AB22: =IF(Bin7Aggr="","",Bin7Aggr) ->  | AF22: =IF(Bin8Samp="","",Bin8Samp) ->  | AJ22: =IF(Bin9Samp="","",Bin9Samp) ->  | AN22: =IF(Bin10Samp="","",Bin10Samp) -> 
B23: Class (A) Rock (Y/N):
B25: Sieve Size: | D25: Individual Ret., % | F25: No. 10 | G25: No. 4 | H25: Individual Ret., % | J25: No. 10 | K25: No. 4 | L25: Individual Ret., % | N25: No. 10 | O25: No. 4 | P25: Individual Ret., % | R25: No. 10 | S25: No. 4 | T25: Individual Ret., % | V25: No. 10 | W25: No. 4 | X25: Individual Ret., % | Z25: No. 10 | AA25: No. 4 | AB25: Individual Ret., % | AD25: No. 10 | AE25: No. 4 | AF25: Individual Ret., % | AH25: No. 10 | AI25: No. 4 | AJ25: Individual Ret., % | AL25: No. 10 | AM25: No. 4 | AN25: Individual Ret., % | AP25: No. 10 | AQ25: No. 4
B26: Passing | C26: Retained
B27: - | C27: =IF(ISERROR(INDEX(INDIRECT(VLOOKUP(Grade,MIX_RANGE,2,IF(version>=14,0,1))),1,2)),"Pan",INDEX(INDIRECT(VLOOKUP(Grade,MIX_RANGE,2,IF(version>=14,0,1))),1,2)) -> 1" | D27: =IF(OR(D20="",B27=""),"",N('Combined Gradation'!E32)-N('Combined Gradation'!F35)) ->  | F27: =IF(SSize1=2,(Bin1Frac/100)*SUM(D$27:D27),0) -> 0 | G27: =IF(SSize1=4.75,(Bin1Frac/100)*SUM(D$27:D27),0) -> 0 | H27: =IF(OR(H20="",B27=""),"",N('Combined Gradation'!G32)-N('Combined Gradation'!H35)) ->  | J27: =IF(SSize1=2,(Bin1Frac/100)*SUM(H$27:H27),0) -> 0 | K27: =IF(SSize1=4.75,(Bin1Frac/100)*SUM(H$27:H27),0) -> 0 | L27: =IF(OR(L20="",B27=""),"",N('Combined Gradation'!I32)-N('Combined Gradation'!J35)) ->  | N27: =IF(SSize1=2,(Bin1Frac/100)*SUM(L$27:L27),0) -> 0 | O27: =IF(SSize1=4.75,(Bin1Frac/100)*SUM(L$27:L27),0) -> 0 | P27: =IF(OR(P20="",B27=""),"",N('Combined Gradation'!K32)-N('Combined Gradation'!L35)) ->  | R27: =IF(SSize1=2,(Bin1Frac/100)*SUM(P$27:P27),0) -> 0 | S27: =IF(SSize1=4.75,(Bin1Frac/100)*SUM(P$27:P27),0) -> 0 | T27: =IF(OR(T20="",B27=""),"",N('Combined Gradation'!M32)-N('Combined Gradation'!N35)) ->  | V27: =IF(SSize1=2,(Bin1Frac/100)*SUM(T$27:T27),0) -> 0 | W27: =IF(SSize1=4.75,(Bin1Frac/100)*SUM(T$27:T27),0) -> 0 | X27: =IF(OR(X20="",B27=""),"",N('Combined Gradation'!O32)-N('Combined Gradation'!P35)) ->  | Z27: =IF(SSize1=2,(Bin1Frac/100)*SUM(X$27:X27),0) -> 0 | AA27: =IF(SSize1=4.75,(Bin1Frac/100)*SUM(X$27:X27),0) -> 0 | AB27: =IF(OR(AB20="",B27=""),"",N('Combined Gradation'!Q32)-N('Combined Gradation'!R35)) ->  | AD27: =IF(SSize1=2,(Bin1Frac/100)*SUM(AB$27:AB27),0) -> 0 | AE27: =IF(SSize1=4.75,(Bin1Frac/100)*SUM(AB$27:AB27),0) -> 0 | AF27: =IF(OR(AF20="",B27=""),"",N('Combined Gradation'!S32)-N('Combined Gradation'!T35)) -> 15.5 | AH27: =IF(SSize1=2,(Bin1Frac/100)*SUM(AF$27:AF27),0) -> 0 | AI27: =IF(SSize1=4.75,(Bin1Frac/100)*SUM(AF$27:AF27),0) -> 0 | AJ27: =IF(OR(AJ20="",B27=""),"",N('Combined Gradation'!U32)-N('Combined Gradation'!V35)) -> 5.2 | AL27: =IF(SSize1=2,(Bin1Frac/100)*SUM(AJ$27:AJ27),0) -> 0 | AM27: =IF(SSize1=4.75,(Bin1Frac/100)*SUM(AJ$27:AJ27),0) -> 0 | AN27: =IF(OR(AN20="",B27=""),"",N('Combined Gradation'!W32)-N('Combined Gradation'!X35)) -> 4.5 | AP27: =IF(SSize1=2,(Bin1Frac/100)*SUM(AN$27:AN27),0) -> 0 | AQ27: =IF(SSize1=4.75,(Bin1Frac/100)*SUM(AN$27:AN27),0) -> 0
B28: =IF(ISERROR(INDEX(INDIRECT(VLOOKUP(Grade,MIX_RANGE,2,IF(version>=14,0,1))),1,2)),"Pan",INDEX(INDIRECT(VLOOKUP(Grade,MIX_RANGE,2,IF(version>=14,0,1))),1,2)) -> 1" | C28: =IF(ISERROR(INDEX(INDIRECT(VLOOKUP(Grade,MIX_RANGE,2,IF(version>=14,0,1))),2,2)),"Pan",INDEX(INDIRECT(VLOOKUP(Grade,MIX_RANGE,2,IF(version>=14,0,1))),2,2)) -> 3/4" | D28: =IF(OR(D20="",B28=""),"",(N('Combined Gradation'!F35)-N('Combined Gradation'!F36))) ->  | F28: =IF(SSize2=2,(Bin1Frac/100)*SUM(D$27:D28),0) -> 0 | G28: =IF(SSize2=4.75,(Bin1Frac/100)*SUM(D$27:D28),0) -> 0 | H28: =IF(OR(H20="",B28=""),"",(N('Combined Gradation'!H35)-N('Combined Gradation'!H36))) ->  | J28: =IF(SSize2=2,(Bin1Frac/100)*SUM(H$27:H28),0) -> 0 | K28: =IF(SSize2=4.75,(Bin1Frac/100)*SUM(H$27:H28),0) -> 0 | L28: =IF(OR(L20="",B28=""),"",(N('Combined Gradation'!J35)-N('Combined Gradation'!J36))) ->  | N28: =IF(SSize2=2,(Bin1Frac/100)*SUM(L$27:L28),0) -> 0 | O28: =IF(SSize2=4.75,(Bin1Frac/100)*SUM(L$27:L28),0) -> 0 | P28: =IF(OR(P20="",B28=""),"",(N('Combined Gradation'!L35)-N('Combined Gradation'!L36))) ->  | R28: =IF(SSize2=2,(Bin1Frac/100)*SUM(P$27:P28),0) -> 0 | S28: =IF(SSize2=4.75,(Bin1Frac/100)*SUM(P$27:P28),0) -> 0 | T28: =IF(OR(T20="",B28=""),"",(N('Combined Gradation'!N35)-N('Combined Gradation'!N36))) ->  | V28: =IF(SSize2=2,(Bin1Frac/100)*SUM(T$27:T28),0) -> 0 | W28: =IF(SSize2=4.75,(Bin1Frac/100)*SUM(T$27:T28),0) -> 0 | X28: =IF(OR(X20="",B28=""),"",(N('Combined Gradation'!P35)-N('Combined Gradation'!P36))) ->  | Z28: =IF(SSize2=2,(Bin1Frac/100)*SUM(X$27:X28),0) -> 0 | AA28: =IF(SSize2=4.75,(Bin1Frac/100)*SUM(X$27:X28),0) -> 0 | AB28: =IF(OR(AB20="",B28=""),"",(N('Combined Gradation'!R35)-N('Combined Gradation'!R36))) ->  | AD28: =IF(SSize2=2,(Bin1Frac/100)*SUM(AB$27:AB28),0) -> 0 | AE28: =IF(SSize2=4.75,(Bin1Frac/100)*SUM(AB$27:AB28),0) -> 0 | AF28: =IF(OR(AF20="",B28=""),"",(N('Combined Gradation'!T35)-N('Combined Gradation'!T36))) -> 0 | AH28: =IF(SSize2=2,(Bin1Frac/100)*SUM(AF$27:AF28),0) -> 0 | AI28: =IF(SSize2=4.75,(Bin1Frac/100)*SUM(AF$27:AF28),0) -> 0 | AJ28: =IF(OR(AJ20="",B28=""),"",(N('Combined Gradation'!V35)-N('Combined Gradation'!V36))) -> 0 | AL28: =IF(SSize2=2,(Bin1Frac/100)*SUM(AJ$27:AJ28),0) -> 0 | AM28: =IF(SSize2=4.75,(Bin1Frac/100)*SUM(AJ$27:AJ28),0) -> 0 | AN28: =IF(OR(AN20="",B28=""),"",(N('Combined Gradation'!X35)-N('Combined Gradation'!X36))) -> 0 | AP28: =IF(SSize2=2,(Bin1Frac/100)*SUM(AN$27:AN28),0) -> 0 | AQ28: =IF(SSize2=4.75,(Bin1Frac/100)*SUM(AN$27:AN28),0) -> 0
B29: =IF(ISERROR(INDEX(INDIRECT(VLOOKUP(Grade,MIX_RANGE,2,IF(version>=14,0,1))),2,2)),"Pan",INDEX(INDIRECT(VLOOKUP(Grade,MIX_RANGE,2,IF(version>=14,0,1))),2,2)) -> 3/4" | C29: =IF(ISERROR(INDEX(INDIRECT(VLOOKUP(Grade,MIX_RANGE,2,IF(version>=14,0,1))),3,2)),"Pan",INDEX(INDIRECT(VLOOKUP(Grade,MIX_RANGE,2,IF(version>=14,0,1))),3,2)) -> 1/2" | D29: =IF(OR(D20="",B29=""),"",(N('Combined Gradation'!F36)-N('Combined Gradation'!F37))) ->  | F29: =IF(SSize3=2,(Bin1Frac/100)*SUM(D$27:D29),0) -> 0 | G29: =IF(SSize3=4.75,(Bin1Frac/100)*SUM(D$27:D29),0) -> 0 | H29: =IF(OR(H20="",B29=""),"",(N('Combined Gradation'!H36)-N('Combined Gradation'!H37))) ->  | J29: =IF(SSize3=2,(Bin1Frac/100)*SUM(H$27:H29),0) -> 0 | K29: =IF(SSize3=4.75,(Bin1Frac/100)*SUM(H$27:H29),0) -> 0 | L29: =IF(OR(L20="",B29=""),"",(N('Combined Gradation'!J36)-N('Combined Gradation'!J37))) ->  | N29: =IF(SSize3=2,(Bin1Frac/100)*SUM(L$27:L29),0) -> 0 | O29: =IF(SSize3=4.75,(Bin1Frac/100)*SUM(L$27:L29),0) -> 0 | P29: =IF(OR(P20="",B29=""),"",(N('Combined Gradation'!L36)-N('Combined Gradation'!L37))) ->  | R29: =IF(SSize3=2,(Bin1Frac/100)*SUM(P$27:P29),0) -> 0 | S29: =IF(SSize3=4.75,(Bin1Frac/100)*SUM(P$27:P29),0) -> 0 | T29: =IF(OR(T20="",B29=""),"",(N('Combined Gradation'!N36)-N('Combined Gradation'!N37))) ->  | V29: =IF(SSize3=2,(Bin1Frac/100)*SUM(T$27:T29),0) -> 0 | W29: =IF(SSize3=4.75,(Bin1Frac/100)*SUM(T$27:T29),0) -> 0 | X29: =IF(OR(X20="",B29=""),"",(N('Combined Gradation'!P36)-N('Combined Gradation'!P37))) ->  | Z29: =IF(SSize3=2,(Bin1Frac/100)*SUM(X$27:X29),0) -> 0 | AA29: =IF(SSize3=4.75,(Bin1Frac/100)*SUM(X$27:X29),0) -> 0 | AB29: =IF(OR(AB20="",B29=""),"",(N('Combined Gradation'!R36)-N('Combined Gradation'!R37))) ->  | AD29: =IF(SSize3=2,(Bin1Frac/100)*SUM(AB$27:AB29),0) -> 0 | AE29: =IF(SSize3=4.75,(Bin1Frac/100)*SUM(AB$27:AB29),0) -> 0 | AF29: =IF(OR(AF20="",B29=""),"",(N('Combined Gradation'!T36)-N('Combined Gradation'!T37))) -> 0 | AH29: =IF(SSize3=2,(Bin1Frac/100)*SUM(AF$27:AF29),0) -> 0 | AI29: =IF(SSize3=4.75,(Bin1Frac/100)*SUM(AF$27:AF29),0) -> 0 | AJ29: =IF(OR(AJ20="",B29=""),"",(N('Combined Gradation'!V36)-N('Combined Gradation'!V37))) -> 0 | AL29: =IF(SSize3=2,(Bin1Frac/100)*SUM(AJ$27:AJ29),0) -> 0 | AM29: =IF(SSize3=4.75,(Bin1Frac/100)*SUM(AJ$27:AJ29),0) -> 0 | AN29: =IF(OR(AN20="",B29=""),"",(N('Combined Gradation'!X36)-N('Combined Gradation'!X37))) -> 0 | AP29: =IF(SSize3=2,(Bin1Frac/100)*SUM(AN$27:AN29),0) -> 0 | AQ29: =IF(SSize3=4.75,(Bin1Frac/100)*SUM(AN$27:AN29),0) -> 0
B30: =IF(ISERROR(INDEX(INDIRECT(VLOOKUP(Grade,MIX_RANGE,2,IF(version>=14,0,1))),3,2)),"Pan",INDEX(INDIRECT(VLOOKUP(Grade,MIX_RANGE,2,IF(version>=14,0,1))),3,2)) -> 1/2" | C30: =IF(ISERROR(INDEX(INDIRECT(VLOOKUP(Grade,MIX_RANGE,2,IF(version>=14,0,1))),4,2)),"Pan",INDEX(INDIRECT(VLOOKUP(Grade,MIX_RANGE,2,IF(version>=14,0,1))),4,2)) -> 3/8" | D30: =IF(OR(D20="",B30=""),"",(N('Combined Gradation'!F37)-N('Combined Gradation'!F38))) ->  | F30: =IF(SSize4=2,(Bin1Frac/100)*SUM(D$27:D30),0) -> 0 | G30: =IF(SSize4=4.75,(Bin1Frac/100)*SUM(D$27:D30),0) -> 0 | H30: =IF(OR(H20="",B30=""),"",(N('Combined Gradation'!H37)-N('Combined Gradation'!H38))) ->  | J30: =IF(SSize4=2,(Bin1Frac/100)*SUM(H$27:H30),0) -> 0 | K30: =IF(SSize4=4.75,(Bin1Frac/100)*SUM(H$27:H30),0) -> 0 | L30: =IF(OR(L20="",B30=""),"",(N('Combined Gradation'!J37)-N('Combined Gradation'!J38))) ->  | N30: =IF(SSize4=2,(Bin1Frac/100)*SUM(L$27:L30),0) -> 0 | O30: =IF(SSize4=4.75,(Bin1Frac/100)*SUM(L$27:L30),0) -> 0 | P30: =IF(OR(P20="",B30=""),"",(N('Combined Gradation'!L37)-N('Combined Gradation'!L38))) ->  | R30: =IF(SSize4=2,(Bin1Frac/100)*SUM(P$27:P30),0) -> 0 | S30: =IF(SSize4=4.75,(Bin1Frac/100)*SUM(P$27:P30),0) -> 0 | T30: =IF(OR(T20="",B30=""),"",(N('Combined Gradation'!N37)-N('Combined Gradation'!N38))) ->  | V30: =IF(SSize4=2,(Bin1Frac/100)*SUM(T$27:T30),0) -> 0 | W30: =IF(SSize4=4.75,(Bin1Frac/100)*SUM(T$27:T30),0) -> 0 | X30: =IF(OR(X20="",B30=""),"",(N('Combined Gradation'!P37)-N('Combined Gradation'!P38))) ->  | Z30: =IF(SSize4=2,(Bin1Frac/100)*SUM(X$27:X30),0) -> 0 | AA30: =IF(SSize4=4.75,(Bin1Frac/100)*SUM(X$27:X30),0) -> 0 | AB30: =IF(OR(AB20="",B30=""),"",(N('Combined Gradation'!R37)-N('Combined Gradation'!R38))) ->  | AD30: =IF(SSize4=2,(Bin1Frac/100)*SUM(AB$27:AB30),0) -> 0 | AE30: =IF(SSize4=4.75,(Bin1Frac/100)*SUM(AB$27:AB30),0) -> 0 | AF30: =IF(OR(AF20="",B30=""),"",(N('Combined Gradation'!T37)-N('Combined Gradation'!T38))) -> 0 | AH30: =IF(SSize4=2,(Bin1Frac/100)*SUM(AF$27:AF30),0) -> 0 | AI30: =IF(SSize4=4.75,(Bin1Frac/100)*SUM(AF$27:AF30),0) -> 0 | AJ30: =IF(OR(AJ20="",B30=""),"",(N('Combined Gradation'!V37)-N('Combined Gradation'!V38))) -> 0 | AL30: =IF(SSize4=2,(Bin1Frac/100)*SUM(AJ$27:AJ30),0) -> 0 | AM30: =IF(SSize4=4.75,(Bin1Frac/100)*SUM(AJ$27:AJ30),0) -> 0 | AN30: =IF(OR(AN20="",B30=""),"",(N('Combined Gradation'!X37)-N('Combined Gradation'!X38))) -> 0 | AP30: =IF(SSize4=2,(Bin1Frac/100)*SUM(AN$27:AN30),0) -> 0 | AQ30: =IF(SSize4=4.75,(Bin1Frac/100)*SUM(AN$27:AN30),0) -> 0
B31: =IF(ISERROR(INDEX(INDIRECT(VLOOKUP(Grade,MIX_RANGE,2,IF(version>=14,0,1))),4,2)),"Pan",INDEX(INDIRECT(VLOOKUP(Grade,MIX_RANGE,2,IF(version>=14,0,1))),4,2)) -> 3/8" | C31: =IF(ISERROR(INDEX(INDIRECT(VLOOKUP(Grade,MIX_RANGE,2,IF(version>=14,0,1))),5,2)),"Pan",INDEX(INDIRECT(VLOOKUP(Grade,MIX_RANGE,2,IF(version>=14,0,1))),5,2)) -> No. 4 | D31: =IF(OR(D20="",B31=""),"",(N('Combined Gradation'!F38)-N('Combined Gradation'!F39))) ->  | F31: =IF(SSize5=2,(Bin1Frac/100)*SUM(D$27:D31),0) -> 0 | G31: =IF(SSize5=4.75,(Bin1Frac/100)*SUM(D$27:D31),0) -> 0 | H31: =IF(OR(H20="",B31=""),"",(N('Combined Gradation'!H38)-N('Combined Gradation'!H39))) ->  | J31: =IF(SSize5=2,(Bin1Frac/100)*SUM(H$27:H31),0) -> 0 | K31: =IF(SSize5=4.75,(Bin1Frac/100)*SUM(H$27:H31),0) -> 0 | L31: =IF(OR(L20="",B31=""),"",(N('Combined Gradation'!J38)-N('Combined Gradation'!J39))) ->  | N31: =IF(SSize5=2,(Bin1Frac/100)*SUM(L$27:L31),0) -> 0 | O31: =IF(SSize5=4.75,(Bin1Frac/100)*SUM(L$27:L31),0) -> 0 | P31: =IF(OR(P20="",B31=""),"",(N('Combined Gradation'!L38)-N('Combined Gradation'!L39))) ->  | R31: =IF(SSize5=2,(Bin1Frac/100)*SUM(P$27:P31),0) -> 0 | S31: =IF(SSize5=4.75,(Bin1Frac/100)*SUM(P$27:P31),0) -> 0 | T31: =IF(OR(T20="",B31=""),"",(N('Combined Gradation'!N38)-N('Combined Gradation'!N39))) ->  | V31: =IF(SSize5=2,(Bin1Frac/100)*SUM(T$27:T31),0) -> 0 | W31: =IF(SSize5=4.75,(Bin1Frac/100)*SUM(T$27:T31),0) -> 0 | X31: =IF(OR(X20="",B31=""),"",(N('Combined Gradation'!P38)-N('Combined Gradation'!P39))) ->  | Z31: =IF(SSize5=2,(Bin1Frac/100)*SUM(X$27:X31),0) -> 0 | AA31: =IF(SSize5=4.75,(Bin1Frac/100)*SUM(X$27:X31),0) -> 0 | AB31: =IF(OR(AB20="",B31=""),"",(N('Combined Gradation'!R38)-N('Combined Gradation'!R39))) ->  | AD31: =IF(SSize5=2,(Bin1Frac/100)*SUM(AB$27:AB31),0) -> 0 | AE31: =IF(SSize5=4.75,(Bin1Frac/100)*SUM(AB$27:AB31),0) -> 0 | AF31: =IF(OR(AF20="",B31=""),"",(N('Combined Gradation'!T38)-N('Combined Gradation'!T39))) -> 0 | AH31: =IF(SSize5=2,(Bin1Frac/100)*SUM(AF$27:AF31),0) -> 0 | AI31: =IF(SSize5=4.75,(Bin1Frac/100)*SUM(AF$27:AF31),0) -> 0 | AJ31: =IF(OR(AJ20="",B31=""),"",(N('Combined Gradation'!V38)-N('Combined Gradation'!V39))) -> 0 | AL31: =IF(SSize5=2,(Bin1Frac/100)*SUM(AJ$27:AJ31),0) -> 0 | AM31: =IF(SSize5=4.75,(Bin1Frac/100)*SUM(AJ$27:AJ31),0) -> 0 | AN31: =IF(OR(AN20="",B31=""),"",(N('Combined Gradation'!X38)-N('Combined Gradation'!X39))) -> 0 | AP31: =IF(SSize5=2,(Bin1Frac/100)*SUM(AN$27:AN31),0) -> 0 | AQ31: =IF(SSize5=4.75,(Bin1Frac/100)*SUM(AN$27:AN31),0) -> 0
B32: =IF(ISERROR(INDEX(INDIRECT(VLOOKUP(Grade,MIX_RANGE,2,IF(version>=14,0,1))),5,2)),"Pan",INDEX(INDIRECT(VLOOKUP(Grade,MIX_RANGE,2,IF(version>=14,0,1))),5,2)) -> No. 4 | C32: =IF(ISERROR(INDEX(INDIRECT(VLOOKUP(Grade,MIX_RANGE,2,IF(version>=14,0,1))),6,2)),"Pan",INDEX(INDIRECT(VLOOKUP(Grade,MIX_RANGE,2,IF(version>=14,0,1))),6,2)) -> No. 8 | D32: =IF(OR(D20="",B32=""),"",(N('Combined Gradation'!F39)-N('Combined Gradation'!F40))) ->  | F32: =IF(SSize6=2,(Bin1Frac/100)*SUM(D$27:D32),0) -> 0 | G32: =IF(SSize6=4.75,(Bin1Frac/100)*SUM(D$27:D32),0) -> 0 | H32: =IF(OR(H20="",B32=""),"",(N('Combined Gradation'!H39)-N('Combined Gradation'!H40))) ->  | J32: =IF(SSize6=2,(Bin1Frac/100)*SUM(H$27:H32),0) -> 0 | K32: =IF(SSize6=4.75,(Bin1Frac/100)*SUM(H$27:H32),0) -> 0 | L32: =IF(OR(L20="",B32=""),"",(N('Combined Gradation'!J39)-N('Combined Gradation'!J40))) ->  | N32: =IF(SSize6=2,(Bin1Frac/100)*SUM(L$27:L32),0) -> 0 | O32: =IF(SSize6=4.75,(Bin1Frac/100)*SUM(L$27:L32),0) -> 0 | P32: =IF(OR(P20="",B32=""),"",(N('Combined Gradation'!L39)-N('Combined Gradation'!L40))) ->  | R32: =IF(SSize6=2,(Bin1Frac/100)*SUM(P$27:P32),0) -> 0 | S32: =IF(SSize6=4.75,(Bin1Frac/100)*SUM(P$27:P32),0) -> 0 | T32: =IF(OR(T20="",B32=""),"",(N('Combined Gradation'!N39)-N('Combined Gradation'!N40))) ->  | V32: =IF(SSize6=2,(Bin1Frac/100)*SUM(T$27:T32),0) -> 0 | W32: =IF(SSize6=4.75,(Bin1Frac/100)*SUM(T$27:T32),0) -> 0 | X32: =IF(OR(X20="",B32=""),"",(N('Combined Gradation'!P39)-N('Combined Gradation'!P40))) ->  | Z32: =IF(SSize6=2,(Bin1Frac/100)*SUM(X$27:X32),0) -> 0 | AA32: =IF(SSize6=4.75,(Bin1Frac/100)*SUM(X$27:X32),0) -> 0 | AB32: =IF(OR(AB20="",B32=""),"",(N('Combined Gradation'!R39)-N('Combined Gradation'!R40))) ->  | AD32: =IF(SSize6=2,(Bin1Frac/100)*SUM(AB$27:AB32),0) -> 0 | AE32: =IF(SSize6=4.75,(Bin1Frac/100)*SUM(AB$27:AB32),0) -> 0 | AF32: =IF(OR(AF20="",B32=""),"",(N('Combined Gradation'!T39)-N('Combined Gradation'!T40))) -> 0 | AH32: =IF(SSize6=2,(Bin1Frac/100)*SUM(AF$27:AF32),0) -> 0 | AI32: =IF(SSize6=4.75,(Bin1Frac/100)*SUM(AF$27:AF32),0) -> 0 | AJ32: =IF(OR(AJ20="",B32=""),"",(N('Combined Gradation'!V39)-N('Combined Gradation'!V40))) -> 0 | AL32: =IF(SSize6=2,(Bin1Frac/100)*SUM(AJ$27:AJ32),0) -> 0 | AM32: =IF(SSize6=4.75,(Bin1Frac/100)*SUM(AJ$27:AJ32),0) -> 0 | AN32: =IF(OR(AN20="",B32=""),"",(N('Combined Gradation'!X39)-N('Combined Gradation'!X40))) -> 0 | AP32: =IF(SSize6=2,(Bin1Frac/100)*SUM(AN$27:AN32),0) -> 0 | AQ32: =IF(SSize6=4.75,(Bin1Frac/100)*SUM(AN$27:AN32),0) -> 0
B33: =IF(ISERROR(INDEX(INDIRECT(VLOOKUP(Grade,MIX_RANGE,2,IF(version>=14,0,1))),6,2)),"Pan",INDEX(INDIRECT(VLOOKUP(Grade,MIX_RANGE,2,IF(version>=14,0,1))),6,2)) -> No. 8 | C33: =IF(ISERROR(INDEX(INDIRECT(VLOOKUP(Grade,MIX_RANGE,2,IF(version>=14,0,1))),7,2)),"Pan",INDEX(INDIRECT(VLOOKUP(Grade,MIX_RANGE,2,IF(version>=14,0,1))),7,2)) -> No. 16 | D33: =IF(OR(D20="",B33=""),"",(N('Combined Gradation'!F40)-N('Combined Gradation'!F41))) ->  | F33: =IF(SSize7=2,(Bin1Frac/100)*SUM(D$27:D33),0) -> 0 | G33: =IF(SSize7=4.75,(Bin1Frac/100)*SUM(D$27:D33),0) -> 0 | H33: =IF(OR(H20="",B33=""),"",(N('Combined Gradation'!H40)-N('Combined Gradation'!H41))) ->  | J33: =IF(SSize7=2,(Bin1Frac/100)*SUM(H$27:H33),0) -> 0 | K33: =IF(SSize7=4.75,(Bin1Frac/100)*SUM(H$27:H33),0) -> 0 | L33: =IF(OR(L20="",B33=""),"",(N('Combined Gradation'!J40)-N('Combined Gradation'!J41))) ->  | N33: =IF(SSize7=2,(Bin1Frac/100)*SUM(L$27:L33),0) -> 0 | O33: =IF(SSize7=4.75,(Bin1Frac/100)*SUM(L$27:L33),0) -> 0 | P33: =IF(OR(P20="",B33=""),"",(N('Combined Gradation'!L40)-N('Combined Gradation'!L41))) ->  | R33: =IF(SSize7=2,(Bin1Frac/100)*SUM(P$27:P33),0) -> 0 | S33: =IF(SSize7=4.75,(Bin1Frac/100)*SUM(P$27:P33),0) -> 0 | T33: =IF(OR(T20="",B33=""),"",(N('Combined Gradation'!N40)-N('Combined Gradation'!N41))) ->  | V33: =IF(SSize7=2,(Bin1Frac/100)*SUM(T$27:T33),0) -> 0 | W33: =IF(SSize7=4.75,(Bin1Frac/100)*SUM(T$27:T33),0) -> 0 | X33: =IF(OR(X20="",B33=""),"",(N('Combined Gradation'!P40)-N('Combined Gradation'!P41))) ->  | Z33: =IF(SSize7=2,(Bin1Frac/100)*SUM(X$27:X33),0) -> 0 | AA33: =IF(SSize7=4.75,(Bin1Frac/100)*SUM(X$27:X33),0) -> 0 | AB33: =IF(OR(AB20="",B33=""),"",(N('Combined Gradation'!R40)-N('Combined Gradation'!R41))) ->  | AD33: =IF(SSize7=2,(Bin1Frac/100)*SUM(AB$27:AB33),0) -> 0 | AE33: =IF(SSize7=4.75,(Bin1Frac/100)*SUM(AB$27:AB33),0) -> 0 | AF33: =IF(OR(AF20="",B33=""),"",(N('Combined Gradation'!T40)-N('Combined Gradation'!T41))) -> 0 | AH33: =IF(SSize7=2,(Bin1Frac/100)*SUM(AF$27:AF33),0) -> 0 | AI33: =IF(SSize7=4.75,(Bin1Frac/100)*SUM(AF$27:AF33),0) -> 0 | AJ33: =IF(OR(AJ20="",B33=""),"",(N('Combined Gradation'!V40)-N('Combined Gradation'!V41))) -> 0 | AL33: =IF(SSize7=2,(Bin1Frac/100)*SUM(AJ$27:AJ33),0) -> 0 | AM33: =IF(SSize7=4.75,(Bin1Frac/100)*SUM(AJ$27:AJ33),0) -> 0 | AN33: =IF(OR(AN20="",B33=""),"",(N('Combined Gradation'!X40)-N('Combined Gradation'!X41))) -> 0 | AP33: =IF(SSize7=2,(Bin1Frac/100)*SUM(AN$27:AN33),0) -> 0 | AQ33: =IF(SSize7=4.75,(Bin1Frac/100)*SUM(AN$27:AN33),0) -> 0
B34: =IF(ISERROR(INDEX(INDIRECT(VLOOKUP(Grade,MIX_RANGE,2,IF(version>=14,0,1))),7,2)),"Pan",INDEX(INDIRECT(VLOOKUP(Grade,MIX_RANGE,2,IF(version>=14,0,1))),7,2)) -> No. 16 | C34: =IF(ISERROR(INDEX(INDIRECT(VLOOKUP(Grade,MIX_RANGE,2,IF(version>=14,0,1))),8,2)),"Pan",INDEX(INDIRECT(VLOOKUP(Grade,MIX_RANGE,2,IF(version>=14,0,1))),8,2)) -> No. 30 | D34: =IF(OR(D20="",B34=""),"",(N('Combined Gradation'!F41)-N('Combined Gradation'!F42))) ->  | F34: =IF(SSize8=2,(Bin1Frac/100)*SUM(D$27:D34),0) -> 0 | G34: =IF(SSize8=4.75,(Bin1Frac/100)*SUM(D$27:D34),0) -> 0 | H34: =IF(OR(H20="",B34=""),"",(N('Combined Gradation'!H41)-N('Combined Gradation'!H42))) ->  | J34: =IF(SSize8=2,(Bin1Frac/100)*SUM(H$27:H34),0) -> 0 | K34: =IF(SSize8=4.75,(Bin1Frac/100)*SUM(H$27:H34),0) -> 0 | L34: =IF(OR(L20="",B34=""),"",(N('Combined Gradation'!J41)-N('Combined Gradation'!J42))) ->  | N34: =IF(SSize8=2,(Bin1Frac/100)*SUM(L$27:L34),0) -> 0 | O34: =IF(SSize8=4.75,(Bin1Frac/100)*SUM(L$27:L34),0) -> 0 | P34: =IF(OR(P20="",B34=""),"",(N('Combined Gradation'!L41)-N('Combined Gradation'!L42))) ->  | R34: =IF(SSize8=2,(Bin1Frac/100)*SUM(P$27:P34),0) -> 0 | S34: =IF(SSize8=4.75,(Bin1Frac/100)*SUM(P$27:P34),0) -> 0 | T34: =IF(OR(T20="",B34=""),"",(N('Combined Gradation'!N41)-N('Combined Gradation'!N42))) ->  | V34: =IF(SSize8=2,(Bin1Frac/100)*SUM(T$27:T34),0) -> 0 | W34: =IF(SSize8=4.75,(Bin1Frac/100)*SUM(T$27:T34),0) -> 0 | X34: =IF(OR(X20="",B34=""),"",(N('Combined Gradation'!P41)-N('Combined Gradation'!P42))) ->  | Z34: =IF(SSize8=2,(Bin1Frac/100)*SUM(X$27:X34),0) -> 0 | AA34: =IF(SSize8=4.75,(Bin1Frac/100)*SUM(X$27:X34),0) -> 0 | AB34: =IF(OR(AB20="",B34=""),"",(N('Combined Gradation'!R41)-N('Combined Gradation'!R42))) ->  | AD34: =IF(SSize8=2,(Bin1Frac/100)*SUM(AB$27:AB34),0) -> 0 | AE34: =IF(SSize8=4.75,(Bin1Frac/100)*SUM(AB$27:AB34),0) -> 0 | AF34: =IF(OR(AF20="",B34=""),"",(N('Combined Gradation'!T41)-N('Combined Gradation'!T42))) -> 0 | AH34: =IF(SSize8=2,(Bin1Frac/100)*SUM(AF$27:AF34),0) -> 0 | AI34: =IF(SSize8=4.75,(Bin1Frac/100)*SUM(AF$27:AF34),0) -> 0 | AJ34: =IF(OR(AJ20="",B34=""),"",(N('Combined Gradation'!V41)-N('Combined Gradation'!V42))) -> 0 | AL34: =IF(SSize8=2,(Bin1Frac/100)*SUM(AJ$27:AJ34),0) -> 0 | AM34: =IF(SSize8=4.75,(Bin1Frac/100)*SUM(AJ$27:AJ34),0) -> 0 | AN34: =IF(OR(AN20="",B34=""),"",(N('Combined Gradation'!X41)-N('Combined Gradation'!X42))) -> 0 | AP34: =IF(SSize8=2,(Bin1Frac/100)*SUM(AN$27:AN34),0) -> 0 | AQ34: =IF(SSize8=4.75,(Bin1Frac/100)*SUM(AN$27:AN34),0) -> 0
B35: =IF(ISERROR(INDEX(INDIRECT(VLOOKUP(Grade,MIX_RANGE,2,IF(version>=14,0,1))),8,2)),"Pan",INDEX(INDIRECT(VLOOKUP(Grade,MIX_RANGE,2,IF(version>=14,0,1))),8,2)) -> No. 30 | C35: =IF(ISERROR(INDEX(INDIRECT(VLOOKUP(Grade,MIX_RANGE,2,IF(version>=14,0,1))),9,2)),"Pan",INDEX(INDIRECT(VLOOKUP(Grade,MIX_RANGE,2,IF(version>=14,0,1))),9,2)) -> No. 50 | D35: =IF(OR(D20="",B35=""),"",(N('Combined Gradation'!F42)-N('Combined Gradation'!F43))) ->  | F35: =IF(SSize9=2,(Bin1Frac/100)*SUM(D$27:D35),0) -> 0 | G35: =IF(SSize9=4.75,(Bin1Frac/100)*SUM(D$27:D35),0) -> 0 | H35: =IF(OR(H20="",B35=""),"",(N('Combined Gradation'!H42)-N('Combined Gradation'!H43))) ->  | J35: =IF(SSize9=2,(Bin1Frac/100)*SUM(H$27:H35),0) -> 0 | K35: =IF(SSize9=4.75,(Bin1Frac/100)*SUM(H$27:H35),0) -> 0 | L35: =IF(OR(L20="",B35=""),"",(N('Combined Gradation'!J42)-N('Combined Gradation'!J43))) ->  | N35: =IF(SSize9=2,(Bin1Frac/100)*SUM(L$27:L35),0) -> 0 | O35: =IF(SSize9=4.75,(Bin1Frac/100)*SUM(L$27:L35),0) -> 0 | P35: =IF(OR(P20="",B35=""),"",(N('Combined Gradation'!L42)-N('Combined Gradation'!L43))) ->  | R35: =IF(SSize9=2,(Bin1Frac/100)*SUM(P$27:P35),0) -> 0 | S35: =IF(SSize9=4.75,(Bin1Frac/100)*SUM(P$27:P35),0) -> 0 | T35: =IF(OR(T20="",B35=""),"",(N('Combined Gradation'!N42)-N('Combined Gradation'!N43))) ->  | V35: =IF(SSize9=2,(Bin1Frac/100)*SUM(T$27:T35),0) -> 0 | W35: =IF(SSize9=4.75,(Bin1Frac/100)*SUM(T$27:T35),0) -> 0 | X35: =IF(OR(X20="",B35=""),"",(N('Combined Gradation'!P42)-N('Combined Gradation'!P43))) ->  | Z35: =IF(SSize9=2,(Bin1Frac/100)*SUM(X$27:X35),0) -> 0 | AA35: =IF(SSize9=4.75,(Bin1Frac/100)*SUM(X$27:X35),0) -> 0 | AB35: =IF(OR(AB20="",B35=""),"",(N('Combined Gradation'!R42)-N('Combined Gradation'!R43))) ->  | AD35: =IF(SSize9=2,(Bin1Frac/100)*SUM(AB$27:AB35),0) -> 0 | AE35: =IF(SSize9=4.75,(Bin1Frac/100)*SUM(AB$27:AB35),0) -> 0 | AF35: =IF(OR(AF20="",B35=""),"",(N('Combined Gradation'!T42)-N('Combined Gradation'!T43))) -> 0 | AH35: =IF(SSize9=2,(Bin1Frac/100)*SUM(AF$27:AF35),0) -> 0 | AI35: =IF(SSize9=4.75,(Bin1Frac/100)*SUM(AF$27:AF35),0) -> 0 | AJ35: =IF(OR(AJ20="",B35=""),"",(N('Combined Gradation'!V42)-N('Combined Gradation'!V43))) -> 0 | AL35: =IF(SSize9=2,(Bin1Frac/100)*SUM(AJ$27:AJ35),0) -> 0 | AM35: =IF(SSize9=4.75,(Bin1Frac/100)*SUM(AJ$27:AJ35),0) -> 0 | AN35: =IF(OR(AN20="",B35=""),"",(N('Combined Gradation'!X42)-N('Combined Gradation'!X43))) -> 0 | AP35: =IF(SSize9=2,(Bin1Frac/100)*SUM(AN$27:AN35),0) -> 0 | AQ35: =IF(SSize9=4.75,(Bin1Frac/100)*SUM(AN$27:AN35),0) -> 0
B36: =IF(ISERROR(INDEX(INDIRECT(VLOOKUP(Grade,MIX_RANGE,2,IF(version>=14,0,1))),9,2)),"Pan",INDEX(INDIRECT(VLOOKUP(Grade,MIX_RANGE,2,IF(version>=14,0,1))),9,2)) -> No. 50 | C36: =IF(ISERROR(INDEX(INDIRECT(VLOOKUP(Grade,MIX_RANGE,2,IF(version>=14,0,1))),10,2)),"Pan",INDEX(INDIRECT(VLOOKUP(Grade,MIX_RANGE,2,IF(version>=14,0,1))),10,2)) -> No. 200 | D36: =IF(OR(D20="",B36=""),"",(N('Combined Gradation'!F43)-N('Combined Gradation'!F44))) ->  | F36: =IF(SSize10=2,(Bin1Frac/100)*SUM(D$27:D36),0) -> 0 | G36: =IF(SSize10=4.75,(Bin1Frac/100)*SUM(D$27:D36),0) -> 0 | H36: =IF(OR(H20="",B36=""),"",(N('Combined Gradation'!H43)-N('Combined Gradation'!H44))) ->  | J36: =IF(SSize10=2,(Bin1Frac/100)*SUM(H$27:H36),0) -> 0 | K36: =IF(SSize10=4.75,(Bin1Frac/100)*SUM(H$27:H36),0) -> 0 | L36: =IF(OR(L20="",B36=""),"",(N('Combined Gradation'!J43)-N('Combined Gradation'!J44))) ->  | N36: =IF(SSize10=2,(Bin1Frac/100)*SUM(L$27:L36),0) -> 0 | O36: =IF(SSize10=4.75,(Bin1Frac/100)*SUM(L$27:L36),0) -> 0 | P36: =IF(OR(P20="",B36=""),"",(N('Combined Gradation'!L43)-N('Combined Gradation'!L44))) ->  | R36: =IF(SSize10=2,(Bin1Frac/100)*SUM(P$27:P36),0) -> 0 | S36: =IF(SSize10=4.75,(Bin1Frac/100)*SUM(P$27:P36),0) -> 0 | T36: =IF(OR(T20="",B36=""),"",(N('Combined Gradation'!N43)-N('Combined Gradation'!N44))) ->  | V36: =IF(SSize10=2,(Bin1Frac/100)*SUM(T$27:T36),0) -> 0 | W36: =IF(SSize10=4.75,(Bin1Frac/100)*SUM(T$27:T36),0) -> 0 | X36: =IF(OR(X20="",B36=""),"",(N('Combined Gradation'!P43)-N('Combined Gradation'!P44))) ->  | Z36: =IF(SSize10=2,(Bin1Frac/100)*SUM(X$27:X36),0) -> 0 | AA36: =IF(SSize10=4.75,(Bin1Frac/100)*SUM(X$27:X36),0) -> 0 | AB36: =IF(OR(AB20="",B36=""),"",(N('Combined Gradation'!R43)-N('Combined Gradation'!R44))) ->  | AD36: =IF(SSize10=2,(Bin1Frac/100)*SUM(AB$27:AB36),0) -> 0 | AE36: =IF(SSize10=4.75,(Bin1Frac/100)*SUM(AB$27:AB36),0) -> 0 | AF36: =IF(OR(AF20="",B36=""),"",(N('Combined Gradation'!T43)-N('Combined Gradation'!T44))) -> 0 | AH36: =IF(SSize10=2,(Bin1Frac/100)*SUM(AF$27:AF36),0) -> 0 | AI36: =IF(SSize10=4.75,(Bin1Frac/100)*SUM(AF$27:AF36),0) -> 0 | AJ36: =IF(OR(AJ20="",B36=""),"",(N('Combined Gradation'!V43)-N('Combined Gradation'!V44))) -> 0 | AL36: =IF(SSize10=2,(Bin1Frac/100)*SUM(AJ$27:AJ36),0) -> 0 | AM36: =IF(SSize10=4.75,(Bin1Frac/100)*SUM(AJ$27:AJ36),0) -> 0 | AN36: =IF(OR(AN20="",B36=""),"",(N('Combined Gradation'!X43)-N('Combined Gradation'!X44))) -> 0 | AP36: =IF(SSize10=2,(Bin1Frac/100)*SUM(AN$27:AN36),0) -> 0 | AQ36: =IF(SSize10=4.75,(Bin1Frac/100)*SUM(AN$27:AN36),0) -> 0
B37: =IF(ISERROR(INDEX(INDIRECT(VLOOKUP(Grade,MIX_RANGE,2,IF(version>=14,0,1))),10,2)),"Pan",INDEX(INDIRECT(VLOOKUP(Grade,MIX_RANGE,2,IF(version>=14,0,1))),10,2)) -> No. 200 | C37: Pan | D37: =IF(OR(D20="",B37=""),"",(N('Combined Gradation'!F44)-N('Combined Gradation'!F45))) ->  | H37: =IF(OR(H20="",B37=""),"",(N('Combined Gradation'!H44)-N('Combined Gradation'!H45))) ->  | L37: =IF(OR(L20="",B37=""),"",(N('Combined Gradation'!J44)-N('Combined Gradation'!J45))) ->  | P37: =IF(OR(P20="",B37=""),"",(N('Combined Gradation'!L44)-N('Combined Gradation'!L45))) ->  | T37: =IF(OR(T20="",B37=""),"",(N('Combined Gradation'!N44)-N('Combined Gradation'!N45))) ->  | X37: =IF(OR(X20="",B37=""),"",(N('Combined Gradation'!P44)-N('Combined Gradation'!P45))) ->  | AB37: =IF(OR(AB20="",B37=""),"",(N('Combined Gradation'!R44)-N('Combined Gradation'!R45))) ->  | AF37: =IF(OR(AF20="",B37=""),"",(N('Combined Gradation'!T44)-N('Combined Gradation'!T45))) -> 0 | AJ37: =IF(OR(AJ20="",B37=""),"",(N('Combined Gradation'!V44)-N('Combined Gradation'!V45))) -> 0 | AN37: =IF(OR(AN20="",B37=""),"",(N('Combined Gradation'!X44)-N('Combined Gradation'!X45))) -> 0
B38: Total: | D38: =IF(COUNTBLANK(D27:D37)=11,"",SUM(D27:D37)) ->  | F38: =MAX(F27:F37) -> 0 | G38: =MAX(G27:G37) -> 0 | H38: =IF(COUNTBLANK(H27:H37)=11,"",SUM(H27:H37)) ->  | J38: =SUM(J27:J37) -> 0 | L38: =IF(COUNTBLANK(L27:L37)=11,"",SUM(L27:L37)) ->  | N38: =SUM(N27:N37) -> 0 | P38: =IF(COUNTBLANK(P27:P37)=11,"",SUM(P27:P37)) ->  | R38: =SUM(R27:R37) -> 0 | T38: =IF(COUNTBLANK(T27:T37)=11,"",SUM(T27:T37)) ->  | V38: =SUM(V27:V37) -> 0 | X38: =IF(COUNTBLANK(X27:X37)=11,"",SUM(X27:X37)) ->  | Z38: =SUM(Z27:Z37) -> 0 | AB38: =IF(COUNTBLANK(AB27:AB37)=11,"",SUM(AB27:AB37)) ->  | AD38: =MAX(AD27:AD37) -> 0 | AE38: =MAX(AE27:AE37) -> 0 | AF38: =IF(COUNTBLANK(AF27:AF37)=11,"",SUM(AF27:AF37)) -> 15.5 | AH38: =MAX(AH27:AH37) -> 0 | AI38: =MAX(AI27:AI37) -> 0 | AJ38: =IF(COUNTBLANK(AJ27:AJ37)=11,"",SUM(AJ27:AJ37)) -> 5.2 | AL38: =MAX(AL27:AL37) -> 0 | AM38: =MAX(AM27:AM37) -> 0 | AN38: =IF(COUNTBLANK(AN27:AN37)=11,"",SUM(AN27:AN37)) -> 4.5 | AP38: =MAX(AP27:AP37) -> 0 | AQ38: =MAX(AQ27:AQ37) -> 0
B39: ="Percent of plus No. 4" -> Percent of plus No. 4 | D39: =IF(COUNTBLANK(D27:D37)=11,"",SUM(INDIRECT(D40))) ->  | H39: =IF(COUNTBLANK(H27:H37)=11,"",SUM(INDIRECT(H40))) ->  | L39: =IF(COUNTBLANK(L27:L37)=11,"",SUM(INDIRECT(L40))) ->  | P39: =IF(COUNTBLANK(P27:P37)=11,"",SUM(INDIRECT(P40))) ->  | T39: =IF(COUNTBLANK(T27:T37)=11,"",SUM(INDIRECT(T40))) ->  | X39: =IF(COUNTBLANK(X27:X37)=11,"",SUM(INDIRECT(X40))) ->  | AB39: =IF(COUNTBLANK(AB27:AB37)=11,"",SUM(INDIRECT(AB40))) ->  | AF39: =IF(COUNTBLANK(AF27:AF37)=11,"",SUM(INDIRECT(AF40))) -> 15.5 | AJ39: =IF(COUNTBLANK(AJ27:AJ37)=11,"",SUM(INDIRECT(AJ40))) -> 5.2 | AN39: =IF(COUNTBLANK(AN27:AN37)=11,"",SUM(INDIRECT(AN40))) -> 4.5
D40: ="D" & ROW(D27) & ":D" & MATCH("No. 4",C27:C37,0)+ROW(D27)-1 -> D27:D31 | H40: ="H" & ROW(H27) & ":H" & MATCH("No. 4",C27:C37,0)+ROW(H27)-1 -> H27:H31 | L40: ="L" & ROW(L27) & ":L" & MATCH("No. 4",C27:C37,0)+ROW(L27)-1 -> L27:L31 | P40: ="P" & ROW(P27) & ":P" & MATCH("No. 4",C27:C37,0)+ROW(P27)-1 -> P27:P31 | T40: ="T" & ROW(T27) & ":T" & MATCH("No. 4",C27:C37,0)+ROW(T27)-1 -> T27:T31 | X40: ="X" & ROW(X27) & ":X" & MATCH("No. 4",C27:C37,0)+ROW(X27)-1 -> X27:X31 | AB40: ="AB" & ROW(AB27) & ":AB" & MATCH("No. 4",C27:C37,0)+ROW(AB27)-1 -> AB27:AB31 | AF40: ="AF" & ROW(AF27) & ":AF" & MATCH("No. 4",C27:C37,0)+ROW(AF27)-1 -> AF27:AF31 | AJ40: ="Aj" & ROW(AJ27) & ":Aj" & MATCH("No. 4",C27:C37,0)+ROW(AJ27)-1 -> Aj27:Aj31 | AN40: ="AN" & ROW(AN27) & ":AN" & MATCH("No. 4",C27:C37,0)+ROW(AN27)-1 -> AN27:AN31
B41: ="Percent of plus No. 8" -> Percent of plus No. 8 | D41: =IF(COUNTBLANK(D27:D37)=11,"",SUM(INDIRECT(D42))) ->  | H41: =IF(COUNTBLANK(H27:H37)=11,"",SUM(INDIRECT(H42))) ->  | L41: =IF(COUNTBLANK(L27:L37)=11,"",SUM(INDIRECT(L42))) ->  | N41: =IF(COUNTBLANK(N27:N37)=11,"",SUM(INDIRECT(N42))) ->  | P41: =IF(COUNTBLANK(P27:P37)=11,"",SUM(INDIRECT(P42))) ->  | R41: =IF(COUNTBLANK(R27:R37)=11,"",SUM(INDIRECT(R42))) ->  | T41: =IF(COUNTBLANK(T27:T37)=11,"",SUM(INDIRECT(T42))) ->  | V41: =IF(COUNTBLANK(V27:V37)=11,"",SUM(INDIRECT(V42))) ->  | X41: =IF(COUNTBLANK(X27:X37)=11,"",SUM(INDIRECT(X42))) ->  | Z41: =IF(COUNTBLANK(Z27:Z37)=11,"",SUM(INDIRECT(Z42))) ->  | AB41: =IF(COUNTBLANK(AB27:AB37)=11,"",SUM(INDIRECT(AB42))) ->  | AD41: =IF(COUNTBLANK(AD27:AD37)=11,"",SUM(INDIRECT(AD42))) ->  | AF41: =IF(COUNTBLANK(AF27:AF37)=11,"",SUM(INDIRECT(AF42))) -> 15.5 | AH41: =IF(COUNTBLANK(AH27:AH37)=11,"",SUM(INDIRECT(AH42))) ->  | AJ41: =IF(COUNTBLANK(AJ27:AJ37)=11,"",SUM(INDIRECT(AJ42))) -> 5.2 | AL41: =IF(COUNTBLANK(AL27:AL37)=11,"",SUM(INDIRECT(AL42))) ->  | AN41: =IF(COUNTBLANK(AN27:AN37)=11,"",SUM(INDIRECT(AN42))) -> 4.5
D42: ="D" & ROW(D27) & ":D" & MATCH("No. 8",C27:C37,0)+ROW(D27)-1 -> D27:D32 | H42: ="H" & ROW(H27) & ":H" & MATCH("No. 8",C27:C37,0)+ROW(H27)-1 -> H27:H32 | L42: ="L" & ROW(L27) & ":L" & MATCH("No. 8",C27:C37,0)+ROW(L27)-1 -> L27:L32 | P42: ="P" & ROW(P27) & ":P" & MATCH("No. 8",C27:C37,0)+ROW(P27)-1 -> P27:P32 | T42: ="T" & ROW(T27) & ":T" & MATCH("No. 8",C27:C37,0)+ROW(T27)-1 -> T27:T32 | X42: ="X" & ROW(X27) & ":X" & MATCH("No. 8",C27:C37,0)+ROW(X27)-1 -> X27:X32 | AB42: ="AB" & ROW(AB27) & ":AB" & MATCH("No. 8",C27:C37,0)+ROW(AB27)-1 -> AB27:AB32 | AF42: ="AF" & ROW(AF27) & ":AF" & MATCH("No. 8",C27:C37,0)+ROW(AF27)-1 -> AF27:AF32 | AJ42: ="AJ" & ROW(AJ27) & ":AJ" & MATCH("No. 8",C27:C37,0)+ROW(AJ27)-1 -> AJ27:AJ32 | AN42: ="AN" & ROW(AN27) & ":AN" & MATCH("No. 8",C27:C37,0)+ROW(AN27)-1 -> AN27:AN32
B43: ="Percent of plus No. 4 from class (A) Rock:" -> Percent of plus No. 4 from class (A) Rock: | I43: =IF(AND(D39="",H39="",L39="",P39="",T39="",X39="",AB39=""),"",IF(D23="Yes",D39,0)+IF(H23="Yes",H39,0)+IF(L23="Yes",L39,0)+IF(P23="Yes",P39,0)+IF(T23="Yes",T39,0)+IF(X23="Yes",X39,0)+IF(AB23="Yes",AB39,0)) ->  | P43: ="Percent of plus No. 8 from class (A) Rock:" -> Percent of plus No. 8 from class (A) Rock: | Y43: =IF(AND(D41="",H41="",L41="",P41="",T41="",X41="",AB41=""),"",IF(D23="Yes",D41,0)+IF(H23="Yes",H41,0)+IF(L23="Yes",L41,0)+IF(P23="Yes",P41,0)+IF(T23="Yes",T41,0)+IF(X23="Yes",X41,0)+IF(AB23="Yes",AB41,0)) -> 
B44: ="Total Percent of plus No. 4" -> Total Percent of plus No. 4 | I44: =IF(AND(D39="",H39="",L39="",P39="",T39="",X39="",AB39="",AF39="",AJ39="",AN39=""),"",SUM(N(D39),N(H39),N(L39),N(P39),N(T39),N(X39),N(AB39),N(AF39),N(AJ39),N(AN39))) -> 25.2 | P44: ="Total Percent of plus No. 8" -> Total Percent of plus No. 8 | Y44: =IF(AND(D41="",H41="",L41="",P41="",T41="",X41="",AB41="",AF41="",AJ41="",AN41=""),"",SUM(N(D41),N(H41),N(L41),N(P41),N(T41),N(X41),N(AB41),N(AF41),N(AJ41),N(AN41))) -> 25.2
B45: ="Percent of plus No. 4 from class (A) Rock:" -> Percent of plus No. 4 from class (A) Rock: | I45: =IF(ISERROR(100*I43/I44),"",100*I43/I44) ->  | P45: ="Percent of plus No. 8 from class (A) Rock:" -> Percent of plus No. 8 from class (A) Rock: | Y45: =IF(ISERROR(100*Y43/Y44),"",100*Y43/Y44) -> 
B47: Remarks:

Sheet Weigh Up
B1: TEXAS DEPARTMENT OF TRANSPORTATION
B2: =IF(location="","",location) -> 
B4: HMACP MIXTURE DESIGN : WEIGH UP SHEET
B6: SAMPLE ID: | E6: =IF(sampleid="","",sampleid) ->  | H6: SAMPLE DATE: | K6: =IF(sampleddate="","",sampleddate) -> 
B7: LOT NUMBER: | E7: =IF(testnumber="","",testnumber) ->  | H7: LETTING DATE: | K7: =IF(lettingdate="","",lettingdate) -> 
B8: SAMPLE STATUS: | E8: =IF(status="","",status) ->  | H8: CONTROLLING CSJ: | K8: =IF(ccsj="","",ccsj) -> 
B9: COUNTY: | E9: =IF(county="","",county) ->  | H9: SPEC YEAR: | K9: =+IF(specyear="","",specyear) -> 2014
B10: SAMPLED BY: | E10: =IF(sampledby="","",sampledby) ->  | H10: SPEC ITEM: | K10: =IF(specitem="","",specitem) -> 
B11: SAMPLE LOCATION: | E11: =IF(samplelocation="","",samplelocation) ->  | H11: SPECIAL PROVISION: | K11: =IF(specialprovision="","",specialprovision) -> 
B12: MATERIAL CODE: | E12: =IF(material="","",material) ->  | H12: MIX TYPE: | K12: =IF(Grade="","",Grade) -> SS-3074-BMD-SP-C
B13: MATERIAL NAME: | E13: =IF(matl_nm="","",matl_nm) -> 
B14: PRODUCER: | E14: =IF(producer="","",producer) -> 
B15: AREA ENGINEER: | E15: =IF(areaengineer="","",areaengineer) ->  | H15: PROJECT MANAGER: | K15: =IF(projectmanager="","",projectmanager) -> 
B17: COURSE\LIFT: | E17: =IF(courselift="","",courselift) -> Surface | F17: STATION: | H17: =IF(station="","",station) ->  | J17: DIST. FROM CL: | L17: =IF(distfromcl="","",distfromcl) ->  | N17: CONTRACTOR DESIGN # : | Q17: =IF(condesignnum="","",condesignnum) -> 
B19: Aggregate Weight, g: | I19: =Binder & IF(version>3,"% Asphalt by Total Weight, g:","% Asphalt by Weight of Aggregate, g:") -> 5.3% Asphalt by Total Weight, g: | O19: =IF(AggrWt="","",IF(version>5,AggrWt*(Binder/100)/((100-Binder-percentfiber)/100),AggrWt*(Binder/100)/((100-Binder)/100))) ->  | R19: =IF(VLOOKUP(Grade,MIX_RANGE,11), percentfiber&"% Fibers by Weight of Total Mixture Weight, g:","") ->  | T19: =IF(AggrWt="","",IF(percentfiber <> "", IF(version>5, AggrWt*(percentfiber/(100-percentfiber-Binder)),(AggrWt+F20)*percentfiber/100), 0)) -> 
B20: =Binder & IF(version>3,"% Asphalt by Total Weight, g:","% Asphalt by Weight of Aggr, g:") -> 5.3% Asphalt by Total Weight, g: | F20: =IF(AggrWt="","",IF(version>5,AggrWt*(Binder/100)/((100-Binder-percentfiber)/100),AggrWt*(Binder/100)/((100-Binder)/100))) ->  | I20: =IF(version>3,"Less Asphalt by Weight of Recycled Material, g:","Less Asphalt by Weight of RAP Aggregate, g:") -> Less Asphalt by Weight of Recycled Material, g: | O20: =IF(version>4,SUM((IF(S42="",0,S42)*Bin8RecAC/100),(IF(U42="",0,U42)*Bin9RecAC/100),(IF(W42="",0,W42)*Bin10RecAC/100)),IF(version>3,SUM((IF(E42="",0,E42)*BIN1rapac/100),(IF(G42="",0,G42)*BIN2Rapac/100),(IF(I42="",0,I42)*Bin3Rapac/100),(IF(K42="",0,K42)*Bin4Rapac/100),(IF(M42="",0,M42)*Bin5Rapac/100),(IF(O42="",0,O42)*Bin6Rapac/100),(IF(Q42="",0,Q42)*Bin7Rapac/100)),IF(ISERROR(SUM((E42*BIN1rapac/100),(G42*BIN2Rapac/100),(I42*Bin3Rapac/100),(K42*Bin4Rapac/100),(M42*Bin5Rapac/100),(O42*Bin6Rapac/100),(Q42*Bin7Rapac/100))),"",SUM((E42*BIN1rapac/100),(G42*BIN2Rapac/100),(I42*Bin3Rapac/100),(K42*Bin4Rapac/100),(M42*Bin5Rapac/100),(O42*Bin6Rapac/100),(Q42*Bin7Rapac/100))))) -> 0
B21: Total Weight, g: | F21: =IF(AggrWt="","",F19+F20+T19) ->  | I21: ="(" & ACSource & ") Asphalt to Add, g:" -> (Ergon Austin) Asphalt to Add, g: | O21: =IF(ISERROR(O19-O20),"",O19-O20) -> 
E23: Bin No.1 | G23: Bin No.2 | I23: Bin No.3 | K23: Bin No.4 | M23: Bin No.5 | O23: Bin No.6 | Q23: Bin No.7 | S23: Bin No.8 | U23: Bin No.9 | W23: Bin No.10
B24: Individual Bin (%): | E24: =IF(Bin1Frac="","","Bin No.1 = "&Bin1Frac&" %") ->  | G24: =IF(Bin2Frac="","","Bin No.2 = "&Bin2Frac&" %") ->  | I24: =IF(Bin3Frac="","","Bin No.3 = "&Bin3Frac&" %") ->  | K24: =IF(Bin4Frac="","","Bin No.4 = "&Bin4Frac&" %") ->  | M24: =IF(Bin5Frac="","","Bin No.5 = "&Bin5Frac&" %") ->  | O24: =IF(Bin6Frac="","","Bin No.6 = "&Bin6Frac&" %") ->  | Q24: =IF(Bin7Frac="","","Bin No.7 = "&Bin7Frac&" %") ->  | S24: =IF(Bin8Frac=0,"","Bin No.8 = "&ROUND(TBin8Frac,1)&" %") -> Bin No.8 = 15 % | U24: =IF(Bin9Frac=0,"","Bin No.9 = "&ROUND(TBin9Frac,1)&" %") -> Bin No.9 = 5 % | W24: =IF(Bin10Frac=0,"","Bin No.10 = "&ROUND(TBin10Frac,1)&" %") -> Bin No.10 = 5 %
B25: Aggregate Source: | E25: =IF(Bin1Source="","",Bin1Source) ->  | G25: =IF(Bin2Source="","",Bin2Source) ->  | I25: =IF(Bin3Source="","",Bin3Source) ->  | K25: =IF(Bin4Source="","",Bin4Source) ->  | M25: =IF(Bin5Source="","",Bin5Source) ->  | O25: =IF(Bin6Source="","",Bin6Source) ->  | Q25: =IF(Bin7Source="","",Bin7Source) ->  | S25: =IF(Bin8Recyc="","",Bin8Recyc) -> Fractionated RAP | U25: =IF(Bin9Recyc="","",Bin9Recyc) -> Fractionated RAP | W25: =IF(Bin10Recyc="","",Bin10Recyc) -> RAS
B26: Aggregate Number: | E26: =IF(Bin1Aggr="","",Bin1Aggr) ->  | G26: =IF(Bin2Aggr="","",Bin2Aggr) ->  | I26: =IF(Bin3Aggr="","",Bin3Aggr) ->  | K26: =IF(Bin4Aggr="","",Bin4Aggr) ->  | M26: =IF(Bin5Aggr="","",Bin5Aggr) ->  | O26: =IF(Bin6Aggr="","",Bin6Aggr) ->  | Q26: =IF(Bin7Aggr="","",Bin7Aggr) ->  | S26: =IF(Bin8Source="","",Bin8Source) ->  | U26: =IF(Bin9Source="","",Bin9Source) ->  | W26: =IF(Bin10Source="","",Bin10Source) ->  | Y26: Total Weights | Z26: ="Individual" & CHAR(10) & "Retained, %" -> Individual Retained, % | AA26: Cumulative Retained, %
B27: Sample ID: | E27: =IF(Bin1samp="","",Bin1samp) ->  | G27: =IF(Bin2Samp="","",Bin2Samp) ->  | I27: =IF(Bin3Samp="","",Bin3Samp) ->  | K27: =IF(Bin4Samp="","",Bin4Samp) ->  | M27: =IF(Bin5Samp="","",Bin5Samp) ->  | O27: =IF(Bin6Samp="","",Bin6Samp) ->  | Q27: =IF(Bin7Samp="","",Bin7Samp) ->  | S27: =IF(Bin8Samp="","",Bin8Samp) ->  | U27: =IF(Bin9Samp="","",Bin9Samp) ->  | W27: =IF(Bin10Samp="","",Bin10Samp) -> 
C29: Sieve Size: | E29: =IF(E24="","",IF(Bin1RAP="Yes","RAP Weight",IF(Bin1Lime="Yes","Hydrated Lime Weight","Aggregate Weight"))) ->  | G29: =IF(G24="","",IF(Bin2RAP="Yes","RAP Weight",IF(Bin2Lime="Yes","Hydrated Lime Weight","Aggregate Weight"))) ->  | I29: =IF(I24="","",IF(Bin3RAP="Yes","RAP Weight",IF(Bin3Lime="Yes","Hydrated Lime Weight","Aggregate Weight"))) ->  | K29: =IF(K24="","",IF(Bin4RAP="Yes","RAP Weight",IF(Bin4Lime="Yes","Hydrated Lime Weight","Aggregate Weight"))) ->  | M29: =IF(M24="","",IF(Bin5RAP="Yes","RAP Weight",IF(Bin5Lime="Yes","Hydrated Lime Weight","Aggregate Weight"))) ->  | O29: =IF(O24="","",IF(Bin6RAP="Yes","RAP Weight",IF(Bin6Lime="Yes","Hydrated Lime Weight","Aggregate Weight"))) ->  | Q29: =IF(Q24="","",IF(Bin7RAP="Yes","RAP Weight",IF(Bin7Lime="Yes","Hydrated Lime Weight","Aggregate Weight"))) ->  | S29: =IF(S24="","",S25&" Weight") -> Fractionated RAP Weight | U29: =IF(U24="","",U25&" Weight") -> Fractionated RAP Weight | W29: =IF(W24="","",W25&" Weight") -> RAS Weight
C30: Passing | D30: Retained
B31: INDIVIDUAL | C31: - | D31: ='Aggregate Classification'!C27 -> 1" | E31: =IF(OR(C31="",E24=""),"",IF(Bin1RAP="Yes",AggrWt*((Bin1Frac-N('Combined Gradation'!F35))/100)/((100-BIN1rapac)/100),AggrWt*((Bin1Frac-N('Combined Gradation'!F35))/100))) ->  | G31: =IF(OR(C31="",G24=""),"",IF(Bin2RAP="Yes",AggrWt*((Bin2Frac-N('Combined Gradation'!H35))/100)/((100-BIN2Rapac)/100),AggrWt*((Bin2Frac-N('Combined Gradation'!H35))/100))) ->  | I31: =IF(OR(C31="",I24=""),"",IF(Bin3RAP="Yes",AggrWt*((Bin3Frac-N('Combined Gradation'!J35))/100)/((100-Bin3Rapac)/100),AggrWt*((Bin3Frac-N('Combined Gradation'!J35))/100))) ->  | K31: =IF(OR(C31="",K24=""),"",IF(Bin4RAP="Yes",AggrWt*((Bin4Frac-N('Combined Gradation'!L35))/100)/((100-Bin4Rapac)/100),AggrWt*((Bin4Frac-N('Combined Gradation'!L35))/100))) ->  | M31: =IF(OR(C31="",M24=""),"",IF(Bin5RAP="Yes",AggrWt*((Bin5Frac-N('Combined Gradation'!N35))/100)/((100-Bin5Rapac)/100),AggrWt*((Bin5Frac-N('Combined Gradation'!N35))/100))) ->  | O31: =IF(OR(C31="",O24=""),"",IF(Bin6RAP="Yes",AggrWt*((Bin6Frac-N('Combined Gradation'!P35))/100)/((100-Bin6Rapac)/100),AggrWt*((Bin6Frac-N('Combined Gradation'!P35))/100))) ->  | Q31: =IF(OR(C31="",Q24=""),"",IF(Bin7RAP="Yes",AggrWt*((Bin7Frac-N('Combined Gradation'!R35))/100)/((100-Bin7Rapac)/100),AggrWt*((Bin7Frac-N('Combined Gradation'!R35))/100))) ->  | S31: =IF(OR(C31="",S$24=""),"",AggrWt*(Bin8Frac-N('Combined Gradation'!T35))/(100-Bin8RecAC)) -> 0 | U31: =IF(OR(C31="",U$24=""),"",AggrWt*(Bin9Frac-N('Combined Gradation'!V35))/(100-Bin9RecAC)) -> 0 | W31: =IF(OR(C31="",W$24=""),"",AggrWt*(Bin10Frac-N('Combined Gradation'!X35))/(100-Bin10RecAC)) -> 0 | Y31: =IF(COUNTBLANK(E31:X31)=20,"",SUM(E31:X31)) -> 0 | Z31: =IF(ISERROR(100*((Y31)/($Y$42))),"",100*((Y31)/($Y$42))) ->  | AA31: =IF(Z31="","",Z31) -> 
C32: ='Aggregate Classification'!B28 -> 1" | D32: ='Aggregate Classification'!C28 -> 3/4" | E32: =IF(OR(C32="",E$24=""),"",IF(Bin1RAP="Yes",AggrWt*((N('Combined Gradation'!F35)-N('Combined Gradation'!F36))/100)/((100-BIN1rapac)/100),AggrWt*((N('Combined Gradation'!F35)-N('Combined Gradation'!F36))/100))) ->  | G32: =IF(OR(C32="",G$24=""),"",IF(Bin2RAP="Yes",AggrWt*((N('Combined Gradation'!H35)-N('Combined Gradation'!H36))/100)/((100-BIN2Rapac)/100),AggrWt*((N('Combined Gradation'!H35)-N('Combined Gradation'!H36))/100))) ->  | I32: =IF(OR(C32="",I$24=""),"",IF(Bin3RAP="Yes",AggrWt*((N('Combined Gradation'!J35)-N('Combined Gradation'!J36))/100)/((100-Bin3Rapac)/100),AggrWt*((N('Combined Gradation'!J35)-N('Combined Gradation'!J36))/100))) ->  | K32: =IF(OR(C32="",K$24=""),"",IF(Bin4RAP="Yes",AggrWt*((N('Combined Gradation'!L35)-N('Combined Gradation'!L36))/100)/((100-Bin4Rapac)/100),AggrWt*((N('Combined Gradation'!L35)-N('Combined Gradation'!L36))/100))) ->  | M32: =IF(OR(C32="",M$24=""),"",IF(Bin5RAP="Yes",AggrWt*((N('Combined Gradation'!N35)-N('Combined Gradation'!N36))/100)/((100-Bin5Rapac)/100),AggrWt*((N('Combined Gradation'!N35)-N('Combined Gradation'!N36))/100))) ->  | O32: =IF(OR(C32="",O$24=""),"",IF(Bin6RAP="Yes",AggrWt*((N('Combined Gradation'!P35)-N('Combined Gradation'!P36))/100)/((100-Bin6Rapac)/100),AggrWt*((N('Combined Gradation'!P35)-N('Combined Gradation'!P36))/100))) ->  | Q32: =IF(OR(C32="",Q$24=""),"",IF(Bin7RAP="Yes",AggrWt*((N('Combined Gradation'!R35)-N('Combined Gradation'!R36))/100)/((100-Bin7Rapac)/100),AggrWt*((N('Combined Gradation'!R35)-N('Combined Gradation'!R36))/100))) ->  | S32: =IF(OR(C32="",S$24=""),"",AggrWt*(N('Combined Gradation'!T35)-N('Combined Gradation'!T36))/(100-Bin8RecAC)) -> 0 | U32: =IF(OR($C32="",U$24=""),"",AggrWt*(N('Combined Gradation'!V35)-N('Combined Gradation'!V36))/(100-Bin9RecAC)) -> 0 | W32: =IF(OR($C32="",W$24=""),"",AggrWt*(N('Combined Gradation'!X35)-N('Combined Gradation'!X36))/(100-Bin10RecAC)) -> 0 | Y32: 0 | AA32: =IF(Z32="","",SUM($Z$31:$Z32)) -> 
C33: ='Aggregate Classification'!B29 -> 3/4" | D33: ='Aggregate Classification'!C29 -> 1/2" | E33: =IF(OR(C33="",E$24=""),"",IF(Bin1RAP="Yes",AggrWt*((N('Combined Gradation'!F36)-N('Combined Gradation'!F37))/100)/((100-BIN1rapac)/100),AggrWt*((N('Combined Gradation'!F36)-N('Combined Gradation'!F37))/100))) ->  | G33: =IF(OR(C33="",G$24=""),"",IF(Bin2RAP="Yes",AggrWt*((N('Combined Gradation'!H36)-N('Combined Gradation'!H37))/100)/((100-BIN2Rapac)/100),AggrWt*((N('Combined Gradation'!H36)-N('Combined Gradation'!H37))/100))) ->  | I33: =IF(OR(C33="",I$24=""),"",IF(Bin3RAP="Yes",AggrWt*((N('Combined Gradation'!J36)-N('Combined Gradation'!J37))/100)/((100-Bin3Rapac)/100),AggrWt*((N('Combined Gradation'!J36)-N('Combined Gradation'!J37))/100))) ->  | K33: =IF(OR(C33="",K$24=""),"",IF(Bin4RAP="Yes",AggrWt*((N('Combined Gradation'!L36)-N('Combined Gradation'!L37))/100)/((100-Bin4Rapac)/100),AggrWt*((N('Combined Gradation'!L36)-N('Combined Gradation'!L37))/100))) ->  | M33: =IF(OR(C33="",M$24=""),"",IF(Bin5RAP="Yes",AggrWt*((N('Combined Gradation'!N36)-N('Combined Gradation'!N37))/100)/((100-Bin5Rapac)/100),AggrWt*((N('Combined Gradation'!N36)-N('Combined Gradation'!N37))/100))) ->  | O33: =IF(OR(C33="",O$24=""),"",IF(Bin6RAP="Yes",AggrWt*((N('Combined Gradation'!P36)-N('Combined Gradation'!P37))/100)/((100-Bin6Rapac)/100),AggrWt*((N('Combined Gradation'!P36)-N('Combined Gradation'!P37))/100))) ->  | Q33: =IF(OR(C33="",Q$24=""),"",IF(Bin7RAP="Yes",AggrWt*((N('Combined Gradation'!R36)-N('Combined Gradation'!R37))/100)/((100-Bin7Rapac)/100),AggrWt*((N('Combined Gradation'!R36)-N('Combined Gradation'!R37))/100))) ->  | S33: =IF(OR(C33="",S$24=""),"",AggrWt*(N('Combined Gradation'!T36)-N('Combined Gradation'!T37))/(100-Bin8RecAC)) -> 0 | U33: =IF(OR($C33="",U$24=""),"",AggrWt*(N('Combined Gradation'!V36)-N('Combined Gradation'!V37))/(100-Bin9RecAC)) -> 0 | W33: =IF(OR($C33="",W$24=""),"",AggrWt*(N('Combined Gradation'!X36)-N('Combined Gradation'!X37))/(100-Bin10RecAC)) -> 0 | Y33: 0 | AA33: =IF(Z33="","",SUM($Z$31:$Z33)) -> 
C34: ='Aggregate Classification'!B30 -> 1/2" | D34: ='Aggregate Classification'!C30 -> 3/8" | E34: =IF(OR(C34="",E$24=""),"",IF(Bin1RAP="Yes",AggrWt*((N('Combined Gradation'!F37)-N('Combined Gradation'!F38))/100)/((100-BIN1rapac)/100),AggrWt*((N('Combined Gradation'!F37)-N('Combined Gradation'!F38))/100))) ->  | G34: =IF(OR(C34="",G$24=""),"",IF(Bin2RAP="Yes",AggrWt*((N('Combined Gradation'!H37)-N('Combined Gradation'!H38))/100)/((100-BIN2Rapac)/100),AggrWt*((N('Combined Gradation'!H37)-N('Combined Gradation'!H38))/100))) ->  | I34: =IF(OR(C34="",I$24=""),"",IF(Bin3RAP="Yes",AggrWt*((N('Combined Gradation'!J37)-N('Combined Gradation'!J38))/100)/((100-Bin3Rapac)/100),AggrWt*((N('Combined Gradation'!J37)-N('Combined Gradation'!J38))/100))) ->  | K34: =IF(OR(C34="",K$24=""),"",IF(Bin4RAP="Yes",AggrWt*((N('Combined Gradation'!L37)-N('Combined Gradation'!L38))/100)/((100-Bin4Rapac)/100),AggrWt*((N('Combined Gradation'!L37)-N('Combined Gradation'!L38))/100))) ->  | M34: =IF(OR(C34="",M$24=""),"",IF(Bin5RAP="Yes",AggrWt*((N('Combined Gradation'!N37)-N('Combined Gradation'!N38))/100)/((100-Bin5Rapac)/100),AggrWt*((N('Combined Gradation'!N37)-N('Combined Gradation'!N38))/100))) ->  | O34: =IF(OR(C34="",O$24=""),"",IF(Bin6RAP="Yes",AggrWt*((N('Combined Gradation'!P37)-N('Combined Gradation'!P38))/100)/((100-Bin6Rapac)/100),AggrWt*((N('Combined Gradation'!P37)-N('Combined Gradation'!P38))/100))) ->  | Q34: =IF(OR(C34="",Q$24=""),"",IF(Bin7RAP="Yes",AggrWt*((N('Combined Gradation'!R37)-N('Combined Gradation'!R38))/100)/((100-Bin7Rapac)/100),AggrWt*((N('Combined Gradation'!R37)-N('Combined Gradation'!R38))/100))) ->  | S34: =IF(OR(C34="",S$24=""),"",AggrWt*(N('Combined Gradation'!T37)-N('Combined Gradation'!T38))/(100-Bin8RecAC)) -> 0 | U34: =IF(OR($C34="",U$24=""),"",AggrWt*(N('Combined Gradation'!V37)-N('Combined Gradation'!V38))/(100-Bin9RecAC)) -> 0 | W34: =IF(OR($C34="",W$24=""),"",AggrWt*(N('Combined Gradation'!X37)-N('Combined Gradation'!X38))/(100-Bin10RecAC)) -> 0 | Y34: 0 | AA34: =IF(Z34="","",SUM($Z$31:$Z34)) -> 
C35: ='Aggregate Classification'!B31 -> 3/8" | D35: ='Aggregate Classification'!C31 -> No. 4 | E35: =IF(OR(C35="",E$24=""),"",IF(Bin1RAP="Yes",AggrWt*((N('Combined Gradation'!F38)-N('Combined Gradation'!F39))/100)/((100-BIN1rapac)/100),AggrWt*((N('Combined Gradation'!F38)-N('Combined Gradation'!F39))/100))) ->  | G35: =IF(OR(C35="",G$24=""),"",IF(Bin2RAP="Yes",AggrWt*((N('Combined Gradation'!H38)-N('Combined Gradation'!H39))/100)/((100-BIN2Rapac)/100),AggrWt*((N('Combined Gradation'!H38)-N('Combined Gradation'!H39))/100))) ->  | I35: =IF(OR(C35="",I$24=""),"",IF(Bin3RAP="Yes",AggrWt*((N('Combined Gradation'!J38)-N('Combined Gradation'!J39))/100)/((100-Bin3Rapac)/100),AggrWt*((N('Combined Gradation'!J38)-N('Combined Gradation'!J39))/100))) ->  | K35: =IF(OR(C35="",K$24=""),"",IF(Bin4RAP="Yes",AggrWt*((N('Combined Gradation'!L38)-N('Combined Gradation'!L39))/100)/((100-Bin4Rapac)/100),AggrWt*((N('Combined Gradation'!L38)-N('Combined Gradation'!L39))/100))) ->  | M35: =IF(OR(C35="",M$24=""),"",IF(Bin5RAP="Yes",AggrWt*((N('Combined Gradation'!N38)-N('Combined Gradation'!N39))/100)/((100-Bin5Rapac)/100),AggrWt*((N('Combined Gradation'!N38)-N('Combined Gradation'!N39))/100))) ->  | O35: =IF(OR(C35="",O$24=""),"",IF(Bin6RAP="Yes",AggrWt*((N('Combined Gradation'!P38)-N('Combined Gradation'!P39))/100)/((100-Bin6Rapac)/100),AggrWt*((N('Combined Gradation'!P38)-N('Combined Gradation'!P39))/100))) ->  | Q35: =IF(OR(C35="",Q$24=""),"",IF(Bin7RAP="Yes",AggrWt*((N('Combined Gradation'!R38)-N('Combined Gradation'!R39))/100)/((100-Bin7Rapac)/100),AggrWt*((N('Combined Gradation'!R38)-N('Combined Gradation'!R39))/100))) ->  | S35: =IF(OR(C35="",S$24=""),"",AggrWt*(N('Combined Gradation'!T38)-N('Combined Gradation'!T39))/(100-Bin8RecAC)) -> 0 | U35: =IF(OR($C35="",U$24=""),"",AggrWt*(N('Combined Gradation'!V38)-N('Combined Gradation'!V39))/(100-Bin9RecAC)) -> 0 | W35: =IF(OR($C35="",W$24=""),"",AggrWt*(N('Combined Gradation'!X38)-N('Combined Gradation'!X39))/(100-Bin10RecAC)) -> 0 | Y35: 0 | AA35: =IF(Z35="","",SUM($Z$31:$Z35)) -> 
C36: ='Aggregate Classification'!B32 -> No. 4 | D36: ='Aggregate Classification'!C32 -> No. 8 | E36: =IF(OR(C36="",E$24=""),"",IF(Bin1RAP="Yes",AggrWt*((N('Combined Gradation'!F39)-N('Combined Gradation'!F40))/100)/((100-BIN1rapac)/100),AggrWt*((N('Combined Gradation'!F39)-N('Combined Gradation'!F40))/100))) ->  | G36: =IF(OR(C36="",G$24=""),"",IF(Bin2RAP="Yes",AggrWt*((N('Combined Gradation'!H39)-N('Combined Gradation'!H40))/100)/((100-BIN2Rapac)/100),AggrWt*((N('Combined Gradation'!H39)-N('Combined Gradation'!H40))/100))) ->  | I36: =IF(OR(C36="",I$24=""),"",IF(Bin3RAP="Yes",AggrWt*((N('Combined Gradation'!J39)-N('Combined Gradation'!J40))/100)/((100-Bin3Rapac)/100),AggrWt*((N('Combined Gradation'!J39)-N('Combined Gradation'!J40))/100))) ->  | K36: =IF(OR(C36="",K$24=""),"",IF(Bin4RAP="Yes",AggrWt*((N('Combined Gradation'!L39)-N('Combined Gradation'!L40))/100)/((100-Bin4Rapac)/100),AggrWt*((N('Combined Gradation'!L39)-N('Combined Gradation'!L40))/100))) ->  | M36: =IF(OR(C36="",M$24=""),"",IF(Bin5RAP="Yes",AggrWt*((N('Combined Gradation'!N39)-N('Combined Gradation'!N40))/100)/((100-Bin5Rapac)/100),AggrWt*((N('Combined Gradation'!N39)-N('Combined Gradation'!N40))/100))) ->  | O36: =IF(OR(C36="",O$24=""),"",IF(Bin6RAP="Yes",AggrWt*((N('Combined Gradation'!P39)-N('Combined Gradation'!P40))/100)/((100-Bin6Rapac)/100),AggrWt*((N('Combined Gradation'!P39)-N('Combined Gradation'!P40))/100))) ->  | Q36: =IF(OR(C36="",Q$24=""),"",IF(Bin7RAP="Yes",AggrWt*((N('Combined Gradation'!R39)-N('Combined Gradation'!R40))/100)/((100-Bin7Rapac)/100),AggrWt*((N('Combined Gradation'!R39)-N('Combined Gradation'!R40))/100))) ->  | S36: =IF(OR(C36="",S$24=""),"",AggrWt*(N('Combined Gradation'!T39)-N('Combined Gradation'!T40))/(100-Bin8RecAC)) -> 0 | U36: =IF(OR($C36="",U$24=""),"",AggrWt*(N('Combined Gradation'!V39)-N('Combined Gradation'!V40))/(100-Bin9RecAC)) -> 0 | W36: =IF(OR($C36="",W$24=""),"",AggrWt*(N('Combined Gradation'!X39)-N('Combined Gradation'!X40))/(100-Bin10RecAC)) -> 0 | Y36: 0 | AA36: =IF(Z36="","",SUM($Z$31:$Z36)) -> 
C37: ='Aggregate Classification'!B33 -> No. 8 | D37: ='Aggregate Classification'!C33 -> No. 16 | E37: =IF(OR(C37="",E$24=""),"",IF(Bin1RAP="Yes",AggrWt*((N('Combined Gradation'!F40)-N('Combined Gradation'!F41))/100)/((100-BIN1rapac)/100),AggrWt*((N('Combined Gradation'!F40)-N('Combined Gradation'!F41))/100))) ->  | G37: =IF(OR(C37="",G$24=""),"",IF(Bin2RAP="Yes",AggrWt*((N('Combined Gradation'!H40)-N('Combined Gradation'!H41))/100)/((100-BIN2Rapac)/100),AggrWt*((N('Combined Gradation'!H40)-N('Combined Gradation'!H41))/100))) ->  | I37: =IF(OR(C37="",I$24=""),"",IF(Bin3RAP="Yes",AggrWt*((N('Combined Gradation'!J40)-N('Combined Gradation'!J41))/100)/((100-Bin3Rapac)/100),AggrWt*((N('Combined Gradation'!J40)-N('Combined Gradation'!J41))/100))) ->  | K37: =IF(OR(C37="",K$24=""),"",IF(Bin4RAP="Yes",AggrWt*((N('Combined Gradation'!L40)-N('Combined Gradation'!L41))/100)/((100-Bin4Rapac)/100),AggrWt*((N('Combined Gradation'!L40)-N('Combined Gradation'!L41))/100))) ->  | M37: =IF(OR(C37="",M$24=""),"",IF(Bin5RAP="Yes",AggrWt*((N('Combined Gradation'!N40)-N('Combined Gradation'!N41))/100)/((100-Bin5Rapac)/100),AggrWt*((N('Combined Gradation'!N40)-N('Combined Gradation'!N41))/100))) ->  | O37: =IF(OR(C37="",O$24=""),"",IF(Bin6RAP="Yes",AggrWt*((N('Combined Gradation'!P40)-N('Combined Gradation'!P41))/100)/((100-Bin6Rapac)/100),AggrWt*((N('Combined Gradation'!P40)-N('Combined Gradation'!P41))/100))) ->  | Q37: =IF(OR(C37="",Q$24=""),"",IF(Bin7RAP="Yes",AggrWt*((N('Combined Gradation'!R40)-N('Combined Gradation'!R41))/100)/((100-Bin7Rapac)/100),AggrWt*((N('Combined Gradation'!R40)-N('Combined Gradation'!R41))/100))) ->  | S37: =IF(OR(C37="",S$24=""),"",AggrWt*(N('Combined Gradation'!T40)-N('Combined Gradation'!T41))/(100-Bin8RecAC)) -> 0 | U37: =IF(OR($C37="",U$24=""),"",AggrWt*(N('Combined Gradation'!V40)-N('Combined Gradation'!V41))/(100-Bin9RecAC)) -> 0 | W37: =IF(OR($C37="",W$24=""),"",AggrWt*(N('Combined Gradation'!X40)-N('Combined Gradation'!X41))/(100-Bin10RecAC)) -> 0 | Y37: 0 | AA37: =IF(Z37="","",SUM($Z$31:$Z37)) -> 
C38: ='Aggregate Classification'!B34 -> No. 16 | D38: ='Aggregate Classification'!C34 -> No. 30 | E38: =IF(OR(C38="",E$24=""),"",IF(Bin1RAP="Yes",AggrWt*((N('Combined Gradation'!F41)-N('Combined Gradation'!F42))/100)/((100-BIN1rapac)/100),AggrWt*((N('Combined Gradation'!F41)-N('Combined Gradation'!F42))/100))) ->  | G38: =IF(OR(C38="",G$24=""),"",IF(Bin2RAP="Yes",AggrWt*((N('Combined Gradation'!H41)-N('Combined Gradation'!H42))/100)/((100-BIN2Rapac)/100),AggrWt*((N('Combined Gradation'!H41)-N('Combined Gradation'!H42))/100))) ->  | I38: =IF(OR(C38="",I$24=""),"",IF(Bin3RAP="Yes",AggrWt*((N('Combined Gradation'!J41)-N('Combined Gradation'!J42))/100)/((100-Bin3Rapac)/100),AggrWt*((N('Combined Gradation'!J41)-N('Combined Gradation'!J42))/100))) ->  | K38: =IF(OR(C38="",K$24=""),"",IF(Bin4RAP="Yes",AggrWt*((N('Combined Gradation'!L41)-N('Combined Gradation'!L42))/100)/((100-Bin4Rapac)/100),AggrWt*((N('Combined Gradation'!L41)-N('Combined Gradation'!L42))/100))) ->  | M38: =IF(OR(C38="",M$24=""),"",IF(Bin5RAP="Yes",AggrWt*((N('Combined Gradation'!N41)-N('Combined Gradation'!N42))/100)/((100-Bin5Rapac)/100),AggrWt*((N('Combined Gradation'!N41)-N('Combined Gradation'!N42))/100))) ->  | O38: =IF(OR(C38="",O$24=""),"",IF(Bin6RAP="Yes",AggrWt*((N('Combined Gradation'!P41)-N('Combined Gradation'!P42))/100)/((100-Bin6Rapac)/100),AggrWt*((N('Combined Gradation'!P41)-N('Combined Gradation'!P42))/100))) ->  | Q38: =IF(OR(C38="",Q$24=""),"",IF(Bin7RAP="Yes",AggrWt*((N('Combined Gradation'!R41)-N('Combined Gradation'!R42))/100)/((100-Bin7Rapac)/100),AggrWt*((N('Combined Gradation'!R41)-N('Combined Gradation'!R42))/100))) ->  | S38: =IF(OR(C38="",S$24=""),"",AggrWt*(N('Combined Gradation'!T41)-N('Combined Gradation'!T42))/(100-Bin8RecAC)) -> 0 | U38: =IF(OR($C38="",U$24=""),"",AggrWt*(N('Combined Gradation'!V41)-N('Combined Gradation'!V42))/(100-Bin9RecAC)) -> 0 | W38: =IF(OR($C38="",W$24=""),"",AggrWt*(N('Combined Gradation'!X41)-N('Combined Gradation'!X42))/(100-Bin10RecAC)) -> 0 | Y38: 0 | AA38: =IF(Z38="","",SUM($Z$31:$Z38)) -> 
C39: ='Aggregate Classification'!B35 -> No. 30 | D39: ='Aggregate Classification'!C35 -> No. 50 | E39: =IF(OR(C39="",E$24=""),"",IF(Bin1RAP="Yes",AggrWt*((N('Combined Gradation'!F42)-N('Combined Gradation'!F43))/100)/((100-BIN1rapac)/100),AggrWt*((N('Combined Gradation'!F42)-N('Combined Gradation'!F43))/100))) ->  | G39: =IF(OR(C39="",G$24=""),"",IF(Bin2RAP="Yes",AggrWt*((N('Combined Gradation'!H42)-N('Combined Gradation'!H43))/100)/((100-BIN2Rapac)/100),AggrWt*((N('Combined Gradation'!H42)-N('Combined Gradation'!H43))/100))) ->  | I39: =IF(OR(C39="",I$24=""),"",IF(Bin3RAP="Yes",AggrWt*((N('Combined Gradation'!J42)-N('Combined Gradation'!J43))/100)/((100-Bin3Rapac)/100),AggrWt*((N('Combined Gradation'!J42)-N('Combined Gradation'!J43))/100))) ->  | K39: =IF(OR(C39="",K$24=""),"",IF(Bin4RAP="Yes",AggrWt*((N('Combined Gradation'!L42)-N('Combined Gradation'!L43))/100)/((100-Bin4Rapac)/100),AggrWt*((N('Combined Gradation'!L42)-N('Combined Gradation'!L43))/100))) ->  | M39: =IF(OR(C39="",M$24=""),"",IF(Bin5RAP="Yes",AggrWt*((N('Combined Gradation'!N42)-N('Combined Gradation'!N43))/100)/((100-Bin5Rapac)/100),AggrWt*((N('Combined Gradation'!N42)-N('Combined Gradation'!N43))/100))) ->  | O39: =IF(OR(C39="",O$24=""),"",IF(Bin6RAP="Yes",AggrWt*((N('Combined Gradation'!P42)-N('Combined Gradation'!P43))/100)/((100-Bin6Rapac)/100),AggrWt*((N('Combined Gradation'!P42)-N('Combined Gradation'!P43))/100))) ->  | Q39: =IF(OR(C39="",Q$24=""),"",IF(Bin7RAP="Yes",AggrWt*((N('Combined Gradation'!R42)-N('Combined Gradation'!R43))/100)/((100-Bin7Rapac)/100),AggrWt*((N('Combined Gradation'!R42)-N('Combined Gradation'!R43))/100))) ->  | S39: =IF(OR(C39="",S$24=""),"",AggrWt*(N('Combined Gradation'!T42)-N('Combined Gradation'!T43))/(100-Bin8RecAC)) -> 0 | U39: =IF(OR($C39="",U$24=""),"",AggrWt*(N('Combined Gradation'!V42)-N('Combined Gradation'!V43))/(100-Bin9RecAC)) -> 0 | W39: =IF(OR($C39="",W$24=""),"",AggrWt*(N('Combined Gradation'!X42)-N('Combined Gradation'!X43))/(100-Bin10RecAC)) -> 0 | Y39: 0 | AA39: =IF(Z39="","",SUM($Z$31:$Z39)) -> 
C40: ='Aggregate Classification'!B36 -> No. 50 | D40: ='Aggregate Classification'!C36 -> No. 200 | E40: =IF(OR(C40="",E$24=""),"",IF(Bin1RAP="Yes",AggrWt*((N('Combined Gradation'!F43)-N('Combined Gradation'!F44))/100)/((100-BIN1rapac)/100),AggrWt*((N('Combined Gradation'!F43)-N('Combined Gradation'!F44))/100))) ->  | G40: =IF(OR(C40="",G$24=""),"",IF(Bin2RAP="Yes",AggrWt*((N('Combined Gradation'!H43)-N('Combined Gradation'!H44))/100)/((100-BIN2Rapac)/100),AggrWt*((N('Combined Gradation'!H43)-N('Combined Gradation'!H44))/100))) ->  | I40: =IF(OR(C40="",I$24=""),"",IF(Bin3RAP="Yes",AggrWt*((N('Combined Gradation'!J43)-N('Combined Gradation'!J44))/100)/((100-Bin3Rapac)/100),AggrWt*((N('Combined Gradation'!J43)-N('Combined Gradation'!J44))/100))) ->  | K40: =IF(OR(C40="",K$24=""),"",IF(Bin4RAP="Yes",AggrWt*((N('Combined Gradation'!L43)-N('Combined Gradation'!L44))/100)/((100-Bin4Rapac)/100),AggrWt*((N('Combined Gradation'!L43)-N('Combined Gradation'!L44))/100))) ->  | M40: =IF(OR(C40="",M$24=""),"",IF(Bin5RAP="Yes",AggrWt*((N('Combined Gradation'!N43)-N('Combined Gradation'!N44))/100)/((100-Bin5Rapac)/100),AggrWt*((N('Combined Gradation'!N43)-N('Combined Gradation'!N44))/100))) ->  | O40: =IF(OR(C40="",O$24=""),"",IF(Bin6RAP="Yes",AggrWt*((N('Combined Gradation'!P43)-N('Combined Gradation'!P44))/100)/((100-Bin6Rapac)/100),AggrWt*((N('Combined Gradation'!P43)-N('Combined Gradation'!P44))/100))) ->  | Q40: =IF(OR(C40="",Q$24=""),"",IF(Bin7RAP="Yes",AggrWt*((N('Combined Gradation'!R43)-N('Combined Gradation'!R44))/100)/((100-Bin7Rapac)/100),AggrWt*((N('Combined Gradation'!R43)-N('Combined Gradation'!R44))/100))) ->  | S40: =IF(OR(C40="",S$24=""),"",AggrWt*(N('Combined Gradation'!T43)-N('Combined Gradation'!T44))/(100-Bin8RecAC)) -> 0 | U40: =IF(OR($C40="",U$24=""),"",AggrWt*(N('Combined Gradation'!V43)-N('Combined Gradation'!V44))/(100-Bin9RecAC)) -> 0 | W40: =IF(OR($C40="",W$24=""),"",AggrWt*(N('Combined Gradation'!X43)-N('Combined Gradation'!X44))/(100-Bin10RecAC)) -> 0 | Y40: 0 | AA40: =IF(Z40="","",SUM($Z$31:$Z40)) -> 
C41: ='Aggregate Classification'!B37 -> No. 200 | D41: Pan | E41: =IF(OR(C41="",E$24=""),"",IF(Bin1RAP="Yes",AggrWt*((N('Combined Gradation'!F44)-N('Combined Gradation'!F45))/100)/((100-BIN1rapac)/100),AggrWt*((N('Combined Gradation'!F44)-N('Combined Gradation'!F45))/100))) ->  | G41: =IF(OR(C41="",G$24=""),"",IF(Bin2RAP="Yes",AggrWt*((N('Combined Gradation'!H44)-N('Combined Gradation'!H45))/100)/((100-BIN2Rapac)/100),AggrWt*((N('Combined Gradation'!H44)-N('Combined Gradation'!H45))/100))) ->  | I41: =IF(OR(C41="",I$24=""),"",IF(Bin3RAP="Yes",AggrWt*((N('Combined Gradation'!J44)-N('Combined Gradation'!J45))/100)/((100-Bin3Rapac)/100),AggrWt*((N('Combined Gradation'!J44)-N('Combined Gradation'!J45))/100))) ->  | K41: =IF(OR(C41="",K$24=""),"",IF(Bin4RAP="Yes",AggrWt*((N('Combined Gradation'!L44)-N('Combined Gradation'!L45))/100)/((100-Bin4Rapac)/100),AggrWt*((N('Combined Gradation'!L44)-N('Combined Gradation'!L45))/100))) ->  | M41: =IF(OR(C41="",M$24=""),"",IF(Bin5RAP="Yes",AggrWt*((N('Combined Gradation'!N44)-N('Combined Gradation'!N45))/100)/((100-Bin5Rapac)/100),AggrWt*((N('Combined Gradation'!N44)-N('Combined Gradation'!N45))/100))) ->  | O41: =IF(OR(C41="",O$24=""),"",IF(Bin6RAP="Yes",AggrWt*((N('Combined Gradation'!P44)-N('Combined Gradation'!P45))/100)/((100-Bin6Rapac)/100),AggrWt*((N('Combined Gradation'!P44)-N('Combined Gradation'!P45))/100))) ->  | Q41: =IF(OR(C41="",Q$24=""),"",IF(Bin7RAP="Yes",AggrWt*((N('Combined Gradation'!R44)-N('Combined Gradation'!R45))/100)/((100-Bin7Rapac)/100),AggrWt*((N('Combined Gradation'!R44)-N('Combined Gradation'!R45))/100))) ->  | S41: =IF(OR(C41="",S$24=""),"",AggrWt*(N('Combined Gradation'!T44)-N('Combined Gradation'!T45))/(100-Bin8RecAC)) -> 0 | U41: =IF(OR($C41="",U$24=""),"",AggrWt*(N('Combined Gradation'!V44)-N('Combined Gradation'!V45))/(100-Bin9RecAC)) -> 0 | W41: =IF(OR($C41="",W$24=""),"",AggrWt*(N('Combined Gradation'!X44)-N('Combined Gradation'!X45))/(100-Bin10RecAC)) -> 0 | Y41: 0 | AA41: =IF(Z41="","",SUM($Z$31:$Z41)) -> 
C42: Totals | E42: =IF(COUNTBLANK(E31:E41)=11,"",SUM(E31:E41)) ->  | G42: =IF(COUNTBLANK(G31:G41)=11,"",SUM(G31:G41)) ->  | I42: =IF(COUNTBLANK(I31:I41)=11,"",SUM(I31:I41)) ->  | K42: =IF(COUNTBLANK(K31:K41)=11,"",SUM(K31:K41)) ->  | M42: =IF(COUNTBLANK(M31:M41)=11,"",SUM(M31:M41)) ->  | O42: =IF(COUNTBLANK(O31:O41)=11,"",SUM(O31:O41)) ->  | Q42: =IF(COUNTBLANK(Q31:Q41)=11,"",SUM(Q31:Q41)) ->  | S42: =IF(COUNTBLANK(S31:S41)=11,"",SUM(S31:S41)) -> 0 | U42: =IF(COUNTBLANK(U31:U41)=11,"",SUM(U31:U41)) -> 0 | W42: =IF(COUNTBLANK(W31:W41)=11,"",SUM(W31:W41)) -> 0 | Y42: 0 | Z42: Total includes asphalt from the recycled material aggregate
B44: Running Total:
B45: CUMULATIVE | C45: - | D45: =D31 -> 1" | E45: =IF(OR(C45="",Bin1Frac=""),"",E31) ->  | G45: =IF(OR(C45="",Bin2Frac=""),"",IF(RunningT="No",G31,MAX(E45:F55)+G31)) ->  | I45: =IF(OR(C45="",Bin3Frac=""),"",IF(RunningT="No",I31,MAX(G45:H55)+I31)) ->  | K45: =IF(OR(C45="",Bin4Frac=""),"",IF(RunningT="No",K31,MAX(I45:J55)+K31)) ->  | M45: =IF(OR(C45="",Bin5Frac=""),"",IF(RunningT="No",M31,MAX(K45:L55)+M31)) ->  | O45: =IF(OR(C45="",Bin6Frac=""),"",IF(RunningT="No",O31,MAX(M45:N55)+O31)) ->  | Q45: =IF(OR(C45="",Bin7Frac=""),"",IF(RunningT="No",Q31,MAX(O45:P55)+Q31)) ->  | S45: =IF(OR(C45="",Bin8Frac=0),"",IF(RunningT="No",S31,MAX(E45:R55)+S31)) -> 0 | U45: =IF(OR(C45="",Bin9Frac=0),"",IF(RunningT="No",U31,MAX(E45:T55)+U31)) -> 0 | W45: =IF(OR(C45="",Bin10Frac=0),"",IF(RunningT="No",W31,MAX(E45:V55)+W31)) -> 0 | Y45: =IF(ISERROR(IF(Y31="","",SUM(Y$31:Y31))),"",IF(Y31="","",SUM(Y$31:Y31))) -> 0
C46: =C32 -> 1" | D46: 3/4" | E46: =IF(OR($C46="",Bin1Frac=""),"",SUM(E$31:F32)) ->  | G46: =IF(OR($C46="",Bin2Frac=""),"",IF(RunningT="No",SUM(G$31:G32),G45+G32)) ->  | I46: =IF(OR($C46="",Bin3Frac=""),"",IF(RunningT="No",SUM(I$31:I32),I45+I32)) ->  | K46: =IF(OR($C46="",Bin4Frac=""),"",IF(RunningT="No",SUM(K$31:K32),K45+K32)) ->  | M46: =IF(OR($C46="",Bin5Frac=""),"",IF(RunningT="No",SUM(M$31:M32),M45+M32)) ->  | O46: =IF(OR($C46="",Bin6Frac=""),"",IF(RunningT="No",SUM(O$31:O32),O45+O32)) ->  | Q46: =IF(OR($C46="",Bin7Frac=""),"",IF(RunningT="No",SUM(Q$31:Q32),Q45+Q32)) ->  | S46: =IF(OR($C46="",Bin8Frac=0),"",IF(RunningT="No",SUM(S$31:S32),S45+S32)) -> 0 | U46: =IF(OR($C46="",Bin9Frac=0),"",IF(RunningT="No",SUM(U$31:U32),U45+U32)) -> 0 | W46: =IF(OR($C46="",Bin10Frac=0),"",IF(RunningT="No",SUM(W$31:W32),W45+W32)) -> 0 | Y46: =IF(ISERROR(IF(Y32="","",SUM(Y$31:Y32))),"",IF(Y32="","",SUM(Y$31:Y32))) -> 0
C47: 3/4" | D47: 1/2" | E47: =IF(OR($C47="",Bin1Frac=""),"",SUM(E$31:F33)) ->  | G47: =IF(OR($C47="",Bin2Frac=""),"",IF(RunningT="No",SUM(G$31:G33),G46+G33)) ->  | I47: =IF(OR($C47="",Bin3Frac=""),"",IF(RunningT="No",SUM(I$31:I33),I46+I33)) ->  | K47: =IF(OR($C47="",Bin4Frac=""),"",IF(RunningT="No",SUM(K$31:K33),K46+K33)) ->  | M47: =IF(OR($C47="",Bin5Frac=""),"",IF(RunningT="No",SUM(M$31:M33),M46+M33)) ->  | O47: =IF(OR($C47="",Bin6Frac=""),"",IF(RunningT="No",SUM(O$31:O33),O46+O33)) ->  | Q47: =IF(OR($C47="",Bin7Frac=""),"",IF(RunningT="No",SUM(Q$31:Q33),Q46+Q33)) ->  | S47: =IF(OR($C47="",Bin8Frac=0),"",IF(RunningT="No",SUM(S$31:S33),S46+S33)) -> 0 | U47: =IF(OR($C47="",Bin9Frac=0),"",IF(RunningT="No",SUM(U$31:U33),U46+U33)) -> 0 | W47: =IF(OR($C47="",Bin10Frac=0),"",IF(RunningT="No",SUM(W$31:W33),W46+W33)) -> 0 | Y47: =IF(ISERROR(IF(Y33="","",SUM(Y$31:Y33))),"",IF(Y33="","",SUM(Y$31:Y33))) -> 0
C48: 1/2" | D48: 3/8" | E48: =IF(OR($C48="",Bin1Frac=""),"",SUM(E$31:F34)) ->  | G48: =IF(OR($C48="",Bin2Frac=""),"",IF(RunningT="No",SUM(G$31:G34),G47+G34)) ->  | I48: =IF(OR($C48="",Bin3Frac=""),"",IF(RunningT="No",SUM(I$31:I34),I47+I34)) ->  | K48: =IF(OR($C48="",Bin4Frac=""),"",IF(RunningT="No",SUM(K$31:K34),K47+K34)) ->  | M48: =IF(OR($C48="",Bin5Frac=""),"",IF(RunningT="No",SUM(M$31:M34),M47+M34)) ->  | O48: =IF(OR($C48="",Bin6Frac=""),"",IF(RunningT="No",SUM(O$31:O34),O47+O34)) ->  | Q48: =IF(OR($C48="",Bin7Frac=""),"",IF(RunningT="No",SUM(Q$31:Q34),Q47+Q34)) ->  | S48: =IF(OR($C48="",Bin8Frac=0),"",IF(RunningT="No",SUM(S$31:S34),S47+S34)) -> 0 | U48: =IF(OR($C48="",Bin9Frac=0),"",IF(RunningT="No",SUM(U$31:U34),U47+U34)) -> 0 | W48: =IF(OR($C48="",Bin10Frac=0),"",IF(RunningT="No",SUM(W$31:W34),W47+W34)) -> 0 | Y48: =IF(ISERROR(IF(Y34="","",SUM(Y$31:Y34))),"",IF(Y34="","",SUM(Y$31:Y34))) -> 0
C49: 3/8" | D49: No. 4 | E49: =IF(OR($C49="",Bin1Frac=""),"",SUM(E$31:F35)) ->  | G49: =IF(OR($C49="",Bin2Frac=""),"",IF(RunningT="No",SUM(G$31:G35),G48+G35)) ->  | I49: =IF(OR($C49="",Bin3Frac=""),"",IF(RunningT="No",SUM(I$31:I35),I48+I35)) ->  | K49: =IF(OR($C49="",Bin4Frac=""),"",IF(RunningT="No",SUM(K$31:K35),K48+K35)) ->  | M49: =IF(OR($C49="",Bin5Frac=""),"",IF(RunningT="No",SUM(M$31:M35),M48+M35)) ->  | O49: =IF(OR($C49="",Bin6Frac=""),"",IF(RunningT="No",SUM(O$31:O35),O48+O35)) ->  | Q49: =IF(OR($C49="",Bin7Frac=""),"",IF(RunningT="No",SUM(Q$31:Q35),Q48+Q35)) ->  | S49: =IF(OR($C49="",Bin8Frac=0),"",IF(RunningT="No",SUM(S$31:S35),S48+S35)) -> 0 | U49: =IF(OR($C49="",Bin9Frac=0),"",IF(RunningT="No",SUM(U$31:U35),U48+U35)) -> 0 | W49: =IF(OR($C49="",Bin10Frac=0),"",IF(RunningT="No",SUM(W$31:W35),W48+W35)) -> 0 | Y49: =IF(ISERROR(IF(Y35="","",SUM(Y$31:Y35))),"",IF(Y35="","",SUM(Y$31:Y35))) -> 0
C50: No. 4 | D50: No. 8 | E50: =IF(OR($C50="",Bin1Frac=""),"",SUM(E$31:F36)) ->  | G50: =IF(OR($C50="",Bin2Frac=""),"",IF(RunningT="No",SUM(G$31:G36),G49+G36)) ->  | I50: =IF(OR($C50="",Bin3Frac=""),"",IF(RunningT="No",SUM(I$31:I36),I49+I36)) ->  | K50: =IF(OR($C50="",Bin4Frac=""),"",IF(RunningT="No",SUM(K$31:K36),K49+K36)) ->  | M50: =IF(OR($C50="",Bin5Frac=""),"",IF(RunningT="No",SUM(M$31:M36),M49+M36)) ->  | O50: =IF(OR($C50="",Bin6Frac=""),"",IF(RunningT="No",SUM(O$31:O36),O49+O36)) ->  | Q50: =IF(OR($C50="",Bin7Frac=""),"",IF(RunningT="No",SUM(Q$31:Q36),Q49+Q36)) ->  | S50: =IF(OR($C50="",Bin8Frac=0),"",IF(RunningT="No",SUM(S$31:S36),S49+S36)) -> 0 | U50: =IF(OR($C50="",Bin9Frac=0),"",IF(RunningT="No",SUM(U$31:U36),U49+U36)) -> 0 | W50: =IF(OR($C50="",Bin10Frac=0),"",IF(RunningT="No",SUM(W$31:W36),W49+W36)) -> 0 | Y50: =IF(ISERROR(IF(Y36="","",SUM(Y$31:Y36))),"",IF(Y36="","",SUM(Y$31:Y36))) -> 0
C51: No. 8 | D51: No. 16 | E51: =IF(OR($C51="",Bin1Frac=""),"",SUM(E$31:F37)) ->  | G51: =IF(OR($C51="",Bin2Frac=""),"",IF(RunningT="No",SUM(G$31:G37),G50+G37)) ->  | I51: =IF(OR($C51="",Bin3Frac=""),"",IF(RunningT="No",SUM(I$31:I37),I50+I37)) ->  | K51: =IF(OR($C51="",Bin4Frac=""),"",IF(RunningT="No",SUM(K$31:K37),K50+K37)) ->  | M51: =IF(OR($C51="",Bin5Frac=""),"",IF(RunningT="No",SUM(M$31:M37),M50+M37)) ->  | O51: =IF(OR($C51="",Bin6Frac=""),"",IF(RunningT="No",SUM(O$31:O37),O50+O37)) ->  | Q51: =IF(OR($C51="",Bin7Frac=""),"",IF(RunningT="No",SUM(Q$31:Q37),Q50+Q37)) ->  | S51: =IF(OR($C51="",Bin8Frac=0),"",IF(RunningT="No",SUM(S$31:S37),S50+S37)) -> 0 | U51: =IF(OR($C51="",Bin9Frac=0),"",IF(RunningT="No",SUM(U$31:U37),U50+U37)) -> 0 | W51: =IF(OR($C51="",Bin10Frac=0),"",IF(RunningT="No",SUM(W$31:W37),W50+W37)) -> 0 | Y51: =IF(ISERROR(IF(Y37="","",SUM(Y$31:Y37))),"",IF(Y37="","",SUM(Y$31:Y37))) -> 0
C52: No. 16 | D52: No. 30 | E52: =IF(OR($C52="",Bin1Frac=""),"",SUM(E$31:F38)) ->  | G52: =IF(OR($C52="",Bin2Frac=""),"",IF(RunningT="No",SUM(G$31:G38),G51+G38)) ->  | I52: =IF(OR($C52="",Bin3Frac=""),"",IF(RunningT="No",SUM(I$31:I38),I51+I38)) ->  | K52: =IF(OR($C52="",Bin4Frac=""),"",IF(RunningT="No",SUM(K$31:K38),K51+K38)) ->  | M52: =IF(OR($C52="",Bin5Frac=""),"",IF(RunningT="No",SUM(M$31:M38),M51+M38)) ->  | O52: =IF(OR($C52="",Bin6Frac=""),"",IF(RunningT="No",SUM(O$31:O38),O51+O38)) ->  | Q52: =IF(OR($C52="",Bin7Frac=""),"",IF(RunningT="No",SUM(Q$31:Q38),Q51+Q38)) ->  | S52: =IF(OR($C52="",Bin8Frac=0),"",IF(RunningT="No",SUM(S$31:S38),S51+S38)) -> 0 | U52: =IF(OR($C52="",Bin9Frac=0),"",IF(RunningT="No",SUM(U$31:U38),U51+U38)) -> 0 | W52: =IF(OR($C52="",Bin10Frac=0),"",IF(RunningT="No",SUM(W$31:W38),W51+W38)) -> 0 | Y52: =IF(ISERROR(IF(Y38="","",SUM(Y$31:Y38))),"",IF(Y38="","",SUM(Y$31:Y38))) -> 0
C53: No. 30 | D53: No. 50 | E53: =IF(OR($C53="",Bin1Frac=""),"",SUM(E$31:F39)) ->  | G53: =IF(OR($C53="",Bin2Frac=""),"",IF(RunningT="No",SUM(G$31:G39),G52+G39)) ->  | I53: =IF(OR($C53="",Bin3Frac=""),"",IF(RunningT="No",SUM(I$31:I39),I52+I39)) ->  | K53: =IF(OR($C53="",Bin4Frac=""),"",IF(RunningT="No",SUM(K$31:K39),K52+K39)) ->  | M53: =IF(OR($C53="",Bin5Frac=""),"",IF(RunningT="No",SUM(M$31:M39),M52+M39)) ->  | O53: =IF(OR($C53="",Bin6Frac=""),"",IF(RunningT="No",SUM(O$31:O39),O52+O39)) ->  | Q53: =IF(OR($C53="",Bin7Frac=""),"",IF(RunningT="No",SUM(Q$31:Q39),Q52+Q39)) ->  | S53: =IF(OR($C53="",Bin8Frac=0),"",IF(RunningT="No",SUM(S$31:S39),S52+S39)) -> 0 | U53: =IF(OR($C53="",Bin9Frac=0),"",IF(RunningT="No",SUM(U$31:U39),U52+U39)) -> 0 | W53: =IF(OR($C53="",Bin10Frac=0),"",IF(RunningT="No",SUM(W$31:W39),W52+W39)) -> 0 | Y53: =IF(ISERROR(IF(Y39="","",SUM(Y$31:Y39))),"",IF(Y39="","",SUM(Y$31:Y39))) -> 0 | Z53: Total includes asphalt from the recycled material aggregate
C54: No. 50 | D54: No. 200 | E54: =IF(OR($C54="",Bin1Frac=""),"",SUM(E$31:F40)) ->  | G54: =IF(OR($C54="",Bin2Frac=""),"",IF(RunningT="No",SUM(G$31:G40),G53+G40)) ->  | I54: =IF(OR($C54="",Bin3Frac=""),"",IF(RunningT="No",SUM(I$31:I40),I53+I40)) ->  | K54: =IF(OR($C54="",Bin4Frac=""),"",IF(RunningT="No",SUM(K$31:K40),K53+K40)) ->  | M54: =IF(OR($C54="",Bin5Frac=""),"",IF(RunningT="No",SUM(M$31:M40),M53+M40)) ->  | O54: =IF(OR($C54="",Bin6Frac=""),"",IF(RunningT="No",SUM(O$31:O40),O53+O40)) ->  | Q54: =IF(OR($C54="",Bin7Frac=""),"",IF(RunningT="No",SUM(Q$31:Q40),Q53+Q40)) ->  | S54: =IF(OR($C54="",Bin8Frac=0),"",IF(RunningT="No",SUM(S$31:S40),S53+S40)) -> 0 | U54: =IF(OR($C54="",Bin9Frac=0),"",IF(RunningT="No",SUM(U$31:U40),U53+U40)) -> 0 | W54: =IF(OR($C54="",Bin10Frac=0),"",IF(RunningT="No",SUM(W$31:W40),W53+W40)) -> 0 | Y54: =IF(ISERROR(IF(Y40="","",SUM(Y$31:Y40))),"",IF(Y40="","",SUM(Y$31:Y40))) -> 0
C55: No. 200 | D55: Pan | E55: =IF(OR($C55="",Bin1Frac=""),"",SUM(E$31:F41)) ->  | G55: =IF(OR($C55="",Bin2Frac=""),"",IF(RunningT="No",SUM(G$31:G41),G54+G41)) ->  | I55: =IF(OR($C55="",Bin3Frac=""),"",IF(RunningT="No",SUM(I$31:I41),I54+I41)) ->  | K55: =IF(OR($C55="",Bin4Frac=""),"",IF(RunningT="No",SUM(K$31:K41),K54+K41)) ->  | M55: =IF(OR($C55="",Bin5Frac=""),"",IF(RunningT="No",SUM(M$31:M41),M54+M41)) ->  | O55: =IF(OR($C55="",Bin6Frac=""),"",IF(RunningT="No",SUM(O$31:O41),O54+O41)) ->  | Q55: =IF(OR($C55="",Bin7Frac=""),"",IF(RunningT="No",SUM(Q$31:Q41),Q54+Q41)) ->  | S55: =IF(OR($C55="",Bin8Frac=0),"",IF(RunningT="No",SUM(S$31:S41),S54+S41)) -> 0 | U55: =IF(OR($C55="",Bin9Frac=0),"",IF(RunningT="No",SUM(U$31:U41),U54+U41)) -> 0 | W55: =IF(OR($C55="",Bin10Frac=0),"",IF(RunningT="No",SUM(W$31:W41),W54+W41)) -> 0 | Y55: =IF(ISERROR(IF(Y41="","",SUM(Y$31:Y41))),"",IF(Y41="","",SUM(Y$31:Y41))) -> 0
B57: Remarks: | D57: =NOW() -> 2020-10-28T23:16:33.930

Sheet Blank Weigh Up
B1: TEXAS DEPARTMENT OF TRANSPORTATION
B4: HMACP MIXTURE DESIGN : WEIGH UP SHEET FOR BLANK SAMPLES
B6: SAMPLE ID: | E6: =IF(sampleid="","",sampleid) ->  | H6: SAMPLE DATE: | K6: =IF(sampleddate="","",sampleddate) -> 
B7: LOT NUMBER: | E7: =IF(testnumber="","",testnumber) ->  | H7: LETTING DATE: | K7: =IF(lettingdate="","",lettingdate) -> 
B8: SAMPLE STATUS: | E8: =IF(status="","",status) ->  | H8: CONTROLLING CSJ: | K8: =IF(ccsj="","",ccsj) -> 
B9: COUNTY: | E9: =IF(county="","",county) ->  | H9: SPEC YEAR: | K9: =+IF(specyear="","",specyear) -> 2014
B10: SAMPLED BY: | E10: =IF(sampledby="","",sampledby) ->  | H10: SPEC ITEM: | K10: =IF(specitem="","",specitem) -> 
B11: SAMPLE LOCATION: | E11: =IF(samplelocation="","",samplelocation) ->  | H11: SPECIAL PROVISION: | K11: =IF(specialprovision="","",specialprovision) -> 
B12: MATERIAL CODE: | E12: =IF(material="","",material) ->  | H12: MIX TYPE: | K12: =IF(Grade="","",Grade) -> SS-3074-BMD-SP-C
B13: MATERIAL NAME: | E13: =IF(matl_nm="","",matl_nm) -> 
B14: PRODUCER: | E14: =IF(producer="","",producer) -> 
B15: AREA ENGINEER: | E15: =IF(areaengineer="","",areaengineer) ->  | H15: PROJECT MANAGER: | K15: =IF(projectmanager="","",projectmanager) -> 
B17: COURSE\LIFT: | E17: =IF(courselift="","",courselift) -> Surface | F17: STATION: | H17: =IF(station="","",station) ->  | J17: DIST. FROM CL: | L17: =IF(distfromcl="","",distfromcl) ->  | N17: CONTRACTOR DESIGN # : | Q17: =IF(condesignnum="","",condesignnum) -> 
B19: Blank Sample Weight, g:
E21: Bin No.1 | G21: Bin No.2 | I21: Bin No.3 | K21: Bin No.4 | M21: Bin No.5 | O21: Bin No.6 | Q21: Bin No.7
B22: Individual Bin (%): | E22: =IF(Bin1Frac="","","Bin No.1 = "&Bin1Frac&" %") ->  | G22: =IF(Bin2Frac="","","Bin No.2 = "&Bin2Frac&" %") ->  | I22: =IF(Bin3Frac="","","Bin No.3 = "&Bin3Frac&" %") ->  | K22: =IF(Bin4Frac="","","Bin No.4 = "&Bin4Frac&" %") ->  | M22: =IF(Bin5Frac="","","Bin No.5 = "&Bin5Frac&" %") ->  | O22: =IF(Bin6Frac="","","Bin No.6 = "&Bin6Frac&" %") ->  | Q22: =IF(Bin7Frac="","","Bin No.7 = "&Bin7Frac&" %") -> 
B23: Aggregate Source: | E23: =IF(Bin1Source="","",Bin1Source) ->  | G23: =IF(Bin2Source="","",Bin2Source) ->  | I23: =IF(Bin3Source="","",Bin3Source) ->  | K23: =IF(Bin4Source="","",Bin4Source) ->  | M23: =IF(Bin5Source="","",Bin5Source) ->  | O23: =IF(Bin6Source="","",Bin6Source) ->  | Q23: =IF(Bin7Source="","",Bin7Source) -> 
B24: Aggregate Number: | E24: =IF(Bin1Aggr="","",Bin1Aggr) ->  | G24: =IF(Bin2Aggr="","",Bin2Aggr) ->  | I24: =IF(Bin3Aggr="","",Bin3Aggr) ->  | K24: =IF(Bin4Aggr="","",Bin4Aggr) ->  | M24: =IF(Bin5Aggr="","",Bin5Aggr) ->  | O24: =IF(Bin6Aggr="","",Bin6Aggr) ->  | Q24: =IF(Bin7Aggr="","",Bin7Aggr) ->  | S24: Total Weights | T24: ="Individual" & CHAR(10) & "Retained, %" -> Individual Retained, % | U24: Cumulative Retained, %
B25: Sample ID: | E25: =IF(Bin1samp="","",Bin1samp) ->  | G25: =IF(Bin2Samp="","",Bin2Samp) ->  | I25: =IF(Bin3Samp="","",Bin3Samp) ->  | K25: =IF(Bin4Samp="","",Bin4Samp) ->  | M25: =IF(Bin5Samp="","",Bin5Samp) ->  | O25: =IF(Bin6Samp="","",Bin6Samp) ->  | Q25: =IF(Bin7Samp="","",Bin7Samp) -> 
C27: Sieve Size: | E27: =IF(E22="","",IF(Bin1RAP="Yes","Do Not Add Recycled Materials to 'Blank' Samples", IF(Bin1Lime="Yes", "Hydrated Lime Weight","Aggregate Weight"))) ->  | G27: =IF(G22="","",IF(Bin2RAP="Yes","Do Not Add Recycled Materials to 'Blank' Samples", IF(Bin2Lime="Yes", "Hydrated Lime Weight","Aggregate Weight"))) ->  | I27: =IF(I22="","",IF(Bin3RAP="Yes","Do Not Add Recycled Materials to 'Blank' Samples", IF(Bin3Lime="Yes", "Hydrated Lime Weight","Aggregate Weight"))) ->  | K27: =IF(K22="","",IF(Bin4RAP="Yes","Do Not Add Recycled Materials to 'Blank' Samples", IF(Bin4Lime="Yes", "Hydrated Lime Weight","Aggregate Weight"))) ->  | M27: =IF(M22="","",IF(Bin5RAP="Yes","Do Not Add Recycled Materials to 'Blank' Samples", IF(Bin5Lime="Yes", "Hydrated Lime Weight","Aggregate Weight"))) ->  | O27: =IF(O22="","",IF(Bin6RAP="Yes","Do Not Add Recycled Materials to 'Blank' Samples", IF(Bin6Lime="Yes", "Hydrated Lime Weight","Aggregate Weight"))) ->  | Q27: =IF(Q22="","",IF(Bin7RAP="Yes","Do Not Add Recycled Materials to 'Blank' Samples", IF(Bin7Lime="Yes", "Hydrated Lime Weight","Aggregate Weight"))) -> 
C29: Passing | D29: Retained
B30: INDIVIDUAL | C30: - | D30: ='Aggregate Classification'!C27 -> 1" | E30: =IF(OR(C30="",E$22=""),"",IF(AND(version<5,Bin1RAP="Yes"),"",BlankAggrWt*((Bin1Frac-N('Combined Gradation'!F35))/VirginMat))) ->  | G30: =IF(OR(C30="",G$22=""),"",IF(AND(version<5,Bin2RAP="Yes"),"",BlankAggrWt*((Bin2Frac-N('Combined Gradation'!H35))/VirginMat))) ->  | I30: =IF(OR(C30="",I$22=""),"",IF(AND(version<5,Bin3RAP="Yes"),"",BlankAggrWt*((Bin3Frac-N('Combined Gradation'!J35))/VirginMat))) ->  | K30: =IF(OR(C30="",K$22=""),"",IF(AND(version<5,Bin4RAP="Yes"),"",BlankAggrWt*((Bin4Frac-N('Combined Gradation'!L35))/VirginMat))) ->  | M30: =IF(OR(C30="",M$22=""),"",IF(AND(version<5,Bin5RAP="Yes"),"",BlankAggrWt*((Bin5Frac-N('Combined Gradation'!N35))/VirginMat))) ->  | O30: =IF(OR(C30="",O$22=""),"",IF(AND(version<5,Bin6RAP="Yes"),"",BlankAggrWt*((Bin6Frac-N('Combined Gradation'!P35))/VirginMat))) ->  | Q30: =IF(OR(C30="",Q$22=""),"",IF(AND(version<5,Bin7RAP="Yes"),"",BlankAggrWt*((Bin7Frac-N('Combined Gradation'!R35))/VirginMat))) ->  | S30: =IF(COUNTBLANK(E30:R30)=14,"",SUM(E30:R30)) ->  | T30: =IF(ISERROR(100*((S30)/($S$41))),"",100*((S30)/($S$41))) ->  | U30: =IF(T30="","",T30) -> 
C31: ='Aggregate Classification'!B28 -> 1" | D31: ='Aggregate Classification'!C28 -> 3/4" | E31: =IF(OR(C31="",E$22=""),"",IF(AND(version<5,Bin1RAP="Yes"),"",BlankAggrWt*((N('Combined Gradation'!F35)-N('Combined Gradation'!F36))/VirginMat))) ->  | G31: =IF(OR(C31="",G$22=""),"",IF(AND(version<5,Bin2RAP="Yes"),"",BlankAggrWt*((N('Combined Gradation'!H35)-N('Combined Gradation'!H36))/VirginMat))) ->  | I31: =IF(OR(C31="",I$22=""),"",IF(AND(version<5,Bin3RAP="Yes"),"",BlankAggrWt*((N('Combined Gradation'!J35)-N('Combined Gradation'!J36))/VirginMat))) ->  | K31: =IF(OR(C31="",K$22=""),"",IF(AND(version<5,Bin4RAP="Yes"),"",BlankAggrWt*((N('Combined Gradation'!L35)-N('Combined Gradation'!L36))/VirginMat))) ->  | M31: =IF(OR(C31="",M$22=""),"",IF(AND(version<5,Bin5RAP="Yes"),"",BlankAggrWt*((N('Combined Gradation'!N35)-N('Combined Gradation'!N36))/VirginMat))) ->  | O31: =IF(OR(C31="",O$22=""),"",IF(AND(version<5,Bin6RAP="Yes"),"",BlankAggrWt*((N('Combined Gradation'!P35)-N('Combined Gradation'!P36))/VirginMat))) ->  | Q31: =IF(OR(C31="",Q$22=""),"",IF(AND(version<5,Bin7RAP="Yes"),"",BlankAggrWt*((N('Combined Gradation'!R35)-N('Combined Gradation'!R36))/VirginMat))) ->  | S31: =IF(COUNTBLANK(E31:R31)=14,"",SUM(E31:R31)) ->  | T31: =IF(ISERROR(100*((S31)/($S$41))),"",100*((S31)/($S$41))) ->  | U31: =IF(T31="","",SUM($T$30:$T31)) -> 
C32: ='Aggregate Classification'!B29 -> 3/4" | D32: ='Aggregate Classification'!C29 -> 1/2" | E32: =IF(OR(C32="",E$22=""),"",IF(AND(version<5,Bin1RAP="Yes"),"",BlankAggrWt*((N('Combined Gradation'!F36)-N('Combined Gradation'!F37))/VirginMat))) ->  | G32: =IF(OR(C32="",G$22=""),"",IF(AND(version<5,Bin2RAP="Yes"),"",BlankAggrWt*((N('Combined Gradation'!H36)-N('Combined Gradation'!H37))/VirginMat))) ->  | I32: =IF(OR(C32="",I$22=""),"",IF(AND(version<5,Bin3RAP="Yes"),"",BlankAggrWt*((N('Combined Gradation'!J36)-N('Combined Gradation'!J37))/VirginMat))) ->  | K32: =IF(OR(C32="",K$22=""),"",IF(AND(version<5,Bin4RAP="Yes"),"",BlankAggrWt*((N('Combined Gradation'!L36)-N('Combined Gradation'!L37))/VirginMat))) ->  | M32: =IF(OR(C32="",M$22=""),"",IF(AND(version<5,Bin5RAP="Yes"),"",BlankAggrWt*((N('Combined Gradation'!N36)-N('Combined Gradation'!N37))/VirginMat))) ->  | O32: =IF(OR(C32="",O$22=""),"",IF(AND(version<5,Bin6RAP="Yes"),"",BlankAggrWt*((N('Combined Gradation'!P36)-N('Combined Gradation'!P37))/VirginMat))) ->  | Q32: =IF(OR(C32="",Q$22=""),"",IF(AND(version<5,Bin7RAP="Yes"),"",BlankAggrWt*((N('Combined Gradation'!R36)-N('Combined Gradation'!R37))/VirginMat))) ->  | T32: =IF(ISERROR(100*((S32)/($S$41))),"",100*((S32)/($S$41))) ->  | U32: =IF(T32="","",SUM($T$30:$T32)) -> 
C33: ='Aggregate Classification'!B30 -> 1/2" | D33: ='Aggregate Classification'!C30 -> 3/8" | E33: =IF(OR(C33="",E$22=""),"",IF(AND(version<5,Bin1RAP="Yes"),"",BlankAggrWt*((N('Combined Gradation'!F37)-N('Combined Gradation'!F38))/VirginMat))) ->  | G33: =IF(OR(C33="",G$22=""),"",IF(AND(version<5,Bin2RAP="Yes"),"",BlankAggrWt*((N('Combined Gradation'!H37)-N('Combined Gradation'!H38))/VirginMat))) ->  | I33: =IF(OR(C33="",I$22=""),"",IF(AND(version<5,Bin3RAP="Yes"),"",BlankAggrWt*((N('Combined Gradation'!J37)-N('Combined Gradation'!J38))/VirginMat))) ->  | K33: =IF(OR(C33="",K$22=""),"",IF(AND(version<5,Bin4RAP="Yes"),"",BlankAggrWt*((N('Combined Gradation'!L37)-N('Combined Gradation'!L38))/VirginMat))) ->  | M33: =IF(OR(C33="",M$22=""),"",IF(AND(version<5,Bin5RAP="Yes"),"",BlankAggrWt*((N('Combined Gradation'!N37)-N('Combined Gradation'!N38))/VirginMat))) ->  | O33: =IF(OR(C33="",O$22=""),"",IF(AND(version<5,Bin6RAP="Yes"),"",BlankAggrWt*((N('Combined Gradation'!P37)-N('Combined Gradation'!P38))/VirginMat))) ->  | Q33: =IF(OR(C33="",Q$22=""),"",IF(AND(version<5,Bin7RAP="Yes"),"",BlankAggrWt*((N('Combined Gradation'!R37)-N('Combined Gradation'!R38))/VirginMat))) ->  | U33: =IF(T33="","",SUM($T$30:$T33)) -> 
C34: ='Aggregate Classification'!B31 -> 3/8" | D34: ='Aggregate Classification'!C31 -> No. 4 | E34: =IF(OR(C34="",E$22=""),"",IF(AND(version<5,Bin1RAP="Yes"),"",BlankAggrWt*((N('Combined Gradation'!F38)-N('Combined Gradation'!F39))/VirginMat))) ->  | G34: =IF(OR(C34="",G$22=""),"",IF(AND(version<5,Bin2RAP="Yes"),"",BlankAggrWt*((N('Combined Gradation'!H38)-N('Combined Gradation'!H39))/VirginMat))) ->  | I34: =IF(OR(C34="",I$22=""),"",IF(AND(version<5,Bin3RAP="Yes"),"",BlankAggrWt*((N('Combined Gradation'!J38)-N('Combined Gradation'!J39))/VirginMat))) ->  | K34: =IF(OR(C34="",K$22=""),"",IF(AND(version<5,Bin4RAP="Yes"),"",BlankAggrWt*((N('Combined Gradation'!L38)-N('Combined Gradation'!L39))/VirginMat))) ->  | M34: =IF(OR(C34="",M$22=""),"",IF(AND(version<5,Bin5RAP="Yes"),"",BlankAggrWt*((N('Combined Gradation'!N38)-N('Combined Gradation'!N39))/VirginMat))) ->  | O34: =IF(OR(C34="",O$22=""),"",IF(AND(version<5,Bin6RAP="Yes"),"",BlankAggrWt*((N('Combined Gradation'!P38)-N('Combined Gradation'!P39))/VirginMat))) ->  | Q34: =IF(OR(C34="",Q$22=""),"",IF(AND(version<5,Bin7RAP="Yes"),"",BlankAggrWt*((N('Combined Gradation'!R38)-N('Combined Gradation'!R39))/VirginMat))) ->  | U34: =IF(T34="","",SUM($T$30:$T34)) -> 
C35: ='Aggregate Classification'!B32 -> No. 4 | D35: ='Aggregate Classification'!C32 -> No. 8 | E35: =IF(OR(C35="",E$22=""),"",IF(AND(version<5,Bin1RAP="Yes"),"",BlankAggrWt*((N('Combined Gradation'!F39)-N('Combined Gradation'!F40))/VirginMat))) ->  | G35: =IF(OR(C35="",G$22=""),"",IF(AND(version<5,Bin2RAP="Yes"),"",BlankAggrWt*((N('Combined Gradation'!H39)-N('Combined Gradation'!H40))/VirginMat))) ->  | I35: =IF(OR(C35="",I$22=""),"",IF(AND(version<5,Bin3RAP="Yes"),"",BlankAggrWt*((N('Combined Gradation'!J39)-N('Combined Gradation'!J40))/VirginMat))) ->  | K35: =IF(OR(C35="",K$22=""),"",IF(AND(version<5,Bin4RAP="Yes"),"",BlankAggrWt*((N('Combined Gradation'!L39)-N('Combined Gradation'!L40))/VirginMat))) ->  | M35: =IF(OR(C35="",M$22=""),"",IF(AND(version<5,Bin5RAP="Yes"),"",BlankAggrWt*((N('Combined Gradation'!N39)-N('Combined Gradation'!N40))/VirginMat))) ->  | O35: =IF(OR(C35="",O$22=""),"",IF(AND(version<5,Bin6RAP="Yes"),"",BlankAggrWt*((N('Combined Gradation'!P39)-N('Combined Gradation'!P40))/VirginMat))) ->  | Q35: =IF(OR(C35="",Q$22=""),"",IF(AND(version<5,Bin7RAP="Yes"),"",BlankAggrWt*((N('Combined Gradation'!R39)-N('Combined Gradation'!R40))/VirginMat))) ->  | U35: =IF(T35="","",SUM($T$30:$T35)) -> 
C36: ='Aggregate Classification'!B33 -> No. 8 | D36: ='Aggregate Classification'!C33 -> No. 16 | E36: =IF(OR(C36="",E$22=""),"",IF(AND(version<5,Bin1RAP="Yes"),"",BlankAggrWt*((N('Combined Gradation'!F40)-N('Combined Gradation'!F41))/VirginMat))) ->  | G36: =IF(OR(C36="",G$22=""),"",IF(AND(version<5,Bin2RAP="Yes"),"",BlankAggrWt*((N('Combined Gradation'!H40)-N('Combined Gradation'!H41))/VirginMat))) ->  | I36: =IF(OR(C36="",I$22=""),"",IF(AND(version<5,Bin3RAP="Yes"),"",BlankAggrWt*((N('Combined Gradation'!J40)-N('Combined Gradation'!J41))/VirginMat))) ->  | K36: =IF(OR(C36="",K$22=""),"",IF(AND(version<5,Bin4RAP="Yes"),"",BlankAggrWt*((N('Combined Gradation'!L40)-N('Combined Gradation'!L41))/VirginMat))) ->  | M36: =IF(OR(C36="",M$22=""),"",IF(AND(version<5,Bin5RAP="Yes"),"",BlankAggrWt*((N('Combined Gradation'!N40)-N('Combined Gradation'!N41))/VirginMat))) ->  | O36: =IF(OR(C36="",O$22=""),"",IF(AND(version<5,Bin6RAP="Yes"),"",BlankAggrWt*((N('Combined Gradation'!P40)-N('Combined Gradation'!P41))/VirginMat))) ->  | Q36: =IF(OR(C36="",Q$22=""),"",IF(AND(version<5,Bin7RAP="Yes"),"",BlankAggrWt*((N('Combined Gradation'!R40)-N('Combined Gradation'!R41))/VirginMat))) ->  | U36: =IF(T36="","",SUM($T$30:$T36)) -> 
C37: ='Aggregate Classification'!B34 -> No. 16 | D37: ='Aggregate Classification'!C34 -> No. 30 | E37: =IF(OR(C37="",E$22=""),"",IF(AND(version<5,Bin1RAP="Yes"),"",BlankAggrWt*((N('Combined Gradation'!F41)-N('Combined Gradation'!F42))/VirginMat))) ->  | G37: =IF(OR(C37="",G$22=""),"",IF(AND(version<5,Bin2RAP="Yes"),"",BlankAggrWt*((N('Combined Gradation'!H41)-N('Combined Gradation'!H42))/VirginMat))) ->  | I37: =IF(OR(C37="",I$22=""),"",IF(AND(version<5,Bin3RAP="Yes"),"",BlankAggrWt*((N('Combined Gradation'!J41)-N('Combined Gradation'!J42))/VirginMat))) ->  | K37: =IF(OR(C37="",K$22=""),"",IF(AND(version<5,Bin4RAP="Yes"),"",BlankAggrWt*((N('Combined Gradation'!L41)-N('Combined Gradation'!L42))/VirginMat))) ->  | M37: =IF(OR(C37="",M$22=""),"",IF(AND(version<5,Bin5RAP="Yes"),"",BlankAggrWt*((N('Combined Gradation'!N41)-N('Combined Gradation'!N42))/VirginMat))) ->  | O37: =IF(OR(C37="",O$22=""),"",IF(AND(version<5,Bin6RAP="Yes"),"",BlankAggrWt*((N('Combined Gradation'!P41)-N('Combined Gradation'!P42))/VirginMat))) ->  | Q37: =IF(OR(C37="",Q$22=""),"",IF(AND(version<5,Bin7RAP="Yes"),"",BlankAggrWt*((N('Combined Gradation'!R41)-N('Combined Gradation'!R42))/VirginMat))) ->  | U37: =IF(T37="","",SUM($T$30:$T37)) -> 
C38: ='Aggregate Classification'!B35 -> No. 30 | D38: ='Aggregate Classification'!C35 -> No. 50 | E38: =IF(OR(C38="",E$22=""),"",IF(AND(version<5,Bin1RAP="Yes"),"",BlankAggrWt*((N('Combined Gradation'!F42)-N('Combined Gradation'!F43))/VirginMat))) ->  | G38: =IF(OR(C38="",G$22=""),"",IF(AND(version<5,Bin2RAP="Yes"),"",BlankAggrWt*((N('Combined Gradation'!H42)-N('Combined Gradation'!H43))/VirginMat))) ->  | I38: =IF(OR(C38="",I$22=""),"",IF(AND(version<5,Bin3RAP="Yes"),"",BlankAggrWt*((N('Combined Gradation'!J42)-N('Combined Gradation'!J43))/VirginMat))) ->  | K38: =IF(OR(C38="",K$22=""),"",IF(AND(version<5,Bin4RAP="Yes"),"",BlankAggrWt*((N('Combined Gradation'!L42)-N('Combined Gradation'!L43))/VirginMat))) ->  | M38: =IF(OR(C38="",M$22=""),"",IF(AND(version<5,Bin5RAP="Yes"),"",BlankAggrWt*((N('Combined Gradation'!N42)-N('Combined Gradation'!N43))/VirginMat))) ->  | O38: =IF(OR(C38="",O$22=""),"",IF(AND(version<5,Bin6RAP="Yes"),"",BlankAggrWt*((N('Combined Gradation'!P42)-N('Combined Gradation'!P43))/VirginMat))) ->  | Q38: =IF(OR(C38="",Q$22=""),"",IF(AND(version<5,Bin7RAP="Yes"),"",BlankAggrWt*((N('Combined Gradation'!R42)-N('Combined Gradation'!R43))/VirginMat))) ->  | U38: =IF(T38="","",SUM($T$30:$T38)) -> 
C39: ='Aggregate Classification'!B36 -> No. 50 | D39: ='Aggregate Classification'!C36 -> No. 200 | E39: =IF(OR(C39="",E$22=""),"",IF(AND(version<5,Bin1RAP="Yes"),"",BlankAggrWt*((N('Combined Gradation'!F43)-N('Combined Gradation'!F44))/VirginMat))) ->  | G39: =IF(OR(C39="",G$22=""),"",IF(AND(version<5,Bin2RAP="Yes"),"",BlankAggrWt*((N('Combined Gradation'!H43)-N('Combined Gradation'!H44))/VirginMat))) ->  | I39: =IF(OR(C39="",I$22=""),"",IF(AND(version<5,Bin3RAP="Yes"),"",BlankAggrWt*((N('Combined Gradation'!J43)-N('Combined Gradation'!J44))/VirginMat))) ->  | K39: =IF(OR(C39="",K$22=""),"",IF(AND(version<5,Bin4RAP="Yes"),"",BlankAggrWt*((N('Combined Gradation'!L43)-N('Combined Gradation'!L44))/VirginMat))) ->  | M39: =IF(OR(C39="",M$22=""),"",IF(AND(version<5,Bin5RAP="Yes"),"",BlankAggrWt*((N('Combined Gradation'!N43)-N('Combined Gradation'!N44))/VirginMat))) ->  | O39: =IF(OR(C39="",O$22=""),"",IF(AND(version<5,Bin6RAP="Yes"),"",BlankAggrWt*((N('Combined Gradation'!P43)-N('Combined Gradation'!P44))/VirginMat))) ->  | Q39: =IF(OR(C39="",Q$22=""),"",IF(AND(version<5,Bin7RAP="Yes"),"",BlankAggrWt*((N('Combined Gradation'!R43)-N('Combined Gradation'!R44))/VirginMat))) ->  | U39: =IF(T39="","",SUM($T$30:$T39)) -> 
C40: ='Aggregate Classification'!B37 -> No. 200 | D40: Pan | E40: =IF(OR(C40="",E$22=""),"",IF(AND(version<5,Bin1RAP="Yes"),"",BlankAggrWt*((N('Combined Gradation'!F44)-N('Combined Gradation'!F45))/VirginMat))) ->  | G40: =IF(OR(C40="",G$22=""),"",IF(AND(version<5,Bin2RAP="Yes"),"",BlankAggrWt*((N('Combined Gradation'!H44)-N('Combined Gradation'!H45))/VirginMat))) ->  | I40: =IF(OR(C40="",I$22=""),"",IF(AND(version<5,Bin3RAP="Yes"),"",BlankAggrWt*((N('Combined Gradation'!J44)-N('Combined Gradation'!J45))/VirginMat))) ->  | K40: =IF(OR(C40="",K$22=""),"",IF(AND(version<5,Bin4RAP="Yes"),"",BlankAggrWt*((N('Combined Gradation'!L44)-N('Combined Gradation'!L45))/VirginMat))) ->  | M40: =IF(OR(C40="",M$22=""),"",IF(AND(version<5,Bin5RAP="Yes"),"",BlankAggrWt*((N('Combined Gradation'!N44)-N('Combined Gradation'!N45))/VirginMat))) ->  | O40: =IF(OR(C40="",O$22=""),"",IF(AND(version<5,Bin6RAP="Yes"),"",BlankAggrWt*((N('Combined Gradation'!P44)-N('Combined Gradation'!P45))/VirginMat))) ->  | Q40: =IF(OR(C40="",Q$22=""),"",IF(AND(version<5,Bin7RAP="Yes"),"",BlankAggrWt*((N('Combined Gradation'!R44)-N('Combined Gradation'!R45))/VirginMat))) ->  | U40: =IF(T40="","",SUM($T$30:$T40)) -> 
C41: Totals | E41: =IF(COUNTBLANK(E30:E40)=11,"",SUM(E30:E40)) ->  | G41: =IF(COUNTBLANK(G30:G40)=11,"",SUM(G30:G40)) ->  | I41: =IF(COUNTBLANK(I30:I40)=11,"",SUM(I30:I40)) ->  | K41: =IF(COUNTBLANK(K30:K40)=11,"",SUM(K30:K40)) ->  | M41: =IF(COUNTBLANK(M30:M40)=11,"",SUM(M30:M40)) ->  | O41: =IF(COUNTBLANK(O30:O40)=11,"",SUM(O30:O40)) ->  | Q41: =IF(COUNTBLANK(Q30:Q40)=11,"",SUM(Q30:Q40)) ->  | S41: =IF(COUNTBLANK(E41:R41)=14,"",SUM(E41:R41)) ->  | T41: Total does not include recycled material
B44: Running Total:
B45: CUMULATIVE | C45: - | D45: =D30 -> 1" | E45: =IF(OR(C45="",Bin1Frac="",AND(version<5,Bin1RAP="Yes")),"",E30) ->  | G45: =IF(OR(C45="",Bin2Frac="",AND(version<5,Bin2RAP="Yes")),"",IF(BlankRunningT="No",G30,MAX(E45:F55)+G30)) ->  | I45: =IF(OR(C45="",Bin3Frac="",AND(version<5,Bin3RAP="Yes")),"",IF(BlankRunningT="No",I30,MAX(E45:H55)+I30)) ->  | K45: =IF(OR(C45="",Bin4Frac="",AND(version<5,Bin4RAP="Yes")),"",IF(BlankRunningT="No",K30,MAX(E45:J55)+K30)) ->  | M45: =IF(OR(C45="",Bin5Frac="",AND(version<5,Bin5RAP="Yes")),"",IF(BlankRunningT="No",M30,MAX(E45:L55)+M30)) ->  | O45: =IF(OR(C45="",Bin6Frac="",AND(version<5,Bin6RAP="Yes")),"",IF(BlankRunningT="No",O30,MAX(E45:N55)+O30)) ->  | Q45: =IF(OR(C45="",Bin7Frac="",AND(version<5,Bin7RAP="Yes")),"",IF(BlankRunningT="No",Q30,MAX(E45:P55)+Q30)) ->  | S45: =IF(ISERROR(IF(S30="","",SUM(S$30:S30))),"",IF(S30="","",SUM(S$30:S30))) -> 
C46: =C31 -> 1" | D46: 3/4" | E46: =IF(OR($C46="",Bin1Frac="",AND(version<5,Bin1RAP="Yes")),"",SUM(E$30:F31)) ->  | G46: =IF(OR($C46="",Bin2Frac="",AND(version<5,Bin2RAP="Yes")),"",IF(BlankRunningT="No",SUM(G30:H31),G45+G31)) ->  | I46: =IF(OR($C46="",Bin3Frac="",AND(version<5,Bin3RAP="Yes")),"",IF(BlankRunningT="No",SUM(I30:J31),I45+I31)) ->  | K46: =IF(OR($C46="",Bin4Frac="",AND(version<5,Bin4RAP="Yes")),"",IF(BlankRunningT="No",SUM(K30:L31),K45+K31)) ->  | M46: =IF(OR($C46="",Bin5Frac="",AND(version<5,Bin5RAP="Yes")),"",IF(BlankRunningT="No",SUM(M30:N31),M45+M31)) ->  | O46: =IF(OR($C46="",Bin6Frac="",AND(version<5,Bin6RAP="Yes")),"",IF(BlankRunningT="No",SUM(O30:P31),O45+O31)) ->  | Q46: =IF(OR($C46="",Bin7Frac="",AND(version<5,Bin7RAP="Yes")),"",IF(BlankRunningT="No",SUM(Q30:R31),Q45+Q31)) ->  | S46: =IF(ISERROR(IF(S31="","",SUM(S$30:S31))),"",IF(S31="","",SUM(S$30:S31))) -> 
C47: 3/4" | D47: 1/2" | E47: =IF(OR($C47="",Bin1Frac="",AND(version<5,Bin1RAP="Yes")),"",SUM(E$30:F32)) ->  | G47: =IF(OR($C47="",Bin2Frac="",AND(version<5,Bin2RAP="Yes")),"",IF(BlankRunningT="No",SUM(G30:H32),G46+G32)) ->  | I47: =IF(OR($C47="",Bin3Frac="",AND(version<5,Bin3RAP="Yes")),"",IF(BlankRunningT="No",SUM(I30:J32),I46+I32)) ->  | K47: =IF(OR($C47="",Bin4Frac="",AND(version<5,Bin4RAP="Yes")),"",IF(BlankRunningT="No",SUM(K30:L32),K46+K32)) ->  | M47: =IF(OR($C47="",Bin5Frac="",AND(version<5,Bin5RAP="Yes")),"",IF(BlankRunningT="No",SUM(M30:N32),M46+M32)) ->  | O47: =IF(OR($C47="",Bin6Frac="",AND(version<5,Bin6RAP="Yes")),"",IF(BlankRunningT="No",SUM(O30:P32),O46+O32)) ->  | Q47: =IF(OR($C47="",Bin7Frac="",AND(version<5,Bin7RAP="Yes")),"",IF(BlankRunningT="No",SUM(Q30:R32),Q46+Q32)) ->  | S47: =IF(ISERROR(IF(S32="","",SUM(S$30:S32))),"",IF(S32="","",SUM(S$30:S32))) -> 
C48: 1/2" | D48: 3/8" | E48: =IF(OR($C48="",Bin1Frac="",AND(version<5,Bin1RAP="Yes")),"",SUM(E$30:F33)) ->  | G48: =IF(OR($C48="",Bin2Frac="",AND(version<5,Bin2RAP="Yes")),"",IF(BlankRunningT="No",SUM(G30:H33),G47+G33)) ->  | I48: =IF(OR($C48="",Bin3Frac="",AND(version<5,Bin3RAP="Yes")),"",IF(BlankRunningT="No",SUM(I30:J33),I47+I33)) ->  | K48: =IF(OR($C48="",Bin4Frac="",AND(version<5,Bin4RAP="Yes")),"",IF(BlankRunningT="No",SUM(K30:L33),K47+K33)) ->  | M48: =IF(OR($C48="",Bin5Frac="",AND(version<5,Bin5RAP="Yes")),"",IF(BlankRunningT="No",SUM(M30:N33),M47+M33)) ->  | O48: =IF(OR($C48="",Bin6Frac="",AND(version<5,Bin6RAP="Yes")),"",IF(BlankRunningT="No",SUM(O30:P33),O47+O33)) ->  | Q48: =IF(OR($C48="",Bin7Frac="",AND(version<5,Bin7RAP="Yes")),"",IF(BlankRunningT="No",SUM(Q30:R33),Q47+Q33)) ->  | S48: =IF(ISERROR(IF(S33="","",SUM(S$30:S33))),"",IF(S33="","",SUM(S$30:S33))) -> 
C49: 3/8" | D49: No. 4 | E49: =IF(OR($C49="",Bin1Frac="",AND(version<5,Bin1RAP="Yes")),"",SUM(E$30:F34)) ->  | G49: =IF(OR($C49="",Bin2Frac="",AND(version<5,Bin2RAP="Yes")),"",IF(BlankRunningT="No",SUM(G30:H34),G48+G34)) ->  | I49: =IF(OR($C49="",Bin3Frac="",AND(version<5,Bin3RAP="Yes")),"",IF(BlankRunningT="No",SUM(I30:J34),I48+I34)) ->  | K49: =IF(OR($C49="",Bin4Frac="",AND(version<5,Bin4RAP="Yes")),"",IF(BlankRunningT="No",SUM(K30:L34),K48+K34)) ->  | M49: =IF(OR($C49="",Bin5Frac="",AND(version<5,Bin5RAP="Yes")),"",IF(BlankRunningT="No",SUM(M30:N34),M48+M34)) ->  | O49: =IF(OR($C49="",Bin6Frac="",AND(version<5,Bin6RAP="Yes")),"",IF(BlankRunningT="No",SUM(O30:P34),O48+O34)) ->  | Q49: =IF(OR($C49="",Bin7Frac="",AND(version<5,Bin7RAP="Yes")),"",IF(BlankRunningT="No",SUM(Q30:R34),Q48+Q34)) ->  | S49: =IF(ISERROR(IF(S34="","",SUM(S$30:S34))),"",IF(S34="","",SUM(S$30:S34))) -> 
C50: No. 4 | D50: No. 8 | E50: =IF(OR($C50="",Bin1Frac="",AND(version<5,Bin1RAP="Yes")),"",SUM(E$30:F35)) ->  | G50: =IF(OR($C50="",Bin2Frac="",AND(version<5,Bin2RAP="Yes")),"",IF(BlankRunningT="No",SUM(G30:H35),G49+G35)) ->  | I50: =IF(OR($C50="",Bin3Frac="",AND(version<5,Bin3RAP="Yes")),"",IF(BlankRunningT="No",SUM(I30:J35),I49+I35)) ->  | K50: =IF(OR($C50="",Bin4Frac="",AND(version<5,Bin4RAP="Yes")),"",IF(BlankRunningT="No",SUM(K30:L35),K49+K35)) ->  | M50: =IF(OR($C50="",Bin5Frac="",AND(version<5,Bin5RAP="Yes")),"",IF(BlankRunningT="No",SUM(M30:N35),M49+M35)) ->  | O50: =IF(OR($C50="",Bin6Frac="",AND(version<5,Bin6RAP="Yes")),"",IF(BlankRunningT="No",SUM(O30:P35),O49+O35)) ->  | Q50: =IF(OR($C50="",Bin7Frac="",AND(version<5,Bin7RAP="Yes")),"",IF(BlankRunningT="No",SUM(Q30:R35),Q49+Q35)) ->  | S50: =IF(ISERROR(IF(S35="","",SUM(S$30:S35))),"",IF(S35="","",SUM(S$30:S35))) -> 
C51: No. 8 | D51: No. 16 | E51: =IF(OR($C51="",Bin1Frac="",AND(version<5,Bin1RAP="Yes")),"",SUM(E$30:F36)) ->  | G51: =IF(OR($C51="",Bin2Frac="",AND(version<5,Bin2RAP="Yes")),"",IF(BlankRunningT="No",SUM(G30:H36),G50+G36)) ->  | I51: =IF(OR($C51="",Bin3Frac="",AND(version<5,Bin3RAP="Yes")),"",IF(BlankRunningT="No",SUM(I30:J36),I50+I36)) ->  | K51: =IF(OR($C51="",Bin4Frac="",AND(version<5,Bin4RAP="Yes")),"",IF(BlankRunningT="No",SUM(K30:L36),K50+K36)) ->  | M51: =IF(OR($C51="",Bin5Frac="",AND(version<5,Bin5RAP="Yes")),"",IF(BlankRunningT="No",SUM(M30:N36),M50+M36)) ->  | O51: =IF(OR($C51="",Bin6Frac="",AND(version<5,Bin6RAP="Yes")),"",IF(BlankRunningT="No",SUM(O30:P36),O50+O36)) ->  | Q51: =IF(OR($C51="",Bin7Frac="",AND(version<5,Bin7RAP="Yes")),"",IF(BlankRunningT="No",SUM(Q30:R36),Q50+Q36)) ->  | S51: =IF(ISERROR(IF(S36="","",SUM(S$30:S36))),"",IF(S36="","",SUM(S$30:S36))) -> 
C52: No. 16 | D52: No. 30 | E52: =IF(OR($C52="",Bin1Frac="",AND(version<5,Bin1RAP="Yes")),"",SUM(E$30:F37)) ->  | G52: =IF(OR($C52="",Bin2Frac="",AND(version<5,Bin2RAP="Yes")),"",IF(BlankRunningT="No",SUM(G30:H37),G51+G37)) ->  | I52: =IF(OR($C52="",Bin3Frac="",AND(version<5,Bin3RAP="Yes")),"",IF(BlankRunningT="No",SUM(I30:J37),I51+I37)) ->  | K52: =IF(OR($C52="",Bin4Frac="",AND(version<5,Bin4RAP="Yes")),"",IF(BlankRunningT="No",SUM(K30:L37),K51+K37)) ->  | M52: =IF(OR($C52="",Bin5Frac="",AND(version<5,Bin5RAP="Yes")),"",IF(BlankRunningT="No",SUM(M30:N37),M51+M37)) ->  | O52: =IF(OR($C52="",Bin6Frac="",AND(version<5,Bin6RAP="Yes")),"",IF(BlankRunningT="No",SUM(O30:P37),O51+O37)) ->  | Q52: =IF(OR($C52="",Bin7Frac="",AND(version<5,Bin7RAP="Yes")),"",IF(BlankRunningT="No",SUM(Q30:R37),Q51+Q37)) ->  | S52: =IF(ISERROR(IF(S37="","",SUM(S$30:S37))),"",IF(S37="","",SUM(S$30:S37))) -> 
C53: No. 30 | D53: No. 50 | E53: =IF(OR($C53="",Bin1Frac="",AND(version<5,Bin1RAP="Yes")),"",SUM(E$30:F38)) ->  | G53: =IF(OR($C53="",Bin2Frac="",AND(version<5,Bin2RAP="Yes")),"",IF(BlankRunningT="No",SUM(G30:H38),G52+G38)) ->  | I53: =IF(OR($C53="",Bin3Frac="",AND(version<5,Bin3RAP="Yes")),"",IF(BlankRunningT="No",SUM(I30:J38),I52+I38)) ->  | K53: =IF(OR($C53="",Bin4Frac="",AND(version<5,Bin4RAP="Yes")),"",IF(BlankRunningT="No",SUM(K30:L38),K52+K38)) ->  | M53: =IF(OR($C53="",Bin5Frac="",AND(version<5,Bin5RAP="Yes")),"",IF(BlankRunningT="No",SUM(M30:N38),M52+M38)) ->  | O53: =IF(OR($C53="",Bin6Frac="",AND(version<5,Bin6RAP="Yes")),"",IF(BlankRunningT="No",SUM(O30:P38),O52+O38)) ->  | Q53: =IF(OR($C53="",Bin7Frac="",AND(version<5,Bin7RAP="Yes")),"",IF(BlankRunningT="No",SUM(Q30:R38),Q52+Q38)) ->  | S53: =IF(ISERROR(IF(S38="","",SUM(S$30:S38))),"",IF(S38="","",SUM(S$30:S38))) -> 
C54: No. 50 | D54: No. 200 | E54: =IF(OR($C54="",Bin1Frac="",AND(version<5,Bin1RAP="Yes")),"",SUM(E$30:F39)) ->  | G54: =IF(OR($C54="",Bin2Frac="",AND(version<5,Bin2RAP="Yes")),"",IF(BlankRunningT="No",SUM(G30:H39),G53+G39)) ->  | I54: =IF(OR($C54="",Bin3Frac="",AND(version<5,Bin3RAP="Yes")),"",IF(BlankRunningT="No",SUM(I30:J39),I53+I39)) ->  | K54: =IF(OR($C54="",Bin4Frac="",AND(version<5,Bin4RAP="Yes")),"",IF(BlankRunningT="No",SUM(K30:L39),K53+K39)) ->  | M54: =IF(OR($C54="",Bin5Frac="",AND(version<5,Bin5RAP="Yes")),"",IF(BlankRunningT="No",SUM(M30:N39),M53+M39)) ->  | O54: =IF(OR($C54="",Bin6Frac="",AND(version<5,Bin6RAP="Yes")),"",IF(BlankRunningT="No",SUM(O30:P39),O53+O39)) ->  | Q54: =IF(OR($C54="",Bin7Frac="",AND(version<5,Bin7RAP="Yes")),"",IF(BlankRunningT="No",SUM(Q30:R39),Q53+Q39)) ->  | S54: =IF(ISERROR(IF(S39="","",SUM(S$30:S39))),"",IF(S39="","",SUM(S$30:S39))) -> 
C55: No. 200 | D55: Pan | E55: =IF(OR($C55="",Bin1Frac="",AND(version<5,Bin1RAP="Yes")),"",SUM(E$30:F40)) ->  | G55: =IF(OR($C55="",Bin2Frac="",AND(version<5,Bin2RAP="Yes")),"",IF(BlankRunningT="No",SUM(G30:H40),G54+G40)) ->  | I55: =IF(OR($C55="",Bin3Frac="",AND(version<5,Bin3RAP="Yes")),"",IF(BlankRunningT="No",SUM(I30:J40),I54+I40)) ->  | K55: =IF(OR($C55="",Bin4Frac="",AND(version<5,Bin4RAP="Yes")),"",IF(BlankRunningT="No",SUM(K30:L40),K54+K40)) ->  | M55: =IF(OR($C55="",Bin5Frac="",AND(version<5,Bin5RAP="Yes")),"",IF(BlankRunningT="No",SUM(M30:N40),M54+M40)) ->  | O55: =IF(OR($C55="",Bin6Frac="",AND(version<5,Bin6RAP="Yes")),"",IF(BlankRunningT="No",SUM(O30:P40),O54+O40)) ->  | Q55: =IF(OR($C55="",Bin7Frac="",AND(version<5,Bin7RAP="Yes")),"",IF(BlankRunningT="No",SUM(Q30:R40),Q54+Q40)) ->  | S55: =IF(ISERROR(IF(S40="","",SUM(S$30:S40))),"",IF(S40="","",SUM(S$30:S40))) -> 

Sheet Bulk Gravity
B1: TEXAS DEPARTMENT OF TRANSPORTATION
B2: =IF(location="","",location) -> 
B4: HMACP MIXTURE DESIGN : BULK GRAVITY
B6: SAMPLE ID: | E6: =IF(sampleid="","",sampleid) ->  | J6: SAMPLE DATE: | Q6: =IF(sampleddate="","",sampleddate) -> 
B7: LOT NUMBER: | E7: =IF(testnumber="","",testnumber) ->  | J7: LETTING DATE: | Q7: =IF(lettingdate="","",lettingdate) -> 
B8: SAMPLE STATUS: | E8: =IF(status="","",status) ->  | J8: CONTROLLING CSJ: | Q8: =IF(ccsj="","",ccsj) -> 
B9: COUNTY: | E9: =IF(county="","",county) ->  | J9: SPEC YEAR: | Q9: =IF(specyear="","",specyear) -> 2014
B10: SAMPLED BY: | E10: =IF(sampledby="","",sampledby) ->  | J10: SPEC ITEM: | Q10: =IF(specitem="","",specitem) -> 
B11: SAMPLE LOCATION: | E11: =IF(samplelocation="","",samplelocation) ->  | J11: SPECIAL PROVISION: | Q11: =IF(specialprovision="","",specialprovision) -> 
B12: MATERIAL CODE: | E12: =IF(material="","",material) ->  | J12: MIX TYPE: | Q12: =IF(Grade="","",Grade) -> SS-3074-BMD-SP-C
B13: MATERIAL NAME: | E13: =IF(matl_nm="","",matl_nm) -> 
B14: PRODUCER: | E14: =IF(producer="","",producer) -> 
B15: AREA ENGINEER: | E15: =IF(areaengineer="","",areaengineer) ->  | J15: PROJECT MANAGER: | Q15: =IF(projectmanager="","",projectmanager) -> 
B17: COURSE\LIFT: | E17: =IF(courselift="","",courselift) -> Surface | F17: STATION: | J17: =IF(station="","",station) ->  | N17: DIST. FROM CL: | R17: =IF(distfromcl="","",distfromcl) ->  | V17: CONTRACTOR DESIGN # : | AC17: =IF(condesignnum="","",condesignnum) -> 
D19: Bin No.1 | H19: Bin No.2 | L19: Bin No.3 | P19: Bin No.4 | T19: Bin No.5 | X19: Bin No.6 | AB19: Bin No.7 | AF19: Bin No.8 | AJ19: Bin No.9 | AN19: Bin No.10
B20: Individual Bin (%): | D20: =IF(Bin1Frac="","","Bin No.1 = "&Bin1Frac&" %") ->  | H20: =IF(Bin2Frac="","","Bin No.2 = "&Bin2Frac&" %") ->  | L20: =IF(Bin3Frac="","","Bin No.3 = "&Bin3Frac&" %") ->  | P20: =IF(Bin4Frac="","","Bin No.4 = "&Bin4Frac&" %") ->  | T20: =IF(Bin5Frac="","","Bin No.5 = "&Bin5Frac&" %") ->  | X20: =IF(Bin6Frac="","","Bin No.6 = "&Bin6Frac&" %") ->  | AB20: =IF(Bin7Frac="","","Bin No.7 = "&Bin7Frac&" %") ->  | AF20: =IF(Bin8Frac=0,"","Bin No.8 = "&ROUND(TBin8Frac,1)&" %") -> Bin No.8 = 15 % | AJ20: =IF(Bin9Frac=0,"","Bin No.9 = "&ROUND(TBin9Frac,1)&" %") -> Bin No.9 = 5 % | AN20: =IF(Bin10Frac=0,"","Bin No.10 = "&ROUND(TBin10Frac,1)&" %") -> Bin No.10 = 5 %
B21: Aggregate Source: | D21: =IF(Bin1Source="","",Bin1Source) ->  | H21: =IF(Bin2Source="","",Bin2Source) ->  | L21: =IF(Bin3Source="","",Bin3Source) ->  | P21: =IF(Bin4Source="","",Bin4Source) ->  | T21: =IF(Bin5Source="","",Bin5Source) ->  | X21: =IF(Bin6Source="","",Bin6Source) ->  | AB21: =IF(Bin7Source="","",Bin7Source) ->  | AF21: =IF(Bin8Recyc="","",Bin8Recyc) -> Fractionated RAP | AJ21: =IF(Bin9Recyc="","",Bin9Recyc) -> Fractionated RAP | AN21: =IF(Bin10Recyc="","",Bin10Recyc) -> RAS
B22: Aggregate Number: | D22: =IF(Bin1Aggr="","",Bin1Aggr) ->  | H22: =IF(Bin2Aggr="","",Bin2Aggr) ->  | L22: =IF(Bin3Aggr="","",Bin3Aggr) ->  | P22: =IF(Bin4Aggr="","",Bin4Aggr) ->  | T22: =IF(Bin5Aggr="","",Bin5Aggr) ->  | X22: =IF(Bin6Aggr="","",Bin6Aggr) ->  | AB22: =IF(Bin7Aggr="","",Bin7Aggr) ->  | AF22: =IF(Bin8Source="","",Bin8Source) ->  | AJ22: =IF(Bin9Source="","",Bin9Source) ->  | AN22: =IF(Bin10Source="","",Bin10Source) -> 
B23: Sample ID: | D23: =IF(Bin1samp="","",Bin1samp) ->  | H23: =IF(Bin2Samp="","",Bin2Samp) ->  | L23: =IF(Bin3Samp="","",Bin3Samp) ->  | P23: =IF(Bin4Samp="","",Bin4Samp) ->  | T23: =IF(Bin5Samp="","",Bin5Samp) ->  | X23: =IF(Bin6Samp="","",Bin6Samp) ->  | AB23: =IF(Bin7Samp="","",Bin7Samp) ->  | AF23: =IF(Bin8Samp="","",Bin8Samp) ->  | AJ23: =IF(Bin9Samp="","",Bin9Samp) ->  | AN23: =IF(Bin10Samp="","",Bin10Samp) -> 
B25: Sieve Size: | D25: Individual Ret., % | E25: Bulk SG | H25: Individual Ret., % | I25: Bulk SG | L25: Individual Ret., % | M25: Bulk SG | P25: Individual Ret., % | Q25: Bulk SG | T25: Individual Ret., % | U25: Bulk SG | X25: Individual Ret., % | Y25: Bulk SG | AB25: Individual Ret., % | AC25: Bulk SG | AF25: Individual Ret., % | AG25: Bulk SG | AJ25: Individual Ret., % | AK25: Bulk SG | AN25: Individual Ret., % | AO25: Bulk SG
B26: Passing | C26: Retained
C27: ='Aggregate Classification'!C27 -> 1" | D27: =IF(OR(Bin1Frac="",B27=""),"",100-N('Combined Gradation'!E35)) ->  | F27: =IF(ISERROR(D27/E27),0,(D27/E27)) -> 0 | G27: =IF(E27<>"",D27,0) -> 0 | H27: =IF(OR(Bin2Frac="",B27=""),"",100-N('Combined Gradation'!G35)) ->  | J27: =IF(ISERROR(H27/I27),0,(H27/I27)) -> 0 | K27: =IF(I27<>"",H27,0) -> 0 | L27: =IF(OR(Bin3Frac="",B27=""),"",100-N('Combined Gradation'!I35)) ->  | N27: =IF(ISERROR(L27/M27),0,(L27/M27)) -> 0 | O27: =IF(M27<>"",L27,0) -> 0 | P27: =IF(OR(Bin4Frac="",B27=""),"",100-N('Combined Gradation'!K35)) ->  | R27: =IF(ISERROR(P27/Q27),0,(P27/Q27)) -> 0 | S27: =IF(Q27<>"",P27,0) -> 0 | T27: =IF(OR(Bin5Frac="",B27=""),"",100-N('Combined Gradation'!M35)) ->  | V27: =IF(ISERROR(T27/U27),0,(T27/U27)) -> 0 | W27: =IF(U27<>"",T27,0) -> 0 | X27: =IF(OR(Bin6Frac="",B27=""),"",100-N('Combined Gradation'!O35)) ->  | Z27: =IF(ISERROR(X27/Y27),0,(X27/Y27)) -> 0 | AA27: =IF(Y27<>"",X27,0) -> 0 | AB27: =IF(OR(Bin7Frac="",B27=""),"",100-N('Combined Gradation'!Q35)) ->  | AD27: =IF(ISERROR(AB27/AC27),0,(AB27/AC27)) -> 0 | AE27: =IF(AC27<>"",AB27,0) -> 0 | AF27: =IF(OR(Bin8Frac=0,B27=""),"",100-N('Combined Gradation'!S35)) ->  | AH27: =IF(ISERROR(AF27/AG27),0,(AF27/AG27)) -> 0 | AI27: =IF(AG27<>"",AF27,0) -> 0 | AJ27: =IF(OR(Bin9Frac=0,B27=""),"",100-N('Combined Gradation'!U35)) ->  | AL27: =IF(ISERROR(AJ27/AK27),0,(AJ27/AK27)) -> 0 | AM27: =IF(AK27<>"",AJ27,0) -> 0 | AN27: =IF(OR(Bin10Frac="",B27=""),"",100-N('Combined Gradation'!W35)) ->  | AP27: =IF(ISERROR(AN27/AO27),0,(AN27/AO27)) -> 0 | AQ27: =IF(AO27<>"",AN27,0) -> 0
B28: ='Aggregate Classification'!B28 -> 1" | C28: ='Aggregate Classification'!C28 -> 3/4" | D28: =IF(OR(Bin1Frac="",B28=""),"",(N('Combined Gradation'!E35)-N('Combined Gradation'!E36))) ->  | F28: 0 | G28: =IF(E28<>"",D28,0) -> 0 | H28: =IF(OR(Bin2Frac="",B28=""),"",(N('Combined Gradation'!G35)-N('Combined Gradation'!G36))) ->  | J28: 0 | K28: 0 | L28: =IF(OR(Bin3Frac="",B28=""),"",(N('Combined Gradation'!I35)-N('Combined Gradation'!I36))) ->  | N28: =IF(ISERROR(L28/M28),0,(L28/M28)) -> 0 | O28: =IF(M28<>"",L28,0) -> 0 | P28: =IF(OR(Bin4Frac="",B28=""),"",(N('Combined Gradation'!K35)-N('Combined Gradation'!K36))) ->  | R28: =IF(ISERROR(P28/Q28),0,(P28/Q28)) -> 0 | S28: =IF(Q28<>"",P28,0) -> 0 | T28: =IF(OR(Bin5Frac="",B28=""),"",(N('Combined Gradation'!M35)-N('Combined Gradation'!M36))) ->  | V28: =IF(ISERROR(T28/U28),0,(T28/U28)) -> 0 | W28: =IF(U28<>"",T28,0) -> 0 | X28: =IF(OR(Bin6Frac="",B28=""),"",(N('Combined Gradation'!O35)-N('Combined Gradation'!O36))) ->  | Z28: =IF(ISERROR(X28/Y28),0,(X28/Y28)) -> 0 | AA28: =IF(Y28<>"",X28,0) -> 0 | AB28: =IF(OR(Bin7Frac="",B28=""),"",(N('Combined Gradation'!Q35)-N('Combined Gradation'!Q36))) ->  | AD28: =IF(ISERROR(AB28/AC28),0,(AB28/AC28)) -> 0 | AE28: =IF(AC28<>"",AB28,0) -> 0 | AF28: =IF(OR(Bin8Frac=0,B28=""),"",(N('Combined Gradation'!S35)-N('Combined Gradation'!S36))) -> 0 | AH28: =IF(ISERROR(AF28/AG28),0,(AF28/AG28)) -> 0 | AI28: =IF(AG28<>"",AF28,0) -> 0 | AJ28: =IF(OR(Bin9Frac=0,B28=""),"",(N('Combined Gradation'!U35)-N('Combined Gradation'!U36))) -> 0 | AL28: 0 | AM28: =IF(AK28<>"",AJ28,0) -> 0 | AN28: =IF(OR(Bin10Frac="",B28=""),"",(N('Combined Gradation'!W35)-N('Combined Gradation'!W36))) -> 0 | AP28: 0 | AQ28: 0
B29: ='Aggregate Classification'!B29 -> 3/4" | C29: ='Aggregate Classification'!C29 -> 1/2" | D29: =IF(OR(Bin1Frac="",B29=""),"",(N('Combined Gradation'!E36)-N('Combined Gradation'!E37))) ->  | F29: 0 | G29: 0 | H29: =IF(OR(Bin2Frac="",B29=""),"",(N('Combined Gradation'!G36)-N('Combined Gradation'!G37))) ->  | J29: 0 | K29: 0 | L29: =IF(OR(Bin3Frac="",B29=""),"",(N('Combined Gradation'!I36)-N('Combined Gradation'!I37))) ->  | N29: 0 | O29: 0 | P29: =IF(OR(Bin4Frac="",B29=""),"",(N('Combined Gradation'!K36)-N('Combined Gradation'!K37))) ->  | R29: 0 | S29: 0 | T29: =IF(OR(Bin5Frac="",B29=""),"",(N('Combined Gradation'!M36)-N('Combined Gradation'!M37))) ->  | V29: 0 | W29: 0 | X29: =IF(OR(Bin6Frac="",B29=""),"",(N('Combined Gradation'!O36)-N('Combined Gradation'!O37))) ->  | Z29: 0 | AA29: 0 | AB29: =IF(OR(Bin7Frac="",B29=""),"",(N('Combined Gradation'!Q36)-N('Combined Gradation'!Q37))) ->  | AD29: 0 | AE29: 0 | AF29: =IF(OR(Bin8Frac=0,B29=""),"",(N('Combined Gradation'!S36)-N('Combined Gradation'!S37))) -> 0 | AH29: =IF(version=5,IF(AF29<>"",(AF29/2.558),0),IF(ISERROR(AF29/AG29),0,(AF29/AG29))) -> 0 | AI29: =IF(version=5,AF29,IF(AG29<>"",AF29,0)) -> 0 | AJ29: =IF(OR(Bin9Frac=0,B29=""),"",(N('Combined Gradation'!U36)-N('Combined Gradation'!U37))) -> 0 | AL29: 0 | AM29: =IF(AK29<>"",AJ29,0) -> 0 | AN29: =IF(OR(Bin10Frac="",B29=""),"",(N('Combined Gradation'!W36)-N('Combined Gradation'!W37))) -> 0 | AP29: 0 | AQ29: 0
B30: ='Aggregate Classification'!B30 -> 1/2" | C30: ='Aggregate Classification'!C30 -> 3/8" | D30: =IF(OR(Bin1Frac="",B30=""),"",(N('Combined Gradation'!E37)-N('Combined Gradation'!E38))) ->  | F30: 0 | G30: 0 | H30: =IF(OR(Bin2Frac="",B30=""),"",(N('Combined Gradation'!G37)-N('Combined Gradation'!G38))) ->  | J30: 0 | K30: 0 | L30: =IF(OR(Bin3Frac="",B30=""),"",(N('Combined Gradation'!I37)-N('Combined Gradation'!I38))) ->  | N30: 0 | O30: 0 | P30: =IF(OR(Bin4Frac="",B30=""),"",(N('Combined Gradation'!K37)-N('Combined Gradation'!K38))) ->  | R30: 0 | S30: 0 | T30: =IF(OR(Bin5Frac="",B30=""),"",(N('Combined Gradation'!M37)-N('Combined Gradation'!M38))) ->  | V30: 0 | W30: 0 | X30: =IF(OR(Bin6Frac="",B30=""),"",(N('Combined Gradation'!O37)-N('Combined Gradation'!O38))) ->  | Z30: 0 | AA30: 0 | AB30: =IF(OR(Bin7Frac="",B30=""),"",(N('Combined Gradation'!Q37)-N('Combined Gradation'!Q38))) ->  | AD30: 0 | AE30: 0 | AF30: =IF(OR(Bin8Frac=0,B30=""),"",(N('Combined Gradation'!S37)-N('Combined Gradation'!S38))) -> 0 | AH30: =IF(version=5,IF(AF30<>"",(AF30/2.558),0),IF(ISERROR(AF30/AG30),0,(AF30/AG30))) -> 0 | AI30: 0 | AJ30: =IF(OR(Bin9Frac=0,B30=""),"",(N('Combined Gradation'!U37)-N('Combined Gradation'!U38))) -> 0 | AL30: 0 | AM30: =IF(AK30<>"",AJ30,0) -> 0 | AN30: =IF(OR(Bin10Frac="",B30=""),"",(N('Combined Gradation'!W37)-N('Combined Gradation'!W38))) -> 0 | AP30: 0 | AQ30: 0
B31: ='Aggregate Classification'!B31 -> 3/8" | C31: ='Aggregate Classification'!C31 -> No. 4 | D31: =IF(OR(Bin1Frac="",B31=""),"",(N('Combined Gradation'!E38)-N('Combined Gradation'!E39))) ->  | F31: 0 | G31: 0 | H31: =IF(OR(Bin2Frac="",B31=""),"",(N('Combined Gradation'!G38)-N('Combined Gradation'!G39))) ->  | J31: 0 | K31: 0 | L31: =IF(OR(Bin3Frac="",B31=""),"",(N('Combined Gradation'!I38)-N('Combined Gradation'!I39))) ->  | N31: 0 | O31: 0 | P31: =IF(OR(Bin4Frac="",B31=""),"",(N('Combined Gradation'!K38)-N('Combined Gradation'!K39))) ->  | R31: 0 | S31: 0 | T31: =IF(OR(Bin5Frac="",B31=""),"",(N('Combined Gradation'!M38)-N('Combined Gradation'!M39))) ->  | V31: 0 | W31: 0 | X31: =IF(OR(Bin6Frac="",B31=""),"",(N('Combined Gradation'!O38)-N('Combined Gradation'!O39))) ->  | Z31: 0 | AA31: 0 | AB31: =IF(OR(Bin7Frac="",B31=""),"",(N('Combined Gradation'!Q38)-N('Combined Gradation'!Q39))) ->  | AD31: 0 | AE31: 0 | AF31: =IF(OR(Bin8Frac=0,B31=""),"",(N('Combined Gradation'!S38)-N('Combined Gradation'!S39))) -> 0 | AH31: =IF(version=5,IF(AF31<>"",(AF31/2.558),0),IF(ISERROR(AF31/AG31),0,(AF31/AG31))) -> 0 | AI31: 0 | AJ31: =IF(OR(Bin9Frac=0,B31=""),"",(N('Combined Gradation'!U38)-N('Combined Gradation'!U39))) -> 0 | AL31: 0 | AM31: =IF(AK31<>"",AJ31,0) -> 0 | AN31: =IF(OR(Bin10Frac="",B31=""),"",(N('Combined Gradation'!W38)-N('Combined Gradation'!W39))) -> 0 | AP31: 0 | AQ31: 0
B32: ='Aggregate Classification'!B32 -> No. 4 | C32: ='Aggregate Classification'!C32 -> No. 8 | D32: =IF(OR(Bin1Frac="",B32=""),"",(N('Combined Gradation'!E39)-N('Combined Gradation'!E40))) ->  | F32: 0 | G32: 0 | H32: =IF(OR(Bin2Frac="",B32=""),"",(N('Combined Gradation'!G39)-N('Combined Gradation'!G40))) ->  | J32: 0 | K32: 0 | L32: =IF(OR(Bin3Frac="",B32=""),"",(N('Combined Gradation'!I39)-N('Combined Gradation'!I40))) ->  | N32: 0 | O32: 0 | P32: =IF(OR(Bin4Frac="",B32=""),"",(N('Combined Gradation'!K39)-N('Combined Gradation'!K40))) ->  | R32: 0 | S32: 0 | T32: =IF(OR(Bin5Frac="",B32=""),"",(N('Combined Gradation'!M39)-N('Combined Gradation'!M40))) ->  | V32: 0 | W32: 0 | X32: =IF(OR(Bin6Frac="",B32=""),"",(N('Combined Gradation'!O39)-N('Combined Gradation'!O40))) ->  | Z32: 0 | AA32: 0 | AB32: =IF(OR(Bin7Frac="",B32=""),"",(N('Combined Gradation'!Q39)-N('Combined Gradation'!Q40))) ->  | AD32: 0 | AE32: 0 | AF32: =IF(OR(Bin8Frac=0,B32=""),"",(N('Combined Gradation'!S39)-N('Combined Gradation'!S40))) -> 0 | AH32: =IF(version=5,IF(AF32<>"",(AF32/2.558),0),IF(ISERROR(AF32/AG32),0,(AF32/AG32))) -> 0 | AI32: 0 | AJ32: =IF(OR(Bin9Frac=0,B32=""),"",(N('Combined Gradation'!U39)-N('Combined Gradation'!U40))) -> 0 | AL32: 0 | AM32: =IF(AK32<>"",AJ32,0) -> 0 | AN32: =IF(OR(Bin10Frac="",B32=""),"",(N('Combined Gradation'!W39)-N('Combined Gradation'!W40))) -> 0 | AP32: 0 | AQ32: 0
B33: ='Aggregate Classification'!B33 -> No. 8 | C33: ='Aggregate Classification'!C33 -> No. 16 | D33: =IF(OR(Bin1Frac="",B33=""),"",(N('Combined Gradation'!E40)-N('Combined Gradation'!E41))) ->  | F33: 0 | G33: 0 | H33: =IF(OR(Bin2Frac="",B33=""),"",(N('Combined Gradation'!G40)-N('Combined Gradation'!G41))) ->  | J33: 0 | K33: 0 | L33: =IF(OR(Bin3Frac="",B33=""),"",(N('Combined Gradation'!I40)-N('Combined Gradation'!I41))) ->  | N33: 0 | O33: 0 | P33: =IF(OR(Bin4Frac="",B33=""),"",(N('Combined Gradation'!K40)-N('Combined Gradation'!K41))) ->  | R33: 0 | S33: 0 | T33: =IF(OR(Bin5Frac="",B33=""),"",(N('Combined Gradation'!M40)-N('Combined Gradation'!M41))) ->  | V33: 0 | W33: 0 | X33: =IF(OR(Bin6Frac="",B33=""),"",(N('Combined Gradation'!O40)-N('Combined Gradation'!O41))) ->  | Z33: 0 | AA33: 0 | AB33: =IF(OR(Bin7Frac="",B33=""),"",(N('Combined Gradation'!Q40)-N('Combined Gradation'!Q41))) ->  | AD33: 0 | AE33: 0 | AF33: =IF(OR(Bin8Frac=0,B33=""),"",(N('Combined Gradation'!S40)-N('Combined Gradation'!S41))) -> 0 | AH33: =IF(version=5,IF(AF33<>"",(AF33/2.558),0),IF(ISERROR(AF33/AG33),0,(AF33/AG33))) -> 0 | AI33: 0 | AJ33: =IF(OR(Bin9Frac=0,B33=""),"",(N('Combined Gradation'!U40)-N('Combined Gradation'!U41))) -> 0 | AL33: 0 | AM33: 0 | AN33: =IF(OR(Bin10Frac="",B33=""),"",(N('Combined Gradation'!W40)-N('Combined Gradation'!W41))) -> 0 | AP33: 0 | AQ33: 0
B34: ='Aggregate Classification'!B34 -> No. 16 | C34: ='Aggregate Classification'!C34 -> No. 30 | D34: =IF(OR(Bin1Frac="",B34=""),"",(N('Combined Gradation'!E41)-N('Combined Gradation'!E42))) ->  | F34: 0 | G34: 0 | H34: =IF(OR(Bin2Frac="",B34=""),"",(N('Combined Gradation'!G41)-N('Combined Gradation'!G42))) ->  | J34: 0 | K34: 0 | L34: =IF(OR(Bin3Frac="",B34=""),"",(N('Combined Gradation'!I41)-N('Combined Gradation'!I42))) ->  | N34: 0 | O34: 0 | P34: =IF(OR(Bin4Frac="",B34=""),"",(N('Combined Gradation'!K41)-N('Combined Gradation'!K42))) ->  | R34: 0 | S34: 0 | T34: =IF(OR(Bin5Frac="",B34=""),"",(N('Combined Gradation'!M41)-N('Combined Gradation'!M42))) ->  | V34: 0 | W34: 0 | X34: =IF(OR(Bin6Frac="",B34=""),"",(N('Combined Gradation'!O41)-N('Combined Gradation'!O42))) ->  | Z34: 0 | AA34: 0 | AB34: =IF(OR(Bin7Frac="",B34=""),"",(N('Combined Gradation'!Q41)-N('Combined Gradation'!Q42))) ->  | AD34: 0 | AE34: 0 | AF34: =IF(OR(Bin8Frac=0,B34=""),"",(N('Combined Gradation'!S41)-N('Combined Gradation'!S42))) -> 0 | AH34: =IF(version=5,IF(AF34<>"",(AF34/2.591),0),IF(ISERROR(AF34/AG34),0,(AF34/AG34))) -> 0 | AI34: 0 | AJ34: =IF(OR(Bin9Frac=0,B34=""),"",(N('Combined Gradation'!U41)-N('Combined Gradation'!U42))) -> 0 | AL34: 0 | AM34: 0 | AN34: =IF(OR(Bin10Frac="",B34=""),"",(N('Combined Gradation'!W41)-N('Combined Gradation'!W42))) -> 0 | AP34: 0 | AQ34: 0
B35: ='Aggregate Classification'!B35 -> No. 30 | C35: ='Aggregate Classification'!C35 -> No. 50 | D35: =IF(OR(Bin1Frac="",B35=""),"",(N('Combined Gradation'!E42)-N('Combined Gradation'!E43))) ->  | F35: 0 | G35: 0 | H35: =IF(OR(Bin2Frac="",B35=""),"",(N('Combined Gradation'!G42)-N('Combined Gradation'!G43))) ->  | J35: 0 | K35: 0 | L35: =IF(OR(Bin3Frac="",B35=""),"",(N('Combined Gradation'!I42)-N('Combined Gradation'!I43))) ->  | N35: 0 | O35: 0 | P35: =IF(OR(Bin4Frac="",B35=""),"",(N('Combined Gradation'!K42)-N('Combined Gradation'!K43))) ->  | R35: 0 | S35: 0 | T35: =IF(OR(Bin5Frac="",B35=""),"",(N('Combined Gradation'!M42)-N('Combined Gradation'!M43))) ->  | V35: 0 | W35: 0 | X35: =IF(OR(Bin6Frac="",B35=""),"",(N('Combined Gradation'!O42)-N('Combined Gradation'!O43))) ->  | Z35: 0 | AA35: 0 | AB35: =IF(OR(Bin7Frac="",B35=""),"",(N('Combined Gradation'!Q42)-N('Combined Gradation'!Q43))) ->  | AD35: 0 | AE35: 0 | AF35: =IF(OR(Bin8Frac=0,B35=""),"",(N('Combined Gradation'!S42)-N('Combined Gradation'!S43))) -> 0 | AH35: =IF(version=5,IF(AF35<>"",(AF35/2.591),0),IF(ISERROR(AF35/AG35),0,(AF35/AG35))) -> 0 | AI35: 0 | AJ35: =IF(OR(Bin9Frac=0,B35=""),"",(N('Combined Gradation'!U42)-N('Combined Gradation'!U43))) -> 0 | AL35: 0 | AM35: 0 | AN35: =IF(OR(Bin10Frac="",B35=""),"",(N('Combined Gradation'!W42)-N('Combined Gradation'!W43))) -> 0 | AP35: 0 | AQ35: 0
B36: ='Aggregate Classification'!B36 -> No. 50 | C36: ='Aggregate Classification'!C36 -> No. 200 | D36: =IF(OR(Bin1Frac="",B36=""),"",(N('Combined Gradation'!E43)-N('Combined Gradation'!E44))) ->  | F36: 0 | G36: 0 | H36: =IF(OR(Bin2Frac="",B36=""),"",(N('Combined Gradation'!G43)-N('Combined Gradation'!G44))) ->  | J36: 0 | K36: 0 | L36: =IF(OR(Bin3Frac="",B36=""),"",(N('Combined Gradation'!I43)-N('Combined Gradation'!I44))) ->  | N36: 0 | O36: 0 | P36: =IF(OR(Bin4Frac="",B36=""),"",(N('Combined Gradation'!K43)-N('Combined Gradation'!K44))) ->  | R36: 0 | S36: 0 | T36: =IF(OR(Bin5Frac="",B36=""),"",(N('Combined Gradation'!M43)-N('Combined Gradation'!M44))) ->  | V36: 0 | W36: 0 | X36: =IF(OR(Bin6Frac="",B36=""),"",(N('Combined Gradation'!O43)-N('Combined Gradation'!O44))) ->  | Z36: 0 | AA36: 0 | AB36: =IF(OR(Bin7Frac="",B36=""),"",(N('Combined Gradation'!Q43)-N('Combined Gradation'!Q44))) ->  | AD36: 0 | AE36: 0 | AF36: =IF(OR(Bin8Frac=0,B36=""),"",(N('Combined Gradation'!S43)-N('Combined Gradation'!S44))) -> 0 | AH36: =IF(ISERROR(AF36/AG36),0,(AF36/AG36)) -> 0 | AI36: =IF(AG36<>"",AF36,0) -> 0 | AJ36: =IF(OR(Bin9Frac=0,B36=""),"",(N('Combined Gradation'!U43)-N('Combined Gradation'!U44))) -> 0 | AL36: 0 | AM36: =IF(AK36<>"",AJ36,0) -> 0 | AN36: =IF(OR(Bin10Frac="",B36=""),"",(N('Combined Gradation'!W43)-N('Combined Gradation'!W44))) -> 0 | AP36: 0 | AQ36: 0
B37: ='Aggregate Classification'!B37 -> No. 200 | C37: Pan | D37: =IF(OR(Bin1Frac="",B37=""),"",(N('Combined Gradation'!E44)-N('Combined Gradation'!E45))) ->  | F37: 0 | G37: 0 | H37: =IF(OR(Bin2Frac="",B37=""),"",(N('Combined Gradation'!G44)-N('Combined Gradation'!G45))) ->  | J37: 0 | K37: 0 | L37: =IF(OR(Bin3Frac="",B37=""),"",(N('Combined Gradation'!I44)-N('Combined Gradation'!I45))) ->  | N37: 0 | O37: 0 | P37: =IF(OR(Bin4Frac="",B37=""),"",(N('Combined Gradation'!K44)-N('Combined Gradation'!K45))) ->  | R37: 0 | S37: 0 | T37: =IF(OR(Bin5Frac="",B37=""),"",(N('Combined Gradation'!M44)-N('Combined Gradation'!M45))) ->  | V37: 0 | W37: 0 | X37: =IF(OR(Bin6Frac="",B37=""),"",(N('Combined Gradation'!O44)-N('Combined Gradation'!O45))) ->  | Z37: 0 | AA37: 0 | AB37: =IF(OR(Bin7Frac="",B37=""),"",(N('Combined Gradation'!Q44)-N('Combined Gradation'!Q45))) ->  | AD37: 0 | AE37: 0 | AF37: =IF(OR(Bin8Frac=0,B37=""),"",(N('Combined Gradation'!S44)-N('Combined Gradation'!S45))) -> 0 | AH37: =IF(ISERROR(AF37/AG37),0,(AF37/AG37)) -> 0 | AI37: =IF(AG37<>"",AF37,0) -> 0 | AJ37: =IF(OR(Bin9Frac=0,B37=""),"",(N('Combined Gradation'!U44)-N('Combined Gradation'!U45))) -> 0 | AL37: 0 | AM37: 0 | AN37: =IF(OR(Bin10Frac="",B37=""),"",(N('Combined Gradation'!W44)-N('Combined Gradation'!W45))) -> 0 | AP37: 0 | AQ37: 0
B38: Totals | D38: =IF(COUNTBLANK(D27:D37)=11,"",SUM(D27:D37)) ->  | E38: =IF(ISERROR(SUM(G27:G37)/SUM(F27:F37)),"",SUM(G27:G37)/SUM(F27:F37)) ->  | H38: =IF(COUNTBLANK(H27:H37)=11,"",SUM(H27:H37)) ->  | I38: =IF(ISERROR(SUM(K27:K37)/SUM(J27:J37)),"",SUM(K27:K37)/SUM(J27:J37)) ->  | L38: =IF(COUNTBLANK(L27:L37)=11,"",SUM(L27:L37)) ->  | M38: =IF(ISERROR(SUM(O27:O37)/SUM(N27:N37)),"",SUM(O27:O37)/SUM(N27:N37)) ->  | P38: =IF(COUNTBLANK(P27:P37)=11,"",SUM(P27:P37)) ->  | Q38: =IF(ISERROR(SUM(S27:S37)/SUM(R27:R37)),"",SUM(S27:S37)/SUM(R27:R37)) ->  | T38: =IF(COUNTBLANK(T27:T37)=11,"",SUM(T27:T37)) ->  | U38: =IF(ISERROR(SUM(W27:W37)/SUM(V27:V37)),"",SUM(W27:W37)/SUM(V27:V37)) ->  | X38: =IF(COUNTBLANK(X27:X37)=11,"",SUM(X27:X37)) ->  | Y38: =IF(ISERROR(SUM(AA27:AA37)/SUM(Z27:Z37)),"",SUM(AA27:AA37)/SUM(Z27:Z37)) ->  | AB38: =IF(COUNTBLANK(AB27:AB37)=11,"",SUM(AB27:AB37)) ->  | AC38: =IF(ISERROR(SUM(AE27:AE37)/SUM(AD27:AD37)),"",SUM(AE27:AE37)/SUM(AD27:AD37)) ->  | AF38: =IF(COUNTBLANK(AF27:AF37)=11,"",SUM(AF27:AF37)) -> 0 | AG38: =IF(ISERROR(SUM(AI27:AI37)/SUM(AH27:AH37)),"",SUM(AI27:AI37)/SUM(AH27:AH37)) ->  | AJ38: =IF(COUNTBLANK(AJ27:AJ37)=11,"",SUM(AJ27:AJ37)) -> 0 | AK38: =IF(ISERROR(SUM(AM27:AM37)/SUM(AL27:AL37)),"",SUM(AM27:AM37)/SUM(AL27:AL37)) ->  | AN38: =IF(COUNTBLANK(AN27:AN37)=11,"",SUM(AN27:AN37)) -> 0 | AO38: =IF(ISERROR(SUM(AQ27:AQ37)/SUM(AP27:AP37)),"",SUM(AQ27:AQ37)/SUM(AP27:AP37)) -> 
E39: =IF(ISERROR(Bin1Frac/E38),"",(Bin1Frac/E38)) ->  | F39: ="F" & 26 + INDEX(INDIRECT(VLOOKUP(Grade,MIX_RANGE,2)),1,10) -> F26 | G39: ="G" & 26 + INDEX(INDIRECT(VLOOKUP(Grade,MIX_RANGE,2)),1,10) -> G26 | I39: =IF(ISERROR(Bin2Frac/I38),"",(Bin2Frac/I38)) ->  | J39: ="J" & 26 + INDEX(INDIRECT(VLOOKUP(Grade,MIX_RANGE,2)),1,10) -> J26 | K39: ="K" & 26 + INDEX(INDIRECT(VLOOKUP(Grade,MIX_RANGE,2)),1,10) -> K26 | M39: =IF(ISERROR(Bin3Frac/M38),"",(Bin3Frac/M38)) ->  | N39: ="N" & 26 + INDEX(INDIRECT(VLOOKUP(Grade,MIX_RANGE,2)),1,10) -> N26 | O39: ="O" & 26 + INDEX(INDIRECT(VLOOKUP(Grade,MIX_RANGE,2)),1,10) -> O26 | Q39: =IF(ISERROR(Bin4Frac/Q38),"",(Bin4Frac/Q38)) ->  | R39: ="R" & 26 + INDEX(INDIRECT(VLOOKUP(Grade,MIX_RANGE,2)),1,10) -> R26 | S39: ="S" & 26 + INDEX(INDIRECT(VLOOKUP(Grade,MIX_RANGE,2)),1,10) -> S26 | U39: =IF(ISERROR(Bin5Frac/U38),"",(Bin5Frac/U38)) ->  | V39: ="V" & 26 + INDEX(INDIRECT(VLOOKUP(Grade,MIX_RANGE,2)),1,10) -> V26 | W39: ="W" & 26 + INDEX(INDIRECT(VLOOKUP(Grade,MIX_RANGE,2)),1,10) -> W26 | Y39: =IF(ISERROR(Bin6Frac/Y38),"",(Bin6Frac/Y38)) ->  | Z39: ="Z" & 26 + INDEX(INDIRECT(VLOOKUP(Grade,MIX_RANGE,2)),1,10) -> Z26 | AA39: ="AA" & 26 + INDEX(INDIRECT(VLOOKUP(Grade,MIX_RANGE,2)),1,10) -> AA26 | AC39: =IF(ISERROR(Bin7Frac/AC38),"",(Bin7Frac/AC38)) ->  | AD39: ="AD" & 26 + INDEX(INDIRECT(VLOOKUP(Grade,MIX_RANGE,2)),1,10) -> AD26 | AE39: ="AE" & 26 + INDEX(INDIRECT(VLOOKUP(Grade,MIX_RANGE,2)),1,10) -> AE26 | AG39: =IF(ISERROR(Bin8Frac/AG38),"",(Bin8Frac/AG38)) ->  | AH39: ="AH" & 26 + INDEX(INDIRECT(VLOOKUP(Grade,MIX_RANGE,2)),1,10) -> AH26 | AI39: ="AI" & 26 + INDEX(INDIRECT(VLOOKUP(Grade,MIX_RANGE,2)),1,10) -> AI26 | AK39: =IF(ISERROR(Bin9Frac/AK38),"",(Bin9Frac/AK38)) ->  | AL39: ="AL" & 26 + INDEX(INDIRECT(VLOOKUP(Grade,MIX_RANGE,2)),1,10) -> AL26 | AM39: ="AM" & 26 + INDEX(INDIRECT(VLOOKUP(Grade,MIX_RANGE,2)),1,10) -> AM26 | AO39: =IF(ISERROR(Bin10Frac/AO38),"",(Bin10Frac/AO38)) ->  | AP39: ="AP" & 26 + INDEX(INDIRECT(VLOOKUP(Grade,MIX_RANGE,2)),1,10) -> AP26 | AQ39: ="AQ" & 26 + INDEX(INDIRECT(VLOOKUP(Grade,MIX_RANGE,2)),1,10) -> AQ26
E40: =IF(ISERROR(SUM(G27:INDIRECT(G39))),"",IF(SUM(G27:INDIRECT(G39))=0,"",SUM(G27:INDIRECT(G39)))) ->  | F40: =IF(ISERROR(SUM(G27:INDIRECT(G39))/SUM(F27:INDIRECT(F39))),"",SUM(G27:INDIRECT(G39))/SUM(F27:INDIRECT(F39))) ->  | I40: =IF(ISERROR(SUM(K27:INDIRECT(K39))),"",IF(SUM(K27:INDIRECT(K39))=0,"",SUM(K27:INDIRECT(K39)))) ->  | J40: =IF(ISERROR(SUM(K27:INDIRECT(K39))/SUM(J27:INDIRECT(J39))),"",SUM(K27:INDIRECT(K39))/SUM(J27:INDIRECT(J39))) ->  | M40: =IF(ISERROR(SUM(O27:INDIRECT(O39))),"",IF(SUM(O27:INDIRECT(O39))=0,"",SUM(O27:INDIRECT(O39)))) ->  | N40: =IF(ISERROR(SUM(O27:INDIRECT(O39))/SUM(N27:INDIRECT(N39))),"",SUM(O27:INDIRECT(O39))/SUM(N27:INDIRECT(N39))) ->  | Q40: =IF(ISERROR(SUM(S27:INDIRECT(S39))),"",IF(SUM(S27:INDIRECT(S39))=0,"",SUM(S27:INDIRECT(S39)))) ->  | R40: =IF(ISERROR(SUM(S27:INDIRECT(S39))/SUM(R27:INDIRECT(R39))),"",SUM(S27:INDIRECT(S39))/SUM(R27:INDIRECT(R39))) ->  | U40: =IF(ISERROR(SUM(W27:INDIRECT(W39))),"",IF(SUM(W27:INDIRECT(W39))=0,"",SUM(W27:INDIRECT(W39)))) ->  | V40: =IF(ISERROR(SUM(W27:INDIRECT(W39))/SUM(V27:INDIRECT(V39))),"",SUM(W27:INDIRECT(W39))/SUM(V27:INDIRECT(V39))) ->  | Y40: =IF(ISERROR(SUM(AA27:INDIRECT(AA39))),"",IF(SUM(AA27:INDIRECT(AA39))=0,"",SUM(AA27:INDIRECT(AA39)))) ->  | Z40: =IF(ISERROR(SUM(AA27:INDIRECT(AA39))/SUM(Z27:INDIRECT(Z39))),"",SUM(AA27:INDIRECT(AA39))/SUM(Z27:INDIRECT(Z39))) ->  | AC40: =IF(ISERROR(SUM(AE27:INDIRECT(AE39))),"",IF(SUM(AE27:INDIRECT(AE39))=0,"",SUM(AE27:INDIRECT(AE39)))) ->  | AD40: =IF(ISERROR(SUM(AE27:INDIRECT(AE39))/SUM(AD27:INDIRECT(AD39))),"",SUM(AE27:INDIRECT(AE39))/SUM(AD27:INDIRECT(AD39))) ->  | AG40: =IF(ISERROR(SUM(AI27:INDIRECT(AI39))),"",IF(SUM(AI27:INDIRECT(AI39))=0,"",SUM(AI27:INDIRECT(AI39)))) ->  | AH40: =IF(ISERROR(SUM(AI27:INDIRECT(AI39))/SUM(AH27:INDIRECT(AH39))),"",SUM(AI27:INDIRECT(AI39))/SUM(AH27:INDIRECT(AH39))) ->  | AK40: =IF(ISERROR(SUM(AM27:INDIRECT(AM39))),"",IF(SUM(AM27:INDIRECT(AM39))=0,"",SUM(AM27:INDIRECT(AM39)))) ->  | AL40: =IF(ISERROR(SUM(AM27:INDIRECT(AM39))/SUM(AL27:INDIRECT(AL39))),"",SUM(AM27:INDIRECT(AM39))/SUM(AL27:INDIRECT(AL39))) ->  | AO40: =IF(ISERROR(SUM(AQ27:INDIRECT(AQ39))),"",IF(SUM(AQ27:INDIRECT(AQ39))=0,"",SUM(AQ27:INDIRECT(AQ39)))) ->  | AP40: =IF(ISERROR(SUM(AQ27:INDIRECT(AQ39))/SUM(AP27:INDIRECT(AP39))),"",SUM(AQ27:INDIRECT(AQ39))/SUM(AP27:INDIRECT(AP39))) -> 
D42: Combined Bulk Specific Gravity: | L42: =IF(AND(E39="",I39="",M39="",Q39="",U39="",Y39="",AC39="",AG39="",AK39="",AO39=""),"",IF(ISERROR((IF(E39>0,Bin1Frac,0)+IF(I39>0,Bin2Frac,0)+IF(M39>0,Bin3Frac,0)+IF(Q39>0,Bin4Frac,0)+IF(U39>0,Bin5Frac,0)+IF(Y39>0,Bin6Frac,0)+IF(AC39>0,Bin7Frac,0)+IF(AG39>0,Bin8Frac,0)+IF(AK39>0,Bin9Frac,0)+IF(AO39>0,Bin10Frac,0))/SUM(E39,I39,M39,Q39,U39,Y39,AC39,AG39,AK39,AO39)),"",(IF(E39>0,Bin1Frac,0)+IF(I39>0,Bin2Frac,0)+IF(M39>0,Bin3Frac,0)+IF(Q39>0,Bin4Frac,0)+IF(U39>0,Bin5Frac,0)+IF(Y39>0,Bin6Frac,0)+IF(AC39>0,Bin7Frac,0)+IF(AG39>0,Bin8Frac,0)+IF(AK39>0,Bin9Frac,0)+IF(AO39>0,Bin10Frac,0))/SUM(E39,I39,M39,Q39,U39,Y39,AC39,AG39,AK39,AO39))) ->  | P42: Specific Gravity of Asphalt: | X42: =IF(SGAsph="","",SGAsph) -> 
D43: Coarse Agg. Combined BSG: | L43: =IF(AND(E40="",I40="",M40="",Q40="",U40="",Y40="",AC40="",AG40="",AK40="",AO40=""),"",(IF(E40="",0,Bin1Frac*E40)/100+IF(I40="",0,Bin2Frac*I40)/100+IF(M40="",0,Bin3Frac*M40)/100+IF(Q40="",0,Bin4Frac*Q40)/100+IF(U40="",0,Bin5Frac*U40)/100+IF(Y40="",0,Bin6Frac*Y40)/100+IF(AC40="",0,Bin7Frac*AC40)/100+IF(AG40="",0,Bin8Frac*AG40)/100+IF(AK40="",0,Bin9Frac*AK40)/100+IF(AO40="",0,Bin10Frac*AO40)/100)/(IF(ISERROR((Bin1Frac*E40)/100/F40),0,(Bin1Frac*E40)/100/F40)+IF(ISERROR((Bin2Frac*I40)/100/J40),0,(Bin2Frac*I40)/100/J40)+IF(ISERROR((Bin3Frac*M40)/100/N40),0,(Bin3Frac*M40)/100/N40)+IF(ISERROR((Bin4Frac*Q40)/100/R40),0,(Bin4Frac*Q40)/100/R40)+IF(ISERROR(Bin5Frac*U40/100/V40),0,Bin5Frac*U40/100/V40)+IF(ISERROR(Bin6Frac*Y40/100/Z40),0,Bin6Frac*Y40/100/Z40)+IF(ISERROR(Bin7Frac*AC40/100/AD40),0,Bin7Frac*AC40/100/AD40)+IF(ISERROR(Bin8Frac*AG40/100/AH40),0,Bin8Frac*AG40/100/AH40)+IF(ISERROR(Bin9Frac*AK40/100/AL40),0,Bin9Frac*AK40/100/AL40)+IF(ISERROR(Bin10Frac*AO40/100/AP40),0,Bin10Frac*AO40/100/AP40))) ->  | P43: =IF(OR(LEFT(Grade,7)="ITEM340",LEFT(Grade,7)="ITEM341",LEFT(Grade,6)="SS3XXX"),IF(ROUND(MAX($E38,$I38,$M38,$Q38,$U38,$Y38,$AC38,$AG38,$AK38,$AO38)-MIN($E38,$I38,$M38,$Q38,$U38,$Y38,$AC38,$AG38,$AK38,$AO38),3)<0.3,"","Specific gravities vary by 0.300 or more. Design by volume is required if using TGC."),"") -> 
B45: Remarks: | D45: =NOW() -> 2020-10-28T23:16:33.930

Sheet Film Thickness (hidden)
B1: TEXAS DEPARTMENT OF TRANSPORTATION
B3: HMACP MIXTURE DESIGN : SUMMARY SHEET
B6: SAMPLE ID: | E6: =IF(sampleid="","",sampleid) ->  | H6: SAMPLE DATE: | K6: =IF(sampleddate="","",sampleddate) -> 
B7: LOT NUMBER: | E7: =IF(testnumber="","",testnumber) ->  | H7: LETTING DATE: | K7: =IF(lettingdate="","",lettingdate) -> 
B8: SAMPLE STATUS: | E8: =IF(status="","",status) ->  | H8: CONTROLLING CSJ: | K8: =IF(ccsj="","",ccsj) -> 
B9: COUNTY: | E9: =IF(county="","",county) ->  | H9: SPEC YEAR: | K9: =+IF(specyear="","",specyear) -> 2014
B10: SAMPLED BY: | E10: =IF(sampledby="","",sampledby) ->  | H10: SPEC ITEM: | K10: =IF(specitem="","",specitem) -> 
B11: SAMPLE LOCATION: | E11: =IF(samplelocation="","",samplelocation) ->  | H11: SPECIAL PROVISION: | K11: =IF(specialprovision="","",specialprovision) -> 
B12: MATERIAL CODE: | E12: =IF(material="","",material) ->  | H12: MIX TYPE: | K12: =IF(Grade="","",Grade) -> SS-3074-BMD-SP-C
B13: MATERIAL NAME: | E13: =IF(matl_nm="","",matl_nm) -> 
B14: PRODUCER: | E14: =IF(producer="","",producer) -> 
B15: AREA ENGINEER: | E15: =IF(areaengineer="","",areaengineer) ->  | H15: PROJECT MANAGER: | K15: =IF(projectmanager="","",projectmanager) -> 
B17: COURSE\LIFT: | E17: =IF(courselift="","",courselift) -> Surface | F17: STATION: | H17: =IF(station="","",station) ->  | J17: DIST. FROM CL: | L17: =IF(distfromcl="","",distfromcl) -> 
C20: Sieve Size: | E20: Cumulative % Passing | G20: Suface Area Factor | I20: Surface Area (m2/kg) | K20: Asphalt Absorption
C22: ='Combined Gradation'!B35 -> 1" | E22: =IF(C22="","",INDEX(DUST,1,22)) ->  | G22: =IF(C22="","",INDEX(INDIRECT(VLOOKUP(Grade,MIX_RANGE,2,0)),1,19)) ->  | I22: =IF(ISERROR(G22*E22/100),"-",G22*E22/100) -> - | K22: =IF(ISERROR((EffSG-Gsb)/(Gsb*EffSG)*SGAsph*100),"",((EffSG-Gsb)/(Gsb*EffSG))*SGAsph*100) -> 
C23: ='Combined Gradation'!B36 -> 3/4" | E23: =IF(C23="","",INDEX(DUST,2,22)) ->  | G23: =IF(C23="","",INDEX(INDIRECT(VLOOKUP(Grade,MIX_RANGE,2,0)),2,19)) ->  | I23: =IF(ISERROR(G23*E23/100),"-",G23*E23/100) -> -
C24: ='Combined Gradation'!B37 -> 1/2" | E24: =IF(C24="","",INDEX(DUST,3,22)) ->  | G24: =IF(C24="","",INDEX(INDIRECT(VLOOKUP(Grade,MIX_RANGE,2,0)),3,19)) ->  | I24: -
C25: ='Combined Gradation'!B38 -> 3/8" | E25: =IF(C25="","",INDEX(DUST,4,22)) ->  | G25: =IF(C25="","",INDEX(INDIRECT(VLOOKUP(Grade,MIX_RANGE,2,0)),4,19)) ->  | I25: -
C26: ='Combined Gradation'!B39 -> No. 4 | E26: =IF(C26="","",INDEX(DUST,5,22)) ->  | G26: =IF(C26="","",INDEX(INDIRECT(VLOOKUP(Grade,MIX_RANGE,2,0)),5,19)) ->  | I26: -
C27: ='Combined Gradation'!B40 -> No. 8 | E27: =IF(C27="","",INDEX(DUST,6,22)) ->  | G27: =IF(C27="","",INDEX(INDIRECT(VLOOKUP(Grade,MIX_RANGE,2,0)),6,19)) ->  | I27: -
C28: ='Combined Gradation'!B41 -> No. 16 | E28: =IF(C28="","",INDEX(DUST,7,22)) ->  | G28: =IF(C28="","",INDEX(INDIRECT(VLOOKUP(Grade,MIX_RANGE,2,0)),7,19)) ->  | I28: -
C29: ='Combined Gradation'!B42 -> No. 30 | E29: =IF(C29="","",INDEX(DUST,8,22)) ->  | G29: =IF(C29="","",INDEX(INDIRECT(VLOOKUP(Grade,MIX_RANGE,2,0)),8,19)) ->  | I29: -
C30: ='Combined Gradation'!B43 -> No. 50 | E30: =IF(C30="","",INDEX(DUST,9,22)) ->  | G30: =IF(C30="","",INDEX(INDIRECT(VLOOKUP(Grade,MIX_RANGE,2,0)),9,19)) ->  | I30: - | N30: No. 200 | O30: No. 100 | P30: No. 50 | Q30: No. 30 | R30: No. 16 | S30: SF100 | T30: SF30 | U30: S100 | V30: S30 | W30: S1 | X30: S2
C31: ='Combined Gradation'!B44 -> No. 200 | E31: =IF(C31="","",INDEX(DUST,10,22)) ->  | G31: =IF(C31="","",INDEX(INDIRECT(VLOOKUP(Grade,MIX_RANGE,2,0)),10,19)) ->  | I31: - | N31: =VLOOKUP(N30,$C$22:$F$31,3,0) ->  | O31: =N31+(P31-N31)/2 ->  | P31: =VLOOKUP(P30,$C$22:$F$31,3,0) ->  | Q31: =P31+(R31-P31)/2 ->  | R31: =VLOOKUP(R30,$C$22:$F$31,3,0) ->  | S31: 12.29 | T31: 2.87 | U31: =S31*O31/100 ->  | V31: =Q31*T31/100 ->  | W31: =SUM(I22:J31)+U31+V31 ->  | X31: =SUM(N31:P31)/5 -> 
B33: Asphalt Content (%) | D33: Specific Gravity Of Specimen (Ga) | F33: Maximum Specific Gravity (Gr) | H33: Effective Asphalt Content (%) | J33: Film Thickness (microns) | L33: Density from Gt (Percent) | N33: Volume Asphalt, Vb | P33: Volume Absorbed Asphalt, Vba | R33: Volume Effective Asphalt, Vbe | T33: Alt. Film Thickness (microns)
B35: =IF(version>=9,Summary!B53,IF(TSAC1="","",TSAC1)) -> 0 | D35: =IF(version>=9,AVERAGE(Summary!L53:M54),IF(TSGA1="","",TSGA1)) ->  | F35: =IF(version>=9,Summary!J53,IF(TSGR1="","",TSGR1)) ->  | H35: =IF(B35="","",B35-((Pba*(100-B35))/100)) ->  | J35: =IF(H35="","",1000000*((H35/100)/(1-(H35/100))/(W31*SGAsph*1000))) ->  | L35: =IF(ISERROR(100*(D35/(100/(((100-B35)/EffSG)+(B35/SGAsph))))),"",100*(D35/(100/(((100-B35)/EffSG)+(B35/SGAsph))))) ->  | N35: =actac1*D35/SGAsph ->  | P35: =D35*Pba/SGAsph ->  | R35: =N35-P35 ->  | T35: =1000*R35/($X$31*D35*(100-actac1)) ->  | AA35: =actac1 -> 0 | AB35: =actden1 ->  | AC35: 92 | AD35: =AA35 -> 0 | AE35: =actft1 ->  | AF35: 9
B36: =IF(version>=9,Summary!B55,IF(TSAC2="","",TSAC2)) -> 0 | D36: =IF(version>=9,AVERAGE(Summary!L55:M56),IF(TSGA2="","",TSGA2)) ->  | F36: =IF(version>=9,Summary!J55,IF(TSGR2="","",TSGR2)) ->  | H36: =IF(B36="","",B36-((Pba*(100-B36))/100)) ->  | J36: =IF(H36="","",1000000*((H36/100)/(1-(H36/100))/(W31*SGAsph*1000))) ->  | L36: =IF(ISERROR(100*(D36/(100/(((100-B36)/EffSG)+(B36/SGAsph))))),"",100*(D36/(100/(((100-B36)/EffSG)+(B36/SGAsph))))) ->  | N36: =actac2*D36/SGAsph ->  | P36: =D36*Pba/SGAsph ->  | R36: =N36-P36 ->  | T36: =1000*R36/($X$31*D36*(100-actac1)) ->  | AA36: =actac2 -> 0 | AB36: =actden2 ->  | AC36: 92 | AD36: =AA36 -> 0 | AE36: =actft2 ->  | AF36: 9
B37: =IF(filmac3="","",filmac3) ->  | F37: =IF(filmgr3="","",filmgr3) ->  | H37: =IF(B37="","",B37-((Pba*(100-B37))/100)) ->  | J37: =IF(H37="","",1000000*((H37/100)/(1-(H37/100))/(SUM(I$22:I$31)*SGAsph*1000))) ->  | AC37: 92 | AF37: 9
B38: =filmac4 ->  | F38: =filmgr4 ->  | H38: =IF(B38="","",B38-((Pba*(100-B38))/100)) ->  | J38: =IF(H38="","",1000000*((H38/100)/(1-(H38/100))/(SUM(I$22:I$31)*SGAsph*1000))) ->  | AC38: 92 | AF38: 9
B39: =filmac5 ->  | F39: =filmgr5 ->  | H39: =IF(B39="","",B39-((Pba*(100-B39))/100)) ->  | J39: =IF(H39="","",1000000*((H39/100)/(1-(H39/100))/(SUM(I$22:I$31)*SGAsph*1000))) ->  | AC39: 92 | AF39: 9
B40: Final specimen | AA40: =B41 -> 0 | AB40: =L41 ->  | AC40: 92 | AD40: =AA40 -> 0 | AE40: =J41 ->  | AF40: 9
B41: =Summary!B66 -> 0 | D41: =Summary!D66 -> 0 | F41: =Summary!F66 -> 0 | H41: =IF(B41="","",B41-((Pba*(100-B41))/100)) ->  | J41: =IF(H41="","",1000000*((H41/100)/(1-(H41/100))/(W31*SGAsph*1000))) ->  | L41: =IF(ISERROR(100*(D41/(100/(((100-B41)/EffSG)+(B41/SGAsph))))),"",100*(D41/(100/(((100-B41)/EffSG)+(B41/SGAsph))))) -> 
B44: Asphalt Content at Minimum Film Thickness (%) | D44: Effective Asphalt Content at Min Film Thickness (%) | F44: Minimum Film Thickness (microns) | H44: Asphalt Content at Maximum Film Thickness (%) | J44: Effective Ashpalt Content at Max Film Thickness (%) | L44: Maximum Film Thickness (microns)
B46: =IF(Gsb="","",(9*W31*SGAsph*(100+Pba)+1000*Pba)/(9*W31*SGAsph*(1+Pba/100)+1000+10*Pba)) ->  | D46: =IF(Gsb="","",B46-(Pba*(100-B46)/100)) ->  | F46: =IF(Gsb="","",1000000*((D46/100)/(1-(D46/100))/(W31*SGAsph*1000))) ->  | H46: =IF(Gsb="","",(11*W31*SGAsph*(100+Pba)+1000*Pba)/(11*W31*SGAsph*(1+Pba/100)+1000+10*Pba)) ->  | J46: =IF(Gsb="","",H46-(Pba*(100-H46)/100)) ->  | L46: =IF(Gsb="","",1000000*((J46/100)/(1-(J46/100))/(W31*SGAsph*1000))) -> 
D49: AC Range | F49: Min FT | H49: Min Density | J49: Max Density
D50: =IF(LEFT(Grade,8)="ITEM3142",0,"") ->  | F50: =IF(LEFT(Grade,8)="ITEM3142",9,"") ->  | H50: =IF(LEFT(Grade,8)="ITEM3142",INDEX(INDIRECT(Grade),1,13),"") ->  | J50: =IF(LEFT(Grade,8)="ITEM3142",INDEX(INDIRECT(Grade),1,14),"") -> 
D51: =IF(LEFT(Grade,8)="ITEM3142",100,"") ->  | F51: =IF(LEFT(Grade,8)="ITEM3142",9,"") ->  | H51: =IF(LEFT(Grade,8)="ITEM3142",INDEX(INDIRECT(Grade),1,13),"") ->  | J51: =IF(LEFT(Grade,8)="ITEM3142",INDEX(INDIRECT(Grade),1,14),"") -> 
D52: Spec Min AC | F52: Spec Max AC | H52: FT Range | J52: Density Range
D53: =IF(LEFT(Grade,8)="ITEM3142",INDEX(INDIRECT(Grade),1,11),"") ->  | F53: =IF(LEFT(Grade,8)="ITEM3142",INDEX(INDIRECT(Grade),1,12),"") ->  | H53: =IF(LEFT(Grade,8)="ITEM3142",0,"") ->  | J53: =IF(LEFT(Grade,8)="ITEM3142",0,"") -> 
D54: =IF(LEFT(Grade,8)="ITEM3142",INDEX(INDIRECT(Grade),1,11),"") ->  | F54: =IF(LEFT(Grade,8)="ITEM3142",INDEX(INDIRECT(Grade),1,12),"") ->  | H54: =IF(LEFT(Grade,8)="ITEM3142",100,"") ->  | J54: =IF(LEFT(Grade,8)="ITEM3142",125,"") -> 
G64: PREDICTION ESTIMATES
G65: AC % | I65: Film Thickness (microns) | K65: Density (%)
I66: =IF(G66="","",1000000*(((G66-(Pba*(100-G66)/100))/100)/(1-((G66-(Pba*(100-G66)/100))/100))/(SUM(I$22:J$31)*SGAsph*1000))) ->  | K66: =IF(G66="","",TREND(L35:L36,B35:B36,G66)) -> 

Sheet RX (hidden)
A1: =COUNT(A3:A4997) -> 1786
A2: Fld_nbr | B2: Value | C2: Desc_1 | D2: Desc_2 | E2: Desc_3 | F2: Desc_4 | G2: Desc_5 | H2: Desc_6 | I2: Desc_7 | J2: Desc_8
A3: 1 | B3: =IF('Combined Gradation'!$B$54="","",'Combined Gradation'!$B$54) ->  | C3: ='Combined Gradation'!$B$53 -> Remarks:
A4: 2 | B4: =IF('Combined Gradation'!$E$18="","",'Combined Gradation'!$E$18) -> Surface | C4: =IF('Combined Gradation'!$B$18="","",'Combined Gradation'!$B$18) -> COURSE\LIFT:
A5: 3 | B5: =IF('Combined Gradation'!$D$59="","",'Combined Gradation'!$D$59) ->  | C5: Tested By | D5: =IF('Combined Gradation'!$B$59="","",'Combined Gradation'!$B$59) -> TX207
A6: 4 | B6: =IF('Combined Gradation'!$J$59="","",'Combined Gradation'!$J$59) ->  | C6: Tested Date | D6: =IF('Combined Gradation'!$B$59="","",'Combined Gradation'!$B$59) -> TX207
A7: 5 | B7: =IF('Combined Gradation'!$D$61="","",'Combined Gradation'!$D$61) ->  | C7: Tested By | D7: =IF('Combined Gradation'!$B$61="","",'Combined Gradation'!$B$61) -> TX226
A8: 6 | B8: =IF('Combined Gradation'!$J$61="","",'Combined Gradation'!$J$61) ->  | C8: Tested Date | D8: =IF('Combined Gradation'!$B$61="","",'Combined Gradation'!$B$61) -> TX226
A9: 7 | B9: =IF('Combined Gradation'!$D$63="","",'Combined Gradation'!$D$63) ->  | C9: Tested By | D9: =IF('Combined Gradation'!$B$63="","",'Combined Gradation'!$B$63) -> TX227
A10: 8 | B10: =IF('Combined Gradation'!$J$63="","",'Combined Gradation'!$J$63) ->  | C10: Tested Date | D10: =IF('Combined Gradation'!$B$63="","",'Combined Gradation'!$B$63) -> TX227
A11: 9 | B11: =IF('Combined Gradation'!$D$67="","",'Combined Gradation'!$D$67) ->  | C11: Tested By | D11: =IF('Combined Gradation'!$B$67="","",'Combined Gradation'!$B$67) -> TX235
A12: 10 | B12: =IF('Combined Gradation'!$J$67="","",'Combined Gradation'!$J$67) ->  | C12: Tested Date | D12: =IF('Combined Gradation'!$B$67="","",'Combined Gradation'!$B$67) -> TX235
A13: 11 | B13: =IF('Combined Gradation'!$D$69="","",'Combined Gradation'!$D$69) ->  | C13: Tested By | D13: =IF('Combined Gradation'!$B$69="","",'Combined Gradation'!$B$69) -> TX242
A14: 12 | B14: =IF('Combined Gradation'!$J$69="","",'Combined Gradation'!$J$69) ->  | C14: Tested Date | D14: =IF('Combined Gradation'!$B$69="","",'Combined Gradation'!$B$69) -> TX242
A15: 13 | B15: =IF('Combined Gradation'!$D$71="","",'Combined Gradation'!$D$71) ->  | C15: Tested By | D15: =IF('Combined Gradation'!$B$71="","",'Combined Gradation'!$B$71) -> TX530
A16: 14 | B16: =IF('Combined Gradation'!$J$71="","",'Combined Gradation'!$J$71) ->  | C16: Tested Date | D16: =IF('Combined Gradation'!$B$71="","",'Combined Gradation'!$B$71) -> TX530
A17: 15 | B17: =IF('Combined Gradation'!$D$73="","",'Combined Gradation'!$D$73) ->  | C17: Tested By | D17: =IF('Combined Gradation'!$B$73="","",'Combined Gradation'!$B$73) -> 
A18: 16 | B18: =IF('Combined Gradation'!$J$73="","",'Combined Gradation'!$J$73) ->  | C18: Tested Date | D18: =IF('Combined Gradation'!$B$73="","",'Combined Gradation'!$B$73) -> 
A19: 17 | B19: =IF('Combined Gradation'!$D$75="","",'Combined Gradation'!$D$75) ->  | C19: Tested By | D19: =IF('Combined Gradation'!$B$75="","",'Combined Gradation'!$B$75) -> 
A20: 18 | B20: =IF('Combined Gradation'!$J$75="","",'Combined Gradation'!$J$75) ->  | C20: Tested Date | D20: =IF('Combined Gradation'!$B$75="","",'Combined Gradation'!$B$75) -> 
A21: 19 | B21: =IF('Combined Gradation'!$V$18="","",'Combined Gradation'!$V$18) ->  | C21: =IF('Combined Gradation'!$R$18="","",'Combined Gradation'!$R$18) -> CONTRACTOR DESIGN # :
A22: 20 | B22: =IF('Combined Gradation'!$E$22="","",'Combined Gradation'!$E$22) ->  | C22: =IF('Combined Gradation'!$B$5="","",'Combined Gradation'!$B$5) -> 2014 HMACP MIXTURE DESIGN : COMBINED GRADATION | D22: =IF('Combined Gradation'!$B$22="","",'Combined Gradation'!$B$22) -> Source: | E22: =IF('Combined Gradation'!$E$21="","",'Combined Gradation'!$E$21) -> Bin No.1
A23: 21 | B23: =IF('Combined Gradation'!$G$22="","",'Combined Gradation'!$G$22) ->  | C23: =IF('Combined Gradation'!$B$5="","",'Combined Gradation'!$B$5) -> 2014 HMACP MIXTURE DESIGN : COMBINED GRADATION | D23: =IF('Combined Gradation'!$B$22="","",'Combined Gradation'!$B$22) -> Source: | E23: =IF('Combined Gradation'!$G$21="","",'Combined Gradation'!$G$21) -> Bin No.2
A24: 22 | B24: =IF('Combined Gradation'!$I$22="","",'Combined Gradation'!$I$22) ->  | C24: =IF('Combined Gradation'!$B$5="","",'Combined Gradation'!$B$5) -> 2014 HMACP MIXTURE DESIGN : COMBINED GRADATION | D24: =IF('Combined Gradation'!$B$22="","",'Combined Gradation'!$B$22) -> Source: | E24: =IF('Combined Gradation'!$I$21="","",'Combined Gradation'!$I$21) -> Bin No.3
A25: 23 | B25: =IF('Combined Gradation'!$K$22="","",'Combined Gradation'!$K$22) ->  | C25: =IF('Combined Gradation'!$B$5="","",'Combined Gradation'!$B$5) -> 2014 HMACP MIXTURE DESIGN : COMBINED GRADATION | D25: =IF('Combined Gradation'!$B$22="","",'Combined Gradation'!$B$22) -> Source: | E25: =IF('Combined Gradation'!$K$21="","",'Combined Gradation'!$K$21) -> Bin No.4
A26: 24 | B26: =IF('Combined Gradation'!$M$22="","",'Combined Gradation'!$M$22) ->  | C26: =IF('Combined Gradation'!$B$5="","",'Combined Gradation'!$B$5) -> 2014 HMACP MIXTURE DESIGN : COMBINED GRADATION | D26: =IF('Combined Gradation'!$B$22="","",'Combined Gradation'!$B$22) -> Source: | E26: =IF('Combined Gradation'!$M$21="","",'Combined Gradation'!$M$21) -> Bin No.5
A27: 25 | B27: =IF('Combined Gradation'!$O$22="","",'Combined Gradation'!$O$22) ->  | C27: =IF('Combined Gradation'!$B$5="","",'Combined Gradation'!$B$5) -> 2014 HMACP MIXTURE DESIGN : COMBINED GRADATION | D27: =IF('Combined Gradation'!$B$22="","",'Combined Gradation'!$B$22) -> Source: | E27: =IF('Combined Gradation'!$O$21="","",'Combined Gradation'!$O$21) -> Bin No.6
A28: 26 | B28: =IF('Combined Gradation'!$Q$22="","",'Combined Gradation'!$Q$22) ->  | C28: =IF('Combined Gradation'!$B$5="","",'Combined Gradation'!$B$5) -> 2014 HMACP MIXTURE DESIGN : COMBINED GRADATION | D28: =IF('Combined Gradation'!$B$22="","",'Combined Gradation'!$B$22) -> Source: | E28: =IF('Combined Gradation'!$Q$21="","",'Combined Gradation'!$Q$21) -> Bin No.7
A29: 27 | B29: =IF('Combined Gradation'!$E$23="","",'Combined Gradation'!$E$23) ->  | C29: =IF('Combined Gradation'!$B$5="","",'Combined Gradation'!$B$5) -> 2014 HMACP MIXTURE DESIGN : COMBINED GRADATION | D29: =IF('Combined Gradation'!$B$23="","",'Combined Gradation'!$B$23) -> Pit: | E29: =IF('Combined Gradation'!$E$21="","",'Combined Gradation'!$E$21) -> Bin No.1
A30: 28 | B30: =IF('Combined Gradation'!$G$23="","",'Combined Gradation'!$G$23) ->  | C30: =IF('Combined Gradation'!$B$5="","",'Combined Gradation'!$B$5) -> 2014 HMACP MIXTURE DESIGN : COMBINED GRADATION | D30: =IF('Combined Gradation'!$B$23="","",'Combined Gradation'!$B$23) -> Pit: | E30: =IF('Combined Gradation'!$G$21="","",'Combined Gradation'!$G$21) -> Bin No.2
A31: 29 | B31: =IF('Combined Gradation'!$I$23="","",'Combined Gradation'!$I$23) ->  | C31: =IF('Combined Gradation'!$B$5="","",'Combined Gradation'!$B$5) -> 2014 HMACP MIXTURE DESIGN : COMBINED GRADATION | D31: =IF('Combined Gradation'!$B$23="","",'Combined Gradation'!$B$23) -> Pit: | E31: =IF('Combined Gradation'!$I$21="","",'Combined Gradation'!$I$21) -> Bin No.3
A32: 30 | B32: =IF('Combined Gradation'!$K$23="","",'Combined Gradation'!$K$23) ->  | C32: =IF('Combined Gradation'!$B$5="","",'Combined Gradation'!$B$5) -> 2014 HMACP MIXTURE DESIGN : COMBINED GRADATION | D32: =IF('Combined Gradation'!$B$23="","",'Combined Gradation'!$B$23) -> Pit: | E32: =IF('Combined Gradation'!$K$21="","",'Combined Gradation'!$K$21) -> Bin No.4
A33: 31 | B33: =IF('Combined Gradation'!$M$23="","",'Combined Gradation'!$M$23) ->  | C33: =IF('Combined Gradation'!$B$5="","",'Combined Gradation'!$B$5) -> 2014 HMACP MIXTURE DESIGN : COMBINED GRADATION | D33: =IF('Combined Gradation'!$B$23="","",'Combined Gradation'!$B$23) -> Pit: | E33: =IF('Combined Gradation'!$M$21="","",'Combined Gradation'!$M$21) -> Bin No.5
A34: 32 | B34: =IF('Combined Gradation'!$O$23="","",'Combined Gradation'!$O$23) ->  | C34: =IF('Combined Gradation'!$B$5="","",'Combined Gradation'!$B$5) -> 2014 HMACP MIXTURE DESIGN : COMBINED GRADATION | D34: =IF('Combined Gradation'!$B$23="","",'Combined Gradation'!$B$23) -> Pit: | E34: =IF('Combined Gradation'!$O$21="","",'Combined Gradation'!$O$21) -> Bin No.6
A35: 33 | B35: =IF('Combined Gradation'!$Q$23="","",'Combined Gradation'!$Q$23) ->  | C35: =IF('Combined Gradation'!$B$5="","",'Combined Gradation'!$B$5) -> 2014 HMACP MIXTURE DESIGN : COMBINED GRADATION | D35: =IF('Combined Gradation'!$B$23="","",'Combined Gradation'!$B$23) -> Pit: | E35: =IF('Combined Gradation'!$Q$21="","",'Combined Gradation'!$Q$21) -> Bin No.7
A36: 34 | B36: =IF('Combined Gradation'!$E$24="","",'Combined Gradation'!$E$24) ->  | C36: =IF('Combined Gradation'!$B$5="","",'Combined Gradation'!$B$5) -> 2014 HMACP MIXTURE DESIGN : COMBINED GRADATION | D36: =IF('Combined Gradation'!$B$24="","",'Combined Gradation'!$B$24) -> Number: | E36: =IF('Combined Gradation'!$E$21="","",'Combined Gradation'!$E$21) -> Bin No.1
A37: 35 | B37: =IF('Combined Gradation'!$G$24="","",'Combined Gradation'!$G$24) ->  | C37: =IF('Combined Gradation'!$B$5="","",'Combined Gradation'!$B$5) -> 2014 HMACP MIXTURE DESIGN : COMBINED GRADATION | D37: =IF('Combined Gradation'!$B$24="","",'Combined Gradation'!$B$24) -> Number: | E37: =IF('Combined Gradation'!$G$21="","",'Combined Gradation'!$G$21) -> Bin No.2
A38: 36 | B38: =IF('Combined Gradation'!$I$24="","",'Combined Gradation'!$I$24) ->  | C38: =IF('Combined Gradation'!$B$5="","",'Combined Gradation'!$B$5) -> 2014 HMACP MIXTURE DESIGN : COMBINED GRADATION | D38: =IF('Combined Gradation'!$B$24="","",'Combined Gradation'!$B$24) -> Number: | E38: =IF('Combined Gradation'!$I$21="","",'Combined Gradation'!$I$21) -> Bin No.3
A39: 37 | B39: =IF('Combined Gradation'!$K$24="","",'Combined Gradation'!$K$24) ->  | C39: =IF('Combined Gradation'!$B$5="","",'Combined Gradation'!$B$5) -> 2014 HMACP MIXTURE DESIGN : COMBINED GRADATION | D39: =IF('Combined Gradation'!$B$24="","",'Combined Gradation'!$B$24) -> Number: | E39: =IF('Combined Gradation'!$K$21="","",'Combined Gradation'!$K$21) -> Bin No.4
A40: 38 | B40: =IF('Combined Gradation'!$M$24="","",'Combined Gradation'!$M$24) ->  | C40: =IF('Combined Gradation'!$B$5="","",'Combined Gradation'!$B$5) -> 2014 HMACP MIXTURE DESIGN : COMBINED GRADATION | D40: =IF('Combined Gradation'!$B$24="","",'Combined Gradation'!$B$24) -> Number: | E40: =IF('Combined Gradation'!$M$21="","",'Combined Gradation'!$M$21) -> Bin No.5
A41: 39 | B41: =IF('Combined Gradation'!$O$24="","",'Combined Gradation'!$O$24) ->  | C41: =IF('Combined Gradation'!$B$5="","",'Combined Gradation'!$B$5) -> 2014 HMACP MIXTURE DESIGN : COMBINED GRADATION | D41: =IF('Combined Gradation'!$B$24="","",'Combined Gradation'!$B$24) -> Number: | E41: =IF('Combined Gradation'!$O$21="","",'Combined Gradation'!$O$21) -> Bin No.6
A42: 40 | B42: =IF('Combined Gradation'!$Q$24="","",'Combined Gradation'!$Q$24) ->  | C42: =IF('Combined Gradation'!$B$5="","",'Combined Gradation'!$B$5) -> 2014 HMACP MIXTURE DESIGN : COMBINED GRADATION | D42: =IF('Combined Gradation'!$B$24="","",'Combined Gradation'!$B$24) -> Number: | E42: =IF('Combined Gradation'!$Q$21="","",'Combined Gradation'!$Q$21) -> Bin No.7
A43: 41 | B43: =IF('Combined Gradation'!$E$26="","",'Combined Gradation'!$E$26) ->  | C43: =IF('Combined Gradation'!$B$5="","",'Combined Gradation'!$B$5) -> 2014 HMACP MIXTURE DESIGN : COMBINED GRADATION | D43: =IF('Combined Gradation'!$B$26="","",'Combined Gradation'!$B$26) -> Sample ID: | E43: =IF('Combined Gradation'!$E$21="","",'Combined Gradation'!$E$21) -> Bin No.1
A44: 42 | B44: =IF('Combined Gradation'!$G$26="","",'Combined Gradation'!$G$26) ->  | C44: =IF('Combined Gradation'!$B$5="","",'Combined Gradation'!$B$5) -> 2014 HMACP MIXTURE DESIGN : COMBINED GRADATION | D44: =IF('Combined Gradation'!$B$26="","",'Combined Gradation'!$B$26) -> Sample ID: | E44: =IF('Combined Gradation'!$G$21="","",'Combined Gradation'!$G$21) -> Bin No.2
A45: 43 | B45: =IF('Combined Gradation'!$I$26="","",'Combined Gradation'!$I$26) ->  | C45: =IF('Combined Gradation'!$B$5="","",'Combined Gradation'!$B$5) -> 2014 HMACP MIXTURE DESIGN : COMBINED GRADATION | D45: =IF('Combined Gradation'!$B$26="","",'Combined Gradation'!$B$26) -> Sample ID: | E45: =IF('Combined Gradation'!$I$21="","",'Combined Gradation'!$I$21) -> Bin No.3
A46: 44 | B46: =IF('Combined Gradation'!$K$26="","",'Combined Gradation'!$K$26) ->  | C46: =IF('Combined Gradation'!$B$5="","",'Combined Gradation'!$B$5) -> 2014 HMACP MIXTURE DESIGN : COMBINED GRADATION | D46: =IF('Combined Gradation'!$B$26="","",'Combined Gradation'!$B$26) -> Sample ID: | E46: =IF('Combined Gradation'!$K$21="","",'Combined Gradation'!$K$21) -> Bin No.4
A47: 45 | B47: =IF('Combined Gradation'!$M$26="","",'Combined Gradation'!$M$26) ->  | C47: =IF('Combined Gradation'!$B$5="","",'Combined Gradation'!$B$5) -> 2014 HMACP MIXTURE DESIGN : COMBINED GRADATION | D47: =IF('Combined Gradation'!$B$26="","",'Combined Gradation'!$B$26) -> Sample ID: | E47: =IF('Combined Gradation'!$M$21="","",'Combined Gradation'!$M$21) -> Bin No.5
A48: 46 | B48: =IF('Combined Gradation'!$O$26="","",'Combined Gradation'!$O$26) ->  | C48: =IF('Combined Gradation'!$B$5="","",'Combined Gradation'!$B$5) -> 2014 HMACP MIXTURE DESIGN : COMBINED GRADATION | D48: =IF('Combined Gradation'!$B$26="","",'Combined Gradation'!$B$26) -> Sample ID: | E48: =IF('Combined Gradation'!$O$21="","",'Combined Gradation'!$O$21) -> Bin No.6
A49: 47 | B49: =IF('Combined Gradation'!$Q$26="","",'Combined Gradation'!$Q$26) ->  | C49: =IF('Combined Gradation'!$B$5="","",'Combined Gradation'!$B$5) -> 2014 HMACP MIXTURE DESIGN : COMBINED GRADATION | D49: =IF('Combined Gradation'!$B$26="","",'Combined Gradation'!$B$26) -> Sample ID: | E49: =IF('Combined Gradation'!$Q$21="","",'Combined Gradation'!$Q$21) -> Bin No.7
A50: 48 | B50: =IF('Combined Gradation'!$E$27="","",'Combined Gradation'!$E$27) ->  | C50: =IF('Combined Gradation'!$B$5="","",'Combined Gradation'!$B$5) -> 2014 HMACP MIXTURE DESIGN : COMBINED GRADATION | D50: =IF('Combined Gradation'!$B$27="","",'Combined Gradation'!$B$27) -> Recycled Material?: | E50: =IF('Combined Gradation'!$E$21="","",'Combined Gradation'!$E$21) -> Bin No.1
A51: 49 | B51: =IF('Combined Gradation'!$G$27="","",'Combined Gradation'!$G$27) ->  | C51: =IF('Combined Gradation'!$B$5="","",'Combined Gradation'!$B$5) -> 2014 HMACP MIXTURE DESIGN : COMBINED GRADATION | D51: =IF('Combined Gradation'!$B$27="","",'Combined Gradation'!$B$27) -> Recycled Material?: | E51: =IF('Combined Gradation'!$G$21="","",'Combined Gradation'!$G$21) -> Bin No.2
A52: 50 | B52: =IF('Combined Gradation'!$I$27="","",'Combined Gradation'!$I$27) ->  | C52: =IF('Combined Gradation'!$B$5="","",'Combined Gradation'!$B$5) -> 2014 HMACP MIXTURE DESIGN : COMBINED GRADATION | D52: =IF('Combined Gradation'!$B$27="","",'Combined Gradation'!$B$27) -> Recycled Material?: | E52: =IF('Combined Gradation'!$I$21="","",'Combined Gradation'!$I$21) -> Bin No.3
A53: 51 | B53: =IF('Combined Gradation'!$K$27="","",'Combined Gradation'!$K$27) ->  | C53: =IF('Combined Gradation'!$B$5="","",'Combined Gradation'!$B$5) -> 2014 HMACP MIXTURE DESIGN : COMBINED GRADATION | D53: =IF('Combined Gradation'!$B$27="","",'Combined Gradation'!$B$27) -> Recycled Material?: | E53: =IF('Combined Gradation'!$K$21="","",'Combined Gradation'!$K$21) -> Bin No.4
A54: 52 | B54: =IF('Combined Gradation'!$M$27="","",'Combined Gradation'!$M$27) ->  | C54: =IF('Combined Gradation'!$B$5="","",'Combined Gradation'!$B$5) -> 2014 HMACP MIXTURE DESIGN : COMBINED GRADATION | D54: =IF('Combined Gradation'!$B$27="","",'Combined Gradation'!$B$27) -> Recycled Material?: | E54: =IF('Combined Gradation'!$M$21="","",'Combined Gradation'!$M$21) -> Bin No.5
A55: 53 | B55: =IF('Combined Gradation'!$O$27="","",'Combined Gradation'!$O$27) ->  | C55: =IF('Combined Gradation'!$B$5="","",'Combined Gradation'!$B$5) -> 2014 HMACP MIXTURE DESIGN : COMBINED GRADATION | D55: =IF('Combined Gradation'!$B$27="","",'Combined Gradation'!$B$27) -> Recycled Material?: | E55: =IF('Combined Gradation'!$O$21="","",'Combined Gradation'!$O$21) -> Bin No.6
A56: 54 | B56: =IF('Combined Gradation'!$Q$27="","",'Combined Gradation'!$Q$27) ->  | C56: =IF('Combined Gradation'!$B$5="","",'Combined Gradation'!$B$5) -> 2014 HMACP MIXTURE DESIGN : COMBINED GRADATION | D56: =IF('Combined Gradation'!$B$27="","",'Combined Gradation'!$B$27) -> Recycled Material?: | E56: =IF('Combined Gradation'!$Q$21="","",'Combined Gradation'!$Q$21) -> Bin No.7
A57: 55 | B57: =IF('Combined Gradation'!$E$30="","",'Combined Gradation'!$E$30) ->  | C57: =IF('Combined Gradation'!$B$5="","",'Combined Gradation'!$B$5) -> 2014 HMACP MIXTURE DESIGN : COMBINED GRADATION | D57: =IF('Combined Gradation'!$B$30="","",'Combined Gradation'!$B$30) -> Asphalt%: | E57: =IF('Combined Gradation'!$E$21="","",'Combined Gradation'!$E$21) -> Bin No.1
A58: 56 | B58: =IF('Combined Gradation'!$G$30="","",'Combined Gradation'!$G$30) ->  | C58: =IF('Combined Gradation'!$B$5="","",'Combined Gradation'!$B$5) -> 2014 HMACP MIXTURE DESIGN : COMBINED GRADATION | D58: =IF('Combined Gradation'!$B$30="","",'Combined Gradation'!$B$30) -> Asphalt%: | E58: =IF('Combined Gradation'!$G$21="","",'Combined Gradation'!$G$21) -> Bin No.2
A59: 57 | B59: =IF('Combined Gradation'!$I$30="","",'Combined Gradation'!$I$30) ->  | C59: =IF('Combined Gradation'!$B$5="","",'Combined Gradation'!$B$5) -> 2014 HMACP MIXTURE DESIGN : COMBINED GRADATION | D59: =IF('Combined Gradation'!$B$30="","",'Combined Gradation'!$B$30) -> Asphalt%: | E59: =IF('Combined Gradation'!$I$21="","",'Combined Gradation'!$I$21) -> Bin No.3
A60: 58 | B60: =IF('Combined Gradation'!$K$30="","",'Combined Gradation'!$K$30) ->  | C60: =IF('Combined Gradation'!$B$5="","",'Combined Gradation'!$B$5) -> 2014 HMACP MIXTURE DESIGN : COMBINED GRADATION | D60: =IF('Combined Gradation'!$B$30="","",'Combined Gradation'!$B$30) -> Asphalt%: | E60: =IF('Combined Gradation'!$K$21="","",'Combined Gradation'!$K$21) -> Bin No.4
A61: 59 | B61: =IF('Combined Gradation'!$M$30="","",'Combined Gradation'!$M$30) ->  | C61: =IF('Combined Gradation'!$B$5="","",'Combined Gradation'!$B$5) -> 2014 HMACP MIXTURE DESIGN : COMBINED GRADATION | D61: =IF('Combined Gradation'!$B$30="","",'Combined Gradation'!$B$30) -> Asphalt%: | E61: =IF('Combined Gradation'!$M$21="","",'Combined Gradation'!$M$21) -> Bin No.5
A62: 60 | B62: =IF('Combined Gradation'!#REF!="","",'Combined Gradation'!#REF!) ->  | C62: =IF('Combined Gradation'!$B$5="","",'Combined Gradation'!$B$5) -> 2014 HMACP MIXTURE DESIGN : COMBINED GRADATION | D62: =IF('Combined Gradation'!$B$30="","",'Combined Gradation'!$B$30) -> Asphalt%: | E62: =IF('Combined Gradation'!$O$21="","",'Combined Gradation'!$O$21) -> Bin No.6
A63: 61 | B63: =IF('Combined Gradation'!$O$30="","",'Combined Gradation'!$O$30) -> Adjusted Recycled Asphalt Binder (%) | C63: =IF('Combined Gradation'!$B$5="","",'Combined Gradation'!$B$5) -> 2014 HMACP MIXTURE DESIGN : COMBINED GRADATION | D63: =IF('Combined Gradation'!$B$30="","",'Combined Gradation'!$B$30) -> Asphalt%: | E63: =IF('Combined Gradation'!$Q$21="","",'Combined Gradation'!$Q$21) -> Bin No.7
A64: 62 | B64: =IF('Combined Gradation'!$E$32="","",'Combined Gradation'!$E$32) ->  | C64: =IF('Combined Gradation'!$B$5="","",'Combined Gradation'!$B$5) -> 2014 HMACP MIXTURE DESIGN : COMBINED GRADATION | D64: =IF('Combined Gradation'!$B$32="","",'Combined Gradation'!$B$32) -> Individual Bin (%): | E64: =IF('Combined Gradation'!$E$21="","",'Combined Gradation'!$E$21) -> Bin No.1
A65: 63 | B65: =IF('Combined Gradation'!$G$32="","",'Combined Gradation'!$G$32) ->  | C65: =IF('Combined Gradation'!$B$5="","",'Combined Gradation'!$B$5) -> 2014 HMACP MIXTURE DESIGN : COMBINED GRADATION | D65: =IF('Combined Gradation'!$B$32="","",'Combined Gradation'!$B$32) -> Individual Bin (%): | E65: =IF('Combined Gradation'!$G$21="","",'Combined Gradation'!$G$21) -> Bin No.2
A66: 64 | B66: =IF('Combined Gradation'!$I$32="","",'Combined Gradation'!$I$32) ->  | C66: =IF('Combined Gradation'!$B$5="","",'Combined Gradation'!$B$5) -> 2014 HMACP MIXTURE DESIGN : COMBINED GRADATION | D66: =IF('Combined Gradation'!$B$32="","",'Combined Gradation'!$B$32) -> Individual Bin (%): | E66: =IF('Combined Gradation'!$I$21="","",'Combined Gradation'!$I$21) -> Bin No.3
A67: 65 | B67: =IF('Combined Gradation'!$K$32="","",'Combined Gradation'!$K$32) ->  | C67: =IF('Combined Gradation'!$B$5="","",'Combined Gradation'!$B$5) -> 2014 HMACP MIXTURE DESIGN : COMBINED GRADATION | D67: =IF('Combined Gradation'!$B$32="","",'Combined Gradation'!$B$32) -> Individual Bin (%): | E67: =IF('Combined Gradation'!$K$21="","",'Combined Gradation'!$K$21) -> Bin No.4
A68: 66 | B68: =IF('Combined Gradation'!$M$32="","",'Combined Gradation'!$M$32) ->  | C68: =IF('Combined Gradation'!$B$5="","",'Combined Gradation'!$B$5) -> 2014 HMACP MIXTURE DESIGN : COMBINED GRADATION | D68: =IF('Combined Gradation'!$B$32="","",'Combined Gradation'!$B$32) -> Individual Bin (%): | E68: =IF('Combined Gradation'!$M$21="","",'Combined Gradation'!$M$21) -> Bin No.5
A69: 67 | B69: =IF('Combined Gradation'!$O$32="","",'Combined Gradation'!$O$32) ->  | C69: =IF('Combined Gradation'!$B$5="","",'Combined Gradation'!$B$5) -> 2014 HMACP MIXTURE DESIGN : COMBINED GRADATION | D69: =IF('Combined Gradation'!$B$32="","",'Combined Gradation'!$B$32) -> Individual Bin (%): | E69: =IF('Combined Gradation'!$O$21="","",'Combined Gradation'!$O$21) -> Bin No.6
A70: 68 | B70: =IF('Combined Gradation'!$Q$32="","",'Combined Gradation'!$Q$32) ->  | C70: =IF('Combined Gradation'!$B$5="","",'Combined Gradation'!$B$5) -> 2014 HMACP MIXTURE DESIGN : COMBINED GRADATION | D70: =IF('Combined Gradation'!$B$32="","",'Combined Gradation'!$B$32) -> Individual Bin (%): | E70: =IF('Combined Gradation'!$Q$21="","",'Combined Gradation'!$Q$21) -> Bin No.7
A71: 69 | B71: =IF('Combined Gradation'!$I$52="","",'Combined Gradation'!$I$52) ->  | C71: =IF('Combined Gradation'!$B$5="","",'Combined Gradation'!$B$5) -> 2014 HMACP MIXTURE DESIGN : COMBINED GRADATION | D71: =IF('Combined Gradation'!$B$52="","",'Combined Gradation'!$B$52) -> Dry Rodded Unit Weight of Coarse Agg. (pcf)
A72: 70 | B72: =IF('Combined Gradation'!$E$35="","",'Combined Gradation'!$E$35) ->  | C72: =IF('Combined Gradation'!$B$5="","",'Combined Gradation'!$B$5) -> 2014 HMACP MIXTURE DESIGN : COMBINED GRADATION | D72: =IF('Combined Gradation'!$E$21="","",'Combined Gradation'!$E$21) -> Bin No.1 | E72: =IF('Combined Gradation'!$E$34="","",'Combined Gradation'!$E$34) -> Cum.% Passing | F72: =IF('Combined Gradation'!$B$34="","",'Combined Gradation'!$B$34) -> Sieve Size: | G72: =IF('Combined Gradation'!$B$35="","",'Combined Gradation'!$B$35) -> 1"
A73: 71 | B73: =IF('Combined Gradation'!$F$35="","",'Combined Gradation'!$F$35) ->  | C73: =IF('Combined Gradation'!$B$5="","",'Combined Gradation'!$B$5) -> 2014 HMACP MIXTURE DESIGN : COMBINED GRADATION | D73: =IF('Combined Gradation'!$E$21="","",'Combined Gradation'!$E$21) -> Bin No.1 | E73: =IF('Combined Gradation'!$F$34="","",'Combined Gradation'!$F$34) -> Wtd Cum. % | F73: =IF('Combined Gradation'!$B$34="","",'Combined Gradation'!$B$34) -> Sieve Size: | G73: =IF('Combined Gradation'!$B$35="","",'Combined Gradation'!$B$35) -> 1"
A74: 72 | B74: =IF('Combined Gradation'!$G$35="","",'Combined Gradation'!$G$35) ->  | C74: =IF('Combined Gradation'!$B$5="","",'Combined Gradation'!$B$5) -> 2014 HMACP MIXTURE DESIGN : COMBINED GRADATION | D74: =IF('Combined Gradation'!$G$21="","",'Combined Gradation'!$G$21) -> Bin No.2 | E74: =IF('Combined Gradation'!$G$34="","",'Combined Gradation'!$G$34) -> Cum.% Passing | F74: =IF('Combined Gradation'!$B$34="","",'Combined Gradation'!$B$34) -> Sieve Size: | G74: =IF('Combined Gradation'!$B$35="","",'Combined Gradation'!$B$35) -> 1"
A75: 73 | B75: =IF('Combined Gradation'!$H$35="","",'Combined Gradation'!$H$35) ->  | C75: =IF('Combined Gradation'!$B$5="","",'Combined Gradation'!$B$5) -> 2014 HMACP MIXTURE DESIGN : COMBINED GRADATION | D75: =IF('Combined Gradation'!$G$21="","",'Combined Gradation'!$G$21) -> Bin No.2 | E75: =IF('Combined Gradation'!$H$34="","",'Combined Gradation'!$H$34) -> Wtd Cum. % | F75: =IF('Combined Gradation'!$B$34="","",'Combined Gradation'!$B$34) -> Sieve Size: | G75: =IF('Combined Gradation'!$B$35="","",'Combined Gradation'!$B$35) -> 1"
A76: 74 | B76: =IF('Combined Gradation'!$I$35="","",'Combined Gradation'!$I$35) ->  | C76: =IF('Combined Gradation'!$B$5="","",'Combined Gradation'!$B$5) -> 2014 HMACP MIXTURE DESIGN : COMBINED GRADATION | D76: =IF('Combined Gradation'!$I$21="","",'Combined Gradation'!$I$21) -> Bin No.3 | E76: =IF('Combined Gradation'!$I$34="","",'Combined Gradation'!$I$34) -> Cum.% Passing | F76: =IF('Combined Gradation'!$B$34="","",'Combined Gradation'!$B$34) -> Sieve Size: | G76: =IF('Combined Gradation'!$B$35="","",'Combined Gradation'!$B$35) -> 1"
A77: 75 | B77: =IF('Combined Gradation'!$J$35="","",'Combined Gradation'!$J$35) ->  | C77: =IF('Combined Gradation'!$B$5="","",'Combined Gradation'!$B$5) -> 2014 HMACP MIXTURE DESIGN : COMBINED GRADATION | D77: =IF('Combined Gradation'!$I$21="","",'Combined Gradation'!$I$21) -> Bin No.3 | E77: =IF('Combined Gradation'!$J$34="","",'Combined Gradation'!$J$34) -> Wtd Cum. % | F77: =IF('Combined Gradation'!$B$34="","",'Combined Gradation'!$B$34) -> Sieve Size: | G77: =IF('Combined Gradation'!$B$35="","",'Combined Gradation'!$B$35) -> 1"
A78: 76 | B78: =IF('Combined Gradation'!$K$35="","",'Combined Gradation'!$K$35) ->  | C78: =IF('Combined Gradation'!$B$5="","",'Combined Gradation'!$B$5) -> 2014 HMACP MIXTURE DESIGN : COMBINED GRADATION | D78: =IF('Combined Gradation'!$K$21="","",'Combined Gradation'!$K$21) -> Bin No.4 | E78: =IF('Combined Gradation'!$K$34="","",'Combined Gradation'!$K$34) -> Cum.% Passing | F78: =IF('Combined Gradation'!$B$34="","",'Combined Gradation'!$B$34) -> Sieve Size: | G78: =IF('Combined Gradation'!$B$35="","",'Combined Gradation'!$B$35) -> 1"
A79: 77 | B79: =IF('Combined Gradation'!$L$35="","",'Combined Gradation'!$L$35) ->  | C79: =IF('Combined Gradation'!$B$5="","",'Combined Gradation'!$B$5) -> 2014 HMACP MIXTURE DESIGN : COMBINED GRADATION | D79: =IF('Combined Gradation'!$K$21="","",'Combined Gradation'!$K$21) -> Bin No.4 | E79: =IF('Combined Gradation'!$L$34="","",'Combined Gradation'!$L$34) -> Wtd Cum. % | F79: =IF('Combined Gradation'!$B$34="","",'Combined Gradation'!$B$34) -> Sieve Size: | G79: =IF('Combined Gradation'!$B$35="","",'Combined Gradation'!$B$35) -> 1"
A80: 78 | B80: =IF('Combined Gradation'!$M$35="","",'Combined Gradation'!$M$35) ->  | C80: =IF('Combined Gradation'!$B$5="","",'Combined Gradation'!$B$5) -> 2014 HMACP MIXTURE DESIGN : COMBINED GRADATION | D80: =IF('Combined Gradation'!$M$21="","",'Combined Gradation'!$M$21) -> Bin No.5 | E80: =IF('Combined Gradation'!$M$34="","",'Combined Gradation'!$M$34) -> Cum.% Passing | F80: =IF('Combined Gradation'!$B$34="","",'Combined Gradation'!$B$34) -> Sieve Size: | G80: =IF('Combined Gradation'!$B$35="","",'Combined Gradation'!$B$35) -> 1"
A81: 79 | B81: =IF('Combined Gradation'!$N$35="","",'Combined Gradation'!$N$35) ->  | C81: =IF('Combined Gradation'!$B$5="","",'Combined Gradation'!$B$5) -> 2014 HMACP MIXTURE DESIGN : COMBINED GRADATION | D81: =IF('Combined Gradation'!$M$21="","",'Combined Gradation'!$M$21) -> Bin No.5 | E81: =IF('Combined Gradation'!$N$34="","",'Combined Gradation'!$N$34) -> Wtd Cum. % | F81: =IF('Combined Gradation'!$B$34="","",'Combined Gradation'!$B$34) -> Sieve Size: | G81: =IF('Combined Gradation'!$B$35="","",'Combined Gradation'!$B$35) -> 1"
A82: 80 | B82: =IF('Combined Gradation'!$O$35="","",'Combined Gradation'!$O$35) ->  | C82: =IF('Combined Gradation'!$B$5="","",'Combined Gradation'!$B$5) -> 2014 HMACP MIXTURE DESIGN : COMBINED GRADATION | D82: =IF('Combined Gradation'!$O$21="","",'Combined Gradation'!$O$21) -> Bin No.6 | E82: =IF('Combined Gradation'!$O$34="","",'Combined Gradation'!$O$34) -> Cum.% Passing | F82: =IF('Combined Gradation'!$B$34="","",'Combined Gradation'!$B$34) -> Sieve Size: | G82: =IF('Combined Gradation'!$B$35="","",'Combined Gradation'!$B$35) -> 1"
A83: 81 | B83: =IF('Combined Gradation'!$P$35="","",'Combined Gradation'!$P$35) ->  | C83: =IF('Combined Gradation'!$B$5="","",'Combined Gradation'!$B$5) -> 2014 HMACP MIXTURE DESIGN : COMBINED GRADATION | D83: =IF('Combined Gradation'!$O$21="","",'Combined Gradation'!$O$21) -> Bin No.6 | E83: =IF('Combined Gradation'!$P$34="","",'Combined Gradation'!$P$34) -> Wtd Cum. % | F83: =IF('Combined Gradation'!$B$34="","",'Combined Gradation'!$B$34) -> Sieve Size: | G83: =IF('Combined Gradation'!$B$35="","",'Combined Gradation'!$B$35) -> 1"
A84: 82 | B84: =IF('Combined Gradation'!$Q$35="","",'Combined Gradation'!$Q$35) ->  | C84: =IF('Combined Gradation'!$B$5="","",'Combined Gradation'!$B$5) -> 2014 HMACP MIXTURE DESIGN : COMBINED GRADATION | D84: =IF('Combined Gradation'!$Q$21="","",'Combined Gradation'!$Q$21) -> Bin No.7 | E84: =IF('Combined Gradation'!$Q$34="","",'Combined Gradation'!$Q$34) -> Cum.% Passing | F84: =IF('Combined Gradation'!$B$34="","",'Combined Gradation'!$B$34) -> Sieve Size: | G84: =IF('Combined Gradation'!$B$35="","",'Combined Gradation'!$B$35) -> 1"
A85: 83 | B85: =IF('Combined Gradation'!$R$35="","",'Combined Gradation'!$R$35) ->  | C85: =IF('Combined Gradation'!$B$5="","",'Combined Gradation'!$B$5) -> 2014 HMACP MIXTURE DESIGN : COMBINED GRADATION | D85: =IF('Combined Gradation'!$Q$21="","",'Combined Gradation'!$Q$21) -> Bin No.7 | E85: =IF('Combined Gradation'!$R$34="","",'Combined Gradation'!$R$34) -> Wtd Cum. % | F85: =IF('Combined Gradation'!$B$34="","",'Combined Gradation'!$B$34) -> Sieve Size: | G85: =IF('Combined Gradation'!$B$35="","",'Combined Gradation'!$B$35) -> 1"
A86: 84 | B86: =IF('Combined Gradation'!$Y$35="","",'Combined Gradation'!$Y$35) ->  | C86: =IF('Combined Gradation'!$B$5="","",'Combined Gradation'!$B$5) -> 2014 HMACP MIXTURE DESIGN : COMBINED GRADATION | D86: Combined Gradation | E86: =IF('Combined Gradation'!$Y$34="","",'Combined Gradation'!$Y$34) -> Cum. % Passing | F86: =IF('Combined Gradation'!$B$34="","",'Combined Gradation'!$B$34) -> Sieve Size: | G86: =IF('Combined Gradation'!$B$35="","",'Combined Gradation'!$B$35) -> 1"
A87: 85 | B87: =IF('Combined Gradation'!$Z$35="","",'Combined Gradation'!$Z$35) -> 100 | C87: =IF('Combined Gradation'!$B$5="","",'Combined Gradation'!$B$5) -> 2014 HMACP MIXTURE DESIGN : COMBINED GRADATION | D87: =IF('Combined Gradation'!$Z$31="","",'Combined Gradation'!$Z$31) -> Lower & Upper Specification Limits | E87: =IF('Combined Gradation'!$Z$34="","",'Combined Gradation'!$Z$34) -> Lower | F87: =IF('Combined Gradation'!$B$34="","",'Combined Gradation'!$B$34) -> Sieve Size: | G87: =IF('Combined Gradation'!$B$35="","",'Combined Gradation'!$B$35) -> 1"
A88: 86 | B88: =IF('Combined Gradation'!$AA$35="","",'Combined Gradation'!$AA$35) -> 100 | C88: =IF('Combined Gradation'!$B$5="","",'Combined Gradation'!$B$5) -> 2014 HMACP MIXTURE DESIGN : COMBINED GRADATION | D88: =IF('Combined Gradation'!$Z$31="","",'Combined Gradation'!$Z$31) -> Lower & Upper Specification Limits | E88: =IF('Combined Gradation'!$AA$34="","",'Combined Gradation'!$AA$34) -> Upper | F88: =IF('Combined Gradation'!$B$34="","",'Combined Gradation'!$B$34) -> Sieve Size: | G88: =IF('Combined Gradation'!$B$35="","",'Combined Gradation'!$B$35) -> 1"
A89: 87 | B89: =IF('Combined Gradation'!$AB$35="","",'Combined Gradation'!$AB$35) -> No | C89: =IF('Combined Gradation'!$B$5="","",'Combined Gradation'!$B$5) -> 2014 HMACP MIXTURE DESIGN : COMBINED GRADATION | D89: =IF('Combined Gradation'!$Z$31="","",'Combined Gradation'!$Z$31) -> Lower & Upper Specification Limits | E89: =IF('Combined Gradation'!$AB$34="","",'Combined Gradation'!$AB$34) -> Within Spec's | F89: =IF('Combined Gradation'!$B$34="","",'Combined Gradation'!$B$34) -> Sieve Size: | G89: =IF('Combined Gradation'!$B$35="","",'Combined Gradation'!$B$35) -> 1"
A90: 88 | B90: =IF('Combined Gradation'!$AC$35="","",'Combined Gradation'!$AC$35) ->  | C90: =IF('Combined Gradation'!$B$5="","",'Combined Gradation'!$B$5) -> 2014 HMACP MIXTURE DESIGN : COMBINED GRADATION | D90: =IF('Combined Gradation'!$AC$31="","",'Combined Gradation'!$AC$31) -> Restricted Zone | E90: =IF('Combined Gradation'!$AC$34="","",'Combined Gradation'!$AC$34) -> Lower | F90: =IF('Combined Gradation'!$B$34="","",'Combined Gradation'!$B$34) -> Sieve Size: | G90: =IF('Combined Gradation'!$B$35="","",'Combined Gradation'!$B$35) -> 1"
A91: 89 | B91: =IF('Combined Gradation'!$AD$35="","",'Combined Gradation'!$AD$35) -> 0 | C91: =IF('Combined Gradation'!$B$5="","",'Combined Gradation'!$B$5) -> 2014 HMACP MIXTURE DESIGN : COMBINED GRADATION | D91: =IF('Combined Gradation'!$AC$31="","",'Combined Gradation'!$AC$31) -> Restricted Zone | E91: =IF('Combined Gradation'!$AD$34="","",'Combined Gradation'!$AD$34) -> Upper | F91: =IF('Combined Gradation'!$B$34="","",'Combined Gradation'!$B$34) -> Sieve Size: | G91: =IF('Combined Gradation'!$B$35="","",'Combined Gradation'!$B$35) -> 1"
A92: 90 | B92: =IF('Combined Gradation'!$AE$35="","",'Combined Gradation'!$AE$35) ->  | C92: =IF('Combined Gradation'!$B$5="","",'Combined Gradation'!$B$5) -> 2014 HMACP MIXTURE DESIGN : COMBINED GRADATION | D92: =IF('Combined Gradation'!$AC$31="","",'Combined Gradation'!$AC$31) -> Restricted Zone | E92: =IF('Combined Gradation'!$AE$34="","",'Combined Gradation'!$AE$34) -> Within Spec's | F92: =IF('Combined Gradation'!$B$34="","",'Combined Gradation'!$B$34) -> Sieve Size: | G92: =IF('Combined Gradation'!$B$35="","",'Combined Gradation'!$B$35) -> 1"
A93: 91 | B93: =IF('Combined Gradation'!$AF$35="","",'Combined Gradation'!$AF$35) ->  | C93: =IF('Combined Gradation'!$B$5="","",'Combined Gradation'!$B$5) -> 2014 HMACP MIXTURE DESIGN : COMBINED GRADATION | D93: =IF('Combined Gradation'!$AF$31="","",'Combined Gradation'!$AF$31) -> Individual % Retained | E93: =IF('Combined Gradation'!$B$34="","",'Combined Gradation'!$B$34) -> Sieve Size: | F93: =IF('Combined Gradation'!$B$35="","",'Combined Gradation'!$B$35) -> 1"
A94: 92 | B94: =IF('Combined Gradation'!$AG$35="","",'Combined Gradation'!$AG$35) ->  | C94: =IF('Combined Gradation'!$B$5="","",'Combined Gradation'!$B$5) -> 2014 HMACP MIXTURE DESIGN : COMBINED GRADATION | D94: =IF('Combined Gradation'!$AG$31="","",'Combined Gradation'!$AG$31) -> Cumulative % Retained | E94: =IF('Combined Gradation'!$B$34="","",'Combined Gradation'!$B$34) -> Sieve Size: | F94: =IF('Combined Gradation'!$B$35="","",'Combined Gradation'!$B$35) -> 1"
A95: 93 | B95: =IF('Combined Gradation'!$E$36="","",'Combined Gradation'!$E$36) ->  | C95: =IF('Combined Gradation'!$B$5="","",'Combined Gradation'!$B$5) -> 2014 HMACP MIXTURE DESIGN : COMBINED GRADATION | D95: =IF('Combined Gradation'!$E$21="","",'Combined Gradation'!$E$21) -> Bin No.1 | E95: =IF('Combined Gradation'!$E$34="","",'Combined Gradation'!$E$34) -> Cum.% Passing | F95: =IF('Combined Gradation'!$B$34="","",'Combined Gradation'!$B$34) -> Sieve Size: | G95: =IF('Combined Gradation'!$B$36="","",'Combined Gradation'!$B$36) -> 3/4"
A96: 94 | B96: =IF('Combined Gradation'!$F$36="","",'Combined Gradation'!$F$36) ->  | C96: =IF('Combined Gradation'!$B$5="","",'Combined Gradation'!$B$5) -> 2014 HMACP MIXTURE DESIGN : COMBINED GRADATION | D96: =IF('Combined Gradation'!$E$21="","",'Combined Gradation'!$E$21) -> Bin No.1 | E96: =IF('Combined Gradation'!$F$34="","",'Combined Gradation'!$F$34) -> Wtd Cum. % | F96: =IF('Combined Gradation'!$B$34="","",'Combined Gradation'!$B$34) -> Sieve Size: | G96: =IF('Combined Gradation'!$B$36="","",'Combined Gradation'!$B$36) -> 3/4"
A97: 95 | B97: =IF('Combined Gradation'!$G$36="","",'Combined Gradation'!$G$36) ->  | C97: =IF('Combined Gradation'!$B$5="","",'Combined Gradation'!$B$5) -> 2014 HMACP MIXTURE DESIGN : COMBINED GRADATION | D97: =IF('Combined Gradation'!$G$21="","",'Combined Gradation'!$G$21) -> Bin No.2 | E97: =IF('Combined Gradation'!$G$34="","",'Combined Gradation'!$G$34) -> Cum.% Passing | F97: =IF('Combined Gradation'!$B$34="","",'Combined Gradation'!$B$34) -> Sieve Size: | G97: =IF('Combined Gradation'!$B$36="","",'Combined Gradation'!$B$36) -> 3/4"
A98: 96 | B98: =IF('Combined Gradation'!$H$36="","",'Combined Gradation'!$H$36) ->  | C98: =IF('Combined Gradation'!$B$5="","",'Combined Gradation'!$B$5) -> 2014 HMACP MIXTURE DESIGN : COMBINED GRADATION | D98: =IF('Combined Gradation'!$G$21="","",'Combined Gradation'!$G$21) -> Bin No.2 | E98: =IF('Combined Gradation'!$H$34="","",'Combined Gradation'!$H$34) -> Wtd Cum. % | F98: =IF('Combined Gradation'!$B$34="","",'Combined Gradation'!$B$34) -> Sieve Size: | G98: =IF('Combined Gradation'!$B$36="","",'Combined Gradation'!$B$36) -> 3/4"
A99: 97 | B99: =IF('Combined Gradation'!$I$36="","",'Combined Gradation'!$I$36) ->  | C99: =IF('Combined Gradation'!$B$5="","",'Combined Gradation'!$B$5) -> 2014 HMACP MIXTURE DESIGN : COMBINED GRADATION | D99: =IF('Combined Gradation'!$I$21="","",'Combined Gradation'!$I$21) -> Bin No.3 | E99: =IF('Combined Gradation'!$I$34="","",'Combined Gradation'!$I$34) -> Cum.% Passing | F99: =IF('Combined Gradation'!$B$34="","",'Combined Gradation'!$B$34) -> Sieve Size: | G99: =IF('Combined Gradation'!$B$36="","",'Combined Gradation'!$B$36) -> 3/4"
A100: 98 | B100: =IF('Combined Gradation'!$J$36="","",'Combined Gradation'!$J$36) ->  | C100: =IF('Combined Gradation'!$B$5="","",'Combined Gradation'!$B$5) -> 2014 HMACP MIXTURE DESIGN : COMBINED GRADATION | D100: =IF('Combined Gradation'!$I$21="","",'Combined Gradation'!$I$21) -> Bin No.3 | E100: =IF('Combined Gradation'!$J$34="","",'Combined Gradation'!$J$34) -> Wtd Cum. % | F100: =IF('Combined Gradation'!$B$34="","",'Combined Gradation'!$B$34) -> Sieve Size: | G100: =IF('Combined Gradation'!$B$36="","",'Combined Gradation'!$B$36) -> 3/4"
A101: 99 | B101: =IF('Combined Gradation'!$K$36="","",'Combined Gradation'!$K$36) ->  | C101: =IF('Combined Gradation'!$B$5="","",'Combined Gradation'!$B$5) -> 2014 HMACP MIXTURE DESIGN : COMBINED GRADATION | D101: =IF('Combined Gradation'!$K$21="","",'Combined Gradation'!$K$21) -> Bin No.4 | E101: =IF('Combined Gradation'!$K$34="","",'Combined Gradation'!$K$34) -> Cum.% Passing | F101: =IF('Combined Gradation'!$B$34="","",'Combined Gradation'!$B$34) -> Sieve Size: | G101: =IF('Combined Gradation'!$B$36="","",'Combined Gradation'!$B$36) -> 3/4"
A102: 100 | B102: =IF('Combined Gradation'!$L$36="","",'Combined Gradation'!$L$36) ->  | C102: =IF('Combined Gradation'!$B$5="","",'Combined Gradation'!$B$5) -> 2014 HMACP MIXTURE DESIGN : COMBINED GRADATION | D102: =IF('Combined Gradation'!$K$21="","",'Combined Gradation'!$K$21) -> Bin No.4 | E102: =IF('Combined Gradation'!$L$34="","",'Combined Gradation'!$L$34) -> Wtd Cum. % | F102: =IF('Combined Gradation'!$B$34="","",'Combined Gradation'!$B$34) -> Sieve Size: | G102: =IF('Combined Gradation'!$B$36="","",'Combined Gradation'!$B$36) -> 3/4"
A103: 101 | B103: =IF('Combined Gradation'!$M$36="","",'Combined Gradation'!$M$36) ->  | C103: =IF('Combined Gradation'!$B$5="","",'Combined Gradation'!$B$5) -> 2014 HMACP MIXTURE DESIGN : COMBINED GRADATION | D103: =IF('Combined Gradation'!$M$21="","",'Combined Gradation'!$M$21) -> Bin No.5 | E103: =IF('Combined Gradation'!$M$34="","",'Combined Gradation'!$M$34) -> Cum.% Passing | F103: =IF('Combined Gradation'!$B$34="","",'Combined Gradation'!$B$34) -> Sieve Size: | G103: =IF('Combined Gradation'!$B$36="","",'Combined Gradation'!$B$36) -> 3/4"
A104: 102 | B104: =IF('Combined Gradation'!$N$36="","",'Combined Gradation'!$N$36) ->  | C104: =IF('Combined Gradation'!$B$5="","",'Combined Gradation'!$B$5) -> 2014 HMACP MIXTURE DESIGN : COMBINED GRADATION | D104: =IF('Combined Gradation'!$M$21="","",'Combined Gradation'!$M$21) -> Bin No.5 | E104: =IF('Combined Gradation'!$N$34="","",'Combined Gradation'!$N$34) -> Wtd Cum. % | F104: =IF('Combined Gradation'!$B$34="","",'Combined Gradation'!$B$34) -> Sieve Size: | G104: =IF('Combined Gradation'!$B$36="","",'Combined Gradation'!$B$36) -> 3/4"
A105: 103 | B105: =IF('Combined Gradation'!$O$36="","",'Combined Gradation'!$O$36) ->  | C105: =IF('Combined Gradation'!$B$5="","",'Combined Gradation'!$B$5) -> 2014 HMACP MIXTURE DESIGN : COMBINED GRADATION | D105: =IF('Combined Gradation'!$O$21="","",'Combined Gradation'!$O$21) -> Bin No.6 | E105: =IF('Combined Gradation'!$O$34="","",'Combined Gradation'!$O$34) -> Cum.% Passing | F105: =IF('Combined Gradation'!$B$34="","",'Combined Gradation'!$B$34) -> Sieve Size: | G105: =IF('Combined Gradation'!$B$36="","",'Combined Gradation'!$B$36) -> 3/4"
A106: 104 | B106: =IF('Combined Gradation'!$P$36="","",'Combined Gradation'!$P$36) ->  | C106: =IF('Combined Gradation'!$B$5="","",'Combined Gradation'!$B$5) -> 2014 HMACP MIXTURE DESIGN : COMBINED GRADATION | D106: =IF('Combined Gradation'!$O$21="","",'Combined Gradation'!$O$21) -> Bin No.6 | E106: =IF('Combined Gradation'!$P$34="","",'Combined Gradation'!$P$34) -> Wtd Cum. % | F106: =IF('Combined Gradation'!$B$34="","",'Combined Gradation'!$B$34) -> Sieve Size: | G106: =IF('Combined Gradation'!$B$36="","",'Combined Gradation'!$B$36) -> 3/4"
A107: 105 | B107: =IF('Combined Gradation'!$Q$36="","",'Combined Gradation'!$Q$36) ->  | C107: =IF('Combined Gradation'!$B$5="","",'Combined Gradation'!$B$5) -> 2014 HMACP MIXTURE DESIGN : COMBINED GRADATION | D107: =IF('Combined Gradation'!$Q$21="","",'Combined Gradation'!$Q$21) -> Bin No.7 | E107: =IF('Combined Gradation'!$Q$34="","",'Combined Gradation'!$Q$34) -> Cum.% Passing | F107: =IF('Combined Gradation'!$B$34="","",'Combined Gradation'!$B$34) -> Sieve Size: | G107: =IF('Combined Gradation'!$B$36="","",'Combined Gradation'!$B$36) -> 3/4"
A108: 106 | B108: =IF('Combined Gradation'!$R$36="","",'Combined Gradation'!$R$36) ->  | C108: =IF('Combined Gradation'!$B$5="","",'Combined Gradation'!$B$5) -> 2014 HMACP MIXTURE DESIGN : COMBINED GRADATION | D108: =IF('Combined Gradation'!$Q$21="","",'Combined Gradation'!$Q$21) -> Bin No.7 | E108: =IF('Combined Gradation'!$R$34="","",'Combined Gradation'!$R$34) -> Wtd Cum. % | F108: =IF('Combined Gradation'!$B$34="","",'Combined Gradation'!$B$34) -> Sieve Size: | G108: =IF('Combined Gradation'!$B$36="","",'Combined Gradation'!$B$36) -> 3/4"
A109: 107 | B109: =IF('Combined Gradation'!$Y$36="","",'Combined Gradation'!$Y$36) ->  | C109: =IF('Combined Gradation'!$B$5="","",'Combined Gradation'!$B$5) -> 2014 HMACP MIXTURE DESIGN : COMBINED GRADATION | D109: Combined Gradation | E109: =IF('Combined Gradation'!$Y$34="","",'Combined Gradation'!$Y$34) -> Cum. % Passing | F109: =IF('Combined Gradation'!$B$34="","",'Combined Gradation'!$B$34) -> Sieve Size: | G109: =IF('Combined Gradation'!$B$36="","",'Combined Gradation'!$B$36) -> 3/4"
A110: 108 | B110: =IF('Combined Gradation'!$Z$36="","",'Combined Gradation'!$Z$36) -> 98 | C110: =IF('Combined Gradation'!$B$5="","",'Combined Gradation'!$B$5) -> 2014 HMACP MIXTURE DESIGN : COMBINED GRADATION | D110: =IF('Combined Gradation'!$Z$31="","",'Combined Gradation'!$Z$31) -> Lower & Upper Specification Limits | E110: =IF('Combined Gradation'!$Z$34="","",'Combined Gradation'!$Z$34) -> Lower | F110: =IF('Combined Gradation'!$B$34="","",'Combined Gradation'!$B$34) -> Sieve Size: | G110: =IF('Combined Gradation'!$B$36="","",'Combined Gradation'!$B$36) -> 3/4"
A111: 109 | B111: =IF('Combined Gradation'!$AA$36="","",'Combined Gradation'!$AA$36) -> 100 | C111: =IF('Combined Gradation'!$B$5="","",'Combined Gradation'!$B$5) -> 2014 HMACP MIXTURE DESIGN : COMBINED GRADATION | D111: =IF('Combined Gradation'!$Z$31="","",'Combined Gradation'!$Z$31) -> Lower & Upper Specification Limits | E111: =IF('Combined Gradation'!$AA$34="","",'Combined Gradation'!$AA$34) -> Upper | F111: =IF('Combined Gradation'!$B$34="","",'Combined Gradation'!$B$34) -> Sieve Size: | G111: =IF('Combined Gradation'!$B$36="","",'Combined Gradation'!$B$36) -> 3/4"
A112: 110 | B112: =IF('Combined Gradation'!$AB$36="","",'Combined Gradation'!$AB$36) -> No | C112: =IF('Combined Gradation'!$B$5="","",'Combined Gradation'!$B$5) -> 2014 HMACP MIXTURE DESIGN : COMBINED GRADATION | D112: =IF('Combined Gradation'!$Z$31="","",'Combined Gradation'!$Z$31) -> Lower & Upper Specification Limits | E112: =IF('Combined Gradation'!$AB$34="","",'Combined Gradation'!$AB$34) -> Within Spec's | F112: =IF('Combined Gradation'!$B$34="","",'Combined Gradation'!$B$34) -> Sieve Size: | G112: =IF('Combined Gradation'!$B$36="","",'Combined Gradation'!$B$36) -> 3/4"
A113: 111 | B113: =IF('Combined Gradation'!$AC$36="","",'Combined Gradation'!$AC$36) ->  | C113: =IF('Combined Gradation'!$B$5="","",'Combined Gradation'!$B$5) -> 2014 HMACP MIXTURE DESIGN : COMBINED GRADATION | D113: =IF('Combined Gradation'!$AC$31="","",'Combined Gradation'!$AC$31) -> Restricted Zone | E113: =IF('Combined Gradation'!$AC$34="","",'Combined Gradation'!$AC$34) -> Lower | F113: =IF('Combined Gradation'!$B$34="","",'Combined Gradation'!$B$34) -> Sieve Size: | G113: =IF('Combined Gradation'!$B$36="","",'Combined Gradation'!$B$36) -> 3/4"
A114: 112 | B114: =IF('Combined Gradation'!$AD$36="","",'Combined Gradation'!$AD$36) -> 0 | C114: =IF('Combined Gradation'!$B$5="","",'Combined Gradation'!$B$5) -> 2014 HMACP MIXTURE DESIGN : COMBINED GRADATION | D114: =IF('Combined Gradation'!$AC$31="","",'Combined Gradation'!$AC$31) -> Restricted Zone | E114: =IF('Combined Gradation'!$AD$34="","",'Combined Gradation'!$AD$34) -> Upper | F114: =IF('Combined Gradation'!$B$34="","",'Combined Gradation'!$B$34) -> Sieve Size: | G114: =IF('Combined Gradation'!$B$36="","",'Combined Gradation'!$B$36) -> 3/4"
A115: 113 | B115: =IF('Combined Gradation'!$AE$36="","",'Combined Gradation'!$AE$36) ->  | C115: =IF('Combined Gradation'!$B$5="","",'Combined Gradation'!$B$5) -> 2014 HMACP MIXTURE DESIGN : COMBINED GRADATION | D115: =IF('Combined Gradation'!$AC$31="","",'Combined Gradation'!$AC$31) -> Restricted Zone | E115: =IF('Combined Gradation'!$AE$34="","",'Combined Gradation'!$AE$34) -> Within Spec's | F115: =IF('Combined Gradation'!$B$34="","",'Combined Gradation'!$B$34) -> Sieve Size: | G115: =IF('Combined Gradation'!$B$36="","",'Combined Gradation'!$B$36) -> 3/4"
A116: 114 | B116: =IF('Combined Gradation'!$AF$36="","",'Combined Gradation'!$AF$36) ->  | C116: =IF('Combined Gradation'!$B$5="","",'Combined Gradation'!$B$5) -> 2014 HMACP MIXTURE DESIGN : COMBINED GRADATION | D116: =IF('Combined Gradation'!$AF$31="","",'Combined Gradation'!$AF$31) -> Individual % Retained | E116: =IF('Combined Gradation'!$B$34="","",'Combined Gradation'!$B$34) -> Sieve Size: | F116: =IF('Combined Gradation'!$B$36="","",'Combined Gradation'!$B$36) -> 3/4"
A117: 115 | B117: =IF('Combined Gradation'!$AG$36="","",'Combined Gradation'!$AG$36) ->  | C117: =IF('Combined Gradation'!$B$5="","",'Combined Gradation'!$B$5) -> 2014 HMACP MIXTURE DESIGN : COMBINED GRADATION | D117: =IF('Combined Gradation'!$AG$31="","",'Combined Gradation'!$AG$31) -> Cumulative % Retained | E117: =IF('Combined Gradation'!$B$34="","",'Combined Gradation'!$B$34) -> Sieve Size: | F117: =IF('Combined Gradation'!$B$36="","",'Combined Gradation'!$B$36) -> 3/4"
A118: 116 | B118: =IF('Combined Gradation'!$E$37="","",'Combined Gradation'!$E$37) ->  | C118: =IF('Combined Gradation'!$B$5="","",'Combined Gradation'!$B$5) -> 2014 HMACP MIXTURE DESIGN : COMBINED GRADATION | D118: =IF('Combined Gradation'!$E$21="","",'Combined Gradation'!$E$21) -> Bin No.1 | E118: =IF('Combined Gradation'!$E$34="","",'Combined Gradation'!$E$34) -> Cum.% Passing | F118: =IF('Combined Gradation'!$B$34="","",'Combined Gradation'!$B$34) -> Sieve Size: | G118: =IF('Combined Gradation'!$B$37="","",'Combined Gradation'!$B$37) -> 1/2"
A119: 117 | B119: =IF('Combined Gradation'!$F$37="","",'Combined Gradation'!$F$37) ->  | C119: =IF('Combined Gradation'!$B$5="","",'Combined Gradation'!$B$5) -> 2014 HMACP MIXTURE DESIGN : COMBINED GRADATION | D119: =IF('Combined Gradation'!$E$21="","",'Combined Gradation'!$E$21) -> Bin No.1 | E119: =IF('Combined Gradation'!$F$34="","",'Combined Gradation'!$F$34) -> Wtd Cum. % | F119: =IF('Combined Gradation'!$B$34="","",'Combined Gradation'!$B$34) -> Sieve Size: | G119: =IF('Combined Gradation'!$B$37="","",'Combined Gradation'!$B$37) -> 1/2"
A120: 118 | B120: =IF('Combined Gradation'!$G$37="","",'Combined Gradation'!$G$37) ->  | C120: =IF('Combined Gradation'!$B$5="","",'Combined Gradation'!$B$5) -> 2014 HMACP MIXTURE DESIGN : COMBINED GRADATION | D120: =IF('Combined Gradation'!$G$21="","",'Combined Gradation'!$G$21) -> Bin No.2 | E120: =IF('Combined Gradation'!$G$34="","",'Combined Gradation'!$G$34) -> Cum.% Passing | F120: =IF('Combined Gradation'!$B$34="","",'Combined Gradation'!$B$34) -> Sieve Size: | G120: =IF('Combined Gradation'!$B$37="","",'Combined Gradation'!$B$37) -> 1/2"
A121: 119 | B121: =IF('Combined Gradation'!$H$37="","",'Combined Gradation'!$H$37) ->  | C121: =IF('Combined Gradation'!$B$5="","",'Combined Gradation'!$B$5) -> 2014 HMACP MIXTURE DESIGN : COMBINED GRADATION | D121: =IF('Combined Gradation'!$G$21="","",'Combined Gradation'!$G$21) -> Bin No.2 | E121: =IF('Combined Gradation'!$H$34="","",'Combined Gradation'!$H$34) -> Wtd Cum. % | F121: =IF('Combined Gradation'!$B$34="","",'Combined Gradation'!$B$34) -> Sieve Size: | G121: =IF('Combined Gradation'!$B$37="","",'Combined Gradation'!$B$37) -> 1/2"
A122: 120 | B122: =IF('Combined Gradation'!$I$37="","",'Combined Gradation'!$I$37) ->  | C122: =IF('Combined Gradation'!$B$5="","",'Combined Gradation'!$B$5) -> 2014 HMACP MIXTURE DESIGN : COMBINED GRADATION | D122: =IF('Combined Gradation'!$I$21="","",'Combined Gradation'!$I$21) -> Bin No.3 | E122: =IF('Combined Gradation'!$I$34="","",'Combined Gradation'!$I$34) -> Cum.% Passing | F122: =IF('Combined Gradation'!$B$34="","",'Combined Gradation'!$B$34) -> Sieve Size: | G122: =IF('Combined Gradation'!$B$37="","",'Combined Gradation'!$B$37) -> 1/2"
A123: 121 | B123: =IF('Combined Gradation'!$J$37="","",'Combined Gradation'!$J$37) ->  | C123: =IF('Combined Gradation'!$B$5="","",'Combined Gradation'!$B$5) -> 2014 HMACP MIXTURE DESIGN : COMBINED GRADATION | D123: =IF('Combined Gradation'!$I$21="","",'Combined Gradation'!$I$21) -> Bin No.3 | E123: =IF('Combined Gradation'!$J$34="","",'Combined Gradation'!$J$34) -> Wtd Cum. % | F123: =IF('Combined Gradation'!$B$34="","",'Combined Gradation'!$B$34) -> Sieve Size: | G123: =IF('Combined Gradation'!$B$37="","",'Combined Gradation'!$B$37) -> 1/2"
A124: 122 | B124: =IF('Combined Gradation'!$K$37="","",'Combined Gradation'!$K$37) ->  | C124: =IF('Combined Gradation'!$B$5="","",'Combined Gradation'!$B$5) -> 2014 HMACP MIXTURE DESIGN : COMBINED GRADATION | D124: =IF('Combined Gradation'!$K$21="","",'Combined Gradation'!$K$21) -> Bin No.4 | E124: =IF('Combined Gradation'!$K$34="","",'Combined Gradation'!$K$34) -> Cum.% Passing | F124: =IF('Combined Gradation'!$B$34="","",'Combined Gradation'!$B$34) -> Sieve Size: | G124: =IF('Combined Gradation'!$B$37="","",'Combined Gradation'!$B$37) -> 1/2"
A125: 123 | B125: =IF('Combined Gradation'!$L$37="","",'Combined Gradation'!$L$37) ->  | C125: =IF('Combined Gradation'!$B$5="","",'Combined Gradation'!$B$5) -> 2014 HMACP MIXTURE DESIGN : COMBINED GRADATION | D125: =IF('Combined Gradation'!$K$21="","",'Combined Gradation'!$K$21) -> Bin No.4 | E125: =IF('Combined Gradation'!$L$34="","",'Combined Gradation'!$L$34) -> Wtd Cum. % | F125: =IF('Combined Gradation'!$B$34="","",'Combined Gradation'!$B$34) -> Sieve Size: | G125: =IF('Combined Gradation'!$B$37="","",'Combined Gradation'!$B$37) -> 1/2"
A126: 124 | B126: =IF('Combined Gradation'!$M$37="","",'Combined Gradation'!$M$37) ->  | C126: =IF('Combined Gradation'!$B$5="","",'Combined Gradation'!$B$5) -> 2014 HMACP MIXTURE DESIGN : COMBINED GRADATION | D126: =IF('Combined Gradation'!$M$21="","",'Combined Gradation'!$M$21) -> Bin No.5 | E126: =IF('Combined Gradation'!$M$34="","",'Combined Gradation'!$M$34) -> Cum.% Passing | F126: =IF('Combined Gradation'!$B$34="","",'Combined Gradation'!$B$34) -> Sieve Size: | G126: =IF('Combined Gradation'!$B$37="","",'Combined Gradation'!$B$37) -> 1/2"
A127: 125 | B127: =IF('Combined Gradation'!$N$37="","",'Combined Gradation'!$N$37) ->  | C127: =IF('Combined Gradation'!$B$5="","",'Combined Gradation'!$B$5) -> 2014 HMACP MIXTURE DESIGN : COMBINED GRADATION | D127: =IF('Combined Gradation'!$M$21="","",'Combined Gradation'!$M$21) -> Bin No.5 | E127: =IF('Combined Gradation'!$N$34="","",'Combined Gradation'!$N$34) -> Wtd Cum. % | F127: =IF('Combined Gradation'!$B$34="","",'Combined Gradation'!$B$34) -> Sieve Size: | G127: =IF('Combined Gradation'!$B$37="","",'Combined Gradation'!$B$37) -> 1/2"
A128: 126 | B128: =IF('Combined Gradation'!$O$37="","",'Combined Gradation'!$O$37) ->  | C128: =IF('Combined Gradation'!$B$5="","",'Combined Gradation'!$B$5) -> 2014 HMACP MIXTURE DESIGN : COMBINED GRADATION | D128: =IF('Combined Gradation'!$O$21="","",'Combined Gradation'!$O$21) -> Bin No.6 | E128: =IF('Combined Gradation'!$O$34="","",'Combined Gradation'!$O$34) -> Cum.% Passing | F128: =IF('Combined Gradation'!$B$34="","",'Combined Gradation'!$B$34) -> Sieve Size: | G128: =IF('Combined Gradation'!$B$37="","",'Combined Gradation'!$B$37) -> 1/2"
A129: 127 | B129: =IF('Combined Gradation'!$P$37="","",'Combined Gradation'!$P$37) ->  | C129: =IF('Combined Gradation'!$B$5="","",'Combined Gradation'!$B$5) -> 2014 HMACP MIXTURE DESIGN : COMBINED GRADATION | D129: =IF('Combined Gradation'!$O$21="","",'Combined Gradation'!$O$21) -> Bin No.6 | E129: =IF('Combined Gradation'!$P$34="","",'Combined Gradation'!$P$34) -> Wtd Cum. % | F129: =IF('Combined Gradation'!$B$34="","",'Combined Gradation'!$B$34) -> Sieve Size: | G129: =IF('Combined Gradation'!$B$37="","",'Combined Gradation'!$B$37) -> 1/2"
A130: 128 | B130: =IF('Combined Gradation'!$Q$37="","",'Combined Gradation'!$Q$37) ->  | C130: =IF('Combined Gradation'!$B$5="","",'Combined Gradation'!$B$5) -> 2014 HMACP MIXTURE DESIGN : COMBINED GRADATION | D130: =IF('Combined Gradation'!$Q$21="","",'Combined Gradation'!$Q$21) -> Bin No.7 | E130: =IF('Combined Gradation'!$Q$34="","",'Combined Gradation'!$Q$34) -> Cum.% Passing | F130: =IF('Combined Gradation'!$B$34="","",'Combined Gradation'!$B$34) -> Sieve Size: | G130: =IF('Combined Gradation'!$B$37="","",'Combined Gradation'!$B$37) -> 1/2"
A131: 129 | B131: =IF('Combined Gradation'!$R$37="","",'Combined Gradation'!$R$37) ->  | C131: =IF('Combined Gradation'!$B$5="","",'Combined Gradation'!$B$5) -> 2014 HMACP MIXTURE DESIGN : COMBINED GRADATION | D131: =IF('Combined Gradation'!$Q$21="","",'Combined Gradation'!$Q$21) -> Bin No.7 | E131: =IF('Combined Gradation'!$R$34="","",'Combined Gradation'!$R$34) -> Wtd Cum. % | F131: =IF('Combined Gradation'!$B$34="","",'Combined Gradation'!$B$34) -> Sieve Size: | G131: =IF('Combined Gradation'!$B$37="","",'Combined Gradation'!$B$37) -> 1/2"
A132: 130 | B132: =IF('Combined Gradation'!$Y$37="","",'Combined Gradation'!$Y$37) ->  | C132: =IF('Combined Gradation'!$B$5="","",'Combined Gradation'!$B$5) -> 2014 HMACP MIXTURE DESIGN : COMBINED GRADATION | D132: Combined Gradation | E132: =IF('Combined Gradation'!$Y$34="","",'Combined Gradation'!$Y$34) -> Cum. % Passing | F132: =IF('Combined Gradation'!$B$34="","",'Combined Gradation'!$B$34) -> Sieve Size: | G132: =IF('Combined Gradation'!$B$37="","",'Combined Gradation'!$B$37) -> 1/2"
A133: 131 | B133: =IF('Combined Gradation'!$Z$37="","",'Combined Gradation'!$Z$37) -> 90 | C133: =IF('Combined Gradation'!$B$5="","",'Combined Gradation'!$B$5) -> 2014 HMACP MIXTURE DESIGN : COMBINED GRADATION | D133: =IF('Combined Gradation'!$Z$31="","",'Combined Gradation'!$Z$31) -> Lower & Upper Specification Limits | E133: =IF('Combined Gradation'!$Z$34="","",'Combined Gradation'!$Z$34) -> Lower | F133: =IF('Combined Gradation'!$B$34="","",'Combined Gradation'!$B$34) -> Sieve Size: | G133: =IF('Combined Gradation'!$B$37="","",'Combined Gradation'!$B$37) -> 1/2"
A134: 132 | B134: =IF('Combined Gradation'!$AA$37="","",'Combined Gradation'!$AA$37) -> 100 | C134: =IF('Combined Gradation'!$B$5="","",'Combined Gradation'!$B$5) -> 2014 HMACP MIXTURE DESIGN : COMBINED GRADATION | D134: =IF('Combined Gradation'!$Z$31="","",'Combined Gradation'!$Z$31) -> Lower & Upper Specification Limits | E134: =IF('Combined Gradation'!$AA$34="","",'Combined Gradation'!$AA$34) -> Upper | F134: =IF('Combined Gradation'!$B$34="","",'Combined Gradation'!$B$34) -> Sieve Size: | G134: =IF('Combined Gradation'!$B$37="","",'Combined Gradation'!$B$37) -> 1/2"
A135: 133 | B135: =IF('Combined Gradation'!$AB$37="","",'Combined Gradation'!$AB$37) -> No | C135: =IF('Combined Gradation'!$B$5="","",'Combined Gradation'!$B$5) -> 2014 HMACP MIXTURE DESIGN : COMBINED GRADATION | D135: =IF('Combined Gradation'!$Z$31="","",'Combined Gradation'!$Z$31) -> Lower & Upper Specification Limits | E135: =IF('Combined Gradation'!$AB$34="","",'Combined Gradation'!$AB$34) -> Within Spec's | F135: =IF('Combined Gradation'!$B$34="","",'Combined Gradation'!$B$34) -> Sieve Size: | G135: =IF('Combined Gradation'!$B$37="","",'Combined Gradation'!$B$37) -> 1/2"
A136: 134 | B136: =IF('Combined Gradation'!$AC$37="","",'Combined Gradation'!$AC$37) ->  | C136: =IF('Combined Gradation'!$B$5="","",'Combined Gradation'!$B$5) -> 2014 HMACP MIXTURE DESIGN : COMBINED GRADATION | D136: =IF('Combined Gradation'!$AC$31="","",'Combined Gradation'!$AC$31) -> Restricted Zone | E136: =IF('Combined Gradation'!$AC$34="","",'Combined Gradation'!$AC$34) -> Lower | F136: =IF('Combined Gradation'!$B$34="","",'Combined Gradation'!$B$34) -> Sieve Size: | G136: =IF('Combined Gradation'!$B$37="","",'Combined Gradation'!$B$37) -> 1/2"
A137: 135 | B137: =IF('Combined Gradation'!$AD$37="","",'Combined Gradation'!$AD$37) -> 0 | C137: =IF('Combined Gradation'!$B$5="","",'Combined Gradation'!$B$5) -> 2014 HMACP MIXTURE DESIGN : COMBINED GRADATION | D137: =IF('Combined Gradation'!$AC$31="","",'Combined Gradation'!$AC$31) -> Restricted Zone | E137: =IF('Combined Gradation'!$AD$34="","",'Combined Gradation'!$AD$34) -> Upper | F137: =IF('Combined Gradation'!$B$34="","",'Combined Gradation'!$B$34) -> Sieve Size: | G137: =IF('Combined Gradation'!$B$37="","",'Combined Gradation'!$B$37) -> 1/2"
A138: 136 | B138: =IF('Combined Gradation'!$AE$37="","",'Combined Gradation'!$AE$37) ->  | C138: =IF('Combined Gradation'!$B$5="","",'Combined Gradation'!$B$5) -> 2014 HMACP MIXTURE DESIGN : COMBINED GRADATION | D138: =IF('Combined Gradation'!$AC$31="","",'Combined Gradation'!$AC$31) -> Restricted Zone | E138: =IF('Combined Gradation'!$AE$34="","",'Combined Gradation'!$AE$34) -> Within Spec's | F138: =IF('Combined Gradation'!$B$34="","",'Combined Gradation'!$B$34) -> Sieve Size: | G138: =IF('Combined Gradation'!$B$37="","",'Combined Gradation'!$B$37) -> 1/2"
A139: 137 | B139: =IF('Combined Gradation'!$AF$37="","",'Combined Gradation'!$AF$37) ->  | C139: =IF('Combined Gradation'!$B$5="","",'Combined Gradation'!$B$5) -> 2014 HMACP MIXTURE DESIGN : COMBINED GRADATION | D139: =IF('Combined Gradation'!$AF$31="","",'Combined Gradation'!$AF$31) -> Individual % Retained | E139: =IF('Combined Gradation'!$B$34="","",'Combined Gradation'!$B$34) -> Sieve Size: | F139: =IF('Combined Gradation'!$B$37="","",'Combined Gradation'!$B$37) -> 1/2"
A140: 138 | B140: =IF('Combined Gradation'!$AG$37="","",'Combined Gradation'!$AG$37) ->  | C140: =IF('Combined Gradation'!$B$5="","",'Combined Gradation'!$B$5) -> 2014 HMACP MIXTURE DESIGN : COMBINED GRADATION | D140: =IF('Combined Gradation'!$AG$31="","",'Combined Gradation'!$AG$31) -> Cumulative % Retained | E140: =IF('Combined Gradation'!$B$34="","",'Combined Gradation'!$B$34) -> Sieve Size: | F140: =IF('Combined Gradation'!$B$37="","",'Combined Gradation'!$B$37) -> 1/2"
A141: 139 | B141: =IF('Combined Gradation'!$E$38="","",'Combined Gradation'!$E$38) ->  | C141: =IF('Combined Gradation'!$B$5="","",'Combined Gradation'!$B$5) -> 2014 HMACP MIXTURE DESIGN : COMBINED GRADATION | D141: =IF('Combined Gradation'!$E$21="","",'Combined Gradation'!$E$21) -> Bin No.1 | E141: =IF('Combined Gradation'!$E$34="","",'Combined Gradation'!$E$34) -> Cum.% Passing | F141: =IF('Combined Gradation'!$B$34="","",'Combined Gradation'!$B$34) -> Sieve Size: | G141: =IF('Combined Gradation'!$B$38="","",'Combined Gradation'!$B$38) -> 3/8"
A142: 140 | B142: =IF('Combined Gradation'!$F$38="","",'Combined Gradation'!$F$38) ->  | C142: =IF('Combined Gradation'!$B$5="","",'Combined Gradation'!$B$5) -> 2014 HMACP MIXTURE DESIGN : COMBINED GRADATION | D142: =IF('Combined Gradation'!$E$21="","",'Combined Gradation'!$E$21) -> Bin No.1 | E142: =IF('Combined Gradation'!$F$34="","",'Combined Gradation'!$F$34) -> Wtd Cum. % | F142: =IF('Combined Gradation'!$B$34="","",'Combined Gradation'!$B$34) -> Sieve Size: | G142: =IF('Combined Gradation'!$B$38="","",'Combined Gradation'!$B$38) -> 3/8"
A143: 141 | B143: =IF('Combined Gradation'!$G$38="","",'Combined Gradation'!$G$38) ->  | C143: =IF('Combined Gradation'!$B$5="","",'Combined Gradation'!$B$5) -> 2014 HMACP MIXTURE DESIGN : COMBINED GRADATION | D143: =IF('Combined Gradation'!$G$21="","",'Combined Gradation'!$G$21) -> Bin No.2 | E143: =IF('Combined Gradation'!$G$34="","",'Combined Gradation'!$G$34) -> Cum.% Passing | F143: =IF('Combined Gradation'!$B$34="","",'Combined Gradation'!$B$34) -> Sieve Size: | G143: =IF('Combined Gradation'!$B$38="","",'Combined Gradation'!$B$38) -> 3/8"
A144: 142 | B144: =IF('Combined Gradation'!$H$38="","",'Combined Gradation'!$H$38) ->  | C144: =IF('Combined Gradation'!$B$5="","",'Combined Gradation'!$B$5) -> 2014 HMACP MIXTURE DESIGN : COMBINED GRADATION | D144: =IF('Combined Gradation'!$G$21="","",'Combined Gradation'!$G$21) -> Bin No.2 | E144: =IF('Combined Gradation'!$H$34="","",'Combined Gradation'!$H$34) -> Wtd Cum. % | F144: =IF('Combined Gradation'!$B$34="","",'Combined Gradation'!$B$34) -> Sieve Size: | G144: =IF('Combined Gradation'!$B$38="","",'Combined Gradation'!$B$38) -> 3/8"
A145: 143 | B145: =IF('Combined Gradation'!$I$38="","",'Combined Gradation'!$I$38) ->  | C145: =IF('Combined Gradation'!$B$5="","",'Combined Gradation'!$B$5) -> 2014 HMACP MIXTURE DESIGN : COMBINED GRADATION | D145: =IF('Combined Gradation'!$I$21="","",'Combined Gradation'!$I$21) -> Bin No.3 | E145: =IF('Combined Gradation'!$I$34="","",'Combined Gradation'!$I$34) -> Cum.% Passing | F145: =IF('Combined Gradation'!$B$34="","",'Combined Gradation'!$B$34) -> Sieve Size: | G145: =IF('Combined Gradation'!$B$38="","",'Combined Gradation'!$B$38) -> 3/8"
A146: 144 | B146: =IF('Combined Gradation'!$J$38="","",'Combined Gradation'!$J$38) ->  | C146: =IF('Combined Gradation'!$B$5="","",'Combined Gradation'!$B$5) -> 2014 HMACP MIXTURE DESIGN : COMBINED GRADATION | D146: =IF('Combined Gradation'!$I$21="","",'Combined Gradation'!$I$21) -> Bin No.3 | E146: =IF('Combined Gradation'!$J$34="","",'Combined Gradation'!$J$34) -> Wtd Cum. % | F146: =IF('Combined Gradation'!$B$34="","",'Combined Gradation'!$B$34) -> Sieve Size: | G146: =IF('Combined Gradation'!$B$38="","",'Combined Gradation'!$B$38) -> 3/8"
A147: 145 | B147: =IF('Combined Gradation'!$K$38="","",'Combined Gradation'!$K$38) ->  | C147: =IF('Combined Gradation'!$B$5="","",'Combined Gradation'!$B$5) -> 2014 HMACP MIXTURE DESIGN : COMBINED GRADATION | D147: =IF('Combined Gradation'!$K$21="","",'Combined Gradation'!$K$21) -> Bin No.4 | E147: =IF('Combined Gradation'!$K$34="","",'Combined Gradation'!$K$34) -> Cum.% Passing | F147: =IF('Combined Gradation'!$B$34="","",'Combined Gradation'!$B$34) -> Sieve Size: | G147: =IF('Combined Gradation'!$B$38="","",'Combined Gradation'!$B$38) -> 3/8"
A148: 146 | B148: =IF('Combined Gradation'!$L$38="","",'Combined Gradation'!$L$38) ->  | C148: =IF('Combined Gradation'!$B$5="","",'Combined Gradation'!$B$5) -> 2014 HMACP MIXTURE DESIGN : COMBINED GRADATION | D148: =IF('Combined Gradation'!$K$21="","",'Combined Gradation'!$K$21) -> Bin No.4 | E148: =IF('Combined Gradation'!$L$34="","",'Combined Gradation'!$L$34) -> Wtd Cum. % | F148: =IF('Combined Gradation'!$B$34="","",'Combined Gradation'!$B$34) -> Sieve Size: | G148: =IF('Combined Gradation'!$B$38="","",'Combined Gradation'!$B$38) -> 3/8"
A149: 147 | B149: =IF('Combined Gradation'!$M$38="","",'Combined Gradation'!$M$38) ->  | C149: =IF('Combined Gradation'!$B$5="","",'Combined Gradation'!$B$5) -> 2014 HMACP MIXTURE DESIGN : COMBINED GRADATION | D149: =IF('Combined Gradation'!$M$21="","",'Combined Gradation'!$M$21) -> Bin No.5 | E149: =IF('Combined Gradation'!$M$34="","",'Combined Gradation'!$M$34) -> Cum.% Passing | F149: =IF('Combined Gradation'!$B$34="","",'Combined Gradation'!$B$34) -> Sieve Size: | G149: =IF('Combined Gradation'!$B$38="","",'Combined Gradation'!$B$38) -> 3/8"
A150: 148 | B150: =IF('Combined Gradation'!$N$38="","",'Combined Gradation'!$N$38) ->  | C150: =IF('Combined Gradation'!$B$5="","",'Combined Gradation'!$B$5) -> 2014 HMACP MIXTURE DESIGN : COMBINED GRADATION | D150: =IF('Combined Gradation'!$M$21="","",'Combined Gradation'!$M$21) -> Bin No.5 | E150: =IF('Combined Gradation'!$N$34="","",'Combined Gradation'!$N$34) -> Wtd Cum. % | F150: =IF('Combined Gradation'!$B$34="","",'Combined Gradation'!$B$34) -> Sieve Size: | G150: =IF('Combined Gradation'!$B$38="","",'Combined Gradation'!$B$38) -> 3/8"
A151: 149 | B151: =IF('Combined Gradation'!$O$38="","",'Combined Gradation'!$O$38) ->  | C151: =IF('Combined Gradation'!$B$5="","",'Combined Gradation'!$B$5) -> 2014 HMACP MIXTURE DESIGN : COMBINED GRADATION | D151: =IF('Combined Gradation'!$O$21="","",'Combined Gradation'!$O$21) -> Bin No.6 | E151: =IF('Combined Gradation'!$O$34="","",'Combined Gradation'!$O$34) -> Cum.% Passing | F151: =IF('Combined Gradation'!$B$34="","",'Combined Gradation'!$B$34) -> Sieve Size: | G151: =IF('Combined Gradation'!$B$38="","",'Combined Gradation'!$B$38) -> 3/8"
A152: 150 | B152: =IF('Combined Gradation'!$P$38="","",'Combined Gradation'!$P$38) ->  | C152: =IF('Combined Gradation'!$B$5="","",'Combined Gradation'!$B$5) -> 2014 HMACP MIXTURE DESIGN : COMBINED GRADATION | D152: =IF('Combined Gradation'!$O$21="","",'Combined Gradation'!$O$21) -> Bin No.6 | E152: =IF('Combined Gradation'!$P$34="","",'Combined Gradation'!$P$34) -> Wtd Cum. % | F152: =IF('Combined Gradation'!$B$34="","",'Combined Gradation'!$B$34) -> Sieve Size: | G152: =IF('Combined Gradation'!$B$38="","",'Combined Gradation'!$B$38) -> 3/8"
A153: 151 | B153: =IF('Combined Gradation'!$Q$38="","",'Combined Gradation'!$Q$38) ->  | C153: =IF('Combined Gradation'!$B$5="","",'Combined Gradation'!$B$5) -> 2014 HMACP MIXTURE DESIGN : COMBINED GRADATION | D153: =IF('Combined Gradation'!$Q$21="","",'Combined Gradation'!$Q$21) -> Bin No.7 | E153: =IF('Combined Gradation'!$Q$34="","",'Combined Gradation'!$Q$34) -> Cum.% Passing | F153: =IF('Combined Gradation'!$B$34="","",'Combined Gradation'!$B$34) -> Sieve Size: | G153: =IF('Combined Gradation'!$B$38="","",'Combined Gradation'!$B$38) -> 3/8"
A154: 152 | B154: =IF('Combined Gradation'!$R$38="","",'Combined Gradation'!$R$38) ->  | C154: =IF('Combined Gradation'!$B$5="","",'Combined Gradation'!$B$5) -> 2014 HMACP MIXTURE DESIGN : COMBINED GRADATION | D154: =IF('Combined Gradation'!$Q$21="","",'Combined Gradation'!$Q$21) -> Bin No.7 | E154: =IF('Combined Gradation'!$R$34="","",'Combined Gradation'!$R$34) -> Wtd Cum. % | F154: =IF('Combined Gradation'!$B$34="","",'Combined Gradation'!$B$34) -> Sieve Size: | G154: =IF('Combined Gradation'!$B$38="","",'Combined Gradation'!$B$38) -> 3/8"
A155: 153 | B155: =IF('Combined Gradation'!$Y$38="","",'Combined Gradation'!$Y$38) ->  | C155: =IF('Combined Gradation'!$B$5="","",'Combined Gradation'!$B$5) -> 2014 HMACP MIXTURE DESIGN : COMBINED GRADATION | D155: Combined Gradation | E155: =IF('Combined Gradation'!$Y$34="","",'Combined Gradation'!$Y$34) -> Cum. % Passing | F155: =IF('Combined Gradation'!$B$34="","",'Combined Gradation'!$B$34) -> Sieve Size: | G155: =IF('Combined Gradation'!$B$38="","",'Combined Gradation'!$B$38) -> 3/8"
A156: 154 | B156: =IF('Combined Gradation'!$Z$38="","",'Combined Gradation'!$Z$38) -> 58 | C156: =IF('Combined Gradation'!$B$5="","",'Combined Gradation'!$B$5) -> 2014 HMACP MIXTURE DESIGN : COMBINED GRADATION | D156: =IF('Combined Gradation'!$Z$31="","",'Combined Gradation'!$Z$31) -> Lower & Upper Specification Limits | E156: =IF('Combined Gradation'!$Z$34="","",'Combined Gradation'!$Z$34) -> Lower | F156: =IF('Combined Gradation'!$B$34="","",'Combined Gradation'!$B$34) -> Sieve Size: | G156: =IF('Combined Gradation'!$B$38="","",'Combined Gradation'!$B$38) -> 3/8"
A157: 155 | B157: =IF('Combined Gradation'!$AA$38="","",'Combined Gradation'!$AA$38) -> 90 | C157: =IF('Combined Gradation'!$B$5="","",'Combined Gradation'!$B$5) -> 2014 HMACP MIXTURE DESIGN : COMBINED GRADATION | D157: =IF('Combined Gradation'!$Z$31="","",'Combined Gradation'!$Z$31) -> Lower & Upper Specification Limits | E157: =IF('Combined Gradation'!$AA$34="","",'Combined Gradation'!$AA$34) -> Upper | F157: =IF('Combined Gradation'!$B$34="","",'Combined Gradation'!$B$34) -> Sieve Size: | G157: =IF('Combined Gradation'!$B$38="","",'Combined Gradation'!$B$38) -> 3/8"
A158: 156 | B158: =IF('Combined Gradation'!$AB$38="","",'Combined Gradation'!$AB$38) -> No | C158: =IF('Combined Gradation'!$B$5="","",'Combined Gradation'!$B$5) -> 2014 HMACP MIXTURE DESIGN : COMBINED GRADATION | D158: =IF('Combined Gradation'!$Z$31="","",'Combined Gradation'!$Z$31) -> Lower & Upper Specification Limits | E158: =IF('Combined Gradation'!$AB$34="","",'Combined Gradation'!$AB$34) -> Within Spec's | F158: =IF('Combined Gradation'!$B$34="","",'Combined Gradation'!$B$34) -> Sieve Size: | G158: =IF('Combined Gradation'!$B$38="","",'Combined Gradation'!$B$38) -> 3/8"
A159: 157 | B159: =IF('Combined Gradation'!$AC$38="","",'Combined Gradation'!$AC$38) ->  | C159: =IF('Combined Gradation'!$B$5="","",'Combined Gradation'!$B$5) -> 2014 HMACP MIXTURE DESIGN : COMBINED GRADATION | D159: =IF('Combined Gradation'!$AC$31="","",'Combined Gradation'!$AC$31) -> Restricted Zone | E159: =IF('Combined Gradation'!$AC$34="","",'Combined Gradation'!$AC$34) -> Lower | F159: =IF('Combined Gradation'!$B$34="","",'Combined Gradation'!$B$34) -> Sieve Size: | G159: =IF('Combined Gradation'!$B$38="","",'Combined Gradation'!$B$38) -> 3/8"
A160: 158 | B160: =IF('Combined Gradation'!$AD$38="","",'Combined Gradation'!$AD$38) -> 0 | C160: =IF('Combined Gradation'!$B$5="","",'Combined Gradation'!$B$5) -> 2014 HMACP MIXTURE DESIGN : COMBINED GRADATION | D160: =IF('Combined Gradation'!$AC$31="","",'Combined Gradation'!$AC$31) -> Restricted Zone | E160: =IF('Combined Gradation'!$AD$34="","",'Combined Gradation'!$AD$34) -> Upper | F160: =IF('Combined Gradation'!$B$34="","",'Combined Gradation'!$B$34) -> Sieve Size: | G160: =IF('Combined Gradation'!$B$38="","",'Combined Gradation'!$B$38) -> 3/8"
A161: 159 | B161: =IF('Combined Gradation'!$AE$38="","",'Combined Gradation'!$AE$38) ->  | C161: =IF('Combined Gradation'!$B$5="","",'Combined Gradation'!$B$5) -> 2014 HMACP MIXTURE DESIGN : COMBINED GRADATION | D161: =IF('Combined Gradation'!$AC$31="","",'Combined Gradation'!$AC$31) -> Restricted Zone | E161: =IF('Combined Gradation'!$AE$34="","",'Combined Gradation'!$AE$34) -> Within Spec's | F161: =IF('Combined Gradation'!$B$34="","",'Combined Gradation'!$B$34) -> Sieve Size: | G161: =IF('Combined Gradation'!$B$38="","",'Combined Gradation'!$B$38) -> 3/8"
A162: 160 | B162: =IF('Combined Gradation'!$AF$38="","",'Combined Gradation'!$AF$38) ->  | C162: =IF('Combined Gradation'!$B$5="","",'Combined Gradation'!$B$5) -> 2014 HMACP MIXTURE DESIGN : COMBINED GRADATION | D162: =IF('Combined Gradation'!$AF$31="","",'Combined Gradation'!$AF$31) -> Individual % Retained | E162: =IF('Combined Gradation'!$B$34="","",'Combined Gradation'!$B$34) -> Sieve Size: | F162: =IF('Combined Gradation'!$B$38="","",'Combined Gradation'!$B$38) -> 3/8"
A163: 161 | B163: =IF('Combined Gradation'!$AG$38="","",'Combined Gradation'!$AG$38) ->  | C163: =IF('Combined Gradation'!$B$5="","",'Combined Gradation'!$B$5) -> 2014 HMACP MIXTURE DESIGN : COMBINED GRADATION | D163: =IF('Combined Gradation'!$AG$31="","",'Combined Gradation'!$AG$31) -> Cumulative % Retained | E163: =IF('Combined Gradation'!$B$34="","",'Combined Gradation'!$B$34) -> Sieve Size: | F163: =IF('Combined Gradation'!$B$38="","",'Combined Gradation'!$B$38) -> 3/8"
A164: 162 | B164: =IF('Combined Gradation'!$E$39="","",'Combined Gradation'!$E$39) ->  | C164: =IF('Combined Gradation'!$B$5="","",'Combined Gradation'!$B$5) -> 2014 HMACP MIXTURE DESIGN : COMBINED GRADATION | D164: =IF('Combined Gradation'!$E$21="","",'Combined Gradation'!$E$21) -> Bin No.1 | E164: =IF('Combined Gradation'!$E$34="","",'Combined Gradation'!$E$34) -> Cum.% Passing | F164: =IF('Combined Gradation'!$B$34="","",'Combined Gradation'!$B$34) -> Sieve Size: | G164: =IF('Combined Gradation'!$B$39="","",'Combined Gradation'!$B$39) -> No. 4
A165: 163 | B165: =IF('Combined Gradation'!$F$39="","",'Combined Gradation'!$F$39) ->  | C165: =IF('Combined Gradation'!$B$5="","",'Combined Gradation'!$B$5) -> 2014 HMACP MIXTURE DESIGN : COMBINED GRADATION | D165: =IF('Combined Gradation'!$E$21="","",'Combined Gradation'!$E$21) -> Bin No.1 | E165: =IF('Combined Gradation'!$F$34="","",'Combined Gradation'!$F$34) -> Wtd Cum. % | F165: =IF('Combined Gradation'!$B$34="","",'Combined Gradation'!$B$34) -> Sieve Size: | G165: =IF('Combined Gradation'!$B$39="","",'Combined Gradation'!$B$39) -> No. 4
A166: 164 | B166: =IF('Combined Gradation'!$G$39="","",'Combined Gradation'!$G$39) ->  | C166: =IF('Combined Gradation'!$B$5="","",'Combined Gradation'!$B$5) -> 2014 HMACP MIXTURE DESIGN : COMBINED GRADATION | D166: =IF('Combined Gradation'!$G$21="","",'Combined Gradation'!$G$21) -> Bin No.2 | E166: =IF('Combined Gradation'!$G$34="","",'Combined Gradation'!$G$34) -> Cum.% Passing | F166: =IF('Combined Gradation'!$B$34="","",'Combined Gradation'!$B$34) -> Sieve Size: | G166: =IF('Combined Gradation'!$B$39="","",'Combined Gradation'!$B$39) -> No. 4
A167: 165 | B167: =IF('Combined Gradation'!$H$39="","",'Combined Gradation'!$H$39) ->  | C167: =IF('Combined Gradation'!$B$5="","",'Combined Gradation'!$B$5) -> 2014 HMACP MIXTURE DESIGN : COMBINED GRADATION | D167: =IF('Combined Gradation'!$G$21="","",'Combined Gradation'!$G$21) -> Bin No.2 | E167: =IF('Combined Gradation'!$H$34="","",'Combined Gradation'!$H$34) -> Wtd Cum. % | F167: =IF('Combined Gradation'!$B$34="","",'Combined Gradation'!$B$34) -> Sieve Size: | G167: =IF('Combined Gradation'!$B$39="","",'Combined Gradation'!$B$39) -> No. 4
A168: 166 | B168: =IF('Combined Gradation'!$I$39="","",'Combined Gradation'!$I$39) ->  | C168: =IF('Combined Gradation'!$B$5="","",'Combined Gradation'!$B$5) -> 2014 HMACP MIXTURE DESIGN : COMBINED GRADATION | D168: =IF('Combined Gradation'!$I$21="","",'Combined Gradation'!$I$21) -> Bin No.3 | E168: =IF('Combined Gradation'!$I$34="","",'Combined Gradation'!$I$34) -> Cum.% Passing | F168: =IF('Combined Gradation'!$B$34="","",'Combined Gradation'!$B$34) -> Sieve Size: | G168: =IF('Combined Gradation'!$B$39="","",'Combined Gradation'!$B$39) -> No. 4
A169: 167 | B169: =IF('Combined Gradation'!$J$39="","",'Combined Gradation'!$J$39) ->  | C169: =IF('Combined Gradation'!$B$5="","",'Combined Gradation'!$B$5) -> 2014 HMACP MIXTURE DESIGN : COMBINED GRADATION | D169: =IF('Combined Gradation'!$I$21="","",'Combined Gradation'!$I$21) -> Bin No.3 | E169: =IF('Combined Gradation'!$J$34="","",'Combined Gradation'!$J$34) -> Wtd Cum. % | F169: =IF('Combined Gradation'!$B$34="","",'Combined Gradation'!$B$34) -> Sieve Size: | G169: =IF('Combined Gradation'!$B$39="","",'Combined Gradation'!$B$39) -> No. 4
A170: 168 | B170: =IF('Combined Gradation'!$K$39="","",'Combined Gradation'!$K$39) ->  | C170: =IF('Combined Gradation'!$B$5="","",'Combined Gradation'!$B$5) -> 2014 HMACP MIXTURE DESIGN : COMBINED GRADATION | D170: =IF('Combined Gradation'!$K$21="","",'Combined Gradation'!$K$21) -> Bin No.4 | E170: =IF('Combined Gradation'!$K$34="","",'Combined Gradation'!$K$34) -> Cum.% Passing | F170: =IF('Combined Gradation'!$B$34="","",'Combined Gradation'!$B$34) -> Sieve Size: | G170: =IF('Combined Gradation'!$B$39="","",'Combined Gradation'!$B$39) -> No. 4
A171: 169 | B171: =IF('Combined Gradation'!$L$39="","",'Combined Gradation'!$L$39) ->  | C171: =IF('Combined Gradation'!$B$5="","",'Combined Gradation'!$B$5) -> 2014 HMACP MIXTURE DESIGN : COMBINED GRADATION | D171: =IF('Combined Gradation'!$K$21="","",'Combined Gradation'!$K$21) -> Bin No.4 | E171: =IF('Combined Gradation'!$L$34="","",'Combined Gradation'!$L$34) -> Wtd Cum. % | F171: =IF('Combined Gradation'!$B$34="","",'Combined Gradation'!$B$34) -> Sieve Size: | G171: =IF('Combined Gradation'!$B$39="","",'Combined Gradation'!$B$39) -> No. 4
A172: 170 | B172: =IF('Combined Gradation'!$M$39="","",'Combined Gradation'!$M$39) ->  | C172: =IF('Combined Gradation'!$B$5="","",'Combined Gradation'!$B$5) -> 2014 HMACP MIXTURE DESIGN : COMBINED GRADATION | D172: =IF('Combined Gradation'!$M$21="","",'Combined Gradation'!$M$21) -> Bin No.5 | E172: =IF('Combined Gradation'!$M$34="","",'Combined Gradation'!$M$34) -> Cum.% Passing | F172: =IF('Combined Gradation'!$B$34="","",'Combined Gradation'!$B$34) -> Sieve Size: | G172: =IF('Combined Gradation'!$B$39="","",'Combined Gradation'!$B$39) -> No. 4
A173: 171 | B173: =IF('Combined Gradation'!$N$39="","",'Combined Gradation'!$N$39) ->  | C173: =IF('Combined Gradation'!$B$5="","",'Combined Gradation'!$B$5) -> 2014 HMACP MIXTURE DESIGN : COMBINED GRADATION | D173: =IF('Combined Gradation'!$M$21="","",'Combined Gradation'!$M$21) -> Bin No.5 | E173: =IF('Combined Gradation'!$N$34="","",'Combined Gradation'!$N$34) -> Wtd Cum. % | F173: =IF('Combined Gradation'!$B$34="","",'Combined Gradation'!$B$34) -> Sieve Size: | G173: =IF('Combined Gradation'!$B$39="","",'Combined Gradation'!$B$39) -> No. 4
A174: 172 | B174: =IF('Combined Gradation'!$O$39="","",'Combined Gradation'!$O$39) ->  | C174: =IF('Combined Gradation'!$B$5="","",'Combined Gradation'!$B$5) -> 2014 HMACP MIXTURE DESIGN : COMBINED GRADATION | D174: =IF('Combined Gradation'!$O$21="","",'Combined Gradation'!$O$21) -> Bin No.6 | E174: =IF('Combined Gradation'!$O$34="","",'Combined Gradation'!$O$34) -> Cum.% Passing | F174: =IF('Combined Gradation'!$B$34="","",'Combined Gradation'!$B$34) -> Sieve Size: | G174: =IF('Combined Gradation'!$B$39="","",'Combined Gradation'!$B$39) -> No. 4
A175: 173 | B175: =IF('Combined Gradation'!$P$39="","",'Combined Gradation'!$P$39) ->  | C175: =IF('Combined Gradation'!$B$5="","",'Combined Gradation'!$B$5) -> 2014 HMACP MIXTURE DESIGN : COMBINED GRADATION | D175: =IF('Combined Gradation'!$O$21="","",'Combined Gradation'!$O$21) -> Bin No.6 | E175: =IF('Combined Gradation'!$P$34="","",'Combined Gradation'!$P$34) -> Wtd Cum. % | F175: =IF('Combined Gradation'!$B$34="","",'Combined Gradation'!$B$34) -> Sieve Size: | G175: =IF('Combined Gradation'!$B$39="","",'Combined Gradation'!$B$39) -> No. 4
A176: 174 | B176: =IF('Combined Gradation'!$Q$39="","",'Combined Gradation'!$Q$39) ->  | C176: =IF('Combined Gradation'!$B$5="","",'Combined Gradation'!$B$5) -> 2014 HMACP MIXTURE DESIGN : COMBINED GRADATION | D176: =IF('Combined Gradation'!$Q$21="","",'Combined Gradation'!$Q$21) -> Bin No.7 | E176: =IF('Combined Gradation'!$Q$34="","",'Combined Gradation'!$Q$34) -> Cum.% Passing | F176: =IF('Combined Gradation'!$B$34="","",'Combined Gradation'!$B$34) -> Sieve Size: | G176: =IF('Combined Gradation'!$B$39="","",'Combined Gradation'!$B$39) -> No. 4
A177: 175 | B177: =IF('Combined Gradation'!$R$39="","",'Combined Gradation'!$R$39) ->  | C177: =IF('Combined Gradation'!$B$5="","",'Combined Gradation'!$B$5) -> 2014 HMACP MIXTURE DESIGN : COMBINED GRADATION | D177: =IF('Combined Gradation'!$Q$21="","",'Combined Gradation'!$Q$21) -> Bin No.7 | E177: =IF('Combined Gradation'!$R$34="","",'Combined Gradation'!$R$34) -> Wtd Cum. % | F177: =IF('Combined Gradation'!$B$34="","",'Combined Gradation'!$B$34) -> Sieve Size: | G177: =IF('Combined Gradation'!$B$39="","",'Combined Gradation'!$B$39) -> No. 4
A178: 176 | B178: =IF('Combined Gradation'!$Y$39="","",'Combined Gradation'!$Y$39) ->  | C178: =IF('Combined Gradation'!$B$5="","",'Combined Gradation'!$B$5) -> 2014 HMACP MIXTURE DESIGN : COMBINED GRADATION | D178: Combined Gradation | E178: =IF('Combined Gradation'!$Y$34="","",'Combined Gradation'!$Y$34) -> Cum. % Passing | F178: =IF('Combined Gradation'!$B$34="","",'Combined Gradation'!$B$34) -> Sieve Size: | G178: =IF('Combined Gradation'!$B$39="","",'Combined Gradation'!$B$39) -> No. 4
A179: 177 | B179: =IF('Combined Gradation'!$Z$39="","",'Combined Gradation'!$Z$39) -> 28 | C179: =IF('Combined Gradation'!$B$5="","",'Combined Gradation'!$B$5) -> 2014 HMACP MIXTURE DESIGN : COMBINED GRADATION | D179: =IF('Combined Gradation'!$Z$31="","",'Combined Gradation'!$Z$31) -> Lower & Upper Specification Limits | E179: =IF('Combined Gradation'!$Z$34="","",'Combined Gradation'!$Z$34) -> Lower | F179: =IF('Combined Gradation'!$B$34="","",'Combined Gradation'!$B$34) -> Sieve Size: | G179: =IF('Combined Gradation'!$B$39="","",'Combined Gradation'!$B$39) -> No. 4
A180: 178 | B180: =IF('Combined Gradation'!$AA$39="","",'Combined Gradation'!$AA$39) -> 90 | C180: =IF('Combined Gradation'!$B$5="","",'Combined Gradation'!$B$5) -> 2014 HMACP MIXTURE DESIGN : COMBINED GRADATION | D180: =IF('Combined Gradation'!$Z$31="","",'Combined Gradation'!$Z$31) -> Lower & Upper Specification Limits | E180: =IF('Combined Gradation'!$AA$34="","",'Combined Gradation'!$AA$34) -> Upper | F180: =IF('Combined Gradation'!$B$34="","",'Combined Gradation'!$B$34) -> Sieve Size: | G180: =IF('Combined Gradation'!$B$39="","",'Combined Gradation'!$B$39) -> No. 4
A181: 179 | B181: =IF('Combined Gradation'!$AB$39="","",'Combined Gradation'!$AB$39) -> No | C181: =IF('Combined Gradation'!$B$5="","",'Combined Gradation'!$B$5) -> 2014 HMACP MIXTURE DESIGN : COMBINED GRADATION | D181: =IF('Combined Gradation'!$Z$31="","",'Combined Gradation'!$Z$31) -> Lower & Upper Specification Limits | E181: =IF('Combined Gradation'!$AB$34="","",'Combined Gradation'!$AB$34) -> Within Spec's | F181: =IF('Combined Gradation'!$B$34="","",'Combined Gradation'!$B$34) -> Sieve Size: | G181: =IF('Combined Gradation'!$B$39="","",'Combined Gradation'!$B$39) -> No. 4
A182: 180 | B182: =IF('Combined Gradation'!$AC$39="","",'Combined Gradation'!$AC$39) ->  | C182: =IF('Combined Gradation'!$B$5="","",'Combined Gradation'!$B$5) -> 2014 HMACP MIXTURE DESIGN : COMBINED GRADATION | D182: =IF('Combined Gradation'!$AC$31="","",'Combined Gradation'!$AC$31) -> Restricted Zone | E182: =IF('Combined Gradation'!$AC$34="","",'Combined Gradation'!$AC$34) -> Lower | F182: =IF('Combined Gradation'!$B$34="","",'Combined Gradation'!$B$34) -> Sieve Size: | G182: =IF('Combined Gradation'!$B$39="","",'Combined Gradation'!$B$39) -> No. 4
A183: 181 | B183: =IF('Combined Gradation'!$AD$39="","",'Combined Gradation'!$AD$39) -> 0 | C183: =IF('Combined Gradation'!$B$5="","",'Combined Gradation'!$B$5) -> 2014 HMACP MIXTURE DESIGN : COMBINED GRADATION | D183: =IF('Combined Gradation'!$AC$31="","",'Combined Gradation'!$AC$31) -> Restricted Zone | E183: =IF('Combined Gradation'!$AD$34="","",'Combined Gradation'!$AD$34) -> Upper | F183: =IF('Combined Gradation'!$B$34="","",'Combined Gradation'!$B$34) -> Sieve Size: | G183: =IF('Combined Gradation'!$B$39="","",'Combined Gradation'!$B$39) -> No. 4
A184: 182 | B184: =IF('Combined Gradation'!$AE$39="","",'Combined Gradation'!$AE$39) ->  | C184: =IF('Combined Gradation'!$B$5="","",'Combined Gradation'!$B$5) -> 2014 HMACP MIXTURE DESIGN : COMBINED GRADATION | D184: =IF('Combined Gradation'!$AC$31="","",'Combined Gradation'!$AC$31) -> Restricted Zone | E184: =IF('Combined Gradation'!$AE$34="","",'Combined Gradation'!$AE$34) -> Within Spec's | F184: =IF('Combined Gradation'!$B$34="","",'Combined Gradation'!$B$34) -> Sieve Size: | G184: =IF('Combined Gradation'!$B$39="","",'Combined Gradation'!$B$39) -> No. 4
A185: 183 | B185: =IF('Combined Gradation'!$AF$39="","",'Combined Gradation'!$AF$39) ->  | C185: =IF('Combined Gradation'!$B$5="","",'Combined Gradation'!$B$5) -> 2014 HMACP MIXTURE DESIGN : COMBINED GRADATION | D185: =IF('Combined Gradation'!$AF$31="","",'Combined Gradation'!$AF$31) -> Individual % Retained | E185: =IF('Combined Gradation'!$B$34="","",'Combined Gradation'!$B$34) -> Sieve Size: | F185: =IF('Combined Gradation'!$B$39="","",'Combined Gradation'!$B$39) -> No. 4
A186: 184 | B186: =IF('Combined Gradation'!$AG$39="","",'Combined Gradation'!$AG$39) ->  | C186: =IF('Combined Gradation'!$B$5="","",'Combined Gradation'!$B$5) -> 2014 HMACP MIXTURE DESIGN : COMBINED GRADATION | D186: =IF('Combined Gradation'!$AG$31="","",'Combined Gradation'!$AG$31) -> Cumulative % Retained | E186: =IF('Combined Gradation'!$B$34="","",'Combined Gradation'!$B$34) -> Sieve Size: | F186: =IF('Combined Gradation'!$B$39="","",'Combined Gradation'!$B$39) -> No. 4
A187: 185 | B187: =IF('Combined Gradation'!$E$40="","",'Combined Gradation'!$E$40) ->  | C187: =IF('Combined Gradation'!$B$5="","",'Combined Gradation'!$B$5) -> 2014 HMACP MIXTURE DESIGN : COMBINED GRADATION | D187: =IF('Combined Gradation'!$E$21="","",'Combined Gradation'!$E$21) -> Bin No.1 | E187: =IF('Combined Gradation'!$E$34="","",'Combined Gradation'!$E$34) -> Cum.% Passing | F187: =IF('Combined Gradation'!$B$34="","",'Combined Gradation'!$B$34) -> Sieve Size: | G187: =IF('Combined Gradation'!$B$40="","",'Combined Gradation'!$B$40) -> No. 8
A188: 186 | B188: =IF('Combined Gradation'!$F$40="","",'Combined Gradation'!$F$40) ->  | C188: =IF('Combined Gradation'!$B$5="","",'Combined Gradation'!$B$5) -> 2014 HMACP MIXTURE DESIGN : COMBINED GRADATION | D188: =IF('Combined Gradation'!$E$21="","",'Combined Gradation'!$E$21) -> Bin No.1 | E188: =IF('Combined Gradation'!$F$34="","",'Combined Gradation'!$F$34) -> Wtd Cum. % | F188: =IF('Combined Gradation'!$B$34="","",'Combined Gradation'!$B$34) -> Sieve Size: | G188: =IF('Combined Gradation'!$B$40="","",'Combined Gradation'!$B$40) -> No. 8
A189: 187 | B189: =IF('Combined Gradation'!$G$40="","",'Combined Gradation'!$G$40) ->  | C189: =IF('Combined Gradation'!$B$5="","",'Combined Gradation'!$B$5) -> 2014 HMACP MIXTURE DESIGN : COMBINED GRADATION | D189: =IF('Combined Gradation'!$G$21="","",'Combined Gradation'!$G$21) -> Bin No.2 | E189: =IF('Combined Gradation'!$G$34="","",'Combined Gradation'!$G$34) -> Cum.% Passing | F189: =IF('Combined Gradation'!$B$34="","",'Combined Gradation'!$B$34) -> Sieve Size: | G189: =IF('Combined Gradation'!$B$40="","",'Combined Gradation'!$B$40) -> No. 8
A190: 188 | B190: =IF('Combined Gradation'!$H$40="","",'Combined Gradation'!$H$40) ->  | C190: =IF('Combined Gradation'!$B$5="","",'Combined Gradation'!$B$5) -> 2014 HMACP MIXTURE DESIGN : COMBINED GRADATION | D190: =IF('Combined Gradation'!$G$21="","",'Combined Gradation'!$G$21) -> Bin No.2 | E190: =IF('Combined Gradation'!$H$34="","",'Combined Gradation'!$H$34) -> Wtd Cum. % | F190: =IF('Combined Gradation'!$B$34="","",'Combined Gradation'!$B$34) -> Sieve Size: | G190: =IF('Combined Gradation'!$B$40="","",'Combined Gradation'!$B$40) -> No. 8
A191: 189 | B191: =IF('Combined Gradation'!$I$40="","",'Combined Gradation'!$I$40) ->  | C191: =IF('Combined Gradation'!$B$5="","",'Combined Gradation'!$B$5) -> 2014 HMACP MIXTURE DESIGN : COMBINED GRADATION | D191: =IF('Combined Gradation'!$I$21="","",'Combined Gradation'!$I$21) -> Bin No.3 | E191: =IF('Combined Gradation'!$I$34="","",'Combined Gradation'!$I$34) -> Cum.% Passing | F191: =IF('Combined Gradation'!$B$34="","",'Combined Gradation'!$B$34) -> Sieve Size: | G191: =IF('Combined Gradation'!$B$40="","",'Combined Gradation'!$B$40) -> No. 8
A192: 190 | B192: =IF('Combined Gradation'!$J$40="","",'Combined Gradation'!$J$40) ->  | C192: =IF('Combined Gradation'!$B$5="","",'Combined Gradation'!$B$5) -> 2014 HMACP MIXTURE DESIGN : COMBINED GRADATION | D192: =IF('Combined Gradation'!$I$21="","",'Combined Gradation'!$I$21) -> Bin No.3 | E192: =IF('Combined Gradation'!$J$34="","",'Combined Gradation'!$J$34) -> Wtd Cum. % | F192: =IF('Combined Gradation'!$B$34="","",'Combined Gradation'!$B$34) -> Sieve Size: | G192: =IF('Combined Gradation'!$B$40="","",'Combined Gradation'!$B$40) -> No. 8
A193: 191 | B193: =IF('Combined Gradation'!$K$40="","",'Combined Gradation'!$K$40) ->  | C193: =IF('Combined Gradation'!$B$5="","",'Combined Gradation'!$B$5) -> 2014 HMACP MIXTURE DESIGN : COMBINED GRADATION | D193: =IF('Combined Gradation'!$K$21="","",'Combined Gradation'!$K$21) -> Bin No.4 | E193: =IF('Combined Gradation'!$K$34="","",'Combined Gradation'!$K$34) -> Cum.% Passing | F193: =IF('Combined Gradation'!$B$34="","",'Combined Gradation'!$B$34) -> Sieve Size: | G193: =IF('Combined Gradation'!$B$40="","",'Combined Gradation'!$B$40) -> No. 8
A194: 192 | B194: =IF('Combined Gradation'!$L$40="","",'Combined Gradation'!$L$40) ->  | C194: =IF('Combined Gradation'!$B$5="","",'Combined Gradation'!$B$5) -> 2014 HMACP MIXTURE DESIGN : COMBINED GRADATION | D194: =IF('Combined Gradation'!$K$21="","",'Combined Gradation'!$K$21) -> Bin No.4 | E194: =IF('Combined Gradation'!$L$34="","",'Combined Gradation'!$L$34) -> Wtd Cum. % | F194: =IF('Combined Gradation'!$B$34="","",'Combined Gradation'!$B$34) -> Sieve Size: | G194: =IF('Combined Gradation'!$B$40="","",'Combined Gradation'!$B$40) -> No. 8
A195: 193 | B195: =IF('Combined Gradation'!$M$40="","",'Combined Gradation'!$M$40) ->  | C195: =IF('Combined Gradation'!$B$5="","",'Combined Gradation'!$B$5) -> 2014 HMACP MIXTURE DESIGN : COMBINED GRADATION | D195: =IF('Combined Gradation'!$M$21="","",'Combined Gradation'!$M$21) -> Bin No.5 | E195: =IF('Combined Gradation'!$M$34="","",'Combined Gradation'!$M$34) -> Cum.% Passing | F195: =IF('Combined Gradation'!$B$34="","",'Combined Gradation'!$B$34) -> Sieve Size: | G195: =IF('Combined Gradation'!$B$40="","",'Combined Gradation'!$B$40) -> No. 8
A196: 194 | B196: =IF('Combined Gradation'!$N$40="","",'Combined Gradation'!$N$40) ->  | C196: =IF('Combined Gradation'!$B$5="","",'Combined Gradation'!$B$5) -> 2014 HMACP MIXTURE DESIGN : COMBINED GRADATION | D196: =IF('Combined Gradation'!$M$21="","",'Combined Gradation'!$M$21) -> Bin No.5 | E196: =IF('Combined Gradation'!$N$34="","",'Combined Gradation'!$N$34) -> Wtd Cum. % | F196: =IF('Combined Gradation'!$B$34="","",'Combined Gradation'!$B$34) -> Sieve Size: | G196: =IF('Combined Gradation'!$B$40="","",'Combined Gradation'!$B$40) -> No. 8
A197: 195 | B197: =IF('Combined Gradation'!$O$40="","",'Combined Gradation'!$O$40) ->  | C197: =IF('Combined Gradation'!$B$5="","",'Combined Gradation'!$B$5) -> 2014 HMACP MIXTURE DESIGN : COMBINED GRADATION | D197: =IF('Combined Gradation'!$O$21="","",'Combined Gradation'!$O$21) -> Bin No.6 | E197: =IF('Combined Gradation'!$O$34="","",'Combined Gradation'!$O$34) -> Cum.% Passing | F197: =IF('Combined Gradation'!$B$34="","",'Combined Gradation'!$B$34) -> Sieve Size: | G197: =IF('Combined Gradation'!$B$40="","",'Combined Gradation'!$B$40) -> No. 8
A198: 196 | B198: =IF('Combined Gradation'!$P$40="","",'Combined Gradation'!$P$40) ->  | C198: =IF('Combined Gradation'!$B$5="","",'Combined Gradation'!$B$5) -> 2014 HMACP MIXTURE DESIGN : COMBINED GRADATION | D198: =IF('Combined Gradation'!$O$21="","",'Combined Gradation'!$O$21) -> Bin No.6 | E198: =IF('Combined Gradation'!$P$34="","",'Combined Gradation'!$P$34) -> Wtd Cum. % | F198: =IF('Combined Gradation'!$B$34="","",'Combined Gradation'!$B$34) -> Sieve Size: | G198: =IF('Combined Gradation'!$B$40="","",'Combined Gradation'!$B$40) -> No. 8
A199: 197 | B199: =IF('Combined Gradation'!$Q$40="","",'Combined Gradation'!$Q$40) ->  | C199: =IF('Combined Gradation'!$B$5="","",'Combined Gradation'!$B$5) -> 2014 HMACP MIXTURE DESIGN : COMBINED GRADATION | D199: =IF('Combined Gradation'!$Q$21="","",'Combined Gradation'!$Q$21) -> Bin No.7 | E199: =IF('Combined Gradation'!$Q$34="","",'Combined Gradation'!$Q$34) -> Cum.% Passing | F199: =IF('Combined Gradation'!$B$34="","",'Combined Gradation'!$B$34) -> Sieve Size: | G199: =IF('Combined Gradation'!$B$40="","",'Combined Gradation'!$B$40) -> No. 8
A200: 198 | B200: =IF('Combined Gradation'!$R$40="","",'Combined Gradation'!$R$40) ->  | C200: =IF('Combined Gradation'!$B$5="","",'Combined Gradation'!$B$5) -> 2014 HMACP MIXTURE DESIGN : COMBINED GRADATION | D200: =IF('Combined Gradation'!$Q$21="","",'Combined Gradation'!$Q$21) -> Bin No.7 | E200: =IF('Combined Gradation'!$R$34="","",'Combined Gradation'!$R$34) -> Wtd Cum. % | F200: =IF('Combined Gradation'!$B$34="","",'Combined Gradation'!$B$34) -> Sieve Size: | G200: =IF('Combined Gradation'!$B$40="","",'Combined Gradation'!$B$40) -> No. 8
... 1588 more rows

Sheet Summary
B1: TEXAS DEPARTMENT OF TRANSPORTATION
B2: =IF(location="","",location) -> 
B4: HMACP MIXTURE DESIGN : SUMMARY SHEET
B6: SAMPLE ID: | E6: =IF(sampleid="","",sampleid) ->  | H6: SAMPLE DATE: | K6: =IF(sampleddate="","",sampleddate) -> 
B7: LOT NUMBER: | E7: =IF(testnumber="","",testnumber) ->  | H7: LETTING DATE: | K7: =IF(lettingdate="","",lettingdate) -> 
B8: SAMPLE STATUS: | E8: =IF(status="","",status) ->  | H8: CONTROLLING CSJ: | K8: =IF(ccsj="","",ccsj) -> 
B9: COUNTY: | E9: =IF(county="","",county) ->  | H9: SPEC YEAR: | K9: =+IF(specyear="","",specyear) -> 2014
B10: SAMPLED BY: | E10: =IF(sampledby="","",sampledby) ->  | H10: SPEC ITEM: | K10: =IF(specitem="","",specitem) -> 
B11: SAMPLE LOCATION: | E11: =IF(samplelocation="","",samplelocation) ->  | H11: SPECIAL PROVISION: | K11: =IF(specialprovision="","",specialprovision) -> 
B12: MATERIAL CODE: | E12: =IF(material="","",material) ->  | H12: MIX TYPE: | K12: =IF(Grade="","",Grade) -> SS-3074-BMD-SP-C
B13: MATERIAL NAME: | E13: =IF(matl_nm="","",matl_nm) -> 
B14: PRODUCER: | E14: =IF(producer="","",producer) -> 
B15: AREA ENGINEER: | E15: =IF(areaengineer="","",areaengineer) ->  | H15: PROJECT MANAGER: | K15: =IF(projectmanager="","",projectmanager) -> 
B17: COURSE\LIFT: | E17: =IF(courselift="","",courselift) -> Surface | F17: STATION: | H17: =IF(station="","",station) ->  | J17: DIST. FROM CL: | L17: =IF(distfromcl="","",distfromcl) ->  | U17: CONTRACTOR DESIGN # : | X17: =IF(condesignnum="","",condesignnum) -> 
B18: =IF('Bulk Gravity'!P43="","","**Aggregate bulk specific gravities vary by 0.300 or more. Design by volume is required if using TGC.") -> 
B19: Target Density, %: | G19: =IF(ISBLANK(TargDen),"",IF(Denscheck=1,"< Not meeting spec","")) ->  | I19: Fiber Content, %: | K19: =IF(ISBLANK(percentfiber),"",percentfiber) ->  | L19: =IF(ISBLANK(percentfiber), "", IF(RAS>=3,IF(OR(percentfiber<0.1,percentfiber>0.5),"<0.1-0.5%",""),IF(OR(percentfiber<0.2,percentfiber>0.5),"<0.2-0.5%",""))) ->  | U19: Note: This mix design requires an asphalt content of at least | AB19: =IFERROR(ROUNDUP(BinderRatio/100,3),"") -> 0.04
B20: Number of Gyrations: | G20: =IF(ISBLANK(Gyrations),"",IF(GyrCheck=1,"< Not meeting spec","")) ->  | I20: CRM* Content, %: | K20: =IF(ISBLANK(percentrubber),"",percentrubber) ->  | L20: =IF(ISBLANK(percentrubber),"",IF(percentrubber<15,"<< 15 min","")) ->  | U20: to meet the Maximum Ratio of Recycled to Total Binder requirement.
I21: *Crumb Rubber Modifier
W22: Mixture Evaluation @ Optimum Asphalt Content | AW22: trip1
B23: TEST SPECIMENS | W23: Indirect Tensile Strength (psi) | Y23: Hamburg Wheel Tracking Test | AF23: Overlay Test
B24: Asphalt Content (%) | C24: Binder Ratio (%) | D24: Specific Gravity Of Specimen (Ga) | F24: Maximum Specific Gravity (Gr) | H24: Effective Gravity (Ge) | J24: Theo. Max. Specific Gravity (Gt) | L24: Density from Gt (Percent) | S24: Maxium Specific Gravity (Gr) | T24: Theo. Max. Specific Gravity (Gt) | U24: VMA (Percent) | Y24: Number of cycles | AA24: Rut depth (mm) | AF24: Min. Number of Cycles | AH24: Min. Critical Fracture Energy (in-lb/in2) | AJ24: Max. Crack Progression Rate
A26: 1 | C26: =IF(OR(version<5,B26=""),"",RecBinder/B26*100) ->  | H26: =IF(F26="","",(100-B26)/((100/F26)-(B26/SGAsph))) ->  | J26: =IF(OR(B26=0,B26=""),"",(100/(((100-B26)/EffSG)+(B26/SGAsph)))) ->  | L26: =IF(ISERROR(100*(D26/J26)),"",100*(D26/J26)) ->  | N26: =IF(L26>=TargDen,1,0) -> 1 | O26: =IF(L26<TargDen,1,0) -> 0 | P26: =IF(AND(N26=1,O25=1),1,0) -> 0 | Q26: =IF(P26=1,B26-((L26-TargDen)/(L26-L25)*(B26-B25)),0) -> 0 | R26: =IF(P26=1,U26-((L26-TargDen)/(L26-L25)*(U26-U25)),0) -> 0 | S26: =IF($P26=1,FORECAST(TargDen,F25:F26,$L25:$L26),"") ->  | T26: =IF($P26=1,FORECAST(TargDen,J25:J26,$L25:$L26),"") ->  | U26: =IF(OR(B26=0,B26=""),"",(100-D26*100/J26+D26*B26/SGAsph)) -> 
A27: 2 | C27: =IF(OR(version<5,B27=""),"",RecBinder/B27*100) ->  | H27: =IF(F27="","",(100-B27)/((100/F27)-(B27/SGAsph))) ->  | J27: =IF(OR(B27=0,B27=""),"",(100/(((100-B27)/EffSG)+(B27/SGAsph)))) ->  | L27: =IF(ISERROR(100*(D27/J27)),"",100*(D27/J27)) ->  | N27: =IF(L27>=TargDen,1,0) -> 1 | O27: =IF(L27<TargDen,1,0) -> 0 | P27: =IF(AND(N27=1,O26=1),1,0) -> 0 | Q27: =IF(P27=1,B27-((L27-TargDen)/(L27-L26)*(B27-B26)),0) -> 0 | R27: =IF(P27=1,U27-((L27-TargDen)/(L27-L26)*(U27-U26)),0) -> 0 | S27: =IF($P27=1,FORECAST(TargDen,F26:F27,$L26:$L27),"") ->  | T27: =IF($P27=1,FORECAST(TargDen,J26:J27,$L26:$L27),"") ->  | U27: =IF(OR(B27=0,B27=""),"",(100-D27*100/J27+D27*B27/SGAsph)) -> 
A28: 3 | C28: =IF(OR(version<5,B28=""),"",RecBinder/B28*100) ->  | H28: =IF(F28="","",(100-B28)/((100/F28)-(B28/SGAsph))) ->  | J28: =IF(OR(B28=0,B28=""),"",(100/(((100-B28)/EffSG)+(B28/SGAsph)))) ->  | L28: =IF(ISERROR(100*(D28/J28)),"",100*(D28/J28)) ->  | N28: =IF(L28>=TargDen,1,0) -> 1 | O28: =IF(L28<TargDen,1,0) -> 0 | P28: =IF(AND(N28=1,O27=1),1,0) -> 0 | Q28: =IF(P28=1,B28-((L28-TargDen)/(L28-L27)*(B28-B27)),0) -> 0 | R28: =IF(P28=1,U28-((L28-TargDen)/(L28-L27)*(U28-U27)),0) -> 0 | S28: =IF($P28=1,FORECAST(TargDen,F27:F28,$L27:$L28),"") ->  | T28: =IF($P28=1,FORECAST(TargDen,J27:J28,$L27:$L28),"") ->  | U28: =IF(OR(B28=0,B28=""),"",(100-D28*100/J28+D28*B28/SGAsph)) -> 
A29: 4 | C29: =IF(OR(version<5,B29=""),"",RecBinder/B29*100) ->  | H29: =IF(F29="","",(100-B29)/((100/F29)-(B29/SGAsph))) ->  | J29: =IF(OR(B29=0,B29=""),"",(100/(((100-B29)/EffSG)+(B29/SGAsph)))) ->  | L29: =IF(ISERROR(100*(D29/J29)),"",100*(D29/J29)) ->  | N29: =IF(L29>=TargDen,1,0) -> 1 | O29: =IF(L29<TargDen,1,0) -> 0 | P29: =IF(AND(N29=1,O28=1),1,0) -> 0 | Q29: =IF(P29=1,B29-((L29-TargDen)/(L29-L28)*(B29-B28)),0) -> 0 | R29: =IF(P29=1,U29-((L29-TargDen)/(L29-L28)*(U29-U28)),0) -> 0 | S29: =IF($P29=1,FORECAST(TargDen,F28:F29,$L28:$L29),"") ->  | T29: =IF($P29=1,FORECAST(TargDen,J28:J29,$L28:$L29),"") ->  | U29: =IF(OR(B29=0,B29=""),"",(100-D29*100/J29+D29*B29/SGAsph)) -> 
A30: 5 | C30: =IF(OR(version<5,B30=""),"",RecBinder/B30*100) ->  | H30: =IF(F30="","",(100-B30)/((100/F30)-(B30/SGAsph))) ->  | J30: =IF(OR(B30=0,B30=""),"",(100/(((100-B30)/EffSG)+(B30/SGAsph)))) ->  | L30: =IF(ISERROR(100*(D30/J30)),"",100*(D30/J30)) ->  | N30: =IF(L30>=TargDen,1,0) -> 1 | O30: =IF(L30<TargDen,1,0) -> 0 | P30: =IF(AND(N30=1,O29=1),1,0) -> 0 | Q30: =IF(P30=1,B30-((L30-TargDen)/(L30-L29)*(B30-B29)),0) -> 0 | R30: =IF(P30=1,U30-((L30-TargDen)/(L30-L29)*(U30-U29)),0) -> 0 | S30: =IF($P30=1,FORECAST(TargDen,F29:F30,$L29:$L30),"") ->  | T30: =IF($P30=1,FORECAST(TargDen,J29:J30,$L29:$L30),"") ->  | U30: =IF(OR(B30=0,B30=""),"",(100-D30*100/J30+D30*B30/SGAsph)) -> 
W31: =IF(ISBLANK(W26),"",IF(OR(W26<MinIDT,W26>MaxIDT),"^ Not meeting spec","")) ->  | AF31: =IF($AF$26="","",IF(AF26<MinOT,"^ Not meeting spec","")) ->  | AH31: =IF($AH$26="","",IF(AH26<MinCFE,"^ Not meeting spec","")) ->  | AJ31: =IF($AJ$26="","",IF(AJ26>MaxCPR,"^ Not meeting spec","")) -> 
B32: Asphalt Content (%) | D32: Maximum Specific Gravity (Gr) | F32: Effective Gravity (Ge) | H32: Theo. Max. Specific Gravity (Gt) | J32: =IF(LEFT(Grade,8) = "ITEM3001","Film Thickness (microns)","VMA (Percent)") -> VMA (Percent) | AW32: These rows are the trip2 range, which are not used for the 2014 spec
A34: 1 | B34: =IF(B36="","",B36-1) ->  | D34: =IF(B34="","",100/(((100-B34)/$F$34)+(B34/'Combined Gradation'!$S$48))) ->  | F34: =IF(D36="","",(100-B36)/((100/D36)-(B36/SGAsph))) ->  | H34: =IF(OR(B34=0,B34=""),"",(100/(((100-B34)/EffSG)+(B34/SGAsph)))) ->  | J34: =IF(OR(Gsb="",filmac3="",filmgr3=""),"",IF(LEFT(Grade,8) = "ITEM3001",film1,0)) -> 
A35: 2 | B35: =IF(B36="","",B36-0.5) ->  | D35: =IF(B35="","",100/(((100-B35)/$F$34)+(B35/'Combined Gradation'!$S$48))) ->  | H35: =IF(OR(B35=0,B35=""),"",(100/(((100-B35)/EffSG)+(B35/SGAsph)))) ->  | J35: =IF(OR(Gsb="",filmac3="",filmgr3=""),"",IF(LEFT(Grade,8) = "ITEM3001",film2,0)) -> 
A36: 3 | H36: =IF(OR(B36=0,B36=""),"",(100/(((100-B36)/EffSG)+(B36/SGAsph)))) ->  | J36: =IF(OR(Gsb="",filmac3="",filmgr3=""),"",IF(LEFT(Grade,8) = "ITEM3001",film3,0)) -> 
A37: 4 | B37: =IF(B36="","",B36+0.5) ->  | D37: =IF(B37="","",100/(((100-B37)/$F$34)+(B37/'Combined Gradation'!$S$48))) ->  | H37: =IF(OR(B37=0,B37=""),"",(100/(((100-B37)/EffSG)+(B37/SGAsph)))) ->  | J37: =IF(OR(Gsb="",filmac3="",filmgr3=""),"",IF(LEFT(Grade,8) = "ITEM3001",film4,0)) -> 
A38: 5 | B38: =IF(B36="","",B36+1) ->  | D38: =IF(B38="","",100/(((100-B38)/$F$34)+(B38/'Combined Gradation'!$S$48))) ->  | H38: =IF(OR(B38=0,B38=""),"",(100/(((100-B38)/EffSG)+(B38/SGAsph)))) ->  | J38: =IF(OR(Gsb="",filmac3="",filmgr3=""),"",IF(LEFT(Grade,8) = "ITEM3001",film5,0)) -> 
B40: Min Film Thickness (microns) | F40: =IF(OR(Gsb="",filmac3="",filmgr3=""),"",9) ->  | G40: AC @ Min Film Thickness: | J40: =IF(OR(Gsb="",filmac3="",filmgr3=""),"",(9*SUM('Film Thickness'!I22:J31)*SGAsph*(100+Pba)+1000*Pba)/(9*SUM('Film Thickness'!I22:J31)*SGAsph*(1+Pba/100)+1000+10*Pba)) ->  | K40: Max Film Thickness (microns) | V40: =IF(OR(Gsb="",filmac3="",filmgr3=""),"",11) ->  | W40: AC @ Max Film Thickness: | AA40: =IF(OR(Gsb="",filmac3="",filmgr3=""),"",(11*SUM('Film Thickness'!I22:J31)*SGAsph*(100+Pba)+1000*Pba)/(11*SUM('Film Thickness'!I22:J31)*SGAsph*(1+Pba/100)+1000+10*Pba)) -> 
B42: Asphalt Content (%) | D42: Lab Measured Gr | F42: Effective Specific Gravity (Ge) | H42: Backcalculated Gr | J42: =IF(VLOOKUP(Grade,MIX_RANGE,20),"Select two asphalt contents around the anticipated OAC."&" Select the asphalt contents within the allowed tolerances in accordance with specifications","Select three asphalt contents starting from 2.0 to 3.0% and produce a mixture with the design gradation.") &" Measure Gr at each selected asphalt content." &" Gr values determined at these lower asphalt contents are used to backcalculate Gr values at the higher asphalt contents in the table below used for laboratory molds." -> Select three asphalt contents starting from 2.0 to 3.0% and produce a mixture with the design gradation. Measure Gr at each selected asphalt content. Gr values determined at these lower asphalt contents are used to backcalculate Gr values at the higher asphalt contents in the table below used for laboratory molds. | W42: Mixture Evaluation @ Optimum Asphalt Content | AW42: trip3
W43: Indirect Tensile Strength (psi) | Y43: Hamburg Wheel Tracking Test | AC43: Overlay Test
A44: 1 | F44: =IF(OR(D44=0,D45=0),"",(100-B44)/((100/(AVERAGE(D44:E45)))-(B44/SGAsph))) ->  | H44: =IF(ISERROR(((100*AVERAGE(F44:G49))/(100-B44+((AVERAGE(F44:G49)*B44)/SGAsph)))),"",((100*AVERAGE(F44:G49))/(100-B44+((AVERAGE(F44:G49)*B44)/SGAsph)))) ->  | Y44: Number of cycles | AA44: Rut depth (mm) | AC44: Min. Number of Cycles | AE44: Min. Critical Fracture Energy (in-lb/in2) | AG44: Max. Crack Propagation Rate
A45: 2
A46: 3 | F46: =IF(OR(D46=0,D47=0),"",(100-B46)/((100/(AVERAGE(D46:E47)))-(B46/SGAsph))) ->  | H46: =IF(ISERROR(((100*AVERAGE(F44:G49))/(100-B46+((AVERAGE(F44:G49)*B46)/SGAsph)))),"",((100*AVERAGE(F44:G49))/(100-B46+((AVERAGE(F44:G49)*B46)/SGAsph)))) -> 
A47: 4
A48: 5 | F48: =IF(OR(D48=0,D49=0),"",(100-B48)/((100/(AVERAGE(D48:E49)))-(B48/SGAsph))) ->  | H48: =IF(ISERROR(((100*AVERAGE(F44:G49))/(100-B48+((AVERAGE(F44:G49)*B48)/SGAsph)))),"",((100*AVERAGE(F44:G49))/(100-B48+((AVERAGE(F44:G49)*B48)/SGAsph)))) -> 
A49: 6
W50: =IF(ISBLANK(W46),"",IF(OR(W46<MinIDT,W46>MaxIDT),"^ Not meeting spec","")) ->  | AC50: =IF($AC$46="","",IF(AC46<MinOT,"^ Not meeting spec","")) ->  | AE50: =IF($AE$46="","",IF(AE46<MinCFE,"^ Not meeting spec","")) ->  | AG50: =IF($AG$46="","",IF(AG46>MaxCPR,"^ Not meeting spec","")) -> 
B51: Asphalt Content (%) | D51: Height (in) | F51: Diameter (in) | H51: Dry Weight (grams) | J51: Backcalculated Gr | L51: Ga | S51: Maximum Specific Gravity (Gr) | T51: Gt | U51: Density from Backcalculated Gr (%) | W51: Dimensional analysis procedure. Selected asphalt contents in this table are used for laboratory molded specimens using the Superpave Gyratory Compactor.
D52: Height (mm) | F52: Radius (mm) | AK52: Ge | AL52: Gt
A53: 1 | G53: =IF(E53<>"",75,"") ->  | J53: =IF(B53="","",((100*EffSG)/(100-B53+((EffSG*B53)/SGAsph)))) ->  | L53: =IF(version>6,IF(OR(E53="",G53="",H53=""),"",H53/(3.14159*G53^2*E53)*1000),IF(OR(H53="",F53="",D53=""),"",H53/(3.14159*F53^2/4*D53/(0.393700787401575)^3))) ->  | N53: =IF(U53>=TargDen,1,0) -> 1 | O53: =IF(U53<TargDen,1,0) -> 0 | P53: =IF(AND(N53=1,O51=1),1,0) -> 0 | Q53: =IFERROR(IF(P53=1,B53-((U53-TargDen)/(U53-U51)*(B53-B51)),0),0) -> 0 | S53: =IF($P53=1,FORECAST(TargDen,J51:K54,$U51:$V54),"") ->  | T53: =IF($P53=1,FORECAST(TargDen,$AO$53:$AO$57,$AP$53:$AP$57),"") ->  | U53: =IF(OR(L53="",L54="",J53=""),"",AVERAGE(L53:M54)/J53*100) ->  | AK53: =(100-B53)/((100/J53)-(B53/SGAsph)) ->  | AL53: =100/((100-B53)/AK53+B53/SGAsph) ->  | AM53: =IFERROR(AL53,"") ->  | AO53: =AM53 ->  | AP53: =U53 -> 
A54: 2 | G54: =IF(E54<>"",75,"") ->  | AO54: =AM55 ->  | AP54: =U55 -> 
A55: 3 | G55: =IF(E55<>"",75,"") ->  | J55: =IF(B55="","",((100*EffSG)/(100-B55+((EffSG*B55)/SGAsph)))) ->  | N55: =IF(U55>=TargDen,1,0) -> 1 | O55: =IF(U55<TargDen,1,0) -> 0 | P55: =IF(AND(N55=1,O53=1),1,0) -> 0 | Q55: =IFERROR(IF(P55=1,B55-((U55-TargDen)/(U55-U53)*(B55-B53)),0),0) -> 0 | S55: =IF($P55=1,FORECAST(TargDen,J53:K56,$U53:$V56),"") ->  | T55: =IF($P55=1,FORECAST(TargDen,$AO$53:$AO$57,$AP$53:$AP$57),"") ->  | U55: =IF(OR(L55="",L56="",J55=""),"",AVERAGE(L55:M56)/J55*100) ->  | AM55: =IFERROR(AL55,"") ->  | AO55: =AM57 ->  | AP55: =U57 -> 
A56: 4 | AO56: =AM59 ->  | AP56: =U59 -> 
A57: 5 | J57: =IF(B57="","",((100*EffSG)/(100-B57+((EffSG*B57)/SGAsph)))) ->  | N57: =IF(U57>=TargDen,1,0) -> 1 | O57: =IF(U57<TargDen,1,0) -> 0 | P57: =IF(AND(N57=1,O55=1),1,0) -> 0 | Q57: =IFERROR(IF(P57=1,B57-((U57-TargDen)/(U57-U55)*(B57-B55)),0),0) -> 0 | S57: =IF($P57=1,FORECAST(TargDen,J55:K58,$U55:$V58),"") ->  | T57: =IF($P57=1,FORECAST(TargDen,$AO$53:$AO$57,$AP$53:$AP$57),"") ->  | U57: =IF(OR(L57="",L58="",J57=""),"",AVERAGE(L57:M58)/J57*100) ->  | AM57: =IFERROR(AL57,"") ->  | AO57: =AM61 ->  | AP57: =U61 -> 
A58: 6
A59: 7 | J59: =IF(B59="","",((100*EffSG)/(100-B59+((EffSG*B59)/SGAsph)))) ->  | N59: =IF(U59>=TargDen,1,0) -> 1 | O59: =IF(U59<TargDen,1,0) -> 0 | P59: =IF(AND(N59=1,O57=1),1,0) -> 0 | Q59: =IFERROR(IF(P59=1,B59-((U59-TargDen)/(U59-U57)*(B59-B57)),0),0) -> 0 | S59: =IF($P59=1,FORECAST(TargDen,J57:K60,$U57:$V60),"") ->  | T59: =IF($P59=1,FORECAST(TargDen,$AO$53:$AO$57,$AP$53:$AP$57),"") ->  | U59: =IF(OR(L59="",L60="",J59=""),"",AVERAGE(L59:M60)/J59*100) ->  | AM59: =IFERROR(AL59,"") -> 
A60: 8
A61: 9 | J61: =IF(B61="","",((100*EffSG)/(100-B61+((EffSG*B61)/SGAsph)))) ->  | N61: =IF(U61>=TargDen,1,0) -> 1 | O61: =IF(U61<TargDen,1,0) -> 0 | P61: =IF(AND(N61=1,O59=1),1,0) -> 0 | Q61: =IFERROR(IF(P61=1,B61-((U61-TargDen)/(U61-U59)*(B61-B59)),0),0) -> 0 | S61: =IF($P61=1,FORECAST(TargDen,J59:K62,$U59:$V62),"") ->  | T61: =IF($P61=1,FORECAST(TargDen,$AO$53:$AO$57,$AP$53:$AP$57),"") ->  | U61: =IF(OR(L61="",L62="",J61=""),"",AVERAGE(L61:M62)/J61*100) ->  | AM61: =IFERROR(AL61,"") -> 
A62: 10
B64: FINAL SPECIMEN | AW64: trip4
B65: Asphalt Content (%) | D65: Specific Gravity Of Specimen (Ga) | F65: Maximum Specific Gravity (Gr) | H65: Effective Gravity (Ge) | J65: Density from Gr (Percent) | L65: Film Thickness (microns) | U65: Estimated binder ratio
H66: =IF(F66="","",(100-B66)/((100/F66)-(B66/SGAsph))) ->  | J66: =IF(ISERROR(100*(D66/F66)),"",100*(D66/F66)) ->  | L66: =IF(OR(B66="",D66="",F66=""),"",1000000*(((B66-((((H66-Gsb)/(Gsb*H66))*SGAsph*100)*(100-B66)/100))/100)/(1-((B66-((((H66-Gsb)/(Gsb*H66))*SGAsph*100)*(100-B66)/100))/100))/(SUM('Film Thickness'!I$22:J$31)*SGAsph*1000))) ->  | U66: =RecBinder/ROUND(B66,1)*100 -> 
B68: Suggested Membrane Target App. Rate, gal/yd2: | F68: =IFERROR(0.0110023177161816+96506.5660352875*EXP(VLOOKUP(INDEX('Combined Gradation'!AH35:AH44,COUNTIF('Combined Gradation'!Y35:Y44,">90")+1,1),sievesizes,4,FALSE)/25.4)/(J66^3)+-6.26457587920534E-42*EXP(J66)*((VLOOKUP(INDEX('Combined Gradation'!AH35:AH44,COUNTIF('Combined Gradation'!Y35:Y44,">90")+1,1),sievesizes,4,FALSE)/25.4)),"") -> 
B69: Effective Specific Gravity: | F69: =IFERROR(IF(VLOOKUP(Grade,MIX_RANGE,24),SUM(F44:G49)/COUNTIF(F44:G49,">0"),IF(ISERROR(SUM(H26:I30)/(IF(OR(H26=0,H26=""),0,1)+IF(OR(H27=0,H27=""),0,1)+IF(OR(H28=0,H28=""),0,1)+IF(OR(H29=0,H29=""),0,1)+IF(OR(H30=0,H30=""),0,1))),0,SUM(H26:I30)/(IF(OR(H26=0,H26=""),0,1)+IF(OR(H27=0,H27=""),0,1)+IF(OR(H28=0,H28=""),0,1)+IF(OR(H29=0,H29=""),0,1)+IF(OR(H30=0,H30=""),0,1)))),"") -> 0 | I69: Estimated Percent of Stripping, %: | V69: MIXTURE DENSIFICATION
B70: Optimum Asphalt Content : | F70: =IFERROR(IF(VLOOKUP(Grade,MIX_RANGE,24),IF(Q53<>0,Q53,IF(Q55<>0,Q55,IF(Q57<>0,Q57,IF(Q59<>0,Q59,IF(Q61<>0,Q61,"Invalid design"))))),IF(Q26<>0,Q26,IF(Q27<>0,Q27,IF(Q28<>0,Q28,IF(Q29<>0,Q29,IF(Q30<>0,Q30,"Invalid design")))))),"") -> Invalid design | H70: =IFERROR(IF(OR(optAC="",optAC="Invalid design"),"",IF(OR(ROUND(optAC,1)<MinAC,ROUND(optAC,1)>MaxAC),"<Not meeting requirement","")),"") ->  | V70: Sample | X70: A | Y70: B | Z70: Density (%)
B71: Adjusted OAC For QC/QA | F71: =('Combined Gradation'!S29*Field718/100)+('Combined Gradation'!U29*Field719/100)+('Combined Gradation'!W29*Field720/100)+(Binder-RecBinder) -> 5.69375
B72: Binder Ratio @ OAC: | F72: =IF(OR(optAC="",optAC="Invalid design"),"",RecBinder/ROUND(optAC,1)*100) ->  | H72: =IFERROR(IF(F72="","",IF(F72>bindercheck,"<Exceeds requirement","")),"") ->  | K72: Drain-Down, %: | U72: =IF(ISBLANK(M72),"",IF(VLOOKUP(Grade,MIX_RANGE,3),IF(M72>0.1,"<Max. 0.1%",""),IF(M72>0.2,"<Max. 0.2%",""))) ->  | V72: Gr
B73: VMA @ Optimum AC: | F73: =IFERROR(IF(optAC="Invalid design",0,IF(VLOOKUP(Grade,MIX_RANGE,24),IF(COUNTBLANK(R53:R62)=10,"",MAX(R53:R62)),IF(COUNTBLANK(R26:R30)=10,"",MAX(R26:R30)))),"") -> 0 | H73: =IFERROR(IF(OR($F$73="",$F$73=0),"",IF(ROUND($F$73,1)<VMA,"<Not meeting requirement","")),"") ->  | K73: Cantabro Loss, %: | U73: =IF(ISBLANK(M73),"",IF(M73>20,"<Max. 20%","")) ->  | V73: Ga
B74: VFA @ Optimum AC: | F74: =IF(OR(optAC="Invalid design",F73=""), "",((F73-100+TargDen)/F73*100)) ->  | H74: =IFERROR(IF(acfilmthick="","",IF(OR(acfilmthick<MinVFA,acfilmthick>MaxVFA),"<Not meeting VFA requirement","")),"") ->  | V74: Height @ Nini | Z74: =+IF(AND(X72="",Y72=""),"",IF(version = "1",((((AVERAGE(X76,Y76)/AVERAGE(X74,Y74))*(AVERAGE(X73,Y73)))/F78)*100),((((AVERAGE(X76,Y76)/AVERAGE(X74,Y74))*(AVERAGE(X73,Y73)))/AVERAGE(X72:Y72))*100))) -> 
B75: Interpolated Values | I75: STONE-ON-STONE CONTACT | V75: Height @ Ndes | Z75: =+IF(X74="","",IF(version = "1",((((AVERAGE(X76,Y76)/AVERAGE(X75,Y75))*(AVERAGE(X73,Y73)))/F78)*100),((((AVERAGE(X76,Y76)/AVERAGE(X75,Y75))*(AVERAGE(X73,Y73)))/AVERAGE(X72:Y72))*100))) -> 
B76: Specific Gravity (Ga): | F76: =IF(ISERROR((TargDen/100)*((100/(((100-optAC)/EffSG)+(optAC/SGAsph))))),"",(TargDen/100)*((100/(((100-optAC)/EffSG)+(optAC/SGAsph))))) ->  | V76: Height @ Nmax | Z76: =+IF(X75="","",IF(version = "1",(AVERAGE(X73:Y73)/F78)*100,(AVERAGE(X73:Y73)/AVERAGE(X72:Y72))*100)) -> 
B77: Max. Specific Gravity (Gr): | F77: =IFERROR(IF(VLOOKUP(Grade,MIX_RANGE,24),IF(ISERROR(LARGE(S53:S62,1)),"",LARGE(S53:S62,1)),IF(ISERROR(LARGE(S26:S30,1)),"",LARGE(S26:S30,1))),"") ->  | K77: VCA(CA, calc.) | M77: =IF(ISERROR((CoarseBSG*62.4-DRunit)/(CoarseBSG*62.4)*100),"",(CoarseBSG*62.4-DRunit)/(CoarseBSG*62.4)*100) -> 
B78: Theo. Max. Specific Gravity (Gt): | F78: =IFERROR(IF(VLOOKUP(Grade,MIX_RANGE,24),IF(ISERROR(LARGE(T53:T62,1)),"",LARGE(T53:T62,1)),IF(ISERROR(LARGE(T26:T30,1)),"",LARGE(T26:T30,1))),"") ->  | K78: VCA(MIX, calc.) | M78: =IF(ISERROR(100-(F76/CoarseBSG)*(INDIRECT("'Combined Gradation'!AG" & INDEX(INDIRECT(VLOOKUP(Grade,MIX_RANGE,2)),1,10)+32))*(100-optAC)/100),"",IF(version>3,100-(F76/CoarseBSG)*(INDIRECT("'Combined Gradation'!AG" & INDEX(INDIRECT(VLOOKUP(Grade,MIX_RANGE,2)),1,10)+32))*(100-optAC)/100,100-(F76/CoarseBSG)*(INDIRECT("'Combined Gradation'!AG" & INDEX(INDIRECT(VLOOKUP(Grade,MIX_RANGE,2)),1,10)+32)))) ->  | V78: Mixing Temp,ºF:
B79: Dust/Asphalt Ratio: | F79: =IF(optAC="Invalid design","",ROUND(VLOOKUP(0.075,DUST,22,FALSE)/optAC,1)) ->  | H79: =IFERROR(IF(filmthick="","",IF(LEFT(Grade,3)="344",IF(OR(filmthick<0.6,filmthick>1.6),"<Not within 0.6-1.6 limits",""),IF(LEFT(Grade,6)="SS-CAM",IF(filmthick>1.4,"<Exceeds 1.4 max limit",""),IF(LEFT(Grade,7)="SS-3077",IF(OR(filmthick<0.6,filmthick>1.4),"<Not within 0.6-1.4 limits",""),"")))),"") ->  | K79: =IFERROR(IF(OR(version = 1,version=2),IF($J$78>$J$77,"STONE-ON-STONE CONTACT NOT ACHIEVED",""),IF(optAC="Error","",IF($M$78>$M$77,"STONE-ON-STONE CONTACT NOT ACHIEVED",""))),"") ->  | V79: Molding Temp,ºF:
B80: Remarks: | E80: =NOW() -> 2020-10-28T23:16:33.930
V81: Additional Mixture Evaluation
V82: Test | X82: AC% | Y82: Number of passes | AA82: Rut depth (mm)
B84: =Grade -> SS-3074-BMD-SP-C | V84: Hamburg Wheel
V85: Overlay Test

Sheet DATA_RecycMat (hidden)
A2: Version: 2015 | D2: Version:08/1/2012 | F2: This table is now obsolete - use DATA_QUARRY instead | Q2: Version: 2015 | V2: Recycled Aggregate, % | W2: Virgin Aggregate, %
A3: Non-Hazardous Rec Mat RAS Producers | B3: RAS BIN | C3: RAP BIN | D3: Sandstone | F3: Limestone-Dolomite | H3: Gravel | J3: Igneous | L3: Lightweight | N3: Aggregate Code | Q3: WMA Technology | R3: WMA in Design? | S3: Hydrated Lime | T3: Mix Description | Z3: Recycled Mat List | AA3: Total Percent | AD3: Max Allowable Frac RAP | AG3: Max Ratio Recycled AC to Total AC | AJ3: Max Allowable Unfrac RAP | AM3: RAS | AP3: Maximum Allowable %
A4: APAC-Texas (Alvarado Plant) | B4: =IF(Bin8Recyc="RAS","RASList","") ->  | C4: =IF(Bin8Recyc="Fractionated RAP",IF(LEFT(Grade,2)="SS","SSRAPList","RAPList"),"") -> SSRAPList | D4: Apple (Sawyer, OK) | E4: 0050437 | F4: 1604 | G4: 1501506 | H4: Aztec Canyon | I4: 0418814 | J4: Bird Hill | K4: 1523213 | L4: Streetman | M4: 1817502 | N4: =IF(ISERROR(VLOOKUP('Combined Gradation'!$E$23,INDIRECT(Bin1Source & "Table"),2,FALSE)),"",VLOOKUP('Combined Gradation'!$E$23,INDIRECT(Bin1Source & "Table"),2,FALSE)) ->  | Q4: Advera (PQ Corporation) | R4: =IF(AND(version>4,WMA=""),0,1) -> 0 | S4: =IF(version>4,SUM(IF(Bin1Lime="Yes",Bin1Frac,0),IF(Bin2Lime="Yes",Bin2Frac,0),IF(Bin3Lime="Yes",Bin3Frac,0),IF(Bin4Lime="Yes",Bin4Frac,0),IF(Bin5Lime="Yes",Bin5Frac,0),IF(Bin6Lime="Yes",Bin6Frac,0),IF(Bin7Lime="Yes",Bin7Frac,0)),"") -> 0 | T4: =IF(AND(version>4,courselift=""),0,1) -> 1 | V4: =IF(version>3,SUM(Bin8Frac,Bin9Frac,Bin10Frac),IF(Bin1RAP="Yes",Bin1Frac,0)+IF(Bin2RAP="Yes",Bin2Frac,0)+IF(Bin3RAP="Yes",Bin3Frac,0)+IF(Bin4RAP="Yes",Bin4Frac,0)+IF(Bin5RAP="Yes",Bin5Frac,0)+IF(Bin6RAP="Yes",Bin6Frac,0)+IF(Bin7RAP="Yes",Bin7Frac,0)) -> 25.2 | W4: =100-V4 -> 74.8 | Y4: Fractionated RAP | Z4: =IF(OR(Bin8Recyc="Unfractionated RAP",Bin9Recyc="Unfractionated RAP",Bin10Recyc="Unfractionated RAP"),"","Fractionated RAP") -> Fractionated RAP | AA4: =SUM(IF(Bin8Recyc="Fractionated RAP",TBin8Frac,0),IF(Bin9Recyc="Fractionated RAP",TBin9Frac,0),IF(Bin10Recyc="Fractionated RAP",TBin10Frac,0)) -> 20 | AD4: Surface | AE4: =Z13 ->  | AF4: =Z14 ->  | AG4: Surface | AH4: =Z13 ->  | AI4: =Z14 ->  | AJ4: Surface | AK4: =Z13 ->  | AL4: =Z14 ->  | AP4: Frac RAP | AQ4: =IF(ISERROR(INDEX(AD5:AF16,MATCH(IFERROR(VALUE(LEFT(Grade,3)),VALUE(RIGHT(LEFT(Grade,7),4))),AC5:AC16,0),MATCH(courselift,AD4:AF4,0))),"",INDEX(AD5:AF16,MATCH(IFERROR(VALUE(LEFT(Grade,3)),VALUE(RIGHT(LEFT(Grade,7),4))),AC5:AC16,0),MATCH(courselift,AD4:AF4,0))) -> 35
A5: APAC-Texas (Cold Springs Plant) | B5: =IF(Bin9Recyc="RAS","RASList","") ->  | C5: =IF(Bin9Recyc="Fractionated RAP",IF(LEFT(Grade,2)="SS","SSRAPList","RAPList"),"") -> SSRAPList | D5: Brownlee | E5: 1402704 | F5: Ardmore, OK | G5: 0050412 | H5: Beck | I5: 2110901 | J5: Cinder Mountain | K5: 0050313 | N5: =IF(ISERROR(VLOOKUP('Combined Gradation'!$G$23,INDIRECT(Bin2Source & "Table"),2,FALSE)),"",VLOOKUP('Combined Gradation'!$G$23,INDIRECT(Bin2Source & "Table"),2,FALSE)) ->  | Q5: ALmix WarmWare (ALmix) | Y5: Unfractionated RAP | Z5: =IF(OR(Bin8Recyc="Unfractionated RAP",Bin9Recyc="Unfractionated RAP",Bin10Recyc="Unfractionated RAP",Bin8Recyc="RAS",Bin9Recyc="RAS",Bin10Recyc="RAS",Bin8Recyc="Fractionated RAP",Bin9Recyc="Fractionated RAP",Bin10Recyc="Fractionated RAP"),"","Unfractionated RAP") ->  | AA5: =SUM(IF(Bin8Recyc="Unfractionated RAP",TBin8Frac,0),IF(Bin9Recyc="Unfractionated RAP",TBin9Frac,0),IF(Bin10Recyc="Unfractionated RAP",TBin10Frac,0)) -> 0 | AC5: 340 | AD5: 20 | AE5: 30 | AF5: 40 | AG5: TABLE | AH5: TABLE | AI5: TABLE | AJ5: 10 | AK5: 10 | AL5: 10 | AM5: 5 | AP5: Unfrac RAP | AQ5: =IF(ISERROR(INDEX(AJ5:AL16,MATCH(IFERROR(VALUE(LEFT(Grade,3)),VALUE(RIGHT(LEFT(Grade,7),4))),AC5:AC16,0),MATCH(courselift,AJ4:AL4,0))),"",INDEX(AJ5:AL16,MATCH(IFERROR(VALUE(LEFT(Grade,3)),VALUE(RIGHT(LEFT(Grade,7),4))),AC5:AC16,0),MATCH(courselift,AJ4:AL4,0))) -> 0
A6: APAC-Texas (Corsicana Plant) | B6: =IF(Bin10Recyc="RAS","RASList","") -> RASList | C6: =IF(Bin10Recyc="Fractionated RAP",IF(LEFT(Grade,2)="SS","SSRAPList","RAPList"),"") ->  | D6: Byrd Pit | E6: 0050447 | F6: Balcones Quarry | G6: 1504602 | H6: Big Creek | I6: 0411807 | J6: Davis, OK. | K6: 0050439 | N6: =IF(ISERROR(VLOOKUP('Combined Gradation'!$I$23,INDIRECT(Bin3Source & "Table"),2,FALSE)),"",VLOOKUP('Combined Gradation'!$I$23,INDIRECT(Bin3Source & "Table"),2,FALSE)) ->  | Q6: Aspha-Min (Aspha-Min) | Y6: RAS | Z6: =IF(OR(Bin8Recyc="RAS",Bin9Recyc="RAS",Bin10Recyc="RAS",Bin8Recyc="Unfractionated RAP",Bin9Recyc="Unfractionated RAP",Bin10Recyc="Unfractionated RAP"),"","RAS") ->  | AA6: =SUM(IF(Bin8Recyc="RAS",TBin8Frac,0),IF(Bin9Recyc="RAS",TBin9Frac,0),IF(Bin10Recyc="RAS",TBin10Frac,0)) -> 5 | AC6: 341 | AD6: 20 | AE6: 30 | AF6: 40 | AG6: TABLE | AH6: TABLE | AI6: TABLE | AJ6: 10 | AK6: 10 | AL6: 10 | AM6: 5 | AP6: RAS | AQ6: =VLOOKUP(IFERROR(VALUE(LEFT(Grade,3)),VALUE(RIGHT(LEFT(Grade,7),4))),AC5:AM16,11,FALSE) -> 5
A7: APAC-Texas (Leston Plant) | C7: Fractionated RAP | F7: Beckmann | G7: 1501503 | H7: Boys Ranch | I7: 0418008 | J7: Jones Mill | K7: 0050122 | N7: =IF(ISERROR(VLOOKUP('Combined Gradation'!$K$23,INDIRECT(Bin4Source & "Table"),2,FALSE)),"",VLOOKUP('Combined Gradation'!$K$23,INDIRECT(Bin4Source & "Table"),2,FALSE)) ->  | Q7: Astech PER (Meridian Tech) | V7: Special Provisions | AC7: 342 | AD7: 10 | AE7: 0 | AF7: 0 | AG7: 15 | AH7: 15 | AI7: 15 | AJ7: 0 | AK7: 0 | AL7: 0 | AM7: 5 | AP7: Binder Ratio | AQ7: =IF(VLOOKUP(IFERROR(VALUE(LEFT(Grade,3)),VALUE(RIGHT(LEFT(Grade,7),4))),AC5:AM16,COURSE_COL+4,FALSE)="TABLE",IF(BinderSub="Yes",IF(OR(AC_SUB="",AC_SUB="NA"),20,IF(NOT(ISWMA),OFFSET(RAT_HMA,(AC_ROW)*3+COURSE_COL-1,AC_COL,1,1),OFFSET(RAT_WMA,(AC_ROW)*3+COURSE_COL-1,AC_COL,1,1))),IF(AND(ISWMA,OR(MID(Asphalt,4,5)="64-22",MID(Asphalt,4,5)="64-28")),OFFSET(RAT_WMA,(AC_ROW)*3+COURSE_COL-1,1,1,1),20)),VLOOKUP(IFERROR(VALUE(LEFT(Grade,3)),VALUE(RIGHT(LEFT(Grade,7),4))),AC5:AM16,COURSE_COL+4,FALSE)) -> 30
A8: APAC-Texas (Gribble Plant) | C8: Fine 1/2" | D8: =LEFT(C8,8) -> Fine 1/2 | F8: Bridgeport | G8: 0224904 | H8: Broken Bow S & G | I8: 0050451 | J8: Knippa | K8: 1523206 | N8: =IF(ISERROR(VLOOKUP('Combined Gradation'!$M$23,INDIRECT(Bin5Source&"Table"),2,FALSE)),"",VLOOKUP('Combined Gradation'!$M$23,INDIRECT(Bin5Source&"Table"),2,FALSE)) ->  | Q8: Cecabase RT (Arkema) | Y8: Maximum Ratio of Recycled Binder to Total Binder | AC8: 344 | AD8: 20 | AE8: 25 | AF8: 30 | AG8: TABLE | AH8: TABLE | AI8: TABLE | AJ8: 10 | AK8: 10 | AL8: 10 | AM8: 5
A9: APAC-Texas (Sunnyvale Plant) | C9: Fine 3/8" | D9: =LEFT(C9,8) -> Fine 3/8 | F9: Brownwood | G9: 2302501 | H9: D and D | I9: 2215905 | J9: McKelligon-Granite | K9: 2407206 | N9: =IF(ISERROR(VLOOKUP('Combined Gradation'!$O$23,INDIRECT(Bin6Source & "Table"),2,FALSE)),"",VLOOKUP('Combined Gradation'!$O$23,INDIRECT(Bin6Source & "Table"),2,FALSE)) ->  | Q9: Delta S (Collaborative Aggregates LLC) | Y9: =IF(ISERROR(RecBinder/bindercheck*100),"",RecBinder/bindercheck*100) -> 3.9375 | AC9: 346 | AD9: 15 | AE9: 20 | AF9: 20 | AG9: 15 | AH9: 20 | AI9: 20 | AJ9: 0 | AK9: 0 | AL9: 0 | AM9: 5
A10: Alamo Recycle Centers (Bryan Facility) | C10: Coarse 1/2" | D10: =LEFT(C10,8) -> Coarse 1 | F10: Burnet | G10: 1402701 | H10: Fletcher Pit | I10: 2506508 | J10: Mill Creek (Grnt), OK. | K10: 0050433 | N10: =IF(ISERROR(VLOOKUP('Combined Gradation'!$Q$23,INDIRECT(Bin7Source & "Table"),2,FALSE)),"",VLOOKUP('Combined Gradation'!$Q$23,INDIRECT(Bin7Source & "Table"),2,FALSE)) ->  | Q10: Double Barrel Green (Astec) | AC10: 347 | AD10: 0 | AE10: 0 | AF10: 0 | AG10: 0 | AH10: 0 | AI10: 0 | AJ10: 0 | AK10: 0 | AL10: 0 | AM10: 0
A11: Alamo Recycle Centers (San Angelo Facility) | C11: Coarse 3/8" | D11: =LEFT(C11,8) -> Coarse 3 | F11: Butterfield | G11: 2407220 | H11: Frasier Pit | I11: 2506509 | J11: Padre Canyon | K11: 2411613 | Q11: Evoflex (Ingevity) | Z11: Course | AC11: 348 | AD11: 10 | AE11: 0 | AF11: 0 | AG11: 15 | AH11: 15 | AI11: 15 | AJ11: 0 | AK11: 0 | AL11: 0 | AM11: 5
A12: Alamo Recycle Centers (San Antonio Facility) | F12: Chambers | G12: 0224921 | H12: Galo | I12: 2224019 | J12: Plant 1 | K12: 0050106 | Q12: Evotherm (Ingevity) | Z12: =IFERROR(IF(OR(VLOOKUP(Grade,MIX_RANGE,4,0)=1,VLOOKUP(Grade,MIX_RANGE,4,0)=3,VLOOKUP(Grade,MIX_RANGE,4,0)=4),"Surface",""),"Select a mix first") -> Surface | AC12: 334 | AD12: 0 | AE12: 0 | AF12: 0 | AG12: 0 | AH12: 0 | AI12: 0 | AJ12: 0 | AK12: 0 | AL12: 0 | AM12: 0
A13: Alamo Recycle Centers (Waco Facility) | C13: SS Fractionated RAP | F13: Chapman | G13: 1523211 | H13: Hoban | I13: 0619502 | J13: Porcupine Mountain | K13: 0040105 | Q13: HydroFoam IEQ (East Texas Asphalt) | Z13: =IFERROR(IF(OR(VLOOKUP(Grade,MIX_RANGE,4,0)=2,VLOOKUP(Grade,MIX_RANGE,4,0)=3,VLOOKUP(Grade,MIX_RANGE,4,0)=4,0),"Intermediate",""),"Select a mix first") ->  | AC13: 3000 | AD13: 0 | AE13: 0 | AF13: 0 | AG13: 0 | AH13: 0 | AI13: 0 | AJ13: 0 | AK13: 0 | AL13: 0 | AM13: 0
A14: Brazos Valley Recycling | C14: RAP 1/2" | D14: =LEFT(C14,7) -> RAP 1/2 | F14: Coleman, OK | G14: 0050414 | H14: Kritser-Fain | I14: 0418812 | J14: Snyder, OK. | K14: 0050435 | Q14: Maxam (Maxam Equipment) | Z14: =IFERROR(IF(OR(VLOOKUP(Grade,MIX_RANGE,4,0)=2,VLOOKUP(Grade,MIX_RANGE,4,0)=3),"Base",""),"Select a mix first") ->  | AC14: 3074 | AD14: 35 | AE14: 0 | AF14: 0 | AG14: 30 | AH14: 0 | AI14: 0 | AJ14: 0 | AK14: 0 | AL14: 0 | AM14: 5
A15: C & C Recycling | C15: RAP 3/8" | D15: =LEFT(C15,7) -> RAP 3/8 | F15: Cooperton, OK | G15: 0050415 | H15: Las Viboras | I15: 2110905 | J15: Vado | K15: 0050310 | Q15: QPR QualiTherm (QPR) | AC15: 3076 | AD15: 15 | AE15: 25 | AF15: 30 | AG15: 10 | AH15: 20 | AI15: 25 | AJ15: 0 | AK15: 0 | AL15: 0 | AM15: =IF(courselift="Surface",0,3) -> 0
A16: Century Asphalt (Melendy Plant) | F16: Eastland | G16: 2306805 | H16: Little River | I16: 0050114 | Q16: Redi-Set WMX (AkzoNobel) | AC16: 3077 | AD16: 20 | AE16: 30 | AF16: 35 | AG16: 15 | AH16: 25 | AI16: 30 | AJ16: 0 | AK16: 0 | AL16: 0 | AM16: =IF(courselift="Surface",0,3) -> 0
A17: Cherry Crushed Concrete | F17: Feld | G17: 1424602 | H17: LS Pit | I17: 0418002 | Q17: Rediset LQ (AkzoNobel)
A18: El Paso C&D Recycling | F18: FM 1283 Ranch | G18: 1516317 | H18: Luckett | I18: 0916104 | Q18: Sasobit (Sasol Wax Americas) | AC18: Binder Ratios for Items 340, 341, 344
A19: Pavers Supply Company (Conroe Plant) | F19: Forbes Pit | G19: 0505803 | H19: Matador | I19: 2517309 | Q19: Terex (Terex Roadbuilding) | AD19: PG 70-22 | AE19: PG 64-22 | AF19: PG 70-28 | AG19: PG 64-28 | AJ19: PG 58-28 | AK19: PG 64-34 | AL19: PG 58-34
A20: Pavers Supply Company (Huntsville Plant) | F20: Gibbs | G20: 0901408 | H20: Mitchell Pit | I20: 0907401 | Q20: Ultrafoam GX (Gencor Ind) | AC20: PG 76-22
A21: R2R Recycling (Plano Plant) | F21: Helotes | G21: 1501514 | H21: Murphy | I21: 1323505 | Q21: ZycoTherm (Zydex Ind) | AC21: PG 70-22
A22: R. K. Hall Construction (Texarkana) | F22: Huebner Road | G22: 1501507 | H22: Pit 424 | I22: 1716611 | Q22: Other | AC22: PG 64-22
A23: R.K. Hall Construction (Little Rock) | F23: Hunter | G23: 1504605 | H23: Realitos | I23: 2106701 | AC23: PG 76-28
A24: R.K. Hall Construction (Swift Recycling) | F24: I-35 @ Solms Rd. | G24: 1504606 | H24: Reavis | I24: 2110906 | AC24: PG 70-28
A25: Ramming Paving Company (Buda) | F25: Lampasas Quarry | G25: 1402706 | H25: Sawyer | I25: 0406510 | AC25: PG 64-28
A26: Ramming Paving Company (Ramming Quarry) | F26: Leach | G26: 0212001 | H26: Showers | I26: 2110904
A27: Recon Recycle (Del Valle) | F27: Lone Star | G27: 1504607 | H27: Smith | I27: 0325205
A28: Recon Recycle (New Braunfels) | F28: Marble Falls | G28: 1402702 | H28: South Noodle | I28: 0812803
A29: Recon Recycle (IH-10 Yard) | F29: Matrimar | G29: 0040103 | H29: Stockett | I29: 0400604
A30: Recon Recycle (Schertz Yard ) | F30: McKelligon Dolo | G30: 2407201 | H30: Sweet 16 | I30: 2206706
A31: The Shingle Yard | F31: Mico # 68 | G31: 1516315 | H31: Thrasher | I31: 2517302
A32: Southwest Shingle Recycling | F32: Mill Creek, OK | G32: 0050445 | H32: Woods | I32: 0505402
A33: Sustainable Pavement Technologies, LLC (Pasadena) | F33: Naruna | G33: 1402711 | H33: XIT S & G Pit | I33: 0418010
A34: Sustainable Pavement Technologies, LLC (Dallas Yard) | F34: Nehemiah Pit | G34: 1410608
A35: Sustainable Pavement Technologies, LLC (Fort Worth Yard) | F35: North Troy | G35: 0050448
A36: Sustainable Pavement Technologies (Austin Yard) | F36: Pate | G36: 0914710
A37: Sustainable Pavement Technologies (San Antonio Yard) | F37: Perch-Hill | G37: 0224901
A38: Terra Firma Materials | F38: Ramming | G38: 1424608
A39: Thelin Recycling Company (Abilene) | F39: Rankin | G39: 0623102
A40: Thelin Recycling Company (Fort Worth) | F40: Richards Spur | G40: 0050405
F41: Ruby | G41: 1410607
F42: Servtex | G42: 1504603
F43: South Quarry | G43: 2407213
F44: Spicewood | G44: 1402710
F45: Stringtown, OK | G45: 0050407
F46: Tehuacana | G46: 0914708
F47: Turner | G47: 0722611
F48: Weatherford | G48: 0218409
F49: Weir | G49: 1424603

Sheet Data_Revisions (hidden)
B1: WHEN | C1: WHAT | D1: WHO
B2: 2015-05-21 | C2: Fix TGC density limits for all mixes | D2: Smit
C3: Add 342-PFCR-C mix with limits to Gradations
C4: Fix gyrations and density checks on Summary Sheet
C5: Fix references to old specs on Summary sheet
C6: Fix selection of substitute binders on Combined Gradation sheet
B7: 2015-05-28 | C7: Fix conditional formatting of CRM and Fiber inputs on Combined Gradation & Summary sheets | D7: Smit
C8: Fix mix course selection
C9: Revise limit checks for Fiber (now based on RAS), Drain Down and Cantabro Loss on Summary sheet
C10: Fix density check for PFC designed using SGC
C11: Add Gt calcs for PFC with SGC
B12: 2015-06-05 | C12: Straighten chart curves | D12: Smit
C13: Removed VCA inputs
C14: Hide ITS input for mixes that require OV
B15: 2015-07-08 | C15: Fix max binder ratio calc when WMA used without binder substitution | D15: Smit
B16: 2015-07-09 | C16: Delete old gradation chart | D16: Smit
B17: 2015-08-13 | C17: Fix RASCheck reference | D17: Smit
C18: Add 334 mixes
C19: Fix producer lookup
C20: Hide MIXTURE DENSIFICATION fields on Summary
C21: Hide Additional Mixture Evaluation on Summary
B22: 2015-08-20 | C22: Replace "Error" on interpolated optAC with "Invalid design" and fix associated references | D22: Smit
C23: Fix calculation of optAC
C24: Update MPL for Aggregates, WMA technology, and RAS Producers lists in the hidden DATA RECYCMAT worksheet
B25: 2015-09-02 | C25: Fix 348 for dimensional analysis | D25: Smit
B26: 2015-09-09 | C26: Fix Item 344 to flag dust/asphalt ratio | D26: Smit
B27: 2016-06-24 | C27: Remove VFA from summary sheet and flags | D27: Smit
C28: Fix Enter Specification for other
C29: Fix grad and min VMA specs for SMAR-F mixes
B30: 2016-10-12 | C30: 341 DG-F mix, started with the ¾” sieve and should start with the ½” sieve | D30: Smit
C31: Prompt and flag spec for RAP stockpiles
B32: 2016-11-22 | C32: Fix RAP checks | D32: Smit
